Workbook

Sheet 使用方法
A1: 【シミュレーション】
B2: １．条件設定
C3: ①条件設定用ワークシート
D4: 全てのシミュレーション条件設定はワークシート「２２５Ｆデータ一覧」上で行います。
C5: ②条件設定の方法
D6: ・条件設定用セルへの手動入力
E7: ワークシート上の水色のセルは、条件設定のための任意の値を入力もしくはリストより選択することができます。
D8: ・自動設定ボタン
E9: ワークシート上にあるボタンをクリックすると、条件設定用の値が自動的に入力されます。 | Z9: 22550 | AA9: 1
B10: ２．条件設定データのリセット | Z10: 22550 | AA10: 13
C11: ワークシート上のリセットボタンをクリックすると、該当セルの値が初期化されます。また、「全条件リセット」ボタンをクリックすると、すべての条件設定が初期設定にリセットされます。 | Z11: 22550 | AA11: 13
B12: ３．損益シミュレーション | Z12: 22560 | AA12: 1
C13: ①対象手法 | Z13: 22560 | AA13: 4
D14: オープニングギャッププレー（ＯＧＰ）と各種レンジブレイクアウト（ＲＢＯ）について可能です。 | Z14: 22560 | AA14: 77
C15: ②シミュレーション方法 | Z15: 22570 | AA15: 5
D16: ・それぞれの手法の「解析」ボタンをクリックします。 | Z16: 22570 | AA16: 4
D17: ・各種手法欄にある指値一覧で指値幅と各指値の枚数を自由に設定することができます。 | Z17: 22560 | AA17: 1
D18: ・リセットボタンをクリックすると初期設定に戻ります。初期設定は、シグナビ手法の分割決済方法に準拠しています。 | Z18: 22560 | AA18: 45
D19: ・トレーディングストップの有無を選択できます。 | Z19: 22560 | AA19: 35
D20: ・損切幅を自由に設定できます。なお、トレーディングストップはこの損切幅で行います。 | Z20: 22560 | AA20: 5
C21: ③シミュレーション結果 | Z21: 22560 | AA21: 2
D22: ・レポートの有無を選択できます。レポートはそれぞれの専用ワークシートに表示されます。 | Z22: 22550 | AA22: 1
Z23: 22560 | AA23: 1
Z24: 22550 | AA24: 13
A25: 【データ】 | Z25: 22550 | AA25: 1
B26: １．データ更新の方法 | Z26: 22550 | AA26: 2
C27: ①トレイドエイドのサイトからダウンロード | Z27: 22550 | AA27: 10
D28: ・時間帯別データベースと５分足四本値のデータファイルをトレイドエイドのサイトからダウンロードできます。 | Z28: 22550 | AA28: 1
D29: ・ワークシート「Ｍｅｎｕ」の「最新データベースのダウンロード」をクリックすると、トレイドエイドのサイトから最新データがダウンロードされます。次に、「データベースをアップデート」ボタンをクリックすると、シミュレーターのデータベースがダウンロードされたデータで上書きされます。 | Z29: 22560 | AA29: 3
D30: ・ワークシート「Ｍｅｎｕ」の「最新５分足四本値データのダウンロード」をクリックすると、トレイドエイドのサイトから最新ファイルがダウンロードされます。 | Z30: 22550 | AA30: 13
C31: ②５分足四本値からデータベースと５分足四本値ファイルを更新 | Z31: 22550 | AA31: 13
D32: ・ワークシート「Ｍｅｎｕ」の「５分足データから作成」をクリックすると、ワークシート「５分足」へ移動します。このワークシートの見出し通りに昇順の５分足の四本値データを貼り付けますと、その日のデータベース用レコードが生成されます。次に同ワークシート上の「分足から当日データ作成」ボタンをクリックすると、トレイドエイドからダウンロードされているデータベースが更新されます。Ｍｅｎｕに戻って「データベースをアップデートする」ボタンをクリックして完了です。 | Z32: 22560 | AA32: 1
D33: ・上記でワークシート「５分足」で張り付けた昇順の５分足の四本値データを、５分足四本値データファイルの「5mcandle.xls」の前日データの次の行に貼り付けます。このファイルは年ごとにワークシートがありますので、該当年のデータがある一番最後の行が前日データの終わりです。また、このファイルの保管場所はC:\Users\Public\Simulators\5mcandle.xlsです。 | Z33: 22550 | AA33: 1
D34: ・５分足の四本値は証券会社などのツールからダウンロードして入手してください。 | Z34: 22560 | AA34: 1
B35: ２．データ更新の必要性 | Z35: 22560 | AA35: 1
C36: ・前日までのデータが更新されていないと、直近３日間の四本値から行うシミュレーションの意味がなくなります。シミュレーションを行う前に、必ずデータベースのアップデートを行ってください。 | Z36: 22560 | AA36: 2
C37: ・データベースの最新のデータの日付はＭｅｎｕに表示されています。 | Z37: 22560 | AA37: 6
B38: ３．関連ファイルの保管場所 | Z38: 22560 | AA38: 2
C39: ・すべてのファイルは次のフォルダーへ保管してください ⇒ C:\Users\Public\Simulators
C40: ・このフォルダーは、初めてSim-STD.xlsmを開いたときに、自動的に作成されます。
B41: ４．必要なファイルの種類
C42: ・Sim-STD.xlsm シミュレーターの本体です。多数のマクロが含まれています。
C43: ・5mindata2.csv Sim-STD.xlsmのデータベースを更新するためのデータファイルです。
C44: ・5mcandle.xls ５分足四本値が入ったデータファイルです。
C45: ・２つのデータフォルダーは、初めてSim-STD.xlsmを開いたときに、自動的にダウンロードされます。
A48: 【マクロ】
B49: １．シミュレーターにはマクロが含まれている
C50: シミュレーターにはたくさんのマクロが使用されています。一方、エクセルの初期設定ではマクロが無効化されています。従って、無効化された状態のままではシミュレーターの多くの機能が作動しません。
B51: ２．マクロの有効化設定
C52: ・エクセルのトップメニューの「ファイル」⇒オプション⇒セキュリティセンター⇒セイキュリティセンターの設定⇒マクロの設定⇒すべてのマクロを有効にする
C53: ・上記で設定できない場合は、マイクロソフト社のサイトでお調べください。
A56: 【ダウンロード期間終了後の再ダウンロード】
B57: １．ユーザー側の事情で再ダウンロードが必要になった場合
C58: パスワードの再発行を承ります。１回につき３０００円で１５日間有効です。メールで申し込んでください。
B59: ２．トレイドエイド側で必要になった場合
C60: 当方より該当ユーザーへ直接連絡し、再ダウンロードの方法をお知らせいたします。
B61: ３．再ダウンロードの場合の注意事項
C62: フォルダーにSim-STD.xlsmが存在したまま新しいファイルをダウンロードする際、「プログラムで開く」を選択すると、ＯＳがファイル名に枝番を付けます。そのまま使うと名称が変わっているのでマクロが正しく機能しません。従って、「フォルダーに保管する」を選択して上書きするか、新しいファイルをダウンロードする前に、既存のファイルを削除してください。
A64: 【カスタマイズ】
B65: １．既定の名前
C66: マクロではデータの読み込みや書き出し場所を、ファイル名やワークシート名、セルのアドレスなどを使用して特定します。従って、これらの名前をユーザーが変更すると、マクロは対象を見つけることができないか、間違ったデータを読み込んだり書きだしたりすることになります。
B67: ２．数式のように変更されない
C68: マクロの中で使用されているこれらの名前は、ワークシートのセルに入力された数式のように、位置を変えても自動的に変更されません。
B69: ３．ファイルの差し替え
C70: 何らかの理由でファイルを差し替える場合、カスタマイズされた部分がなくなることになります。
B71: ４．カスタマイズの方法
C72: 従って、カスタマイズする場合は、全く新しいワークシートもしくはファイルを作って既存のファイルやワークシートにリンクさせる方法をお勧めします。
A74: 【OGPシグナル発動条件設定マクロの作動方法】
B75: １．「開発」タブをクリック
B76: ２．Visual Basicをクリック
B77: ３．VBAProject(Sim-STD.xlsm)を展開（+ボタンクリック）
B78: ４．標準モジュールを展開（+ボタンクリック）
B79: ５．OGPdatainputをダブルクリック
B80: ６．このモジュールにあるのがマクロです。GUR1はギャップアップリバーサル１の設定条件を再現します。Sub GUR1()~End Subのどこかにカーソルを移動して、実行⇒sub/ユーザーフォームの実行をクリックすると、マクロが作動します。
B81: ７．ワークシート「２２５Ｆデータ一覧」の抽出条件設定セルにデータがインプットされます。他のマクロも同様に稼働します。
DP404: 2018-07-26 | DQ404: 08:45:00 | DU404: 22610 | DV404: 1177
DP405: 2018-07-26 | DQ405: 08:50:00 | DU405: 22630 | DV405: 796
DP406: 2018-07-26 | DQ406: 08:55:00 | DU406: 22610 | DV406: 630
DP407: 2018-07-26 | DQ407: 09:00:00 | DU407: 22550 | DV407: 2325
DP408: 2018-07-26 | DQ408: 09:05:00 | DU408: 22550 | DV408: 1863
DP409: 2018-07-26 | DQ409: 09:10:00 | DU409: 22560 | DV409: 222

Sheet Menu
G1: SIM-STD
G4: ■メインメニュー■
G24: データベース状況
G26: シミュレーション用ＤＢ | J26: 登録件数 | L26: ='225F intra'!A13 -> 5363
J27: 最新データ日付 | L27: ='225F intra'!A14 -> 2022-11-02
J28: 最古データ日付 | L28: =MIN('225F intra'!A14:A41824) -> 2001-01-04
G29: 日足指標値計算用ＤＢ | J29: 最新データ日付

Sheet ２２５Ｆデータ一覧
A1: 抽出条件設定 | B1: 当日ギャップ幅 | C1: 前日レンジブレイク | D1: 前日ギャップ幅 | E1: 前日本体値幅 | F1: 前日高安値幅 | G1: 前々日レンジブレイク | H1: 前々日ギャップ幅 | I1: 前々日本体値幅 | J1: 前々日高安値幅 | K1: ３日前レンジブレイク | L1: ３日前ギャップ幅 | M1: ３日前本体値幅 | N1: ３日前高安値幅 | O1: ４日前レンジブレイク | P1: 出来高 | W1: 10 | X1: 自動更新 | Y1: レンジ
A2: 最小値 | B2: -1500 | D2: -1500 | E2: -1500 | F2: 0 | H2: -1500 | I2: -1500 | J2: 0 | L2: -1500 | M2: -1500 | N2: 0 | P2: 0 | W2: 20 | X2: ON | Y2: 15
A3: 最大値 | B3: 1500 | D3: 1500 | E3: 1500 | F3: 2000 | H3: 1500 | I3: 1500 | J3: 2000 | L3: 1500 | M3: 1500 | N3: 2000 | P3: 300000 | W3: 30 | X3: OFF | Y3: 30
A4: 抽出条件設定 | B4: 寄り付き 対ピボット位置 | C4: ピボット乖離Ｐ以上 | D4: ピボット乖離Ｐ以下 | E4: 始値下２桁 | F4: 平均値幅 | G4: ＭＡ並び | H4: 一目指標並び | J4: ='225F intra'!CJ1 -> RSI5日 | K4: ='225F intra'!CK1 -> RSI9日 | N4: 期間 | O4: 曜日 | P4: 抽出件数 | Q4: 平均値幅 日数選択 | W4: 40 | Y4: 60
A5: 最小値 | B5: UL | C5: -1500 | D5: -1500 | E5: 0 | F5: 0 | J5: 0 | K5: 0 | L5: -0.5 | M5: -0.5 | N5: 1999-03-01 | O5: 0 | P5: ='225F intra'!IB6 -> 2411 | Q5: 10 | W5: 50 | Y5: 90
A6: 最大値 | B6: UH | C6: 1500 | D6: 1500 | E6: 90 | F6: 1000 | J6: 100 | K6: 100 | L6: 0.5 | M6: 0.5 | N6: 2020-12-31 | O6: 6 | W6: 60 | Y6: 120
A7: 寄り付きからの 時間帯 | B7: ～９：００ | C7: ～９：１５ | D7: ～９：３０ | E7: ～１０：００ | F7: ～１０：３０ | G7: ～１１：００ | H7: ～１１：３０ | I7: ～１２：００ | J7: ～１２：３０ | K7: ～１３：００ | L7: ～１３：３０ | M7: ～１４：００ | N7: ～１４：３０ | P7: 当日 自動設定率 | Q7: 当日以外 自動設定率 | R7: 当日始値の価格選択 | W7: 70
A8: 最小値 | B8: -1500 | C8: -1500 | D8: -1500 | E8: -1500 | F8: -1500 | G8: -1500 | H8: -1500 | I8: -1500 | J8: -1500 | K8: -1500 | L8: -1500 | M8: -1500 | N8: -1500 | O8: OFF | P8: 0.75 | Q8: 1 | R8: CME | W8: 80
A9: 最大値 | B9: 1500 | C9: 1500 | D9: 1500 | E9: 1500 | F9: 1500 | G9: 1500 | H9: 1500 | I9: 1500 | J9: 1500 | K9: 1500 | L9: 1500 | M9: 1500 | N9: 1500 | O9: 10 | Z9: 22580 | AA9: 1
Z10: 22580 | AA10: 1
Z11: 22570 | AA11: 1
A12: 時間帯 | B12: 陽線数 | C12: ドウジ線数 | D12: 陰線数 | E12: 陽線率 | F12: 陰線率 | G12: 平均金額 | H12: 累計金額 | I12: 最大値 | J12: 最小値 | K12: 平均陽線 | L12: 平均陰線 | M12: 指標ブレイク | T12: 期間指定 | Z12: 22570 | AA12: 2
A13: 日足 | B13: ='225F intra'!IE3 -> 1181 | C13: ='225F intra'!IE4 -> 89 | D13: ='225F intra'!IE5 -> 1141 | E13: ='225F intra'!IE6 -> 0.4898382414 | F13: ='225F intra'!IE7 -> 0.4732476151 | G13: ='225F intra'!IE8 -> 0.4811281626 | H13: ='225F intra'!IE9 -> 1160 | I13: ='225F intra'!IE10 -> 800 | J13: ='225F intra'!IE11 -> -1340 | K13: ='225F intra'!IE12 -> 108.4504657 | L13: ='225F intra'!IE13 -> -111.2357581 | M13: ＭＡ | O13: 一目 | Q13: ＢＢ | Z13: 22570 | AA13: 1
A14: 8:45-9:00 | B14: ='225F intra'!$LF3 -> 469 | C14: ='225F intra'!$LF4 -> 1516 | D14: ='225F intra'!$LF5 -> 426 | E14: ='225F intra'!$LF6 -> 0.1945250933 | F14: ='225F intra'!$LF7 -> 0.1766901701 | G14: ='225F intra'!$LF8 -> 1.105765243 | H14: ='225F intra'!$LF9 -> 2666 | I14: ='225F intra'!$LF10 -> 180 | J14: ='225F intra'!$LF11 -> -170 | K14: ='225F intra'!$LF12 -> 28.25373134 | L14: ='225F intra'!$LF13 -> -24.84741784 | M14: 5 | O14: 転換線 | Q14: +3σ | T14: 2007-09-18 | U14: 16:30-19:00 | Z14: 22570 | AA14: 4
A15: 9:00-9:15 | B15: ='225F intra'!$LG3 -> 1059 | C15: ='225F intra'!$LG4 -> 314 | D15: ='225F intra'!$LG5 -> 1038 | E15: ='225F intra'!$LG6 -> 0.4392368312 | F15: ='225F intra'!$LG7 -> 0.4305267524 | G15: ='225F intra'!$LG8 -> 0.5711323102 | H15: ='225F intra'!$LG9 -> 1377 | I15: ='225F intra'!$LG10 -> 430 | J15: ='225F intra'!$LG11 -> -220 | K15: ='225F intra'!$LG12 -> 38.11237016 | L15: ='225F intra'!$LG13 -> -37.55684008 | M15: 25 | O15: 基準線 | Q15: +2σ | T15: 2008-10-14 | U15: 16:30-20:00 | Z15: 22570 | AA15: 1
A16: 9:00-9:30 | B16: ='225F intra'!$LT$3 -> 1069 | C16: ='225F intra'!$LT$4 -> 225 | D16: ='225F intra'!$LT$5 -> 1117 | E16: ='225F intra'!$LT$6 -> 0.4433844878 | F16: ='225F intra'!$LT$7 -> 0.4632932393 | G16: ='225F intra'!$LT$8 -> 0.1970136873 | H16: ='225F intra'!$LT$9 -> 475 | I16: ='225F intra'!$LT$10 -> 300 | J16: ='225F intra'!$LT$11 -> -380 | K16: ='225F intra'!$LT$12 -> 45.58278765 | L16: ='225F intra'!$LT$13 -> -43.19874664 | M16: 75 | O16: 先行スパン１ | Q16: +1σ | T16: 2010-07-20 | U16: 16:30-23:30 | Z16: 22570 | AA16: 1
A17: 9:00-10:00 | B17: ='225F intra'!$LU$3 -> 1098 | C17: ='225F intra'!$LU$4 -> 167 | D17: ='225F intra'!$LU$5 -> 1146 | E17: ='225F intra'!$LU$6 -> 0.4554126918 | F17: ='225F intra'!$LU$7 -> 0.4753214434 | G17: ='225F intra'!$LU$8 -> -0.7270841974 | H17: ='225F intra'!$LU$9 -> -1753 | I17: ='225F intra'!$LU$10 -> 450 | J17: ='225F intra'!$LU$11 -> -310 | K17: ='225F intra'!$LU$12 -> 54.85883424 | L17: ='225F intra'!$LU$13 -> -54.09075044 | M17: 100 | O17: 先行スパン２ | Q17: -1σ | T17: 2011-07-19 | U17: 16:30-03:00 | Z17: 22580 | AA17: 1
A18: 9:00-10:30 | B18: ='225F intra'!$LV$3 -> 1117 | C18: ='225F intra'!$LV$4 -> 185 | D18: ='225F intra'!$LV$5 -> 1109 | E18: ='225F intra'!$LV$6 -> 0.4632932393 | F18: ='225F intra'!$LV$7 -> 0.4599751141 | G18: ='225F intra'!$LV$8 -> 0.121111572 | H18: ='225F intra'!$LV$9 -> 292 | I18: ='225F intra'!$LV$10 -> 450 | J18: ='225F intra'!$LV$11 -> -400 | K18: ='225F intra'!$LV$12 -> 58.80214861 | L18: ='225F intra'!$LV$13 -> -58.96302976 | M18: 200 | Q18: -2σ | T18: 1999-03-01 | Z18: 22580 | AA18: 5
A19: 9:00-11:00 | B19: ='225F intra'!$LW$3 -> 1131 | C19: ='225F intra'!$LW$4 -> 158 | D19: ='225F intra'!$LW$5 -> 1122 | E19: ='225F intra'!$LW$6 -> 0.4690999585 | F19: ='225F intra'!$LW$7 -> 0.4653670676 | G19: ='225F intra'!$LW$8 -> 0.4599751141 | H19: ='225F intra'!$LW$9 -> 1109 | I19: ='225F intra'!$LW$10 -> 540 | J19: ='225F intra'!$LW$11 -> -470 | K19: ='225F intra'!$LW$12 -> 70.22104332 | L19: ='225F intra'!$LW$13 -> -69.79590018 | Q19: -3σ | T19: 2020-12-31 | Z19: 22580 | AA19: 1
A20: 9:00-11:30 | B20: ='225F intra'!$LX$3 -> 1143 | C20: ='225F intra'!$LX$4 -> 152 | D20: ='225F intra'!$LX$5 -> 1116 | E20: ='225F intra'!$LX$6 -> 0.4740771464 | F20: ='225F intra'!$LX$7 -> 0.4628784737 | G20: ='225F intra'!$LX$8 -> -0.4935711323 | H20: ='225F intra'!$LX$9 -> -1190 | I20: ='225F intra'!$LX$10 -> 770 | J20: ='225F intra'!$LX$11 -> -890 | K20: ='225F intra'!$LX$12 -> 74.11898513 | L20: ='225F intra'!$LX$13 -> -76.97849462 | M20: ザラ場日足高安値更新 | Q20: =NOW() -> 2022-11-02T15:38:49.580 | T20: 2000年 | U20: 2001年 | Z20: 22570 | AA20: 1
A21: 9:00-12:00 | B21: ='225F intra'!$LY$3 -> 1163 | C21: ='225F intra'!$LY$4 -> 140 | D21: ='225F intra'!$LY$5 -> 1108 | E21: ='225F intra'!$LY$6 -> 0.4823724596 | F21: ='225F intra'!$LY$7 -> 0.4595603484 | G21: ='225F intra'!$LY$8 -> 0.3687266694 | H21: ='225F intra'!$LY$9 -> 889 | I21: ='225F intra'!$LY$10 -> 730 | J21: ='225F intra'!$LY$11 -> -1080 | K21: ='225F intra'!$LY$12 -> 77.75752365 | L21: ='225F intra'!$LY$13 -> -80.81498195 | M21: 前日 | Q21: CME終値 | R21: 26760 | T21: 2002年 | U21: 2003年 | Z21: 22570 | AA21: 1
A22: 9:00-12:30 | B22: ='225F intra'!$LZ$3 -> 1148 | C22: ='225F intra'!$LZ$4 -> 143 | D22: ='225F intra'!$LZ$5 -> 1120 | E22: ='225F intra'!$LZ$6 -> 0.4761509747 | F22: ='225F intra'!$LZ$7 -> 0.4645375363 | G22: ='225F intra'!$LZ$8 -> 0.6515968478 | H22: ='225F intra'!$LZ$9 -> 1571 | I22: ='225F intra'!$LZ$10 -> 730 | J22: ='225F intra'!$LZ$11 -> -1290 | K22: ='225F intra'!$LZ$12 -> 80.41114983 | L22: ='225F intra'!$LZ$13 -> -81.01875 | M22: 前々日 | Q22: 気配値 | R22: =前日データ設定!K11 -> 27630 | T22: 2004年 | U22: 2005年 | Z22: 22580 | AA22: 1
A23: 9:00-13:00 | B23: ='225F intra'!$MA$3 -> 1135 | C23: ='225F intra'!$MA$4 -> 120 | D23: ='225F intra'!$MA$5 -> 1156 | E23: ='225F intra'!$MA$6 -> 0.4707590212 | F23: ='225F intra'!$MA$7 -> 0.4794691 | G23: ='225F intra'!$MA$8 -> -0.4384072999 | H23: ='225F intra'!$MA$9 -> -1057 | I23: ='225F intra'!$MA$10 -> 720 | J23: ='225F intra'!$MA$11 -> -1170 | K23: ='225F intra'!$MA$12 -> 86.54361233 | L23: ='225F intra'!$MA$13 -> -85.88581315 | M23: 前々々日 | Q23: 前日終値 | R23: =前日データ設定!B11 -> 27640 | T23: 2006年 | U23: 2007年 | Z23: 22570 | AA23: 5
A24: 9:00-13:30 | B24: ='225F intra'!$MB$3 -> 1148 | C24: ='225F intra'!$MB$4 -> 123 | D24: ='225F intra'!$MB$5 -> 1140 | E24: ='225F intra'!$MB$6 -> 0.4761509747 | F24: ='225F intra'!$MB$7 -> 0.4728328494 | G24: ='225F intra'!$MB$8 -> -0.3343011199 | H24: ='225F intra'!$MB$9 -> -806 | I24: ='225F intra'!$MB$10 -> 720 | J24: ='225F intra'!$MB$11 -> -1170 | K24: ='225F intra'!$MB$12 -> 87.25087108 | L24: ='225F intra'!$MB$13 -> -88.57017544 | Q24: 前日高値 | R24: =前日データ設定!B13 -> 27690 | T24: 2008年 | U24: 2009年 | Z24: 22570 | AA24: 1
A25: 9:00-14:00 | B25: ='225F intra'!$MC$3 -> 1151 | C25: ='225F intra'!$MC$4 -> 114 | D25: ='225F intra'!$MC$5 -> 1146 | E25: ='225F intra'!$MC$6 -> 0.4773952717 | F25: ='225F intra'!$MC$7 -> 0.4753214434 | G25: ='225F intra'!$MC$8 -> -0.5226047283 | H25: ='225F intra'!$MC$9 -> -1260 | I25: ='225F intra'!$MC$10 -> 550 | J25: ='225F intra'!$MC$11 -> -1460 | K25: ='225F intra'!$MC$12 -> 92.61164205 | L25: ='225F intra'!$MC$13 -> -94.11518325 | M25: ＭＡ乖離率 | Q25: 前日安値 | R25: =前日データ設定!B14 -> 27550 | T25: 2010年 | U25: 2011年 | Z25: 22570 | AA25: 1
A26: 9:00-14:30 | B26: ='225F intra'!$MD$3 -> 1172 | C26: ='225F intra'!$MD$4 -> 102 | D26: ='225F intra'!$MD$5 -> 1137 | E26: ='225F intra'!$MD$6 -> 0.4861053505 | F26: ='225F intra'!$MD$7 -> 0.4715885525 | G26: ='225F intra'!$MD$8 -> -0.7237660722 | H26: ='225F intra'!$MD$9 -> -1745 | I26: ='225F intra'!$MD$10 -> 610 | J26: ='225F intra'!$MD$11 -> -1460 | K26: ='225F intra'!$MD$12 -> 97.14761092 | L26: ='225F intra'!$MD$13 -> -101.6728232 | M26: ='225F intra'!BM4 -> 5 | N26: -0.5 | O26: 0.5 | P26: 0.01 | Q26: ギャップ幅 | R26: =IF(R8="CME",R21-R23,IF(R8="気配値",R22-R23,前日データ設定!K13-R23)) -> -880 | T26: 2012年 | U26: 2013年 | Z26: 22570 | AA26: 1
A27: 9:15-9:30 | B27: ='225F intra'!$LH3 -> 967 | C27: ='225F intra'!$LH4 -> 393 | D27: ='225F intra'!$LH5 -> 1051 | E27: ='225F intra'!$LH6 -> 0.4010783907 | F27: ='225F intra'!$LH7 -> 0.4359187059 | G27: ='225F intra'!$LH8 -> -0.4836167565 | H27: ='225F intra'!$LH9 -> -1166 | I27: ='225F intra'!$LH10 -> 270 | J27: ='225F intra'!$LH11 -> -180 | K27: ='225F intra'!$LH12 -> 28.63391934 | L27: ='225F intra'!$LH13 -> -27.45480495 | M27: ='225F intra'!BN4 -> 25 | N27: -0.5 | O27: 0.5 | P27: 0.015 | Q27: 本体値幅 | R27: =前日データ設定!B15 -> 40 | Z27: 22580 | AA27: 1
A28: 9:30-10:00 | B28: ='225F intra'!$LI3 -> 1005 | C28: ='225F intra'!$LI4 -> 361 | D28: ='225F intra'!$LI5 -> 1045 | E28: ='225F intra'!$LI6 -> 0.4168394857 | F28: ='225F intra'!$LI7 -> 0.433430112 | G28: ='225F intra'!$LI8 -> -1.145582746 | H28: ='225F intra'!$LI9 -> -2762 | I28: ='225F intra'!$LI10 -> 450 | J28: ='225F intra'!$LI11 -> -240 | K28: ='225F intra'!$LI12 -> 33.36517413 | L28: ='225F intra'!$LI13 -> -34.73110048 | M28: ='225F intra'!BO4 -> 75 | N28: -0.5 | O28: 0.5 | P28: 0.02 | Q28: RSI5日 | R28: =前日データ設定!B34 -> 58.62068966 | Z28: 22570 | AA28: 1
A29: 10:00-10:30 | B29: ='225F intra'!$LJ3 -> 745 | C29: ='225F intra'!$LJ4 -> 1003 | D29: ='225F intra'!$LJ5 -> 663 | E29: ='225F intra'!$LJ6 -> 0.3090004148 | F29: ='225F intra'!$LJ7 -> 0.2749896309 | G29: ='225F intra'!$LJ8 -> 0.8593944421 | H29: ='225F intra'!$LJ9 -> 2072 | I29: ='225F intra'!$LJ10 -> 270 | J29: ='225F intra'!$LJ11 -> -450 | K29: ='225F intra'!$LJ12 -> 26.67516779 | L29: ='225F intra'!$LJ13 -> -26.84917044 | M29: ='225F intra'!BP4 -> 100 | N29: -0.5 | O29: 0.5 | P29: 0.02 | Q29: RSI9日 | R29: =前日データ設定!D34 -> 67.77777778 | Z29: 22570 | AA29: 1
A30: 10:30-11:00 | B30: ='225F intra'!$LK3 -> 1017 | C30: ='225F intra'!$LK4 -> 383 | D30: ='225F intra'!$LK5 -> 1011 | E30: ='225F intra'!$LK6 -> 0.4218166736 | F30: ='225F intra'!$LK7 -> 0.4193280796 | G30: ='225F intra'!$LK8 -> 0.3566984654 | H30: ='225F intra'!$LK9 -> 860 | I30: ='225F intra'!$LK10 -> 500 | J30: ='225F intra'!$LK11 -> -220 | K30: ='225F intra'!$LK12 -> 32.2792527 | L30: ='225F intra'!$LK13 -> -31.62017804 | M30: ='225F intra'!BQ4 -> 200 | N30: -0.5 | O30: 0.5 | P30: 0.02 | Z30: 22570 | AA30: 1
A31: 11:00-11:30 | B31: ='225F intra'!$LL3 -> 1006 | C31: ='225F intra'!$LL4 -> 473 | D31: ='225F intra'!$LL5 -> 932 | E31: ='225F intra'!$LL6 -> 0.4172542513 | F31: ='225F intra'!$LL7 -> 0.3865615927 | G31: ='225F intra'!$LL8 -> -1.111157196 | H31: ='225F intra'!$LL9 -> -2679 | I31: ='225F intra'!$LL10 -> 230 | J31: ='225F intra'!$LL11 -> -640 | K31: ='225F intra'!$LL12 -> 25.78429423 | L31: ='225F intra'!$LL13 -> -30.70600858 | Z31: 22570 | AA31: 25
A32: 11:30-12:00 | B32: ='225F intra'!$LM3 -> 976 | C32: ='225F intra'!$LM4 -> 604 | D32: ='225F intra'!$LM5 -> 831 | E32: ='225F intra'!$LM6 -> 0.4048112816 | F32: ='225F intra'!$LM7 -> 0.3446702613 | G32: ='225F intra'!$LM8 -> 0.9224388221 | H32: ='225F intra'!$LM9 -> 2224 | I32: ='225F intra'!$LM10 -> 280 | J32: ='225F intra'!$LM11 -> -480 | K32: ='225F intra'!$LM12 -> 22.84118852 | L32: ='225F intra'!$LM13 -> -24.15042118 | M32: ＢＢ乖離率 | Z32: 22570 | AA32: 3
A33: 12:00-12:30 | B33: ='225F intra'!$LN3 -> 949 | C33: ='225F intra'!$LN4 -> 588 | D33: ='225F intra'!$LN5 -> 874 | E33: ='225F intra'!$LN6 -> 0.3936126089 | F33: ='225F intra'!$LN7 -> 0.3625051846 | G33: ='225F intra'!$LN8 -> 0.3807548735 | H33: ='225F intra'!$LN9 -> 918 | I33: ='225F intra'!$LN10 -> 180 | J33: ='225F intra'!$LN11 -> -880 | K33: ='225F intra'!$LN12 -> 22.39726027 | L33: ='225F intra'!$LN13 -> -23.26887872 | M33: +3σ | N33: -0.5 | O33: 0.5 | P33: 0.02 | Z33: 22570 | AA33: 2
A34: 12:30-13:00 | B34: ='225F intra'!$LO3 -> 993 | C34: ='225F intra'!$LO4 -> 368 | D34: ='225F intra'!$LO5 -> 1050 | E34: ='225F intra'!$LO6 -> 0.4118622978 | F34: ='225F intra'!$LO7 -> 0.4355039403 | G34: ='225F intra'!$LO8 -> -1.294483617 | H34: ='225F intra'!$LO9 -> -3121 | I34: ='225F intra'!$LO10 -> 280 | J34: ='225F intra'!$LO11 -> -240 | K34: ='225F intra'!$LO12 -> 30.88116818 | L34: ='225F intra'!$LO13 -> -32.17714286 | M34: +2σ | N34: -0.5 | O34: 0.5 | P34: 0.005 | Z34: 22570 | AA34: 1
A35: 13:00-13:30 | B35: ='225F intra'!$LP3 -> 966 | C35: ='225F intra'!$LP4 -> 444 | D35: ='225F intra'!$LP5 -> 1001 | E35: ='225F intra'!$LP6 -> 0.4006636251 | F35: ='225F intra'!$LP7 -> 0.4151804231 | G35: ='225F intra'!$LP8 -> -0.4869348818 | H35: ='225F intra'!$LP9 -> -1174 | I35: ='225F intra'!$LP10 -> 280 | J35: ='225F intra'!$LP11 -> -270 | K35: ='225F intra'!$LP12 -> 30.11387164 | L35: ='225F intra'!$LP13 -> -30.23376623 | M35: +1σ | N35: -0.5 | O35: 0.5 | P35: 0.012 | Z35: 22570 | AA35: 10
A36: 13:30-14:00 | B36: ='225F intra'!$LQ3 -> 1020 | C36: ='225F intra'!$LQ4 -> 485 | D36: ='225F intra'!$LQ5 -> 906 | E36: ='225F intra'!$LQ6 -> 0.4230609706 | F36: ='225F intra'!$LQ7 -> 0.3757776856 | G36: ='225F intra'!$LQ8 -> 1.231439237 | H36: ='225F intra'!$LQ9 -> 2969 | I36: ='225F intra'!$LQ10 -> 320 | J36: ='225F intra'!$LQ11 -> -330 | K36: ='225F intra'!$LQ12 -> 27.21764706 | L36: ='225F intra'!$LQ13 -> -27.36534216 | M36: -1σ | N36: -0.5 | O36: 0.5 | P36: 0.01 | Z36: 22560 | AA36: 8
A37: 14:00-14:30 | B37: ='225F intra'!$LR$3 -> 993 | C37: ='225F intra'!$LR$4 -> 435 | D37: ='225F intra'!$LR$5 -> 983 | E37: ='225F intra'!$LR$6 -> 0.4118622978 | F37: ='225F intra'!$LR$7 -> 0.4077146412 | G37: ='225F intra'!$LR$8 -> -0.08585649108 | H37: ='225F intra'!$LR$9 -> -207 | I37: ='225F intra'!$LR$10 -> 320 | J37: ='225F intra'!$LR$11 -> -410 | K37: ='225F intra'!$LR$12 -> 29.88217523 | L37: ='225F intra'!$LR$13 -> -30.39674466 | M37: -2σ | N37: -0.5 | O37: 0.5 | P37: 0.02 | Z37: 22570 | AA37: 3
A38: 14:30-15:15 | B38: ='225F intra'!$LS$3 -> 1147 | C38: ='225F intra'!$LS$4 -> 263 | D38: ='225F intra'!$LS$5 -> 1001 | E38: ='225F intra'!$LS$6 -> 0.475736209 | F38: ='225F intra'!$LS$7 -> 0.4151804231 | G38: ='225F intra'!$LS$8 -> 0.01161343841 | H38: ='225F intra'!$LS$9 -> 28 | I38: ='225F intra'!$LS$10 -> 420 | J38: ='225F intra'!$LS$11 -> -570 | K38: ='225F intra'!$LS$12 -> 39.28945074 | L38: ='225F intra'!$LS$13 -> -44.99200799 | M38: -3σ | N38: -0.5 | O38: 0.5 | P38: 0.02 | Z38: 22570 | AA38: 3
A45: 寄付きの 仕掛け | B45: ポジション | C45: 損益（ロスカットなし） | J45: 勝敗 | M45: 損益（ロスカットあり） | Q45: report | R45: on | S45: 終了時刻 | T45: 09:30:00 | U45: =(T45-TIMEVALUE("9:00:00"))/TIMEVALUE("0:30:00") + 3 -> 4
C46: 建玉数 | D46: 指値利食い | E46: 終値手仕舞い | F46: 合計 | G46: 損益／件 | H46: 最大利益 | I46: 最大損失 | J46: 勝ち | K46: 負け | L46: 勝率 | M46: 損切り幅 | N46: 勝ち | O46: 分け | P46: 負け | Q46: 損益 | R46: 勝率
B47: 買い | C47: =SUM(C51:C67) -> 12 | D47: ='225F intra'!KX9 -> 484640 | E47: ='225F intra'!KZ9 -> -690225 | F47: ='225F intra'!LA9 -> -205585 | G47: ='225F intra'!LA8 -> -85.26959768 | H47: ='225F intra'!LA10 -> 810 | I47: ='225F intra'!LA11 -> -6120 | J47: ='225F intra'!LA3 -> 1241 | K47: ='225F intra'!LA5 -> 1161 | L47: ='225F intra'!LA6 -> 0.5147241808 | M47: 300 | N47: 12 | O47: 0 | P47: 12 | Q47: -2050 | R47: =N47/(N47+O47+P47) -> 0.5
B48: 売り | C48: =SUM(J51:J67) -> 12 | D48: ='225F intra'!LB9 -> 381560 | E48: ='225F intra'!LD9 -> -657713 | F48: ='225F intra'!LE9 -> -276153 | G48: ='225F intra'!LE8 -> -114.5387806 | H48: ='225F intra'!LE10 -> 1140 | I48: ='225F intra'!LE11 -> -5280 | J48: ='225F intra'!LE3 -> 1285 | K48: ='225F intra'!LE5 -> 1039 | L48: ='225F intra'!LE6 -> 0.5329738698 | M48: 300 | N48: 17 | O48: 0 | P48: 7 | Q48: 3140 | R48: =N48/(N48+O48+P48) -> 0.7083333333
B50: 指値幅 | C50: 建玉数 | D50: 利益 | E50: 約定回数 | F50: 約定率 | G50: 利益／枚 | I50: 指値幅 | J50: 建玉数 | K50: 利益 | L50: 約定回数 | M50: 約定率 | N50: 利益／枚 | Q50: ＯＧＰ損益報告書作成
B51: 10 | C51: 1 | D51: ='225F intra'!JN9 -> 19110 | E51: ='225F intra'!JN3 -> 1911 | F51: =E51/$P$5 -> 0.7926171713 | G51: 37940 | I51: 10 | K51: ='225F intra'!JP9 -> 0 | L51: ='225F intra'!JP$3 -> 0 | M51: =L51/$P$5 -> 0 | N51: 37970 | Q51: 手法
B52: 20 | C52: 1 | D52: ='225F intra'!JL9 -> 32940 | E52: ='225F intra'!JL3 -> 1647 | F52: 0.6831190377 | G52: 64340 | I52: 20 | J52: 6 | K52: ='225F intra'!JR9 -> 191280 | L52: ='225F intra'!JR3 -> 1594 | M52: 0.6611364579 | N52: 64500 | Q52: ＃
B53: 30 | C53: 1 | D53: ='225F intra'!JJ9 -> 41790 | E53: ='225F intra'!JJ$3 -> 1393 | F53: 0.5777685608 | G53: 80520 | I53: 30 | K53: ='225F intra'!JT9 -> 0 | L53: ='225F intra'!JT$3 -> 0 | M53: 0 | N53: 81480 | Q53: 期間
B54: 40 | C54: 1 | D54: ='225F intra'!JH9 -> 46600 | E54: ='225F intra'!JH$3 -> 1165 | F54: 0.4832019909 | G54: 89600 | I54: 40 | J54: 1 | K54: ='225F intra'!JV9 -> 46040 | L54: ='225F intra'!JV$3 -> 1151 | M54: 0.4773952717 | N54: 91120
B55: 50 | C55: 1 | D55: ='225F intra'!JF9 -> 49500 | E55: ='225F intra'!JF$3 -> 990 | F55: 0.4106180008 | G55: 92600 | I55: 50 | K55: ='225F intra'!JX9 -> 0 | L55: ='225F intra'!JX$3 -> 0 | M55: 0 | N55: 94400
B56: 60 | C56: 1 | D56: ='225F intra'!JD9 -> 48840 | E56: ='225F intra'!JD$3 -> 814 | F56: 0.3376192451 | G56: 91980 | I56: 60 | K56: ='225F intra'!JZ9 -> 0 | L56: ='225F intra'!JZ$3 -> 0 | M56: 0 | N56: 93540
B57: 70 | C57: 1 | D57: ='225F intra'!JB9 -> 48370 | E57: ='225F intra'!JB$3 -> 691 | F57: 0.2866030693 | G57: 89600 | I57: 70 | J57: 1 | K57: ='225F intra'!KB9 -> 49420 | L57: ='225F intra'!KB$3 -> 706 | M57: 0.2928245541 | N57: 91910
B58: 80 | C58: 1 | D58: ='225F intra'!IZ9 -> 46560 | E58: ='225F intra'!IZ$3 -> 582 | F58: 0.2413936126 | G58: 85840 | I58: 80 | K58: ='225F intra'!KD9 -> 0 | L58: ='225F intra'!KD$3 -> 0 | M58: 0 | N58: 87120
B59: 90 | C59: 1 | D59: ='225F intra'!IX9 -> 44010 | E59: ='225F intra'!IX$3 -> 489 | F59: 0.2028204065 | G59: 79380 | I59: 90 | K59: ='225F intra'!KF9 -> 0 | L59: ='225F intra'!KF$3 -> 0 | M59: 0 | N59: 80820
B60: 100 | C60: 1 | D60: ='225F intra'!IV9 -> 41100 | E60: ='225F intra'!IV$3 -> 411 | F60: 0.1704686852 | G60: 71400 | I60: 100 | J60: 1 | K60: ='225F intra'!KH9 -> 43300 | L60: ='225F intra'!KH$3 -> 433 | M60: 0.1795935297 | N60: 74600
B61: 120 | C61: 1 | D61: ='225F intra'!IT9 -> 36000 | E61: ='225F intra'!IT$3 -> 300 | F61: 0.1244296972 | G61: 59640 | I61: 120 | K61: ='225F intra'!KJ9 -> 0 | L61: ='225F intra'!KJ$3 -> 0 | M61: 0 | N61: 62160
B62: 140 | C62: 1 | D62: ='225F intra'!IR9 -> 29820 | E62: ='225F intra'!IR$3 -> 213 | F62: 0.08834508503 | G62: 47880 | I62: 140 | J62: 1 | K62: ='225F intra'!KL9 -> 30100 | L62: ='225F intra'!KL$3 -> 215 | M62: 0.08917461634 | N62: 49560
B63: 160 | D63: ='225F intra'!IP9 -> 0 | E63: ='225F intra'!IP$3 -> 0 | F63: 0 | G63: 38240 | I63: 160 | K63: ='225F intra'!KN9 -> 0 | L63: ='225F intra'!KN$3 -> 0 | M63: 0 | N63: 38400
B64: 180 | D64: ='225F intra'!IN9 -> 0 | E64: ='225F intra'!IN$3 -> 0 | F64: 0 | G64: 30240 | I64: 180 | J64: 1 | K64: ='225F intra'!KP9 -> 21420 | L64: ='225F intra'!KP$3 -> 119 | M64: 0.04935711323 | N64: 30780
B65: 200 | D65: ='225F intra'!IL9 -> 0 | E65: ='225F intra'!IL$3 -> 0 | F65: 0 | G65: 23400 | I65: 200 | K65: ='225F intra'!KR9 -> 0 | L65: ='225F intra'!KR$3 -> 0 | M65: 0 | N65: 23400
B66: 250 | D66: ='225F intra'!IJ9 -> 0 | E66: ='225F intra'!IJ$3 -> 0 | F66: 0 | G66: 12500 | I66: 250 | K66: ='225F intra'!KT9 -> 0 | L66: ='225F intra'!KT$3 -> 0 | M66: 0 | N66: 11250
B67: 1000 | D67: ='225F intra'!IH9 -> 0 | E67: ='225F intra'!IH$3 -> 0 | F67: 0 | G67: 0 | I67: 1000 | J67: 1 | K67: ='225F intra'!KV9 -> 0 | L67: ='225F intra'!KV$3 -> 0 | M67: 0 | N67: 0
A70: １５・３０・６０・９０・１２０分 レンジブレイクアウト | B70: レンジ時間（分）⇒ | C70: 120 | D70: report
B71: ポジション↓ | C71: 枚数 | D71: 損切り幅 | E71: トレイリング ストップ | F71: 勝ち | G71: 分け | H71: 負け | I71: 損益(\100) | J71: 勝率
B72: 買い | C72: =SUM(C76:C92) -> 12 | D72: 300 | F72: 7 | G72: 1 | H72: 7 | I72: 70 | J72: =F72/(SUM(F72:H72)) -> 0.4666666667
B73: 売り | C73: =SUM(J76:J92) -> 12 | D73: 300 | F73: 3 | G73: 1 | H73: 13 | I73: -4620 | J73: =F73/(SUM(F73:H73)) -> 0.1764705882
B75: 買い指値幅 | C75: 建玉数 | I75: 売り指値幅 | J75: 建玉数
B76: 10 | I76: 10
B77: 20 | C77: 6 | I77: 20 | J77: 6
B78: 30 | I78: 30
B79: 40 | C79: 1 | I79: 40 | J79: 1
B80: 50 | I80: 50
B81: 60 | I81: 60
B82: 70 | C82: 1 | I82: 70 | J82: 1
B83: 80 | I83: 80
B84: 90 | I84: 90
B85: 100 | C85: 1 | I85: 100 | J85: 1
B86: 120 | I86: 120
B87: 140 | C87: 1 | I87: 140 | J87: 1
B88: 160 | I88: 160
B89: 180 | C89: 1 | I89: 180 | J89: 1
B90: 200 | I90: 200
B91: 250 | I91: 250
B92: 1000 | C92: 1 | I92: 1000 | J92: 1
A94: 時間帯別ＩＲＢ | B94: 時刻別維持状況⇒ | C94: 10:30時点 | E94: 11:00時点 | I94: 11:30時点 | M94: 12:00時点 | Q94: 12:30時点 | U94: 13:00時点 | Y94: 13:30時点 | AC94: 14:00時点 | AG94: 14:30時点 | AK94: 大引け時点
A95: 買い | B95: ブレイク時間帯↓ | C95: 回数 | D95: 金額 | E95: 回数 | F95: 維持率 | G95: 金額／回 | H95: 合計金額 | I95: 回数 | J95: 維持率 | K95: 金額／回 | L95: 合計金額 | M95: 回数 | N95: 維持率 | O95: 金額／回 | P95: 合計金額 | Q95: 回数 | R95: 維持率 | S95: 金額／回 | T95: 合計金額 | U95: 回数 | V95: 維持率 | W95: 金額／回 | X95: 合計金額 | Y95: 回数 | Z95: 維持率 | AA95: 金額／回 | AB95: 合計金額 | AC95: 回数 | AD95: 維持率 | AE95: 金額／回 | AF95: 合計金額 | AG95: 回数 | AH95: 維持率 | AI95: 金額／回 | AJ95: 合計金額 | AK95: 回数 | AL95: 維持率 | AM95: 金額／回 | AN95: 合計金額
B96: 10:00-10:30 | C96: 8 | D96: 190 | E96: 4 | F96: =IF($C96<>0,E96/$C96,"") -> 0.5 | G96: =IF($C96<>0,H96/$C96,"") -> 15 | H96: 120 | I96: 3 | J96: =IF($C96<>0,I96/$C96,"") -> 0.375 | K96: =IF($C96<>0,L96/$C96,"") -> 13.75 | L96: 110 | M96: 3 | N96: =IF($C96<>0,M96/$C96,"") -> 0.375 | O96: =IF($C96<>0,P96/$C96,"") -> 10 | P96: 80 | Q96: 3 | R96: =IF($C96<>0,Q96/$C96,"") -> 0.375 | S96: =IF($C96<>0,T96/$C96,"") -> 10 | T96: 80 | U96: 5 | V96: =IF($C96<>0,U96/$C96,"") -> 0.625 | W96: =IF($C96<>0,X96/$C96,"") -> 25 | X96: 200 | Y96: 6 | Z96: =IF($C96<>0,Y96/$C96,"") -> 0.75 | AA96: =IF($C96<>0,AB96/$C96,"") -> 28.75 | AB96: 230 | AC96: 4 | AD96: =IF($C96<>0,AC96/$C96,"") -> 0.5 | AE96: =IF($C96<>0,AF96/$C96,"") -> 26.25 | AF96: 210 | AG96: 5 | AH96: =IF($C96<>0,AG96/$C96,"") -> 0.625 | AI96: =IF($C96<>0,AJ96/$C96,"") -> 23.75 | AJ96: 190 | AK96: 4 | AL96: =IF($C96<>0,AK96/$C96,"") -> 0.5 | AM96: =IF($C96<>0,AN96/$C96,"") -> 25 | AN96: 200
B97: 10:30-11:00 | C97: 7 | E97: 7 | F97: =IF($C97<>0,E97/$C97,"") -> 1 | G97: =IF($C97<>0,H97/$C97,"") -> 12.85714286 | H97: 90 | I97: 5 | J97: =IF($C97<>0,I97/$C97,"") -> 0.7142857143 | K97: =IF($C97<>0,L97/$C97,"") -> 8.571428571 | L97: 60 | M97: 2 | N97: =IF($C97<>0,M97/$C97,"") -> 0.2857142857 | O97: =IF($C97<>0,P97/$C97,"") -> 7.142857143 | P97: 50 | Q97: 3 | R97: =IF($C97<>0,Q97/$C97,"") -> 0.4285714286 | S97: =IF($C97<>0,T97/$C97,"") -> 4.285714286 | T97: 30 | U97: 3 | V97: 0.4285714286 | W97: 8.571428571 | X97: 60 | Y97: 2 | Z97: 0.2857142857 | AA97: 10 | AB97: 70 | AC97: 2 | AD97: 0.2857142857 | AE97: 14.28571429 | AF97: 100 | AG97: 2 | AH97: 0.2857142857 | AI97: 15.71428571 | AJ97: 110 | AK97: 3 | AL97: 0.4285714286 | AM97: 25.71428571 | AN97: 180
B98: 11:00-11:30 | C98: 0 | I98: 0 | J98: =IF($C98<>0,I98/$C98,"") ->  | K98: =IF($C98<>0,L98/$C98,"") ->  | L98: 0 | M98: 0 | N98: =IF($C98<>0,M98/$C98,"") ->  | O98: =IF($C98<>0,P98/$C98,"") ->  | P98: 0 | Q98: 0 | R98: =IF($C98<>0,Q98/$C98,"") ->  | S98: =IF($C98<>0,T98/$C98,"") ->  | T98: 0 | U98: 0 | X98: 0 | Y98: 0 | Z98: =IF($C98<>0,Y98/$C98,"") ->  | AA98: =IF($C98<>0,AB98/$C98,"") ->  | AB98: 0 | AC98: 0 | AF98: 0 | AG98: 0 | AJ98: 0 | AK98: 0 | AN98: 0
B99: 11:30-12:00 | C99: 0 | M99: 0 | N99: =IF($C99<>0,M99/$C99,"") ->  | O99: =IF($C99<>0,P99/$C99,"") ->  | P99: 0 | Q99: 0 | R99: =IF($C99<>0,Q99/$C99,"") ->  | S99: =IF($C99<>0,T99/$C99,"") ->  | T99: 0 | U99: 0 | X99: 0 | Y99: 0 | Z99: =IF($C99<>0,Y99/$C99,"") ->  | AA99: =IF($C99<>0,AB99/$C99,"") ->  | AB99: 0 | AC99: 0 | AF99: 0 | AG99: 0 | AJ99: 0 | AK99: 0 | AN99: 0
B100: 12:00-12:30 | C100: 1 | Q100: 1 | R100: =IF($C100<>0,Q100/$C100,"") -> 1 | S100: =IF($C100<>0,T100/$C100,"") -> 30 | T100: 30 | U100: 1 | V100: 1 | W100: 20 | X100: 20 | Y100: 0 | Z100: =IF($C100<>0,Y100/$C100,"") -> 0 | AA100: =IF($C100<>0,AB100/$C100,"") -> 0 | AB100: 0 | AC100: 0 | AD100: 0 | AE100: 0 | AF100: 0 | AG100: 0 | AH100: 0 | AI100: 0 | AJ100: 0 | AK100: 0 | AL100: 0 | AM100: 0 | AN100: 0
B101: 12:30-13:00 | C101: 1 | U101: 1 | V101: 1 | W101: 10 | X101: 10 | Y101: 1 | Z101: 1 | AA101: 10 | AB101: 10 | AC101: 0 | AD101: 0 | AE101: 0 | AF101: 0 | AG101: 1 | AH101: 1 | AI101: 10 | AJ101: 10 | AK101: 0 | AL101: 0 | AM101: 0 | AN101: 0
B102: 13:00-13:30 | C102: 3 | Y102: 3 | Z102: 1 | AA102: 10 | AB102: 30 | AC102: 1 | AD102: 0.3333333333 | AE102: 6.666666667 | AF102: 20 | AG102: 1 | AH102: 0.3333333333 | AI102: 13.33333333 | AJ102: 40 | AK102: 1 | AL102: 0.3333333333 | AM102: 10 | AN102: 30
B103: 13:30-14:00 | C103: 1 | Y103: 0 | Z103: 0 | AA103: 0 | AB103: 0 | AC103: 1 | AD103: 1 | AE103: 20 | AF103: 20 | AG103: 1 | AH103: 1 | AI103: 10 | AJ103: 10 | AK103: 1 | AL103: 1 | AM103: 10 | AN103: 10
B104: 14:00-14:30 | C104: 1 | Y104: 0 | Z104: 0 | AA104: 0 | AB104: 0 | AG104: 1 | AH104: 1 | AI104: 30 | AJ104: 30 | AK104: 1 | AL104: 1 | AM104: 10 | AN104: 10
B105: 14:30-15:10 | C105: 0 | Y105: 0 | AB105: 0 | AK105: 0 | AN105: 0
B106: ブレイクなし | C106: 15 | D106: =C106/SUM(C96:C106) -> 0.4054054054
A107: 時間帯別ＩＲＢ | B107: 時刻別維持状況⇒ | C107: 10:30時点 | E107: 11:00時点 | I107: 11:30時点 | M107: 12:00時点 | Q107: 12:30時点 | U107: 13:00時点 | Y107: 13:30時点 | AC107: 14:00時点 | AG107: 14:30時点 | AK107: 大引け時点
A108: 売り | B108: ブレイク時間帯↓ | C108: 回数 | D108: 金額 | E108: 回数 | F108: 維持率 | G108: 金額／回 | H108: 合計金額 | I108: 回数 | J108: 維持率 | K108: 金額／回 | L108: 合計金額 | M108: 回数 | N108: 維持率 | O108: 金額／回 | P108: 合計金額 | Q108: 回数 | R108: 維持率 | S108: 金額／回 | T108: 合計金額 | U108: 回数 | V108: 維持率 | W108: 金額／回 | X108: 合計金額 | Y108: 回数 | Z108: 維持率 | AA108: 金額／回 | AB108: 合計金額 | AC108: 回数 | AD108: 維持率 | AE108: 金額／回 | AF108: 合計金額 | AG108: 回数 | AH108: 維持率 | AI108: 金額／回 | AJ108: 合計金額 | AK108: 回数 | AL108: 維持率 | AM108: 金額／回 | AN108: 合計金額
B109: 10:00-10:30 | C109: 10 | D109: 292 | E109: 7 | F109: =IF($C109<>0,E109/$C109,"") -> 0.7 | G109: =IF($C109<>0,H109/$C109,"") -> 26.6 | H109: 266 | I109: 7 | J109: =IF($C109<>0,I109/$C109,"") -> 0.7 | K109: =IF($C109<>0,L109/$C109,"") -> 33.4 | L109: 334 | M109: 7 | N109: =IF($C109<>0,M109/$C109,"") -> 0.7 | O109: =IF($C109<>0,P109/$C109,"") -> 38 | P109: 380 | Q109: 7 | R109: =IF($C109<>0,Q109/$C109,"") -> 0.7 | S109: =IF($C109<>0,T109/$C109,"") -> 38 | T109: 380 | U109: 7 | V109: =IF($C109<>0,U109/$C109,"") -> 0.7 | W109: =IF($C109<>0,X109/$C109,"") -> 51.3 | X109: 513 | Y109: 8 | Z109: =IF($C109<>0,Y109/$C109,"") -> 0.8 | AA109: =IF($C109<>0,AB109/$C109,"") -> 53 | AB109: 530 | AC109: 8 | AD109: =IF($C109<>0,AC109/$C109,"") -> 0.8 | AE109: =IF($C109<>0,AF109/$C109,"") -> 46.6 | AF109: 466 | AG109: 8 | AH109: =IF($C109<>0,AG109/$C109,"") -> 0.8 | AI109: =IF($C109<>0,AJ109/$C109,"") -> 43.1 | AJ109: 431 | AK109: 8 | AL109: =IF($C109<>0,AK109/$C109,"") -> 0.8 | AM109: =IF($C109<>0,AN109/$C109,"") -> 48.6 | AN109: 486
B110: 10:30-11:00 | C110: 3 | E110: 3 | F110: =IF($C110<>0,E110/$C110,"") -> 1 | G110: =IF($C110<>0,H110/$C110,"") -> 16.66666667 | H110: 50 | I110: 1 | J110: =IF($C110<>0,I110/$C110,"") -> 0.3333333333 | K110: =IF($C110<>0,L110/$C110,"") -> 23.33333333 | L110: 70 | M110: 1 | N110: =IF($C110<>0,M110/$C110,"") -> 0.3333333333 | O110: =IF($C110<>0,P110/$C110,"") -> 16.66666667 | P110: 50 | Q110: 1 | R110: =IF($C110<>0,Q110/$C110,"") -> 0.3333333333 | S110: =IF($C110<>0,T110/$C110,"") -> 13.33333333 | T110: 40 | U110: 1 | V110: 0.3333333333 | W110: 16.66666667 | X110: 50 | Y110: 1 | Z110: 0.3333333333 | AA110: 20 | AB110: 60 | AC110: 1 | AD110: 0.3333333333 | AE110: 16.66666667 | AF110: 50 | AG110: 1 | AH110: 0.3333333333 | AI110: 20 | AJ110: 60 | AK110: 1 | AL110: 0.3333333333 | AM110: 23.33333333 | AN110: 70
B111: 11:00-11:30 | C111: 1 | I111: 1 | J111: =IF($C111<>0,I111/$C111,"") -> 1 | K111: =IF($C111<>0,L111/$C111,"") -> 10 | L111: 10 | M111: 1 | N111: =IF($C111<>0,M111/$C111,"") -> 1 | O111: =IF($C111<>0,P111/$C111,"") -> 10 | P111: 10 | Q111: 1 | R111: =IF($C111<>0,Q111/$C111,"") -> 1 | S111: =IF($C111<>0,T111/$C111,"") -> 60 | T111: 60 | U111: 1 | V111: 1 | W111: 80 | X111: 80 | Y111: 1 | Z111: 1 | AA111: 50 | AB111: 50 | AC111: 1 | AD111: 1 | AE111: 40 | AF111: 40 | AG111: 1 | AH111: 1 | AI111: 50 | AJ111: 50 | AK111: 1 | AL111: 1 | AM111: 60 | AN111: 60
B112: 11:30-12:00 | C112: 1 | M112: 1 | N112: =IF($C112<>0,M112/$C112,"") -> 1 | O112: =IF($C112<>0,P112/$C112,"") -> 20 | P112: 20 | Q112: 0 | R112: =IF($C112<>0,Q112/$C112,"") -> 0 | S112: =IF($C112<>0,T112/$C112,"") -> 0 | T112: 0 | U112: 1 | V112: 1 | W112: 10 | X112: 10 | Y112: 1 | Z112: 1 | AA112: 60 | AB112: 60 | AC112: 1 | AD112: 1 | AE112: 40 | AF112: 40 | AG112: 1 | AH112: 1 | AI112: 54 | AJ112: 54 | AK112: 1 | AL112: 1 | AM112: 40 | AN112: 40
B113: 12:00-12:30 | C113: 0 | Q113: 0 | R113: =IF($C113<>0,Q113/$C113,"") ->  | S113: =IF($C113<>0,T113/$C113,"") ->  | T113: 0 | U113: 0 | X113: 0 | Y113: 0 | AB113: 0 | AC113: 0 | AF113: 0 | AG113: 0 | AJ113: 0 | AK113: 0 | AN113: 0
B114: 12:30-13:00 | C114: 1 | U114: 1 | V114: 1 | W114: 30 | X114: 30 | Y114: 1 | Z114: 1 | AA114: 20 | AB114: 20 | AC114: 1 | AD114: 1 | AE114: 40 | AF114: 40 | AG114: 1 | AH114: 1 | AI114: 30 | AJ114: 30 | AK114: 1 | AL114: 1 | AM114: 50 | AN114: 50
B115: 13:00-13:30 | C115: 0 | Y115: 0 | AB115: 0 | AC115: 0 | AF115: 0 | AG115: 0 | AJ115: 0 | AK115: 0 | AN115: 0
B116: 13:30-14:00 | C116: 1 | AC116: 1 | AD116: 1 | AE116: 10 | AF116: 10 | AG116: 0 | AH116: 0 | AI116: 0 | AJ116: 0 | AK116: 0 | AL116: 0 | AM116: 0 | AN116: 0
B117: 14:00-14:30 | C117: 1 | AG117: 1 | AH117: =IF($C117<>0,AG117/$C117,"") -> 1 | AI117: =IF($C117<>0,AJ117/$C117,"") -> 10 | AJ117: 10 | AK117: 1 | AL117: 1 | AM117: 50 | AN117: 50
B118: 14:30-15:10 | C118: 1 | AK118: 1 | AL118: 1 | AM118: 30 | AN118: 30
B119: ブレイクなし | C119: 18 | D119: =C119/SUM(C109:C119) -> 0.4864864865
O260: 6
DP403: 2018-07-30 | DQ403: 08:45:00 | DR403: 22570 | DS403: 22580 | DT403: 22560 | DU403: 22580 | DV403: 603
DP404: 2018-07-30 | DQ404: 08:50:00 | DR404: 22580 | DS404: 22580 | DT404: 22570 | DU404: 22580 | DV404: 17
DP405: 2018-07-30 | DQ405: 08:55:00 | DR405: 22580 | DS405: 22580 | DT405: 22580 | DU405: 22580 | DV405: 1
A1846: 最小値リスト | B1846: 最大値リスト | C1846: 前日レンジブレイク | D1846: 寄付き転換線ブレイク | E1846: 一目指標・長短ＭＡ並び | F1846: 寄付き５日ＭＡブレイク | G1846: ザラ場レンジブレイク
A1847: H | B1847: UH | C1847: L | D1847: DW | E1847: L | F1847: DW | G1847: L
A1848: S2 | B1848: H | C1848: H | D1848: UP | E1848: S | F1848: UP | G1848: H
A1849: S1 | B1849: S2 | C1849: I | E1849: N | G1849: I
A1850: P | B1850: S1 | G1850: B
A1851: B1 | B1851: P
A1852: B2 | B1852: B1
A1853: L | B1853: B2
A1854: UL | B1854: L
A1855: B2 | B1855: B1
A1856: L | B1856: B2
A1857: UL | B1857: L
A1866: 最小値リスト | B1866: 最大値リスト | C1866: 前日レンジブレイク | D1866: 寄付き転換線ブレイク | E1866: 一目始値位置 | F1866: 寄付き５日ＭＡブレイク | G1866: 最小値リスト | H1866: 最大値リスト | I1866: MA選択 | J1866: 一目抵抗線選択 | K1866: 平均値幅選択 | L1866: 出来高範囲 | M1866: ローソク足タイプ | N1866: 価格選択 | O1866: 高安値ブレイク | P1866: 寄り付きの仕掛け/ＲＢＯレポート | Q1866: 報告書対象手法 | R1866: 報告書対象手法＃ | S1866: 報告書期間 | T1866: 終了時刻
A1867: H | B1867: UH | C1867: L | D1867: DW | E1867: L | F1867: DW | G1867: H | H1867: UH | I1867: 5 | J1867: 転換線 | K1867: 5 | L1867: ５分 | M1867: 孕み | N1867: CME | O1867: H | P1867: on | Q1867: GUR | R1867: すべて | S1867: １年 | T1867: 09:30:00
A1868: S2 | B1868: H | C1868: H | D1868: UP | E1868: S | F1868: UP | G1868: S2 | H1868: H | I1868: 25 | J1868: 基準線 | K1868: 10 | L1868: ６０分 | M1868: 切込み | N1868: 気配値 | O1868: L | Q1868: GDR | R1868: 1 | S1868: ３年 | T1868: 10:00:00
A1869: S1 | B1869: S2 | C1869: I | E1869: N | G1869: S1 | H1869: S2 | I1869: 75 | J1869: 先行スパン１ | K1869: 20 | L1869: １２０分 | M1869: カブセ | N1869: 始値 | O1869: B | Q1869: BGU | R1869: 2 | S1869: ５年 | T1869: 10:30:00
A1870: P | B1870: S1 | G1870: P | H1870: S1 | I1870: 100 | J1870: 先行スパン２ | L1870: 終日 | M1870: 包み | O1870: I | Q1870: BGD | R1870: 3 | S1870: ７年 | T1870: 11:00:00
A1871: B1 | B1871: P | G1871: B1 | H1871: P | I1871: 200 | Q1871: すべて | R1871: 4 | S1871: １０年 | T1871: 11:30:00
A1872: B2 | B1872: B1 | G1872: B2 | H1872: B1 | R1872: 5 | S1872: 全期間 | T1872: 12:00:00
A1873: L | B1873: B2 | G1873: L | H1873: B2 | R1873: 6 | T1873: 12:30:00
A1874: UL | B1874: L | G1874: UL | H1874: L | R1874: 7 | T1874: 13:00:00
R1875: 8 | T1875: 13:30:00
R1876: 9 | T1876: 14:00:00
R1877: 10 | T1877: 14:30:00
R1878: 11 | T1878: 15:15:00
R1879: 12
R1880: 13
R1881: 14
R1882: 15
R1883: 16
R1884: 17
R1885: 18
R1886: 19
R1887: 20

Sheet FOC
A2: short 1
A3: 抽出条件設定 | B3: 当日ギャップ幅 | C3: 前日レンジブレイク | D3: 前日ギャップ幅 | E3: 前日本体値幅 | F3: 前日高安値幅 | G3: 前々日レンジブレイク | H3: 前々日ギャップ幅 | I3: 前々日本体値幅 | J3: 前々日高安値幅 | K3: ３日前レンジブレイク | L3: ３日前ギャップ幅 | M3: ３日前本体値幅 | N3: ３日前高安値幅 | O3: ４日前レンジブレイク
A4: 最小値 | B4: 180 | C4: H | D4: 0 | E4: 0 | F4: 0 | H4: -1500 | I4: -1500 | J4: 0 | L4: -1500 | M4: -1500 | N4: 0
A5: 最大値 | B5: 1500 | D5: 1500 | E5: 1500 | F5: 2000 | H5: 1500 | I5: 1500 | J5: 2000 | L5: 1500 | M5: 1500 | N5: 2000
A6: 抽出条件設定 | B6: 寄り付き 対ピボット位置 | C6: ピボット乖離Ｐ以上 | D6: ピボット乖離Ｐ以下 | E6: 始値下２桁 | F6: 平均値幅 | G6: ＭＡ並び | H6: 一目指標並び | J6: ='225F intra'!CJ3 -> 148 | K6: ='225F intra'!CK3 -> 147 | N6: 期間 | O6: 曜日
A7: 最小値 | B7: UL | C7: -1500 | D7: -1500 | E7: 0 | F7: 0 | G7: L | J7: 0 | K7: 0 | L7: -0.5 | M7: -0.5 | N7: 1999-03-01 | O7: 0
A8: 最大値 | B8: UH | C8: 1500 | D8: 1500 | E8: 90 | F8: 1000 | J8: 100 | K8: 100 | L8: 0.5 | M8: 0.5 | N8: 2020-12-31 | O8: 6
A9: short 2
A10: 抽出条件設定 | B10: 当日ギャップ幅 | C10: 前日レンジブレイク | D10: 前日ギャップ幅 | E10: 前日本体値幅 | F10: 前日高安値幅 | G10: 前々日レンジブレイク | H10: 前々日ギャップ幅 | I10: 前々日本体値幅 | J10: 前々日高安値幅 | K10: ３日前レンジブレイク | L10: ３日前ギャップ幅 | M10: ３日前本体値幅 | N10: ３日前高安値幅 | O10: ４日前レンジブレイク
A11: 最小値 | B11: 10 | D11: -1500 | E11: -1500 | F11: 0 | H11: -1500 | I11: -1500 | J11: 0 | L11: -1500 | M11: -1500 | N11: 0
A12: 最大値 | B12: 1500 | D12: 1500 | E12: 1500 | F12: 2000 | H12: 1500 | I12: 1500 | J12: 2000 | L12: 1500 | M12: 1500 | N12: 2000
A13: 抽出条件設定 | B13: 寄り付き 対ピボット位置 | C13: ピボット乖離Ｐ以上 | D13: ピボット乖離Ｐ以下 | E13: 始値下２桁 | F13: 平均値幅 | G13: ＭＡ並び | H13: 一目指標並び | J13: ='225F intra'!CJ13 -> 0 | K13: ='225F intra'!CK13 -> 0 | N13: 期間 | O13: 曜日
A14: 最小値 | B14: UL | C14: -1500 | D14: -1500 | E14: 0 | F14: 0 | J14: 0 | K14: 75 | L14: -0.5 | M14: -0.5 | N14: 1999-03-01 | O14: 0
A15: 最大値 | B15: UH | C15: 1500 | D15: 1500 | E15: 90 | F15: 1000 | J15: 100 | K15: 100 | L15: 0.5 | M15: 0.5 | N15: 2020-12-31 | O15: 6 | P15: +2σ | Q15: 0.003 | R15: 0.5 | S15: 0.02
A16: short 3
A17: 抽出条件設定 | B17: 当日ギャップ幅 | C17: 前日レンジブレイク | D17: 前日ギャップ幅 | E17: 前日本体値幅 | F17: 前日高安値幅 | G17: 前々日レンジブレイク | H17: 前々日ギャップ幅 | I17: 前々日本体値幅 | J17: 前々日高安値幅 | K17: ３日前レンジブレイク | L17: ３日前ギャップ幅 | M17: ３日前本体値幅 | N17: ３日前高安値幅 | O17: ４日前レンジブレイク
A18: 最小値 | B18: -1500 | C18: H | D18: -1500 | E18: -1500 | F18: 0 | G18: H | H18: -1500 | I18: -1500 | J18: 0 | L18: -1500 | M18: -1500 | N18: 0
A19: 最大値 | B19: 1500 | D19: 1500 | E19: 1500 | F19: 2000 | H19: 1500 | I19: 1500 | J19: 2000 | L19: 1500 | M19: 1500 | N19: 2000
A20: 抽出条件設定 | B20: 寄り付き 対ピボット位置 | C20: ピボット乖離Ｐ以上 | D20: ピボット乖離Ｐ以下 | E20: 始値下２桁 | F20: 平均値幅 | G20: ＭＡ並び | H20: 一目指標並び | J20: ='225F intra'!CJ20 -> 54.79452055 | K20: ='225F intra'!CK20 -> 67.33067729 | N20: 期間 | O20: 曜日
A21: 最小値 | B21: UL | C21: -1500 | D21: -1500 | E21: 0 | F21: 0 | J21: 0 | K21: 15 | L21: -0.5 | M21: -0.5 | N21: 1999-03-01 | O21: 0
A22: 最大値 | B22: UH | C22: 1500 | D22: 1500 | E22: 90 | F22: 1000 | J22: 100 | K22: 60 | L22: 0.5 | M22: 0.5 | N22: 2020-12-31 | O22: 6
A23: long 1
A24: 抽出条件設定 | B24: 当日ギャップ幅 | C24: 前日レンジブレイク | D24: 前日ギャップ幅 | E24: 前日本体値幅 | F24: 前日高安値幅 | G24: 前々日レンジブレイク | H24: 前々日ギャップ幅 | I24: 前々日本体値幅 | J24: 前々日高安値幅 | K24: ３日前レンジブレイク | L24: ３日前ギャップ幅 | M24: ３日前本体値幅 | N24: ３日前高安値幅 | O24: ４日前レンジブレイク
A25: 最小値 | B25: -1500 | D25: -1500 | E25: -1500 | F25: 0 | G25: I | H25: -1500 | I25: -1500 | J25: 0 | L25: -1500 | M25: -1500 | N25: 0
A26: 最大値 | B26: 50 | F26: 2000 | G26: I | H26: 1500 | I26: 1500 | J26: 2000 | L26: 1500 | M26: 1500 | N26: 2000
A27: 抽出条件設定 | B27: 寄り付き 対ピボット位置 | C27: ピボット乖離Ｐ以上 | D27: ピボット乖離Ｐ以下 | E27: 始値下２桁 | F27: 平均値幅 | G27: ＭＡ並び | H27: 一目指標並び | J27: ='225F intra'!CJ27 -> 43.68421053 | K27: ='225F intra'!CK27 -> 66.35220126 | N27: 期間 | O27: 曜日
A28: 最小値 | B28: UL | C28: -1500 | D28: -1500 | E28: 0 | F28: 0 | J28: 0 | K28: 0 | L28: -0.5 | M28: -0.5 | N28: 1999-03-01 | O28: 0
A29: 最大値 | B29: UH | C29: 1500 | D29: 1500 | E29: 90 | F29: 1000 | J29: 40 | K29: 100 | L29: 0.5 | M29: 0.5 | N29: 2020-12-31 | O29: 6
A30: long 2
A31: 抽出条件設定 | B31: 当日ギャップ幅 | C31: 前日レンジブレイク | D31: 前日ギャップ幅 | E31: 前日本体値幅 | F31: 前日高安値幅 | G31: 前々日レンジブレイク | H31: 前々日ギャップ幅 | I31: 前々日本体値幅 | J31: 前々日高安値幅 | K31: ３日前レンジブレイク | L31: ３日前ギャップ幅 | M31: ３日前本体値幅 | N31: ３日前高安値幅 | O31: ４日前レンジブレイク
A32: 最小値 | B32: -1500 | D32: -1500 | E32: -1500 | F32: 0 | H32: -1500 | I32: -1500 | J32: 0 | L32: -1500 | M32: -1500 | N32: 0
A33: 最大値 | B33: -10 | D33: 1500 | E33: 1500 | F33: 2000 | H33: 1500 | I33: 1500 | J33: 2000 | L33: 1500 | M33: 1500 | N33: 2000
A34: 抽出条件設定 | B34: 寄り付き 対ピボット位置 | C34: ピボット乖離Ｐ以上 | D34: ピボット乖離Ｐ以下 | E34: 始値下２桁 | F34: 平均値幅 | G34: ＭＡ並び | H34: 一目指標並び | J34: ='225F intra'!CJ31 -> 87.07482993 | K34: ='225F intra'!CK31 -> 66.42335766 | N34: 期間 | O34: 曜日
A35: 最小値 | B35: UL | C35: -1500 | D35: -1500 | E35: 0 | F35: 0 | J35: 75 | K35: 45 | L35: -0.5 | M35: -0.5 | N35: 1999-03-01 | O35: 0
A36: 最大値 | B36: UH | C36: 1500 | D36: 1500 | E36: 90 | F36: 1000 | J36: 100 | K36: 100 | L36: 0.5 | M36: 0.5 | N36: 2020-12-31 | O36: 6
A37: long 3
A38: 抽出条件設定 | B38: 当日ギャップ幅 | C38: 前日レンジブレイク | D38: 前日ギャップ幅 | E38: 前日本体値幅 | F38: 前日高安値幅 | G38: 前々日レンジブレイク | H38: 前々日ギャップ幅 | I38: 前々日本体値幅 | J38: 前々日高安値幅 | K38: ３日前レンジブレイク | L38: ３日前ギャップ幅 | M38: ３日前本体値幅 | N38: ３日前高安値幅 | O38: ４日前レンジブレイク
A39: 最小値 | B39: -1500 | C39: L | D39: -1500 | E39: -1500 | F39: 0 | G39: L | H39: -1500 | I39: -1500 | J39: 0 | L39: -1500 | M39: -1500 | N39: 0
A40: 最大値 | B40: -10 | D40: 1500 | E40: 1500 | F40: 2000 | H40: 1500 | I40: 1500 | J40: 2000 | L40: 1500 | M40: 1500 | N40: 2000
A41: 抽出条件設定 | B41: 寄り付き 対ピボット位置 | C41: ピボット乖離Ｐ以上 | D41: ピボット乖離Ｐ以下 | E41: 始値下２桁 | F41: 平均値幅 | G41: ＭＡ並び | H41: 一目指標並び | J41: ='225F intra'!CJ38 -> 6.779661017 | K41: ='225F intra'!CK38 -> 8.389261745 | N41: 期間 | O41: 曜日
A42: 最小値 | B42: UL | C42: -1500 | D42: -1500 | E42: 0 | F42: 0 | J42: 10 | K42: 0 | L42: -0.5 | M42: -0.5 | N42: 1999-03-01 | O42: 0
A43: 最大値 | B43: UH | C43: 1500 | D43: 1500 | E43: 90 | F43: 1000 | J43: 47 | K43: 100 | L43: 0.5 | M43: 0.5 | N43: 2020-12-31 | O43: 6

Sheet 前日データ設定
A1: 抽出条件設定 | B1: 当日ギャップ幅 | C1: 前日レンジブレイク | D1: 前日ギャップ幅 | E1: 前日本体値幅 | F1: 前日高安値幅 | G1: 前々日レンジブレイク | H1: 前々日ギャップ幅 | I1: 前々日本体値幅 | J1: 前々日高安値幅 | K1: 前々々日レンジブレイク | L1: 前々々日ギャップ幅 | M1: 前々々日本体値幅 | N1: 前々々日高安値幅 | O1: 前々々々日レンジブレイク | P1: 出来高
A2: 許容範囲設定 | B2: 390 | D2: 70 | E2: 70 | F2: 180 | H2: 470 | I2: 70 | J2: 190 | L2: 230 | M2: 60 | N2: 310 | P2: 15
A3: 最小値 | B3: =ROUND(P7-B11-B2,-1) -> -860 | C3: =IF(P7<B14,"L",IF(P7>B13,"H","I")) -> L | D3: =B17-D2 -> -160 | E3: =B15-E2 -> -30 | F3: =B16-F2 -> -40 | G3: =IF('225F intra'!B14<'225F intra'!D15,"L",IF('225F intra'!B14>'225F intra'!C15,"H","I")) -> I | H3: =D13-H2 -> -400 | I3: =D11-I2 -> 0 | J3: =D12-J2 -> -10 | K3: =IF('225F intra'!B15<'225F intra'!D16,"L",IF('225F intra'!B15>'225F intra'!C16,"H","I")) -> H | L3: =D16-L2 -> 240 | M3: =D14-M2 -> 10 | N3: =D15-N2 -> -120 | O3: =IF('225F intra'!B16<'225F intra'!D17,"L",IF('225F intra'!B16>'225F intra'!C17,"H","I")) -> H | P3: =IF('225F intra'!F14<前日データ設定!P2,0,'225F intra'!F14-前日データ設定!P2) -> 21823
A4: 最大値 | B4: =ROUND(P7-B11+B2,-1) -> -80 | D4: =B17+D2 -> -20 | E4: =B15+E2 -> 110 | F4: =B16+F2 -> 320 | G4: =IF('225F intra'!E14<'225F intra'!D15,"L",IF('225F intra'!E14>'225F intra'!C15,"H","I")) -> I | H4: =D13+H2 -> 540 | I4: =D11+I2 -> 140 | J4: =D12+J2 -> 370 | K4: =IF('225F intra'!E15<'225F intra'!D16,"L",IF('225F intra'!E15>'225F intra'!C16,"H","I")) -> H | L4: =D16+L2 -> 700 | M4: =D14+M2 -> 130 | N4: =D15+N2 -> 500 | O4: =IF('225F intra'!E16<'225F intra'!D17,"L",IF('225F intra'!E16>'225F intra'!C17,"H","I")) -> H | P4: ='225F intra'!F14+P2 -> 21853
A5: 選択条件設定 | B5: PIVOT位置 | C5: ピボット乖離Ｐ以上 | D5: ピボット乖離Ｐ以下 | E5: 始値下２桁 | F5: 平均値幅 | G5: 寄付一目指標ブレイク | H5: 一目始値位置 | I5: 寄付きＭＡブレイク | J5: RSI5日 | K5: 0 | L5: ５日MA乖離率% | M5: ２５日MA乖離率% | N5: 期間 | O5: 曜日 | P5: 寄り付き暫定値
A6: 許容範囲設定 | F6: 25 | J6: 15 | K6: 15 | L6: 0.02 | M6: 0.02 | P6: ='２２５Ｆデータ一覧'!R8 -> CME
A7: 最小値 | B7: =G23 -> UL | C7: -1500 | D7: -1500 | F7: =IF(G26=5,D17-F6,IF(G26=10,D18-F6,IF(G26=20,D19-F6))) -> 181 | G7: =IF(G25=F11,H11,IF(G25=F12,H12,IF(G25=F13,H13,IF(G25=F14,H14,"")))) ->  | I7: =IF(G24=5,H16,IF(G24=25,H17,IF(G24=75,H18,""))) ->  | J7: =IF($B$34-J6<0,0,$B$34-J6) -> 43.62068966 | K7: =IF($D$34-K6<0,0,$D$34-K6) -> 52.77777778 | L7: =P7/G16-1-L6 -> -0.0288282504 | M7: =P7/G17-1-M6 -> -0.01239007892 | O7: 0 | P7: =IF(P6="CME",K10,IF(P6="気配値",K11,K13)) -> 27170
A8: 最大値 | B8: =G22 -> L | C8: 1500 | D8: 1500 | E8: 90 | F8: =IF(G26=5,D17+F6,IF(G26=10,D18+F6,IF(G26=20,D19+F6))) -> 231 | J8: =IF($B$34+J6>100,100,$B$34+J6) -> 73.62068966 | K8: =IF($D$34+K6>100,100,$D$34+K6) -> 82.77777778 | L8: =P7/G16-1+L6 -> 0.0111717496 | M8: =P7/G17-1+M6 -> 0.02760992108 | N8: =TODAY() -> 2022-11-02 | O8: 6 | P8: 0.5
A10: 前日データ | B10: 日付 | C10: ='225F intra'!A14 -> 2022-11-02 | F10: 一目指標（暫定値） | H10: ブレイク | I10: かい離率 | J10: CME | K10: 27170 | L10: ザラ場高安値ブレイク
A11: 終値 | B11: ='225F intra'!E14 -> 27640 | C11: 前日本体値幅 | D11: ='225F intra'!BR15 -> 70 | F11: 転換線 | G11: =(MAX('225F intra'!C14:C21,P7)+MIN('225F intra'!D14:D21,P7))/2 -> 27330 | H11: =IF(AND($B$11>B19,$P$7<G11),"DW",IF(AND($B$11<B19,$P$7>G11),"UP","")) -> DW | I11: =($P$7-G11)/$P$7 -> -0.005888847994 | J11: 気配値 | K11: =IFERROR([1]!FBOARD("N225","202212","気配値6"),K10) -> 27630 | L11: 前々日 | M11: =IF('225F intra'!C14>'225F intra'!C15,IF('225F intra'!D14<'225F intra'!D15,"B","H"),IF('225F intra'!D14<'225F intra'!D15,"L","I")) -> I
A12: 始値 | B12: ='225F intra'!B14 -> 27600 | C12: 前日高安値幅 | D12: ='225F intra'!BS15 -> 180 | F12: 基準線 | G12: =(MAX('225F intra'!C14:C38,P7)+MIN('225F intra'!D14:D38,P7))/2 -> 26655 | H12: =IF(AND($B$11>B20,$P$7<G12),"DW",IF(AND($B$11<B20,$P$7>G12),"UP","")) ->  | I12: =($P$7-G12)/$P$7 -> 0.01895472948 | J12: ギャップ値幅 | K12: =P7-B11 -> -470 | L12: 前々々日 | M12: =IF('225F intra'!C15>'225F intra'!C16,IF('225F intra'!D15<'225F intra'!D16,"B","H"),IF('225F intra'!D15<'225F intra'!D16,"L","I")) -> H
A13: 高値 | B13: ='225F intra'!C14 -> 27690 | C13: 前日ギャップ値幅 | D13: ='225F intra'!BU15 -> 70 | F13: 先行スパン１ | G13: =('225F intra'!CB38+'225F intra'!CA38)/2 -> 26997.5 | H13: =IF(AND($B$11>B22,$P$7<G13),"DW",IF(AND($B$11<B22,$P$7>G13),"UP","")) ->  | I13: =($P$7-G13)/$P$7 -> 0.006348914244 | J13: 当日始値 | K13: =[1]!FQUOTE("N225","0","日中始値") -> 27600 | L13: 前々々々日 | M13: =IF('225F intra'!C16>'225F intra'!C17,IF('225F intra'!D16<'225F intra'!D17,"B","H"),IF('225F intra'!D16<'225F intra'!D17,"L","I")) -> H
A14: 安値 | B14: ='225F intra'!D14 -> 27550 | C14: 前々日本体値幅 | D14: ='225F intra'!BR16 -> 70 | F14: 先行スパン2 | G14: =(MAX('225F intra'!C44:C95)+MIN('225F intra'!D44:D95))/2 -> 27610 | H14: =IF(AND($B$11>B23,$P$7<G14),"DW",IF(AND($B$11<B23,$P$7>G14),"UP","")) ->  | I14: =($P$7-G14)/$P$7 -> -0.01619433198 | J14: BB（暫定値） | L14: ブレイク | M14: かい離率
A15: 本体値幅 | B15: =B11-B12 -> 40 | C15: 前々日高安値幅 | D15: ='225F intra'!BS16 -> 190 | F15: ＭＡ（暫定値） | H15: ブレイク | I15: かい離率 | J15: +3σ | K15: =G17+3*K21 -> 28324.56786 | L15: =IF(AND($B$11>B36,$P$7<K15),"DW",IF(AND($B$11<B36,$P$7>K15),"UP","")) ->  | M15: =($P$7-K15)/$P$7 -> -0.04249421651
A16: 高安値幅 | B16: =B13-B14 -> 140 | C16: 前々日ギャップ値幅 | D16: ='225F intra'!BU16 -> 470 | F16: 5日MA | G16: =AVERAGE('225F intra'!E14:E17,P7) -> 27412 | H16: =IF(AND($B$11>B27,$P$7<G16),"DW",IF(AND($B$11<B27,$P$7>G16),"UP","")) -> DW | I16: =($P$7-G16)/$P$7 -> -0.008906882591 | J16: +2σ | K16: =G17+2*K21 -> 27871.31191 | L16: =IF(AND($B$11>B37,$P$7<K16),"DW",IF(AND($B$11<B37,$P$7>K16),"UP","")) ->  | M16: -0.02581199515
A17: ギャップ値幅 | B17: ='225F intra'!BU14 -> -90 | C17: ５日平均値幅 | D17: =AVERAGE('225F intra'!BS14:BS18) -> 188 | F17: 25日MA | G17: =AVERAGE('225F intra'!E14:E37,P7) -> 26964.8 | H17: =IF(AND($B$11>B28,$P$7<G17),"DW",IF(AND($B$11<B28,$P$7>G17),"UP","")) ->  | I17: =($P$7-G17)/$P$7 -> 0.007552447552 | J17: +1σ | K17: =G17+K21 -> 27418.05595 | L17: DW | M17: -0.009129773801
A18: 一目指標（終値） | C18: １０日平均値幅 | D18: =AVERAGE('225F intra'!BS14:BS23) -> 206 | F18: 75日MA | G18: =AVERAGE('225F intra'!E14:E87,P7) -> 27557.33333 | H18: =IF(AND($B$11>B29,$P$7<G18),"DW",IF(AND($B$11<B29,$P$7>G18),"UP","")) -> DW | I18: =($P$7-G18)/$P$7 -> -0.01425591952 | J18: -1σ | K18: =G17-K21 -> 26511.54405 | M18: 0.02423466891
A19: 転換線 | B19: ='225F intra'!CB14 -> 27285 | C19: ２０日平均値幅 | D19: =AVERAGE('225F intra'!BS14:BS33) -> 238 | F19: 100日MA | G19: =AVERAGE('225F intra'!E14:E112,P7) -> 27277 | H19: =IF(AND($B$11>B30,$P$7<G19),"DW",IF(AND($B$11<B30,$P$7>G19),"UP","")) -> DW | I19: =($P$7-G19)/$P$7 -> -0.003938167096 | J19: -2σ | K19: =G17-2*K21 -> 26058.28809 | M19: 0.04091689026
A20: 基準線 | B20: ='225F intra'!CA14 -> 26655 | C20: ピボット | F20: 200日MA | G20: =AVERAGE('225F intra'!E14:E212,P7) -> 27131.9 | H20: =IF(AND($B$11>B31,$P$7<G20),"DW",IF(AND($B$11<B31,$P$7>G20),"UP","")) ->  | I20: =($P$7-G20)/$P$7 -> 0.001402281929 | J20: -3σ | K20: =G17-3*K21 -> 25605.03214 | M20: 0.05759911161
A21: 遅行線 | B21: ='225F intra'!CE14 -> 26320 | C21: HBOP | D21: ='225F intra'!CL14 -> 27843.33333 | F21: 寄り付きピボット位置 | J21: 標準偏差 | K21: =STDEVP(P7,'225F intra'!E14:E37) -> 453.2559542
A22: 先行スパン１ | B22: ='225F intra'!CC14 -> 27492.5 | C22: S２ | D22: ='225F intra'!CM14 -> 27766.66667 | F22: 抵抗線 | G22: =IF(P7>D21,"UH",IF(P7>D22,"H",IF(P7>D23,"S2",IF(P7>D24,"S1",IF(P7>D25,"P",IF(P7>D26,"B1",IF(P7>D27,"B2","L"))))))) -> L
A23: 先行スパン2 | B23: ='225F intra'!CD14 -> 27710 | C23: S1 | D23: ='225F intra'!CN14 -> 27703.33333 | F23: 支持線 | G23: =IF(G22="UH","H",IF(G22="H","S2",IF(G22="S2","S1",IF(G22="S1","P",IF(G22="P","B1",IF(G22="B1","B2",IF(G22="B2","L","UL"))))))) -> UL
A24: 一目雲位置 | B24: ='225F intra'!CF14 -> I | C24: P | D24: ='225F intra'!CO14 -> 27626.66667 | F24: MA選択 | G24: ='２２５Ｆデータ一覧'!Q2 -> 0
A25: 転・基並び | B25: ='225F intra'!CG14 -> L | C25: B1 | D25: ='225F intra'!CP14 -> 27563.33333 | F25: 一目指標選択 | G25: ='２２５Ｆデータ一覧'!R2 -> 0
A26: ＭＡ（終値） | C26: B２ | D26: ='225F intra'!CQ14 -> 27486.66667 | F26: 平均値幅選択 | G26: ='２２５Ｆデータ一覧'!Q5 -> 10
A27: 5日MA | B27: ='225F intra'!BM14 -> 27438 | C27: LBOP | D27: ='225F intra'!CR14 -> 27423.33333
A28: 25日MA | B28: ='225F intra'!BN14 -> 26914.8
A29: 75日MA | B29: ='225F intra'!BO14 -> 27551.06667
A30: 100日MA | B30: ='225F intra'!BP14 -> 27288.3
A31: 200日MA | B31: ='225F intra'!BQ14 -> 27136.8
A32: 長短ＭＡ並び | B32: ='225F intra'!DT14 -> L
A33: ＲＳＩ
A34: RSI 5日 | B34: ='225F intra'!CJ14 -> 58.62068966 | C34: RSI 9日 | D34: ='225F intra'!CK14 -> 67.77777778
A35: BB
A36: +3σ | B36: ='225F intra'!CS14 -> 28399.48469
A37: +2σ | B37: ='225F intra'!CT14 -> 27904.5898
A38: +1σ | B38: ='225F intra'!CU14 -> 27409.6949
A39: -1σ | B39: ='225F intra'!CV14 -> 26419.9051
A40: -2σ | B40: ='225F intra'!CW14 -> 25925.0102
A41: -3σ | B41: ='225F intra'!CX14 -> 25430.11531
A56: 想定値選択
A57: CME
A58: 気配値
A59: 始値

Sheet 225F intra
A1: 日付 | B1: 始値 | C1: 高値 | D1: 安値 | E1: 終値 | F1: 出来高 | G1: ８：４５～９：００始値 | H1: ８：４５～９：００高値 | I1: ８：４５～９：００安値 | J1: ８：４５～９：００終値 | K1: ９：００～９：１５始値 | L1: ９：００～９：１５高値 | M1: ９：００～９：１５安値 | N1: ９：００～９：１５終値 | O1: ９：１５～９：３０分始値 | P1: ９：１５～９：３０分高値 | Q1: ９：１５～９：３０分安値 | R1: ９：１５～９：３０分終値 | S1: ９：３０～１０：００分始値 | T1: ９：３０～１０：００分高値 | U1: ９：３０～１０：００分安値 | V1: ９：３０～１０：００分終値 | W1: １０：００～１０：３０分始値 | X1: １０：００～１０：３０分高値 | Y1: １０：００～１０：３０分安値 | Z1: １０：００～１０：３０分終値 | AA1: １０：３０～１１：００始値 | AB1: １０：３０～１１：００高値 | AC1: １０：３０～１１：００安値 | AD1: １０：３０～１１：００終値 | AE1: １１：００～１１：３０始値 | AF1: １１：００～１１：３０高値 | AG1: １１：００～１１：３０安値 | AH1: １１：００～１１：３０終値 | AI1: １１：３０～１２：００始値 | AJ1: １１：３０～１２：００高値 | AK1: １１：３０～１２：００安値 | AL1: １１：３０～１２：００終値 | AM1: １２：００～１２：３０始値 | AN1: １２：００～１２：３０高値 | AO1: １２：００～１２：３０安値 | AP1: １２：００～１２：３０終値 | AQ1: １２：３０～１３：００始値 | AR1: １２：３０～１３：００高値 | AS1: １２：３０～１３：００安値 | AT1: １２：３０～１３：００終値 | AU1: １３：００～１３：３０始値 | AV1: １３：００～１３：３０高値 | AW1: １３：００～１３：３０安値 | AX1: １３：００～１３：３０終値 | AY1: １３：３０～１４：００始値 | AZ1: １３：３０～１４：００高値 | BA1: １３：３０～１４：００安値 | BB1: １３：３０～１４：００終値 | BC1: １４：００～１４：３０始値 | BD1: １４：００～１４：３０高値 | BE1: １４：００～１４：３０安値 | BF1: １４：００～１４：３０終値 | BG1: １４：３０～１５：１５始値 | BH1: １４：３０～１５：１５高値 | BI1: １４：３０～１５：１５安値 | BJ1: １４：３０～１５：１５終値 | BK1: 後場高値 | BL1: 後場安値 | BM1: =CONCATENATE(BM4&"日MA") -> 5日MA | BN1: =CONCATENATE(BN4&"日MA") -> 25日MA | BO1: 75日MA | BP1: 100日MA | BQ1: 200日MA | BR1: 実体値幅 | BS1: 値幅 | BT1: 平均値幅 | BU1: ギャップ | BV1: 寄り付き前日レンジブレイク | BW1: 終値前日レンジブレイク | BX1: 曜日 | BY1: 曜日シリアル値 | BZ1: 一目始値位置 | CA1: 基準線 | CB1: 転換線 | CC1: 先行スパン上限 | CD1: 先行スパン下限 | CE1: 遅行線 | CF1: 一目雲位置 | CG1: 転換線・基準線位置 | CH1: 前日比プラス | CI1: 前日比マイナス | CJ1: =CONCATENATE("RSI"&CJ4&"日") -> RSI5日 | CK1: =CONCATENATE("RSI"&CK4&"日") -> RSI9日 | CL1: HBOP | CM1: S2 | CN1: S1 | CO1: P | CP1: B1 | CQ1: B2 | CR1: LBOP | CS1: +3σ | CT1: +2σ | CU1: +1σ | CV1: -1σ | CW1: -2σ | CX1: -3σ | CY1: PIVOT位置 Ｐ以上 | CZ1: PIVOT位置 Ｐ以下 | DA1: PIVOT位置 | DB1: ピボット乖離Ｐ以上 | DC1: ピボット乖離Ｐ以下 | DD1: 寄付き暫定5DMA値 | DE1: 寄付き暫定25DMA値 | DF1: 寄付き暫定75DMA値 | DG1: 寄付き暫定100DMA値 | DH1: 寄付き暫定200DMA値 | DI1: 寄付き暫定転換線 | DJ1: 寄付き暫定基準線 | DK1: 寄付き暫定先行スパン１ | DL1: 寄付き暫定先行スパン２ | DM1: 寄り付き暫定＋3σ | DN1: 寄り付き暫定＋2σ | DO1: 寄り付き暫定＋1σ | DP1: 寄り付き暫定－1σ | DQ1: 寄り付き暫定－2σ | DR1: 寄り付き暫定－3σ | DS1: ザラ場高安値ブレイク | DT1: 長短ＭＡ位置関係 | FI1: +3σ乖離率 | FJ1: +2σ乖離率 | FK1: +1σ乖離率 | FL1: -1σ乖離率 | FM1: -2σ乖離率 | FN1: -3σ乖離率 | FO1: 当日ギャップ幅 | FP1: 前日レンジブレイク | FQ1: 前日ギャップ幅 | FR1: 前日本体値幅 | FS1: 前日高安値幅 | FT1: 前々日レンジブレイク | FU1: 終値-2日レンジブレイク | FV1: ザラ場-2日高安値ブレイク | FW1: 前々日ギャップ幅 | FX1: 前々日本体値幅 | FY1: 前々日高安値幅 | FZ1: 前々々日ギャップ幅 | GA1: 前々々日レンジブレイク | GB1: 終値-3日レンジブレイク | GC1: ザラ場-3日高安値ブレイク | GD1: 前々々日本体値幅 | GE1: 前々々日高安値幅 | GF1: 日-4レンジブレイク | GG1: 終値-4日レンジブレイク | GH1: ザラ場-4日高安値ブレイク | GI1: 20日平均値幅 | GJ1: 始値下２桁 | GK1: RSI5日 | GL1: RSI9日 | GM1: PIVOT位置 | GN1: 長短ＭＡ並び | GO1: 一目指標並び | GP1: 寄付き暫定5DMAブレイク | GQ1: 寄付き暫定25DMAブレイク | GR1: 寄付き暫定75DMAブレイク | GS1: 寄付き暫定100DMAブレイク | GT1: 寄付き暫定200DMAブレイク | GU1: 寄付き暫定転換線ブレイク | GV1: 寄付き暫定基準線ブレイク | GW1: 寄付き暫定先行スパン１ブレイク | GX1: 寄付き暫定先行スパン２ブレイク | GY1: 寄り付き暫定＋3σ | GZ1: 寄り付き暫定＋2σ | HA1: 寄り付き暫定＋1σ | HB1: 寄り付き暫定－1σ | HC1: 寄り付き暫定－2σ | HD1: 寄り付き暫定－3σ | HE1: 出来高 | HF1: ５日MA乖離率% | HG1: ２５日MA乖離率% | HH1: ７５日MA乖離率% | HI1: １００日MA乖離率% | HJ1: ２００日MA乖離率% | HK1: ピボット乖離Ｐ以上 | HL1: ピボット乖離Ｐ以下 | HM1: 期間 | HN1: 曜日 | HO1: ～９：００ | HP1: ～９：１５ | HQ1: ～９：３０ | HR1: ～１０：００ | HS1: ～１０：３０ | HT1: ～１１：００ | HU1: ～１１：３０ | HV1: ～１２：００ | HW1: ～１２：３０ | HX1: ～１３：００ | HY1: ～１３：３０ | HZ1: ～１４：００ | IA1: ～１４：３０ | IB1: OK | ID1: 日足Ｌｏｎｇ率 | IE1: 日足Ｌｏｎｇ金額 | IF1: 日足Ｓｈｏｒｔ率 | IG1: 日足Ｓｈｏｒｔ金額 | IH1: ='２２５Ｆデータ一覧'!$B67 -> 1000 | IJ1: ='２２５Ｆデータ一覧'!$B66 -> 250 | IL1: ='２２５Ｆデータ一覧'!$B65 -> 200 | IN1: ='２２５Ｆデータ一覧'!$B64 -> 180 | IP1: ='２２５Ｆデータ一覧'!$B63 -> 160 | IR1: ='２２５Ｆデータ一覧'!$B62 -> 140 | IT1: ='２２５Ｆデータ一覧'!$B61 -> 120 | IV1: ='２２５Ｆデータ一覧'!$B60 -> 100 | IX1: ='２２５Ｆデータ一覧'!$B59 -> 90 | IZ1: ='２２５Ｆデータ一覧'!$B58 -> 80 | JB1: ='２２５Ｆデータ一覧'!$B57 -> 70 | JD1: ='２２５Ｆデータ一覧'!$B56 -> 60 | JF1: ='２２５Ｆデータ一覧'!$B55 -> 50 | JH1: ='２２５Ｆデータ一覧'!$B54 -> 40 | JJ1: ='２２５Ｆデータ一覧'!$B53 -> 30 | JL1: ='２２５Ｆデータ一覧'!$B52 -> 20 | JN1: ='２２５Ｆデータ一覧'!$B51 -> 10 | JP1: ='２２５Ｆデータ一覧'!$I51 -> 10 | JR1: ='２２５Ｆデータ一覧'!$I52 -> 20 | JT1: ='２２５Ｆデータ一覧'!$I53 -> 30 | JV1: ='２２５Ｆデータ一覧'!$I54 -> 40 | JX1: ='２２５Ｆデータ一覧'!$I55 -> 50 | JZ1: ='２２５Ｆデータ一覧'!$I56 -> 60 | KB1: ='２２５Ｆデータ一覧'!$I57 -> 70 | KD1: ='２２５Ｆデータ一覧'!$I58 -> 80 | KF1: ='２２５Ｆデータ一覧'!$I59 -> 90 | KH1: ='２２５Ｆデータ一覧'!$I60 -> 100 | KJ1: ='２２５Ｆデータ一覧'!$I61 -> 120 | KL1: ='２２５Ｆデータ一覧'!$I62 -> 140 | KN1: ='２２５Ｆデータ一覧'!$I63 -> 160 | KP1: ='２２５Ｆデータ一覧'!$I64 -> 180 | KR1: ='２２５Ｆデータ一覧'!$I65 -> 200 | KT1: ='２２５Ｆデータ一覧'!$I66 -> 250 | KV1: ='２２５Ｆデータ一覧'!$I67 -> 1000 | KX1: 買い指値損益 | KY1: 買い指値約定枚数 | KZ1: 買い終値手仕舞い損益 | LA1: 買い損益 | LB1: 売り指値損益 | LC1: 売り指値約定枚数 | LD1: 売り終値手仕舞い損益 | LE1: 売り損益 | LF1: ８：４５～９：００ | LG1: ９：００～９：１５ | LH1: ９：１５～９：３０ | LI1: ９：３０～１０：００ | LJ1: １０：００～１０：３０ | LK1: １０：３０～１１：００ | LL1: １１：００～１１：３０ | LM1: １１：３０～１２：００ | LN1: １２：００～１２：３０ | LO1: １２：３０～１３：００ | LP1: １３：００～１３：３０ | LQ1: １３：３０～１４：００ | LR1: １４：００～１４：３０ | LS1: １４：３０～１５：１５ | LT1: ９：００～９：３０ | LU1: ９：００～１０：００ | LV1: ９：００～１０：３０ | LW1: ９：００～１１：００ | LX1: ９：００～１１：３０ | LY1: ９：００～１２：００ | LZ1: ９：００～１２：３０ | MA1: ９：００～１３：００ | MB1: ９：００～１３：３０ | MC1: ９：００～１４：００ | MD1: ９：００～１４：３０ | ME1: １２：３０～１３：００ | MF1: １２：３０～１３：３０ | MG1: １２：３０～１４：００ | MH1: １２：３０～１４：３０ | MI1: １２：３０～１５：１５
A2: 1 | B2: 2 | C2: 3 | D2: 4 | E2: 5 | F2: 6 | G2: 7 | H2: 8 | I2: 9 | J2: 10 | K2: 11 | L2: 12 | M2: 13 | N2: 14 | O2: 15 | P2: 16 | Q2: 17 | R2: 18 | S2: 19 | T2: 20 | U2: 21 | V2: 22 | W2: 23 | X2: 24 | Y2: 25 | Z2: 26 | AA2: 27 | AB2: 28 | AC2: 29 | AD2: 30 | AE2: 31 | AF2: 32 | AG2: 33 | AH2: 34 | AI2: 35 | AJ2: 36 | AK2: 37 | AL2: 38 | AM2: 39 | AN2: 40 | AO2: 41 | AP2: 42 | AQ2: 43 | AR2: 44 | AS2: 45 | AT2: 46 | AU2: 47 | AV2: 48 | AW2: 49 | AX2: 50 | AY2: 51 | AZ2: 52 | BA2: 53 | BB2: 54 | BC2: 55 | BD2: 56 | BE2: 57 | BF2: 58 | BG2: 59 | BH2: 60 | BI2: 61 | BJ2: 62 | BK2: 63 | BL2: 64 | BT2: ='２２５Ｆデータ一覧'!Q5 -> 10 | IH2: ='２２５Ｆデータ一覧'!$C67 -> 0 | IJ2: ='２２５Ｆデータ一覧'!$C66 -> 0 | IL2: ='２２５Ｆデータ一覧'!$C65 -> 0 | IN2: ='２２５Ｆデータ一覧'!$C64 -> 0 | IP2: ='２２５Ｆデータ一覧'!$C63 -> 0 | IR2: ='２２５Ｆデータ一覧'!$C62 -> 1 | IT2: ='２２５Ｆデータ一覧'!$C61 -> 1 | IV2: ='２２５Ｆデータ一覧'!$C60 -> 1 | IX2: ='２２５Ｆデータ一覧'!$C59 -> 1 | IZ2: ='２２５Ｆデータ一覧'!$C58 -> 1 | JB2: ='２２５Ｆデータ一覧'!$C57 -> 1 | JD2: ='２２５Ｆデータ一覧'!$C56 -> 1 | JF2: ='２２５Ｆデータ一覧'!$C55 -> 1 | JH2: ='２２５Ｆデータ一覧'!$C54 -> 1 | JJ2: ='２２５Ｆデータ一覧'!$C53 -> 1 | JL2: ='２２５Ｆデータ一覧'!$C52 -> 1 | JN2: ='２２５Ｆデータ一覧'!$C51 -> 1 | JP2: ='２２５Ｆデータ一覧'!$J51 -> 0 | JR2: ='２２５Ｆデータ一覧'!$J52 -> 6 | JT2: ='２２５Ｆデータ一覧'!$J53 -> 0 | JV2: ='２２５Ｆデータ一覧'!$J54 -> 1 | JX2: ='２２５Ｆデータ一覧'!$J55 -> 0 | JZ2: ='２２５Ｆデータ一覧'!$J56 -> 0 | KB2: ='２２５Ｆデータ一覧'!$J57 -> 1 | KD2: ='２２５Ｆデータ一覧'!$J58 -> 0 | KF2: ='２２５Ｆデータ一覧'!$J59 -> 0 | KH2: ='２２５Ｆデータ一覧'!$J60 -> 1 | KJ2: ='２２５Ｆデータ一覧'!$J61 -> 0 | KL2: ='２２５Ｆデータ一覧'!$J62 -> 1 | KN2: ='２２５Ｆデータ一覧'!$J63 -> 0 | KP2: ='２２５Ｆデータ一覧'!$J64 -> 1 | KR2: ='２２５Ｆデータ一覧'!$J65 -> 0 | KT2: ='２２５Ｆデータ一覧'!$J66 -> 0 | KV2: ='２２５Ｆデータ一覧'!$J67 -> 1 | KX2: =SUM(IH2:JN2) -> 12 | LB2: =SUM(JP2:KV2) -> 12
A3: 235 | B3: 234 | C3: 233 | D3: 232 | E3: 231 | F3: 230 | G3: 229 | H3: 228 | I3: 227 | J3: 226 | K3: 225 | L3: 224 | M3: 223 | N3: 222 | O3: 221 | P3: 220 | Q3: 219 | R3: 218 | S3: 217 | T3: 216 | U3: 215 | V3: 214 | W3: 213 | X3: 212 | Y3: 211 | Z3: 210 | AA3: 209 | AB3: 208 | AC3: 207 | AD3: 206 | AE3: 205 | AF3: 204 | AG3: 203 | AH3: 202 | AI3: 201 | AJ3: 200 | AK3: 199 | AL3: 198 | AM3: 197 | AN3: 196 | AO3: 195 | AP3: 194 | AQ3: 193 | AR3: 192 | AS3: 191 | AT3: 190 | AU3: 189 | AV3: 188 | AW3: 187 | AX3: 186 | AY3: 185 | AZ3: 184 | BA3: 183 | BB3: 182 | BC3: 181 | BD3: 180 | BE3: 179 | BF3: 178 | BG3: 177 | BH3: 176 | BI3: 175 | BJ3: 174 | BK3: 173 | BL3: 172 | BM3: 171 | BN3: 170 | BO3: 169 | BP3: 168 | BQ3: 167 | BR3: 166 | BS3: 165 | BT3: 164 | BU3: 163 | BV3: 162 | BW3: 161 | BX3: 160 | BY3: 159 | BZ3: 158 | CA3: 157 | CB3: 156 | CC3: 155 | CD3: 154 | CE3: 153 | CF3: 152 | CG3: 151 | CH3: 150 | CI3: 149 | CJ3: 148 | CK3: 147 | CL3: 146 | CM3: 145 | CN3: 144 | CO3: 143 | CP3: 142 | CQ3: 141 | CR3: 140 | CS3: 139 | CT3: 138 | CU3: 137 | CV3: 136 | CW3: 135 | CX3: 134 | CY3: 133 | CZ3: 132 | DA3: 131 | DB3: 130 | DC3: 129 | DD3: 128 | DE3: 127 | DF3: 126 | DG3: 125 | DH3: 124 | DI3: 123 | DJ3: 122 | DK3: 121 | DL3: 120 | DM3: 119 | DN3: 118 | DO3: 117 | DP3: 116 | DQ3: 115 | DR3: 114 | DS3: 113 | DT3: 112 | DU3: 111 | DV3: 110 | DW3: 109 | DX3: 108 | DY3: 107 | DZ3: 106 | EA3: 105 | EB3: 104 | EC3: 103 | ED3: 102 | EE3: 101 | EF3: 100 | EG3: 99 | EH3: 98 | EI3: 97 | EJ3: 96 | EK3: 95 | EL3: 94 | EM3: 93 | EN3: 92 | EO3: 91 | EP3: 90 | EQ3: 89 | ER3: 88 | ES3: 87 | ET3: 86 | EU3: 85 | EV3: 84 | EW3: 83 | EX3: 82 | EY3: 81 | EZ3: 80 | FA3: 79 | FB3: 78 | FC3: 77 | FD3: 76 | FE3: 75 | FF3: 74 | FG3: 73 | FH3: 72 | FI3: 71 | FJ3: 70 | FK3: 69 | FL3: 68 | FM3: 67 | FN3: 66 | FO3: 65 | FP3: 64 | FQ3: 63 | FR3: 62 | FS3: 61 | FT3: 60 | FU3: 59 | FV3: 58 | FW3: 57 | FX3: 56 | FY3: 55 | FZ3: 54 | GA3: 53 | GB3: 52 | GC3: 51 | GD3: 50 | GE3: 49 | GF3: 48 | GG3: 47 | GH3: 46 | GI3: 45 | GJ3: 44 | GK3: 43 | GL3: 42 | GM3: 41 | GN3: 40 | GO3: 39 | GP3: 38 | GQ3: 37 | GR3: 36 | GS3: 35 | GT3: 34 | GU3: 33 | GV3: 32 | GW3: 31 | GX3: 30 | GY3: 29 | GZ3: 28 | HA3: 27 | HB3: 26 | HC3: 25 | HD3: 24 | HE3: 23 | HF3: 22 | HG3: 21 | HH3: 20 | HI3: 19 | HJ3: 18 | HK3: 17 | HL3: 16 | HM3: 15 | HN3: 14 | HO3: 13 | HP3: 12 | HQ3: 11 | HR3: 10 | HS3: 9 | HT3: 8 | HU3: 7 | HV3: 6 | HW3: 5 | HX3: 4 | HY3: 3 | HZ3: 2 | IA3: 1 | IB3: 0 | IC3: 陽線数 | ID3: =COUNTIF(ID14:ID6226,">0") -> 1181 | IE3: =COUNTIF(IE14:IE6226,">0") -> 1181 | IF3: =COUNTIF(IF14:IF6226,">0") -> 1141 | IG3: =COUNTIF(IG14:IG6226,">0") -> 1141 | IH3: =COUNTIF(IH14:IH6226,">0") -> 0 | IJ3: =COUNTIF(IJ14:IJ6226,">0") -> 0 | IL3: =COUNTIF(IL14:IL6226,">0") -> 0 | IN3: =COUNTIF(IN14:IN6226,">0") -> 0 | IP3: =COUNTIF(IP14:IP6226,">0") -> 0 | IR3: =COUNTIF(IR14:IR6226,">0") -> 213 | IT3: =COUNTIF(IT14:IT6226,">0") -> 300 | IV3: =COUNTIF(IV14:IV6226,">0") -> 411 | IX3: =COUNTIF(IX14:IX6226,">0") -> 489 | IZ3: =COUNTIF(IZ14:IZ6226,">0") -> 582 | JB3: =COUNTIF(JB14:JB6226,">0") -> 691 | JD3: =COUNTIF(JD14:JD6226,">0") -> 814 | JF3: =COUNTIF(JF14:JF6226,">0") -> 990 | JH3: =COUNTIF(JH14:JH6226,">0") -> 1165 | JJ3: =COUNTIF(JJ14:JJ6226,">0") -> 1393 | JL3: =COUNTIF(JL14:JL6226,">0") -> 1647 | JN3: =COUNTIF(JN14:JN6226,">0") -> 1911 | JP3: =COUNTIF(JP14:JP6226,">0") -> 0 | JR3: =COUNTIF(JR14:JR6226,">0") -> 1594 | JT3: =COUNTIF(JT14:JT6226,">0") -> 0 | JV3: =COUNTIF(JV14:JV6226,">0") -> 1151 | JX3: =COUNTIF(JX14:JX6226,">0") -> 0 | JZ3: =COUNTIF(JZ14:JZ6226,">0") -> 0 | KB3: =COUNTIF(KB14:KB6226,">0") -> 706 | KD3: =COUNTIF(KD14:KD6226,">0") -> 0 | KF3: =COUNTIF(KF14:KF6226,">0") -> 0 | KH3: =COUNTIF(KH14:KH6226,">0") -> 433 | KJ3: =COUNTIF(KJ14:KJ6226,">0") -> 0 | KL3: =COUNTIF(KL14:KL6226,">0") -> 215 | KN3: =COUNTIF(KN14:KN6226,">0") -> 0 | KP3: =COUNTIF(KP14:KP6226,">0") -> 119 | KR3: =COUNTIF(KR14:KR6226,">0") -> 0 | KT3: =COUNTIF(KT14:KT6226,">0") -> 0 | KV3: =COUNTIF(KV14:KV6226,">0") -> 0 | LA3: =COUNTIF(LA14:LA6226,">0") -> 1241 | LE3: =COUNTIF(LE14:LE6226,">0") -> 1285 | LF3: 469 | LG3: 1059 | LH3: 967 | LI3: 1005 | LJ3: 745 | LK3: 1017 | LL3: 1006 | LM3: 976 | LN3: 949 | LO3: 993 | LP3: 966 | LQ3: 1020 | LR3: 993 | LS3: 1147 | LT3: 1069 | LU3: 1098 | LV3: 1117 | LW3: 1131 | LX3: 1143 | LY3: 1163 | LZ3: 1148 | MA3: 1135 | MB3: 1148 | MC3: 1151 | MD3: 1172 | ME3: 993 | MF3: 1010 | MG3: 1070 | MH3: 1104 | MI3: 1128
BM4: =条件一覧!B2 -> 5 | BN4: =条件一覧!B3 -> 25 | BO4: =条件一覧!B4 -> 75 | BP4: =条件一覧!B5 -> 100 | BQ4: =条件一覧!B6 -> 200 | CJ4: =条件一覧!D2 -> 5 | CK4: =条件一覧!D3 -> 9 | IC4: ドウジ線数 | ID4: =COUNTIF(ID14:ID6226,"=0") -> 89 | IE4: =COUNTIF(IE14:IE6226,"=0") -> 89 | IF4: =COUNTIF(IF14:IF6226,"=0") -> 89 | IG4: =COUNTIF(IG14:IG6226,"=0") -> 89 | IH4: =COUNTIF(IH14:IH6226,"=0") -> 5350 | IJ4: =COUNTIF(IJ14:IJ6226,"=0") -> 5350 | IL4: =COUNTIF(IL14:IL6226,"=0") -> 5350 | IN4: =COUNTIF(IN14:IN6226,"=0") -> 5350 | IP4: =COUNTIF(IP14:IP6226,"=0") -> 5350 | IR4: =COUNTIF(IR14:IR6226,"=0") -> 5137 | IT4: =COUNTIF(IT14:IT6226,"=0") -> 5050 | IV4: =COUNTIF(IV14:IV6226,"=0") -> 4939 | IX4: =COUNTIF(IX14:IX6226,"=0") -> 4861 | IZ4: =COUNTIF(IZ14:IZ6226,"=0") -> 4768 | JB4: =COUNTIF(JB14:JB6226,"=0") -> 4659 | JD4: =COUNTIF(JD14:JD6226,"=0") -> 4536 | JF4: =COUNTIF(JF14:JF6226,"=0") -> 4360 | JH4: =COUNTIF(JH14:JH6226,"=0") -> 4185 | JJ4: =COUNTIF(JJ14:JJ6226,"=0") -> 3957 | JL4: =COUNTIF(JL14:JL6226,"=0") -> 3703 | JN4: =COUNTIF(JN14:JN6226,"=0") -> 3439 | JP4: =COUNTIF(JP14:JP6226,"=0") -> 5350 | JR4: =COUNTIF(JR14:JR6226,"=0") -> 3756 | JT4: =COUNTIF(JT14:JT6226,"=0") -> 5350 | JV4: =COUNTIF(JV14:JV6226,"=0") -> 4199 | JX4: =COUNTIF(JX14:JX6226,"=0") -> 5350 | JZ4: =COUNTIF(JZ14:JZ6226,"=0") -> 5350 | KB4: =COUNTIF(KB14:KB6226,"=0") -> 4644 | KD4: =COUNTIF(KD14:KD6226,"=0") -> 5350 | KF4: =COUNTIF(KF14:KF6226,"=0") -> 5350 | KH4: =COUNTIF(KH14:KH6226,"=0") -> 4917 | KJ4: =COUNTIF(KJ14:KJ6226,"=0") -> 5350 | KL4: =COUNTIF(KL14:KL6226,"=0") -> 5135 | KN4: =COUNTIF(KN14:KN6226,"=0") -> 5350 | KP4: =COUNTIF(KP14:KP6226,"=0") -> 5231 | KR4: =COUNTIF(KR14:KR6226,"=0") -> 5350 | KT4: =COUNTIF(KT14:KT6226,"=0") -> 5350 | KV4: =COUNTIF(KV14:KV6226,"=0") -> 5350 | LA4: =COUNTIF(LA14:LA6226,"=0") -> 9 | LE4: =COUNTIF(LE14:LE6226,"=0") -> 87 | LF4: 1516 | LG4: 314 | LH4: 393 | LI4: 361 | LJ4: 1003 | LK4: 383 | LL4: 473 | LM4: 604 | LN4: 588 | LO4: 368 | LP4: 444 | LQ4: 485 | LR4: 435 | LS4: 263 | LT4: 225 | LU4: 167 | LV4: 185 | LW4: 158 | LX4: 152 | LY4: 140 | LZ4: 143 | MA4: 120 | MB4: 123 | MC4: 114 | MD4: 102 | ME4: 368 | MF4: 332 | MG4: 279 | MH4: 216 | MI4: 180
IC5: 陰線数 | ID5: =COUNTIF(ID14:ID6226,"<0") -> 1141 | IE5: =COUNTIF(IE14:IE6226,"<0") -> 1141 | IF5: =COUNTIF(IF14:IF6226,"<0") -> 1181 | IG5: =COUNTIF(IG14:IG6226,"<0") -> 1181 | IH5: =COUNTIF(IH14:IH6226,"<0") -> 0 | IJ5: =COUNTIF(IJ14:IJ6226,"<0") -> 0 | IL5: =COUNTIF(IL14:IL6226,"<0") -> 0 | IN5: =COUNTIF(IN14:IN6226,"<0") -> 0 | IP5: =COUNTIF(IP14:IP6226,"<0") -> 0 | IR5: =COUNTIF(IR14:IR6226,"<0") -> 0 | IT5: =COUNTIF(IT14:IT6226,"<0") -> 0 | IV5: =COUNTIF(IV14:IV6226,"<0") -> 0 | IX5: =COUNTIF(IX14:IX6226,"<0") -> 0 | IZ5: =COUNTIF(IZ14:IZ6226,"<0") -> 0 | JB5: =COUNTIF(JB14:JB6226,"<0") -> 0 | JD5: =COUNTIF(JD14:JD6226,"<0") -> 0 | JF5: =COUNTIF(JF14:JF6226,"<0") -> 0 | JH5: =COUNTIF(JH14:JH6226,"<0") -> 0 | JJ5: =COUNTIF(JJ14:JJ6226,"<0") -> 0 | JL5: =COUNTIF(JL14:JL6226,"<0") -> 0 | JN5: =COUNTIF(JN14:JN6226,"<0") -> 0 | JP5: =COUNTIF(JP14:JP6226,"<0") -> 0 | JR5: =COUNTIF(JR14:JR6226,"<0") -> 0 | JT5: =COUNTIF(JT14:JT6226,"<0") -> 0 | JV5: =COUNTIF(JV14:JV6226,"<0") -> 0 | JX5: =COUNTIF(JX14:JX6226,"<0") -> 0 | JZ5: =COUNTIF(JZ14:JZ6226,"<0") -> 0 | KB5: =COUNTIF(KB14:KB6226,"<0") -> 0 | KD5: =COUNTIF(KD14:KD6226,"<0") -> 0 | KF5: =COUNTIF(KF14:KF6226,"<0") -> 0 | KH5: =COUNTIF(KH14:KH6226,"<0") -> 0 | KJ5: =COUNTIF(KJ14:KJ6226,"<0") -> 0 | KL5: =COUNTIF(KL14:KL6226,"<0") -> 0 | KN5: =COUNTIF(KN14:KN6226,"<0") -> 0 | KP5: =COUNTIF(KP14:KP6226,"<0") -> 0 | KR5: =COUNTIF(KR14:KR6226,"<0") -> 0 | KT5: =COUNTIF(KT14:KT6226,"<0") -> 0 | KV5: =COUNTIF(KV14:KV6226,"<0") -> 0 | LA5: =COUNTIF(LA14:LA6226,"<0") -> 1161 | LE5: =COUNTIF(LE14:LE6226,"<0") -> 1039 | LF5: 426 | LG5: 1038 | LH5: 1051 | LI5: 1045 | LJ5: 663 | LK5: 1011 | LL5: 932 | LM5: 831 | LN5: 874 | LO5: 1050 | LP5: 1001 | LQ5: 906 | LR5: 983 | LS5: 1001 | LT5: 1117 | LU5: 1146 | LV5: 1109 | LW5: 1122 | LX5: 1116 | LY5: 1108 | LZ5: 1120 | MA5: 1156 | MB5: 1140 | MC5: 1146 | MD5: 1137 | ME5: 1050 | MF5: 1069 | MG5: 1062 | MH5: 1091 | MI5: 1103
FI6: ='２２５Ｆデータ一覧'!N33 -> -0.5 | FJ6: ='２２５Ｆデータ一覧'!N34 -> -0.5 | FK6: ='２２５Ｆデータ一覧'!N35 -> -0.5 | FL6: ='２２５Ｆデータ一覧'!N36 -> -0.5 | FM6: ='２２５Ｆデータ一覧'!N37 -> -0.5 | FN6: ='２２５Ｆデータ一覧'!N38 -> -0.5 | FO6: ='２２５Ｆデータ一覧'!B2 -> -1500 | FP6: ='２２５Ｆデータ一覧'!C2 -> 0 | FQ6: ='２２５Ｆデータ一覧'!D2 -> -1500 | FR6: ='２２５Ｆデータ一覧'!E2 -> -1500 | FS6: ='２２５Ｆデータ一覧'!F2 -> 0 | FT6: ='２２５Ｆデータ一覧'!G2 -> 0 | FU6: ='２２５Ｆデータ一覧'!G3 -> 0 | FV6: ='２２５Ｆデータ一覧'!N21 ->  | FW6: ='２２５Ｆデータ一覧'!H2 -> -1500 | FX6: ='２２５Ｆデータ一覧'!I2 -> -1500 | FY6: ='２２５Ｆデータ一覧'!J2 -> 0 | FZ6: ='２２５Ｆデータ一覧'!L2 -> -1500 | GA6: ='２２５Ｆデータ一覧'!K2 -> 0 | GB6: ='２２５Ｆデータ一覧'!K3 -> 0 | GC6: ='２２５Ｆデータ一覧'!N22 ->  | GD6: ='２２５Ｆデータ一覧'!M2 -> -1500 | GE6: ='２２５Ｆデータ一覧'!N2 -> 0 | GF6: ='２２５Ｆデータ一覧'!O2 -> 0 | GG6: ='２２５Ｆデータ一覧'!O3 -> 0 | GH6: ='２２５Ｆデータ一覧'!N23 ->  | GI6: ='２２５Ｆデータ一覧'!F5 -> 0 | GJ6: ='２２５Ｆデータ一覧'!E5 -> 0 | GK6: ='２２５Ｆデータ一覧'!J5 -> 0 | GL6: ='２２５Ｆデータ一覧'!K5 -> 0 | GM6: =LOOKUP('２２５Ｆデータ一覧'!B5,条件一覧!D82:D89,条件一覧!E82:E89) -> B0 | GN6: ='２２５Ｆデータ一覧'!G5 -> 0 | GO6: ='２２５Ｆデータ一覧'!H5 -> 0 | GP6: ='２２５Ｆデータ一覧'!N14 ->  | GQ6: ='２２５Ｆデータ一覧'!N15 ->  | GR6: ='２２５Ｆデータ一覧'!N16 ->  | GS6: ='２２５Ｆデータ一覧'!N17 ->  | GT6: ='２２５Ｆデータ一覧'!N18 ->  | GU6: ='２２５Ｆデータ一覧'!P14 ->  | GV6: ='２２５Ｆデータ一覧'!P15 ->  | GW6: ='２２５Ｆデータ一覧'!P16 ->  | GX6: ='２２５Ｆデータ一覧'!P17 ->  | GY6: ='２２５Ｆデータ一覧'!R14 ->  | GZ6: ='２２５Ｆデータ一覧'!R15 ->  | HA6: ='２２５Ｆデータ一覧'!R16 ->  | HB6: ='２２５Ｆデータ一覧'!R17 ->  | HC6: ='２２５Ｆデータ一覧'!R18 ->  | HD6: ='２２５Ｆデータ一覧'!R19 ->  | HE6: ='２２５Ｆデータ一覧'!P2 -> 0 | HF6: ='２２５Ｆデータ一覧'!N26 -> -0.5 | HG6: ='２２５Ｆデータ一覧'!N27 -> -0.5 | HH6: ='２２５Ｆデータ一覧'!N28 -> -0.5 | HI6: ='２２５Ｆデータ一覧'!N29 -> -0.5 | HJ6: ='２２５Ｆデータ一覧'!N30 -> -0.5 | HK6: ='２２５Ｆデータ一覧'!C5 -> -1500 | HL6: ='２２５Ｆデータ一覧'!D5 -> -1500 | HM6: ='２２５Ｆデータ一覧'!N5 -> 1999-03-01 | HN6: ='２２５Ｆデータ一覧'!O5 -> 0 | HO6: ='２２５Ｆデータ一覧'!B8 -> -1500 | HP6: ='２２５Ｆデータ一覧'!C8 -> -1500 | HQ6: ='２２５Ｆデータ一覧'!D8 -> -1500 | HR6: ='２２５Ｆデータ一覧'!E8 -> -1500 | HS6: ='２２５Ｆデータ一覧'!F8 -> -1500 | HT6: ='２２５Ｆデータ一覧'!G8 -> -1500 | HU6: ='２２５Ｆデータ一覧'!H8 -> -1500 | HV6: ='２２５Ｆデータ一覧'!I8 -> -1500 | HW6: ='２２５Ｆデータ一覧'!J8 -> -1500 | HX6: ='２２５Ｆデータ一覧'!K8 -> -1500 | HY6: ='２２５Ｆデータ一覧'!L8 -> -1500 | HZ6: ='２２５Ｆデータ一覧'!M8 -> -1500 | IA6: ='２２５Ｆデータ一覧'!N8 -> -1500 | IB6: =COUNTIF(IB14:IB6226,"=OK") -> 2411 | IC6: 陽線率 | ID6: =COUNTIF(ID14:ID6226,">0")/(COUNTIF(ID14:ID6226,">0")+COUNTIF(ID14:ID6226,"<=0")) -> 0.4898382414 | IE6: =COUNTIF(IE14:IE6226,">0")/(COUNTIF(IE14:IE6226,">0")+COUNTIF(IE14:IE6226,"<=0")) -> 0.4898382414 | IF6: =COUNTIF(IF14:IF6226,">0")/(COUNTIF(IF14:IF6226,">0")+COUNTIF(IF14:IF6226,"<=0")) -> 0.4732476151 | IG6: =COUNTIF(IG14:IG6226,">0")/(COUNTIF(IG14:IG6226,">0")+COUNTIF(IG14:IG6226,"<=0")) -> 0.4732476151 | LA6: =COUNTIF(LA14:LA6226,">0")/(COUNTIF(LA14:LA6226,">0")+COUNTIF(LA14:LA6226,"<=0")) -> 0.5147241808 | LE6: =COUNTIF(LE14:LE6226,">0")/(COUNTIF(LE14:LE6226,">0")+COUNTIF(LE14:LE6226,"<=0")) -> 0.5329738698 | LF6: 0.1945250933 | LG6: 0.4392368312 | LH6: 0.4010783907 | LI6: 0.4168394857 | LJ6: 0.3090004148 | LK6: 0.4218166736 | LL6: 0.4172542513 | LM6: 0.4048112816 | LN6: 0.3936126089 | LO6: 0.4118622978 | LP6: 0.4006636251 | LQ6: 0.4230609706 | LR6: 0.4118622978 | LS6: 0.475736209 | LT6: 0.4433844878 | LU6: 0.4554126918 | LV6: 0.4632932393 | LW6: 0.4690999585 | LX6: 0.4740771464 | LY6: 0.4823724596 | LZ6: 0.4761509747 | MA6: 0.4707590212 | MB6: 0.4761509747 | MC6: 0.4773952717 | MD6: 0.4861053505 | ME6: 0.4118622978 | MF6: 0.418913314 | MG6: 0.4437992534 | MH6: 0.4579012858 | MI6: 0.4678556616
IC7: 陰線率 | ID7: =COUNTIF(ID14:ID6226,"<0")/(COUNTIF(ID14:ID6226,">0")+COUNTIF(ID14:ID6226,"<=0")) -> 0.4732476151 | IE7: =COUNTIF(IE14:IE6226,"<0")/(COUNTIF(IE14:IE6226,">0")+COUNTIF(IE14:IE6226,"<=0")) -> 0.4732476151 | IF7: =COUNTIF(IF14:IF6226,"<0")/(COUNTIF(IF14:IF6226,">0")+COUNTIF(IF14:IF6226,"<=0")) -> 0.4898382414 | IG7: =COUNTIF(IG14:IG6226,"<0")/(COUNTIF(IG14:IG6226,">0")+COUNTIF(IG14:IG6226,"<=0")) -> 0.4898382414 | LA7: =COUNTIF(LA14:LA6226,"<0")/(COUNTIF(LA14:LA6226,">0")+COUNTIF(LA14:LA6226,"<=0")) -> 0.4815429282 | LE7: =COUNTIF(LE14:LE6226,"<0")/(COUNTIF(LE14:LE6226,">0")+COUNTIF(LE14:LE6226,"<=0")) -> 0.430941518 | LF7: 0.1766901701 | LG7: 0.4305267524 | LH7: 0.4359187059 | LI7: 0.433430112 | LJ7: 0.2749896309 | LK7: 0.4193280796 | LL7: 0.3865615927 | LM7: 0.3446702613 | LN7: 0.3625051846 | LO7: 0.4355039403 | LP7: 0.4151804231 | LQ7: 0.3757776856 | LR7: 0.4077146412 | LS7: 0.4151804231 | LT7: 0.4632932393 | LU7: 0.4753214434 | LV7: 0.4599751141 | LW7: 0.4653670676 | LX7: 0.4628784737 | LY7: 0.4595603484 | LZ7: 0.4645375363 | MA7: 0.4794691 | MB7: 0.4728328494 | MC7: 0.4753214434 | MD7: 0.4715885525 | ME7: 0.4355039403 | MF7: 0.4433844878 | MG7: 0.4404811282 | MH7: 0.4525093322 | MI7: 0.4574865201
IC8: 平均損益 | ID8: =ID9/(COUNTIF(ID14:ID6226,">0")+COUNTIF(ID14:ID6226,"<=0")) -> 3.900997226e-05 | IE8: =IE9/(COUNTIF(IE14:IE6226,">0")+COUNTIF(IE14:IE6226,"<=0")) -> 0.4811281626 | IF8: =IF9/(COUNTIF(IF14:IF6226,">0")+COUNTIF(IF14:IF6226,"<=0")) -> -3.900997226e-05 | IG8: =IG9/(COUNTIF(IG14:IG6226,">0")+COUNTIF(IG14:IG6226,"<=0")) -> -0.4811281626 | LA8: =LA9/(COUNTIF(LA14:LA6226,">0")+COUNTIF(LA14:LA6226,"<=0")) -> -85.26959768 | LE8: =LE9/(COUNTIF(LE14:LE6226,">0")+COUNTIF(LE14:LE6226,"<=0")) -> -114.5387806 | LF8: 1.105765243 | LG8: 0.5711323102 | LH8: -0.4836167565 | LI8: -1.145582746 | LJ8: 0.8593944421 | LK8: 0.3566984654 | LL8: -1.111157196 | LM8: 0.9224388221 | LN8: 0.3807548735 | LO8: -1.294483617 | LP8: -0.4869348818 | LQ8: 1.231439237 | LR8: -0.08585649108 | LS8: 0.01161343841 | LT8: 0.1970136873 | LU8: -0.7270841974 | LV8: 0.121111572 | LW8: 0.4599751141 | LX8: -0.4935711323 | LY8: 0.3687266694 | LZ8: 0.6515968478 | MA8: -0.4384072999 | MB8: -0.3343011199 | MC8: -0.5226047283 | MD8: -0.7237660722 | ME8: -1.294483617 | MF8: -1.190377437 | MG8: -1.378681045 | MH8: -1.579842389 | MI8: -1.552882621
FI9: ='２２５Ｆデータ一覧'!O33 -> 0.5 | FJ9: ='２２５Ｆデータ一覧'!O34 -> 0.5 | FK9: ='２２５Ｆデータ一覧'!O35 -> 0.5 | FL9: ='２２５Ｆデータ一覧'!O36 -> 0.5 | FM9: ='２２５Ｆデータ一覧'!O37 -> 0.5 | FN9: ='２２５Ｆデータ一覧'!O38 -> 0.5 | FO9: ='２２５Ｆデータ一覧'!B3 -> 1500 | FQ9: ='２２５Ｆデータ一覧'!D3 -> 1500 | FR9: ='２２５Ｆデータ一覧'!E3 -> 1500 | FS9: ='２２５Ｆデータ一覧'!F3 -> 2000 | FW9: ='２２５Ｆデータ一覧'!H3 -> 1500 | FX9: ='２２５Ｆデータ一覧'!I3 -> 1500 | FY9: ='２２５Ｆデータ一覧'!J3 -> 2000 | FZ9: ='２２５Ｆデータ一覧'!L3 -> 1500 | GD9: ='２２５Ｆデータ一覧'!M3 -> 1500 | GE9: ='２２５Ｆデータ一覧'!N3 -> 2000 | GI9: ='２２５Ｆデータ一覧'!F6 -> 1000 | GJ9: ='２２５Ｆデータ一覧'!E6 -> 90 | GK9: ='２２５Ｆデータ一覧'!J6 -> 100 | GL9: ='２２５Ｆデータ一覧'!K6 -> 100 | GM9: =LOOKUP('２２５Ｆデータ一覧'!B6,条件一覧!G82:G89,条件一覧!H82:H89) -> S3 | GO9: ='２２５Ｆデータ一覧'!H6 -> 0 | HE9: ='２２５Ｆデータ一覧'!P3 -> 300000 | HF9: ='２２５Ｆデータ一覧'!O26 -> 0.5 | HG9: ='２２５Ｆデータ一覧'!O27 -> 0.5 | HH9: ='２２５Ｆデータ一覧'!O28 -> 0.5 | HI9: ='２２５Ｆデータ一覧'!O29 -> 0.5 | HJ9: ='２２５Ｆデータ一覧'!O30 -> 0.5 | HK9: ='２２５Ｆデータ一覧'!C6 -> 1500 | HL9: ='２２５Ｆデータ一覧'!D6 -> 1500 | HM9: ='２２５Ｆデータ一覧'!N6 -> 2020-12-31 | HN9: ='２２５Ｆデータ一覧'!O6 -> 6 | HO9: ='２２５Ｆデータ一覧'!B9 -> 1500 | HP9: ='２２５Ｆデータ一覧'!C9 -> 1500 | HQ9: ='２２５Ｆデータ一覧'!D9 -> 1500 | HR9: ='２２５Ｆデータ一覧'!E9 -> 1500 | HS9: ='２２５Ｆデータ一覧'!F9 -> 1500 | HT9: ='２２５Ｆデータ一覧'!G9 -> 1500 | HU9: ='２２５Ｆデータ一覧'!H9 -> 1500 | HV9: ='２２５Ｆデータ一覧'!I9 -> 1500 | HW9: ='２２５Ｆデータ一覧'!J9 -> 1500 | HX9: ='２２５Ｆデータ一覧'!K9 -> 1500 | HY9: ='２２５Ｆデータ一覧'!L9 -> 1500 | HZ9: ='２２５Ｆデータ一覧'!M9 -> 1500 | IA9: ='２２５Ｆデータ一覧'!N9 -> 1500 | IC9: 総損益 | ID9: =SUM(ID14:ID6226) -> 0.09405304312 | IE9: =SUM(IE14:IE6226) -> 1160 | IF9: =SUM(IF14:IF6226) -> -0.09405304312 | IG9: =SUM(IG14:IG6226) -> -1160 | IH9: =SUM(IH14:IH6226) -> 0 | IJ9: =SUM(IJ14:IJ6226) -> 0 | IL9: =SUM(IL14:IL6226) -> 0 | IN9: =SUM(IN14:IN6226) -> 0 | IP9: =SUM(IP14:IP6226) -> 0 | IR9: =SUM(IR14:IR6226) -> 29820 | IT9: =SUM(IT14:IT6226) -> 36000 | IV9: =SUM(IV14:IV6226) -> 41100 | IX9: =SUM(IX14:IX6226) -> 44010 | IZ9: =SUM(IZ14:IZ6226) -> 46560 | JB9: =SUM(JB14:JB6226) -> 48370 | JD9: =SUM(JD14:JD6226) -> 48840 | JF9: =SUM(JF14:JF6226) -> 49500 | JH9: =SUM(JH14:JH6226) -> 46600 | JJ9: =SUM(JJ14:JJ6226) -> 41790 | JL9: =SUM(JL14:JL6226) -> 32940 | JN9: =SUM(JN14:JN6226) -> 19110 | JP9: =SUM(JP14:JP6226) -> 0 | JR9: =SUM(JR14:JR6226) -> 191280 | JT9: =SUM(JT14:JT6226) -> 0 | JV9: =SUM(JV14:JV6226) -> 46040 | JX9: =SUM(JX14:JX6226) -> 0 | JZ9: =SUM(JZ14:JZ6226) -> 0 | KB9: =SUM(KB14:KB6226) -> 49420 | KD9: =SUM(KD14:KD6226) -> 0 | KF9: =SUM(KF14:KF6226) -> 0 | KH9: =SUM(KH14:KH6226) -> 43300 | KJ9: =SUM(KJ14:KJ6226) -> 0 | KL9: =SUM(KL14:KL6226) -> 30100 | KN9: =SUM(KN14:KN6226) -> 0 | KP9: =SUM(KP14:KP6226) -> 21420 | KR9: =SUM(KR14:KR6226) -> 0 | KT9: =SUM(KT14:KT6226) -> 0 | KV9: =SUM(KV14:KV6226) -> 0 | KX9: =SUM(KX14:KX6226) -> 484640 | KZ9: =SUM(KZ14:KZ6226) -> -690225 | LA9: =SUM(LA14:LA6226) -> -205585 | LB9: =SUM(LB14:LB6226) -> 381560 | LD9: =SUM(LD14:LD6226) -> -657713 | LE9: -276153 | LF9: 2666 | LG9: 1377 | LH9: -1166 | LI9: -2762 | LJ9: 2072 | LK9: 860 | LL9: -2679 | LM9: 2224 | LN9: 918 | LO9: -3121 | LP9: -1174 | LQ9: 2969 | LR9: -207 | LS9: 28 | LT9: 475 | LU9: -1753 | LV9: 292 | LW9: 1109 | LX9: -1190 | LY9: 889 | LZ9: 1571 | MA9: -1057 | MB9: -806 | MC9: -1260 | MD9: -1745 | ME9: -3121 | MF9: -2870 | MG9: -3324 | MH9: -3809 | MI9: -3744
IC10: 最大陽線 | ID10: =MAX(ID14:ID6226) -> 0.05805687204 | IE10: =MAX(IE14:IE6226) -> 800 | IF10: =MAX(IF14:IF6226) -> 0.08225905463 | IG10: =MAX(IG14:IG6226) -> 1340 | LA10: =MAX(LA14:LA6226) -> 810 | LE10: =MAX(LE14:LE6226) -> 1140 | LF10: 180 | LG10: 430 | LH10: 270 | LI10: 450 | LJ10: 270 | LK10: 500 | LL10: 230 | LM10: 280 | LN10: 180 | LO10: 280 | LP10: 280 | LQ10: 320 | LR10: 320 | LS10: 420 | LT10: 300 | LU10: 450 | LV10: 450 | LW10: 540 | LX10: 770 | LY10: 730 | LZ10: 730 | MA10: 720 | MB10: 720 | MC10: 550 | MD10: 610 | ME10: 280 | MF10: 280 | MG10: 320 | MH10: 470 | MI10: 580
IC11: 最大陰線 | ID11: =MIN(ID14:ID6226) -> -0.08225905463 | IE11: =MIN(IE14:IE6226) -> -1340 | IF11: =MIN(IF14:IF6226) -> -0.05805687204 | IG11: =MIN(IG14:IG6226) -> -800 | LA11: =MIN(LA14:LA6226) -> -6120 | LE11: =MIN(LE14:LE6226) -> -5280 | LF11: -170 | LG11: -220 | LH11: -180 | LI11: -240 | LJ11: -450 | LK11: -220 | LL11: -640 | LM11: -480 | LN11: -880 | LO11: -240 | LP11: -270 | LQ11: -330 | LR11: -410 | LS11: -570 | LT11: -380 | LU11: -310 | LV11: -400 | LW11: -470 | LX11: -890 | LY11: -1080 | LZ11: -1290 | MA11: -1170 | MB11: -1170 | MC11: -1460 | MD11: -1460 | ME11: -240 | MF11: -290 | MG11: -620 | MH11: -600 | MI11: -1000
IC12: 平均陽線 | ID12: =SUMIF(ID14:ID6226,">0")/ID3 -> 0.006520870088 | IE12: =SUMIF(IE14:IE6226,">0")/IE3 -> 108.4504657 | IF12: =SUMIF(IF14:IF6226,">0")/IF3 -> 0.006667041657 | IG12: =SUMIF(IG14:IG6226,">0")/IG3 -> 111.2357581 | LA12: =SUMIF(LA14:LA6226,">0")/LA3 -> 442.7502015 | LE12: =SUMIF(LE14:LE6226,">0")/LE3 -> 363.8093385 | LF12: 28.25373134 | LG12: 38.11237016 | LH12: 28.63391934 | LI12: 33.36517413 | LJ12: 26.67516779 | LK12: 32.2792527 | LL12: 25.78429423 | LM12: 22.84118852 | LN12: 22.39726027 | LO12: 30.88116818 | LP12: 30.11387164 | LQ12: 27.21764706 | LR12: 29.88217523 | LS12: 39.28945074 | LT12: 45.58278765 | LU12: 54.85883424 | LV12: 58.80214861 | LW12: 70.22104332 | LX12: 74.11898513 | LY12: 77.75752365 | LZ12: 80.41114983 | MA12: 86.54361233 | MB12: 87.25087108 | MC12: 92.61164205 | MD12: 97.14761092 | ME12: 30.88116818 | MF12: 35.53861386 | MG12: 44.84485981 | MH12: 52.35597826 | MI12: 65.65957447
A13: =COUNTIF(A14:A10000,">0")+13 -> 5363 | IC13: 平均陰線 | ID13: =SUMIF(ID14:ID6226,"<0")/ID5 -> -0.006667041657 | IE13: =SUMIF(IE14:IE6226,"<0")/IE5 -> -111.2357581 | IF13: =SUMIF(IF14:IF6226,"<0")/IF5 -> -0.006520870088 | IG13: =SUMIF(IG14:IG6226,"<0")/IG5 -> -108.4504657 | LA13: =SUMIF(LA14:LA6226,"<0")/LA5 -> -650.3341947 | LE13: =SUMIF(LE14:LE6226,"<0")/LE5 -> -715.73436 | LF13: -24.84741784 | LG13: -37.55684008 | LH13: -27.45480495 | LI13: -34.73110048 | LJ13: -26.84917044 | LK13: -31.62017804 | LL13: -30.70600858 | LM13: -24.15042118 | LN13: -23.26887872 | LO13: -32.17714286 | LP13: -30.23376623 | LQ13: -27.36534216 | LR13: -30.39674466 | LS13: -44.99200799 | LT13: -43.19874664 | LU13: -54.09075044 | LV13: -58.96302976 | LW13: -69.79590018 | LX13: -76.97849462 | LY13: -80.81498195 | LZ13: -81.01875 | MA13: -85.88581315 | MB13: -88.57017544 | MC13: -94.11518325 | MD13: -101.6728232 | ME13: -32.17714286 | MF13: -36.26192703 | MG13: -48.3126177 | MH13: -56.47112741 | MI13: -70.54215775
A14: 2022-11-02 | B14: 27600 | C14: 27690 | D14: 27550 | E14: 27640 | F14: 21838 | G14: 27600 | H14: 27600 | I14: 27550 | J14: 27580 | K14: 27580 | L14: 27650 | M14: 27580 | N14: 27620 | O14: 27620 | P14: 27660 | Q14: 27620 | R14: 27640 | S14: 27650 | T14: 27660 | U14: 27600 | V14: 27620 | W14: 27620 | X14: 27660 | Y14: 27590 | Z14: 27650 | AA14: 27640 | AB14: 27680 | AC14: 27620 | AD14: 27680 | AE14: 27680 | AF14: 27690 | AG14: 27660 | AH14: 27680 | AI14: 27670 | AJ14: 27690 | AK14: 27670 | AL14: 27680 | AM14: 27670 | AN14: 27680 | AO14: 27640 | AP14: 27670 | AQ14: 27670 | AR14: 27680 | AS14: 27640 | AT14: 27640 | AU14: 27640 | AV14: 27650 | AW14: 27610 | AX14: 27630 | AY14: 27640 | AZ14: 27650 | BA14: 27620 | BB14: 27630 | BC14: 27630 | BD14: 27660 | BE14: 27630 | BF14: 27640 | BG14: 27640 | BH14: 27670 | BI14: 27630 | BJ14: 27640 | BK14: =MAX(AN14,AR14,AV14,AZ14,BD14,BH14) -> 27680 | BL14: =MIN(AO14,AS14,AW14,BA14,BE14,BI14) -> 27610 | BM14: =AVERAGE($E14:OFFSET($E14,0,0,BM$4,1)) -> 27438 | BN14: =AVERAGE($E14:OFFSET($E14,0,0,BN$4,1)) -> 26914.8 | BO14: =AVERAGE($E14:OFFSET($E14,0,0,BO$4,1)) -> 27551.06667 | BP14: =AVERAGE($E14:OFFSET($E14,0,0,BP$4,1)) -> 27288.3 | BQ14: =AVERAGE($E14:OFFSET($E14,0,0,BQ$4,1)) -> 27136.8 | BR14: =(E14-B14) -> 40 | BS14: =IF(BJ14>0,IF(C14>D14,C14-D14,(C14-D14)*(-1)),BT15) -> 140 | BT14: =IF($BT$2=5,AVERAGE(BS14:BS18),IF($BT$2=10,AVERAGE(BS14:BS23),AVERAGE(BS14:BS33))) -> 206 | BU14: =IF(A15<>"",B14-E15,0) -> -90 | BV14: =IF(B14>C15,"H",IF(B14<D15,"L","I")) -> I | BW14: =IF(E14>C15,"H",IF(E14<D15,"L","I")) -> I | BX14: =CHOOSE(WEEKDAY(A14,2),"月","火","水","木","金","土,""日") -> 水 | BY14: =WEEKDAY(A14,1) -> 4 | BZ14: =IF(CG14="L",IF(B14>CB14,"L","N"),IF(CG14="S",IF(B3<CB3,"S","N"),"")) -> L | CA14: =((MAX(C14:C39)+MIN(D14:D39))/2) -> 26655 | CB14: =((MAX(C14:C22)+MIN(D14:D22))/2) -> 27285 | CC14: =(CB39+CA39)/2 -> 27492.5 | CD14: =(MAX(C39:C90)+MIN(D39:D90))/2 -> 27710 | CE14: =E39 -> 26320 | CF14: =IF(E14>MAX(CC14:CD14),"L",IF(E14<MIN(CC14:CD14),"S","I")) -> I | CG14: =IF(CB14>CA14,"L",IF(CB14<CA14,"S","N")) -> L | CH14: =IF(E14>0,IF(E14>E15,E14-E15,""),"") ->  | CI14: =IF(E14>0,IF(E14<E15,E15-E14,""),"") -> 50 | CJ14: =SUM(CH14:OFFSET(CH14,0,0,CJ$4,1))/(SUM(CH14:OFFSET(CH14,0,0,CJ$4,1))+SUM(CI14:OFFSET(CI14,0,0,CJ$4,1)))*100 -> 58.62068966 | CK14: =SUM(CH14:OFFSET(CH14,0,0,CK$4,1))/(SUM(CH14:OFFSET(CH14,0,0,CK$4,1))+SUM(CI14:OFFSET(CI14,0,0,CK$4,1)))*100 -> 67.77777778 | CL14: =CO14*2+C14-D14*2 -> 27843.33333 | CM14: =CO14+C14-D14 -> 27766.66667 | CN14: =CO14*2-D14 -> 27703.33333 | CO14: =(C14+D14+E14)/3 -> 27626.66667 | CP14: =CO14*2-C14 -> 27563.33333 | CQ14: =CO14-C14+D14 -> 27486.66667 | CR14: =CO14*2-C14*2+D14 -> 27423.33333 | CS14: =BN14+3*STDEVP($E14:OFFSET($E14,0,0,BN$4,1)) -> 28399.48469 | CT14: =BN14+2*STDEVP($E14:OFFSET($E14,0,0,BN$4,1)) -> 27904.5898 | CU14: =BN14+STDEVP($E14:OFFSET($E14,0,0,BN$4,1)) -> 27409.6949 | CV14: =BN14-STDEVP($E14:OFFSET($E14,0,0,BN$4,1)) -> 26419.9051 | CW14: =BN14-2*STDEVP($E14:OFFSET($E14,0,0,BN$4,1)) -> 25925.0102 | CX14: =BN14-3*STDEVP($E14:OFFSET($E14,0,0,BN$4,1)) -> 25430.11531 | CY14: =IF(B14>=CL15,"S3",IF(B14>=CM15,"S2",IF(B14>=CN15,"S1",IF(B14>=CO15,"S0","")))) ->  | CZ14: =IF(B14<=CR15,"B0",IF(B14<=CQ15,"B1",IF(B14<=CP15,"B2",IF(B14<=CO15,"B3","")))) -> B3 | DA14: =IF(CY14<>"",CY14,CZ14) -> B3 | DB14: =IF(CY14="S3",B14-CL15,IF(CY14="S2",B14-CM15,IF(CY14="S1",B14-CN15,IF(CY14="S0",B14-CO15,0)))) -> 0 | DC14: =IF(CZ14="B3",B14-CP15,IF(CZ14="B2",B14-CQ15,IF(CZ14="B1",B14-CR15,IF(CZ14="B0",B14-CR15,0)))) -> 26.66666667 | DD14: =AVERAGE(E15:E18,B14) -> 27430 | DE14: =AVERAGE(E15:E38,B14) -> 26913.2 | DF14: =AVERAGE(E15:E88,B14) -> 27550.53333 | DG14: =AVERAGE(E15:E113,B14) -> 27287.9 | DH14: =AVERAGE(E15:E213,B14) -> 27136.6 | DI14: =((MAX(C15:C22,B14)+MIN(D15:D22,B14))/2) -> 27285 | DJ14: =((MAX(C14:C39,B14)+MIN(D14:D39,B14))/2) -> 26655 | DK14: =(CB38+CA38)/2 -> 26997.5 | DL14: =(MAX(C38:C89)+MIN(D38:D89))/2 -> 27455 | DM14: =$BN15+3*STDEVP($B14,$E15:$E38) -> 28339.82132 | DN14: =$BN15+2*STDEVP($B14,$E15:$E38) -> 27847.21421 | DO14: =$BN15+STDEVP($B14,$E15:$E38) -> 27354.60711 | DP14: =$BN15-STDEVP($B14,$E15:$E38) -> 26369.39289 | DQ14: =$BN15-2*STDEVP($B14,$E15:$E38) -> 25876.78579 | DR14: =$BN15-3*STDEVP($B14,$E15:$E38) -> 25384.17868 | DS14: =IF(C14>C15,IF(D14<D15,"B","H"),IF(D14<D15,"L","I")) -> I | DT14: =IF(BM14>BN14,"L",IF(BM14<BN14,"S","N")) -> L | FI14: =IF($E15<>"",IF(($E15-CS15)/$E15>=FI$6,IF(($E15-CS15)/$E15<=FI$9,1,0),0),0) -> 1 | FJ14: =IF($E15<>"",IF(($E15-CT15)/$E15>=FJ$6,IF(($E15-CT15)/$E15<=FJ$9,1,0),0),0) -> 1 | FK14: =IF($E15<>"",IF(($E15-CU15)/$E15>=FK$6,IF(($E15-CU15)/$E15<=FK$9,1,0),0),0) -> 1 | FL14: =IF($E15<>"",IF(($E15-CV15)/$E15>=FL$6,IF(($E15-CV15)/$E15<=FL$9,1,0),0),0) -> 1 | FM14: =IF($E15<>"",IF(($E15-CW15)/$E15>=FM$6,IF(($E15-CW15)/$E15<=FM$9,1,0),0),0) -> 1 | FN14: =IF($E15<>"",IF(($E15-CX15)/$E15>=FN$6,IF(($E15-CX15)/$E15<=FN$9,1,0),0),0) -> 1 | FO14: =IF(BU14>=$FO$6,IF(BU14<=$FO$9,1,0),0) -> 1 | FP14: =IF($FP$6="H",IF(BV14="H",1,0),IF($FP$6="L",IF(BV14="L",1,0),IF($FP$6="I",IF(BV14="I",1,0),1))) -> 1 | FQ14: =IF(BU15>=$FQ$6,IF(BU15<=$FQ$9,1,0),0) -> 1 | FR14: =IF(BR15>=$FR$6,IF(BR15<=$FR$9,1,0),0) -> 1 | FS14: =IF(BS15>=$FS$6,IF(BS15<=$FS$9,1,0),0) -> 1 | FT14: =IF($FT$6="H",IF(BV15="H",1,0),IF($FT$6="L",IF(BV15="L",1,0),IF($FT$6="I",IF(BV15="I",1,0),1))) -> 1 | FU14: =IF(FU$6="H",IF($BW15="H",1,0),IF(FU$6="L",IF($BW15="L",1,0),IF(FU$6="I",IF($BW15="I",1,0),1))) -> 1 | FV14: =IF(FV$6="H",IF($DS15="H",1,0),IF(FV$6="L",IF($DS15="L",1,0),IF(FV$6="I",IF($DS15="I",1,0),IF(FV$6="B",IF($DS15="B",1,0),1)))) -> 1 | FW14: =IF(BU16>=$FW$6,IF(BU16<=$FW$9,1,0),0) -> 1 | FX14: =IF(BR16>=$FX$6,IF(BR16<=$FX$9,1,0),0) -> 1 | FY14: =IF(BS16>=$FY$6,IF(BS16<=$FY$9,1,0),0) -> 1 | FZ14: =IF(BU17>=$FZ$6,IF(BU17<=$FZ$9,1,0),0) -> 1 | GA14: =IF($GA$6="H",IF(BV16="H",1,0),IF($GA$6="L",IF(BV16="L",1,0),IF($GA$6="I",IF(BV16="I",1,0),1))) -> 1 | GB14: =IF(GB$6="H",IF($BW16="H",1,0),IF(GB$6="L",IF($BW16="L",1,0),IF(GB$6="I",IF($BW16="I",1,0),1))) -> 1 | GC14: =IF(GC$6="H",IF($DS16="H",1,0),IF(GC$6="L",IF($DS16="L",1,0),IF(GC$6="I",IF($DS16="I",1,0),IF(GC$6="B",IF($DS16="B",1,0),1)))) -> 1 | GD14: =IF(BR17>=$GD$6,IF(BR17<=$GD$9,1,0),0) -> 1 | GE14: =IF(BS17>=$GE$6,IF(BS17<=$GE$9,1,0),0) -> 1 | GF14: =IF($GF$6="H",IF(BV17="H",1,0),IF($GF$6="L",IF(BV17="L",1,0),IF($GF$6="I",IF(BV17="I",1,0),1))) -> 1 | GG14: =IF(GG$6="H",IF($BW17="H",1,0),IF(GG$6="L",IF($BW17="L",1,0),IF(GG$6="I",IF($BW17="I",1,0),1))) -> 1 | GH14: =IF(GH$6="H",IF($DS17="H",1,0),IF(GH$6="L",IF($DS17="L",1,0),IF(GH$6="I",IF($DS17="I",1,0),IF(GH$6="B",IF($DS17="B",1,0),1)))) -> 1 | GI14: =IF(BT14>=$GI$6,IF(BT14<=$GI$9,1,0),0) -> 1 | GJ14: =IF(RIGHT(B14,2)*1>=$GJ$6,IF(RIGHT(B14,2)*1<=$GJ$9,1,0),0) -> 1 | GK14: =IF(CJ15>=$GK$6,IF(CJ15<=$GK$9,1,0),0) -> 1 | GL14: =IF(CK15>=$GL$6,IF(CK15<=$GL$9,1,0),0) -> 1 | GM14: =IF(DA14>=$GM$6,IF(DA14<=$GM$9,1,0),0) -> 1 | GN14: =IF(AND($GN$6<>"L",$GN$6<>"S",$GN$6<>"N"),1,IF(DT14=$GN$6,1,0)) -> 1 | GO14: =IF(AND($GO$6<>"L",$GO$6<>"S",$GO$6<>"N"),1,IF(CG14=$GO$6,1,0)) -> 1 | GP14: =IF(E15<>"",IF(AND($GP$6="up",B14>=DD14,E15<BM15),1,IF(AND($GP$6="dw",B14<=DD14,E15>BM15),1,IF(AND($GP$6<>"dw",$GP$6<>"up"),1,0))),0) -> 1 | GQ14: =IF(E15<>"",IF(AND(GQ$6="up",B14>=DE14,E15<BN15),1,IF(AND(GQ$6="dw",B14<=DE14,E15>BN15),1,IF(AND(GQ$6<>"dw",GQ$6<>"up"),1,0))),0) -> 1 | GR14: =IF(E15<>"",IF(AND(GR$6="up",B14>=DF14,E15<BO15),1,IF(AND(GR$6="dw",B14<=DF14,E15>BO15),1,IF(AND(GR$6<>"dw",GR$6<>"up"),1,0))),0) -> 1 | GS14: =IF(E15<>"",IF(AND(GS$6="up",B14>=DG14,E15<BP15),1,IF(AND(GS$6="dw",B14<=DG14,E15>BP15),1,IF(AND(GS$6<>"dw",GS$6<>"up"),1,0))),0) -> 1 | GT14: =IF(E15<>"",IF(AND(GT$6="up",B14>=DH14,E15<BQ15),1,IF(AND(GT$6="dw",B14<=DH14,E15>BQ15),1,IF(AND(GT$6<>"dw",GT$6<>"up"),1,0))),0) -> 1 | GU14: =IF(AND(GU$6="up",$B14>=DI14,$E15<CB15),1,IF(AND(GU$6="dw",$B14<=DI14,$E15>CB15),1,IF(AND(GU$6<>"dw",GU$6<>"up"),1,0))) -> 1 | GV14: =IF(AND(GV$6="up",$B14>=DJ14,$E15<CA15),1,IF(AND(GV$6="dw",$B14<=DJ14,$E15>CA15),1,IF(AND(GV$6<>"dw",GV$6<>"up"),1,0))) -> 1 | GW14: =IF(AND(GW$6="up",$B14>=DK14,$E15<CC15),1,IF(AND(GW$6="dw",$B14<=DK14,$E15>CC15),1,IF(AND(GW$6<>"dw",GW$6<>"up"),1,0))) -> 1 | GX14: =IF(AND(GX$6="up",$B14>=DL14,$E15<CD15),1,IF(AND(GX$6="dw",$B14<=DL14,$E15>CD15),1,IF(AND(GX$6<>"dw",GX$6<>"up"),1,0))) -> 1 | GY14: =IF(AND(GY$6="up",$B14>=DM14,$E15<CS15),1,IF(AND(GY$6="dw",$B14<=DM14,$E15>CS15),1,IF(AND(GY$6<>"dw",GY$6<>"up"),1,0))) -> 1 | GZ14: =IF(AND(GZ$6="up",$B14>=DN14,$E15<CT15),1,IF(AND(GZ$6="dw",$B14<=DN14,$E15>CT15),1,IF(AND(GZ$6<>"dw",GZ$6<>"up"),1,0))) -> 1 | HA14: =IF(AND(HA$6="up",$B14>=DO14,$E15<CU15),1,IF(AND(HA$6="dw",$B14<=DO14,$E15>CU15),1,IF(AND(HA$6<>"dw",HA$6<>"up"),1,0))) -> 1 | HB14: =IF(AND(HB$6="up",$B14>=DP14,$E15<CV15),1,IF(AND(HB$6="dw",$B14<=DP14,$E15>CV15),1,IF(AND(HB$6<>"dw",HB$6<>"up"),1,0))) -> 1 | HC14: =IF(AND(HC$6="up",$B14>=DQ14,$E15<CW15),1,IF(AND(HC$6="dw",$B14<=DQ14,$E15>CW15),1,IF(AND(HC$6<>"dw",HC$6<>"up"),1,0))) -> 1 | HD14: =IF(AND(HD$6="up",$B14>=DR14,$E15<CX15),1,IF(AND(HD$6="dw",$B14<=DR14,$E15>CX15),1,IF(AND(HD$6<>"dw",HD$6<>"up"),1,0))) -> 1 | HE14: =IF(AND(F14>=HE$6,F14<=HE$9),1,0) -> 1 | HF14: =IF($E15<>"",IF(($E15-BM15)/$E15>=HF$6,IF(($E15-BM15)/$E15<=HF$9,1,0),0),0) -> 1 | HG14: =IF($E15<>"",IF(($E15-BN15)/$E15>=HG$6,IF(($E15-BN15)/$E15<=HG$9,1,0),0),0) -> 1 | HH14: =IF($E15<>"",IF(($E15-BO15)/$E15>=HH$6,IF(($E15-BO15)/$E15<=HH$9,1,0),0),0) -> 1 | HI14: =IF($E15<>"",IF(($E15-BP15)/$E15>=HI$6,IF(($E15-BP15)/$E15<=HI$9,1,0),0),0) -> 1 | HJ14: =IF($E15<>"",IF(($E15-BQ15)/$E15>=HJ$6,IF(($E15-BQ15)/$E15<=HJ$9,1,0),0),0) -> 1 | HK14: =IF(DB14>=$HK$6,IF(DB14<=$HK$9,1,0),0) -> 1 | HL14: =IF(DC14>=$HL$6,IF(DC14<=$HL$9,1,0),0) -> 1 | HM14: =IF(A14>=$HM$6,IF(A14<=$HM$9,1,0),0) -> 0 | HN14: =IF(BY14>=$HN$6,IF(BY14<=$HN$9,1,0),0) -> 1 | HO14: =IF(A14>=DATEVALUE("2016/7/19"),IF((J14-B14)>=$HO$6,IF((N14-B14)<=$HO$9,1,0),0),1) -> 1 | HP14: =IF((N14-B14)>=$HP$6,IF((N14-B14)<=$HP$9,1,0),0) -> 1 | HQ14: =IF((R14-B14)>=$HQ$6,IF((R14-B14)<=$HQ$9,1,0),0) -> 1 | HR14: =IF((V14-B14)>=$HR$6,IF((V14-B14)<=$HR$9,1,0),0) -> 1 | HS14: =IF((Z14-B14)>=$HS$6,IF((Z14-B14)<=$HS$9,1,0),0) -> 1 | HT14: =IF((AD14-B14)>=$HT$6,IF((AD14-B14)<=$HT$9,1,0),0) -> 1 | HU14: =IF((AH14-B14)>=$HU$6,IF((AH14-B14)<=$HU$9,1,0),0) -> 1 | HV14: =IF((AL14-B14)>=$HV$6,IF((AL14-B14)<=$HV$9,1,0),0) -> 1 | HW14: =IF(AP14>0,IF((AP14-B14)>=$HW$6,IF((AP14-B14)<=$HW$9,1,0),0),1) -> 1 | HX14: =IF(AP14>0,IF((AT14-B14)>=$HX$6,IF((AT14-B14)<=$HX$9,1,0),0),1) -> 1 | HY14: =IF(AP14>0,IF((AX14-B14)>=$HY$6,IF((AX14-B14)<=$HY$9,1,0),0),1) -> 1 | HZ14: =IF(AP14>0,IF((BB14-B14)>=HZ$6,IF((BB14-B14)<=HZ$9,1,0),0),1) -> 1 | IA14: =IF(AP14>0,IF((BF14-B14)>=IA$6,IF((BF14-B14)<=IA$9,1,0),0),1) -> 1 | IB14: =IF(SUM(FI14:IA14)=71,"OK","") ->  | ID14: =IF($IB14="OK",IE14/B14,"") ->  | IE14: =IF($IB14="OK",E14-B14,"") ->  | IF14: =IF(IB14="OK",IG14/B14,"") ->  | IG14: =IF(IB14="OK",B14-E14,"") ->  | IH14: =IF($IB14="OK",IF(MAX($L14,$P14,$T14,$X14)>($B14+IH$1),IH$2*IH$1,0),0) -> 0 | II14: =IF(IH14>0,$IH$2,0) -> 0 | IJ14: =IF($IB14="OK",IF(MAX($L14,$P14,$T14,$X14)>($B14+IJ$1),IJ$2*IJ$1,0),0) -> 0 | IK14: =IF(IJ14>0,$IJ$2,0) -> 0 | IL14: =IF($IB14="OK",IF(MAX($L14,$P14,$T14,$X14)>($B14+IL$1),IL$2*IL$1,0),0) -> 0 | IM14: =IF(IL14>0,$IL$2,0) -> 0 | IN14: =IF($IB14="OK",IF(MAX($L14,$P14,$T14,$X14)>($B14+IN$1),IN$2*IN$1,0),0) -> 0 | IO14: =IF(IN14>0,$IN$2,0) -> 0 | IP14: =IF($IB14="OK",IF(MAX($L14,$P14,$T14,$X14)>($B14+IP$1),IP$2*IP$1,0),0) -> 0 | IQ14: =IF(IP14>0,$IP$2,0) -> 0 | IR14: =IF($IB14="OK",IF(MAX($L14,$P14,$T14,$X14)>($B14+IR$1),IR$2*IR$1,0),0) -> 0 | IS14: =IF(IR14>0,$IR$2,0) -> 0 | IT14: =IF($IB14="OK",IF(MAX($L14,$P14,$T14,$X14)>($B14+IT$1),IT$2*IT$1,0),0) -> 0 | IU14: =IF(IT14>0,$IT$2,0) -> 0 | IV14: =IF($IB14="OK",IF(MAX($L14,$P14,$T14,$X14)>($B14+IV$1),IV$2*IV$1,0),0) -> 0 | IW14: =IF(IV14>0,$IV$2,0) -> 0 | IX14: =IF($IB14="OK",IF(MAX($L14,$P14,$T14,$X14)>($B14+IX$1),IX$2*IX$1,0),0) -> 0 | IY14: =IF(IX14>0,$IX$2,0) -> 0 | IZ14: =IF($IB14="OK",IF(MAX($L14,$P14,$T14,$X14)>($B14+IZ$1),IZ$2*IZ$1,0),0) -> 0 | JA14: =IF(IZ14>0,$IZ$2,0) -> 0 | JB14: =IF($IB14="OK",IF(MAX($L14,$P14,$T14,$X14)>($B14+JB$1),JB$2*JB$1,0),0) -> 0 | JC14: =IF(JB14>0,$JB$2,0) -> 0 | JD14: =IF($IB14="OK",IF(MAX($L14,$P14,$T14,$X14)>($B14+JD$1),JD$2*JD$1,0),0) -> 0 | JE14: =IF(JD14>0,$JD$2,0) -> 0 | JF14: =IF($IB14="OK",IF(MAX($L14,$P14,$T14,$X14)>($B14+JF$1),JF$2*JF$1,0),0) -> 0 | JG14: =IF(JF14>0,$JF$2,0) -> 0 | JH14: =IF($IB14="OK",IF(MAX($L14,$P14,$T14,$X14)>($B14+JH$1),JH$2*JH$1,0),0) -> 0 | JI14: =IF(JH14>0,$JH$2,0) -> 0 | JJ14: =IF($IB14="OK",IF(MAX($L14,$P14,$T14,$X14)>($B14+JJ$1),JJ$2*JJ$1,0),0) -> 0 | JK14: =IF(JJ14>0,$JJ$2,0) -> 0 | JL14: =IF($IB14="OK",IF(MAX($L14,$P14,$T14,$X14)>($B14+JL$1),JL$2*JL$1,0),0) -> 0 | JM14: =IF(JL14>0,$JL$2,0) -> 0 | JN14: =IF($IB14="OK",IF(MAX($L14,$P14,$T14,$X14)>($B14+JN$1),JN$2*JN$1,0),0) -> 0 | JO14: =IF(JN14>0,$JN$2,0) -> 0 | JP14: =IF($IB14="OK",IF(MIN($M14,$Q14,$U14,$Y14)<($B14-JP$1),JP$2*JP$1,0),0) -> 0 | JQ14: =IF(JP14>0,$JP$2,0) -> 0 | JR14: 0 | JS14: =IF(JR14>0,$JR$2,0) -> 0 | JT14: 0 | JU14: =IF(JT14>0,$JT$2,0) -> 0 | JV14: 0 | JW14: =IF(JV14>0,$JV$2,0) -> 0 | JX14: =IF($IB14="OK",IF(MIN($M14,$Q14,$U14,$Y14)<($B14-JX$1),JX$2*JX$1,0),0) -> 0 | JY14: =IF(JX14>0,$JX$2,0) -> 0 | JZ14: =IF($IB14="OK",IF(MIN($M14,$Q14,$U14,$Y14)<($B14-JZ$1),JZ$2*JZ$1,0),0) -> 0 | KA14: =IF(JZ14>0,$JZ$2,0) -> 0 | KB14: =IF($IB14="OK",IF(MIN($M14,$Q14,$U14,$Y14)<($B14-KB$1),KB$2*KB$1,0),0) -> 0 | KC14: =IF(KB14>0,$KB$2,0) -> 0 | KD14: =IF($IB14="OK",IF(MIN($M14,$Q14,$U14,$Y14)<($B14-KD$1),KD$2*KD$1,0),0) -> 0 | KE14: =IF(KD14>0,$KD$2,0) -> 0 | KF14: =IF($IB14="OK",IF(MIN($M14,$Q14,$U14,$Y14)<($B14-KF$1),KF$2*KF$1,0),0) -> 0 | KG14: =IF(KF14>0,$KF$2,0) -> 0 | KH14: =IF($IB14="OK",IF(MIN($M14,$Q14,$U14,$Y14)<($B14-KH$1),KH$2*KH$1,0),0) -> 0 | KI14: =IF(KH14>0,$KH$2,0) -> 0 | KJ14: =IF($IB14="OK",IF(MIN($M14,$Q14,$U14,$Y14)<($B14-KJ$1),KJ$2*KJ$1,0),0) -> 0 | KK14: =IF(KJ14>0,$KJ$2,0) -> 0 | KL14: =IF($IB14="OK",IF(MIN($M14,$Q14,$U14,$Y14)<($B14-KL$1),KL$2*KL$1,0),0) -> 0 | KM14: =IF(KL14>0,$KL$2,0) -> 0 | KN14: =IF($IB14="OK",IF(MIN($M14,$Q14,$U14,$Y14)<($B14-KN$1),KN$2*KN$1,0),0) -> 0 | KO14: =IF(KN14>0,$KN$2,0) -> 0 | KP14: =IF($IB14="OK",IF(MIN($M14,$Q14,$U14,$Y14)<($B14-KP$1),KP$2*KP$1,0),0) -> 0 | KQ14: =IF(KP14>0,$KP$2,0) -> 0 | KR14: =IF($IB14="OK",IF(MIN($M14,$Q14,$U14,$Y14)<($B14-KR$1),KR$2*KR$1,0),0) -> 0 | KS14: =IF(KR14>0,$KR$2,0) -> 0 | KT14: =IF($IB14="OK",IF(MIN($M14,$Q14,$U14,$Y14)<($B14-KT$1),KT$2*KT$1,0),0) -> 0 | KU14: =IF(KT14>0,$KT$2,0) -> 0 | KV14: =IF($IB14="OK",IF(MIN($M14,$Q14,$U14,$Y14)<($B14-KV$1),KV$2*KV$1,0),0) -> 0 | KW14: =IF(KV14>0,$KV$2,0) -> 0 | KX14: =SUM(IH14,IJ14,IL14,IN14,IP14,IR14,IT14,IV14,IX14,IZ14,JB14,JD14,JF14,JH14,JJ14,JL14,JN14) -> 0 | KY14: =SUM(IH14:JO14)-KX14 -> 0 | KZ14: =IF($IB14="OK",IF($KX$2>KY14,(Z14-B14-10)*($KX$2-KY14),0),0) -> 0 | LA14: =IF($IB14="OK",KX14+KZ14,"") ->  | LB14: =SUM(KV14,KT14,KR14,KP14,KN14,KL14,KJ14,KH14,KF14,KD14,KB14,JZ14,JX14,JV14,JT14,JR14,JP14) -> 0 | LC14: =SUM(JP14:KW14)-LB14 -> 0 | LD14: =IF($IB14="OK",IF($LB$2>LC14,(B14-Z14-10)*($LB$2-LC14),0),0) -> 0 | LE14: =IF($IB14="OK",LB14+LD14,"") ->  | LF14: =IF($IB14="OK",J14-G14,"") ->  | LG14: =IF($IB14="OK",N14-K14,"") ->  | LH14: =IF($IB14="OK",R14-O14,"") ->  | LI14: =IF($IB14="OK",V14-S14,"") ->  | LJ14: =IF($IB14="OK",Z14-W14,"") ->  | LK14: =IF($IB14="OK",AD14-AA14,"") ->  | LL14: =IF($IB14="OK",AH14-AE14,"") ->  | LM14: =IF($IB14="OK",AL14-AI14,"") ->  | LN14: =IF($IB14="OK",IF(AP14>0,AP14-AM14,""),"") ->  | LO14: =IF($IB14="OK",IF(AP14>0,AT14-AQ14,""),"") ->  | LP14: =IF($IB14="OK",IF(AP14>0,AX14-AU14,""),"") ->  | LQ14: =IF($IB14="OK",IF(AP14>0,BB14-AY14,""),"") ->  | LR14: =IF($IB14="OK",IF(AP14>0,BF14-BC14,""),"") ->  | LS14: =IF($IB14="OK",IF(AP14>0,BJ14-BG14,""),"") ->  | LT14: =IF($IB14="OK",R14-$K14,"") ->  | LU14: =IF($IB14="OK",V14-$K14,"") ->  | LV14: =IF($IB14="OK",Z14-$K14,"") ->  | LW14: =IF($IB14="OK",AD14-$K14,"") ->  | LX14: =IF($IB14="OK",AH14-$K14,"") ->  | LY14: =IF($IB14="OK",AL14-$K14,"") ->  | LZ14: =IF($IB14="OK",IF(AP14>0,AP14-$K14,""),"") ->  | MA14: =IF($IB14="OK",IF(AP14>0,AT14-$K14,""),"") ->  | MB14: =IF($IB14="OK",IF(AP14>0,AX14-$K14,""),"") ->  | MC14: =IF($IB14="OK",IF(AP14>0,BB14-$K14,""),"") ->  | MD14: =IF($IB14="OK",IF(AP14>0,BF14-$K14,""),"") ->  | ME14: =IF($IB14="OK",IF(AP14>0,AT14-$AQ14,""),"") ->  | MF14: =IF($IB14="OK",IF(AP14>0,AX14-$AQ14,""),"") ->  | MG14: =IF($IB14="OK",IF(AP14>0,BB14-$AQ14,""),"") ->  | MH14: =IF($IB14="OK",IF(AP14>0,BF14-$AQ14,""),"") ->  | MI14: =IF($IB14="OK",IF(AP14>0,BJ14-$AQ14,""),"") ->  | MJ14: =A14*1 -> 2022-11-02
A15: 2022-11-01 | B15: 27620 | C15: 27700 | D15: 27520 | E15: 27690 | F15: 22431 | G15: 27620 | H15: 27660 | I15: 27600 | J15: 27610 | K15: 27610 | L15: 27620 | M15: 27570 | N15: 27620 | O15: 27620 | P15: 27620 | Q15: 27580 | R15: 27610 | S15: 27600 | T15: 27610 | U15: 27520 | V15: 27540 | W15: 27540 | X15: 27630 | Y15: 27530 | Z15: 27630 | AA15: 27630 | AB15: 27630 | AC15: 27570 | AD15: 27610 | AE15: 27620 | AF15: 27640 | AG15: 27620 | AH15: 27630 | AI15: 27630 | AJ15: 27640 | AK15: 27610 | AL15: 27640 | AM15: 27640 | AN15: 27650 | AO15: 27630 | AP15: 27630 | AQ15: 27630 | AR15: 27680 | AS15: 27620 | AT15: 27640 | AU15: 27640 | AV15: 27640 | AW15: 27600 | AX15: 27600 | AY15: 27600 | AZ15: 27620 | BA15: 27600 | BB15: 27610 | BC15: 27610 | BD15: 27650 | BE15: 27610 | BF15: 27650 | BG15: 27650 | BH15: 27700 | BI15: 27640 | BJ15: 27690 | BK15: =MAX(AN15,AR15,AV15,AZ15,BD15,BH15) -> 27700 | BL15: =MIN(AO15,AS15,AW15,BA15,BE15,BI15) -> 27600 | BM15: =AVERAGE($E15:OFFSET($E15,0,0,BM$4,1)) -> 27398 | BN15: =AVERAGE($E15:OFFSET($E15,0,0,BN$4,1)) -> 26862 | BO15: =AVERAGE($E15:OFFSET($E15,0,0,BO$4,1)) -> 27535.06667 | BP15: =AVERAGE($E15:OFFSET($E15,0,0,BP$4,1)) -> 27293.8 | BQ15: =AVERAGE($E15:OFFSET($E15,0,0,BQ$4,1)) -> 27140.85 | BR15: =(E15-B15) -> 70 | BS15: =IF(BJ15>0,IF(C15>D15,C15-D15,(C15-D15)*(-1)),BT16) -> 180 | BT15: =IF($BT$2=5,AVERAGE(BS15:BS19),IF($BT$2=10,AVERAGE(BS15:BS24),AVERAGE(BS15:BS34))) -> 211 | BU15: =IF(A16<>"",B15-E16,0) -> 70 | BV15: =IF(B15>C16,"H",IF(B15<D16,"L","I")) -> H | BW15: =IF(E15>C16,"H",IF(E15<D16,"L","I")) -> H | BX15: =CHOOSE(WEEKDAY(A15,2),"月","火","水","木","金","土,""日") -> 火 | BY15: =WEEKDAY(A15,1) -> 3 | BZ15: =IF(CG15="L",IF(B15>CB15,"L","N"),IF(CG15="S",IF(B4<CB4,"S","N"),"")) -> L | CA15: =((MAX(C15:C40)+MIN(D15:D40))/2) -> 26655 | CB15: =((MAX(C15:C23)+MIN(D15:D23))/2) -> 27280 | CC15: =(CB40+CA40)/2 -> 27492.5 | CD15: =(MAX(C40:C91)+MIN(D40:D91))/2 -> 27710 | CE15: =E40 -> 26200 | CF15: =IF(E15>MAX(CC15:CD15),"L",IF(E15<MIN(CC15:CD15),"S","I")) -> I | CG15: =IF(CB15>CA15,"L",IF(CB15<CA15,"S","N")) -> L | CH15: =IF(E15>0,IF(E15>E16,E15-E16,""),"") -> 140 | CI15: =IF(E15>0,IF(E15<E16,E16-E15,""),"") ->  | CJ15: =SUM(CH15:OFFSET(CH15,0,0,CJ$4,1))/(SUM(CH15:OFFSET(CH15,0,0,CJ$4,1))+SUM(CI15:OFFSET(CI15,0,0,CJ$4,1)))*100 -> 66.66666667 | CK15: =SUM(CH15:OFFSET(CH15,0,0,CK$4,1))/(SUM(CH15:OFFSET(CH15,0,0,CK$4,1))+SUM(CI15:OFFSET(CI15,0,0,CK$4,1)))*100 -> 61.61616162 | CL15: =CO15*2+C15-D15*2 -> 27933.33333 | CM15: =CO15+C15-D15 -> 27816.66667 | CN15: =CO15*2-D15 -> 27753.33333 | CO15: =(C15+D15+E15)/3 -> 27636.66667 | CP15: =CO15*2-C15 -> 27573.33333 | CQ15: =CO15-C15+D15 -> 27456.66667 | CR15: =CO15*2-C15*2+D15 -> 27393.33333 | CS15: =BN15+3*STDEVP($E15:OFFSET($E15,0,0,BN$4,1)) -> 28317.07113 | CT15: =BN15+2*STDEVP($E15:OFFSET($E15,0,0,BN$4,1)) -> 27832.04742 | CU15: =BN15+STDEVP($E15:OFFSET($E15,0,0,BN$4,1)) -> 27347.02371 | CV15: =BN15-STDEVP($E15:OFFSET($E15,0,0,BN$4,1)) -> 26376.97629 | CW15: =BN15-2*STDEVP($E15:OFFSET($E15,0,0,BN$4,1)) -> 25891.95258 | CX15: =BN15-3*STDEVP($E15:OFFSET($E15,0,0,BN$4,1)) -> 25406.92887 | CY15: =IF(B15>=CL16,"S3",IF(B15>=CM16,"S2",IF(B15>=CN16,"S1",IF(B15>=CO16,"S0","")))) -> S0 | CZ15: =IF(B15<=CR16,"B0",IF(B15<=CQ16,"B1",IF(B15<=CP16,"B2",IF(B15<=CO16,"B3","")))) ->  | DA15: =IF(CY15<>"",CY15,CZ15) -> S0 | DB15: =IF(CY15="S3",B15-CL16,IF(CY15="S2",B15-CM16,IF(CY15="S1",B15-CN16,IF(CY15="S0",B15-CO16,0)))) -> 106.6666667 | DC15: =IF(CZ15="B3",B15-CP16,IF(CZ15="B2",B15-CQ16,IF(CZ15="B1",B15-CR16,IF(CZ15="B0",B15-CR16,0)))) -> 0 | DD15: =AVERAGE(E16:E19,B15) -> 27384 | DE15: =AVERAGE(E16:E39,B15) -> 26859.2 | DF15: =AVERAGE(E16:E89,B15) -> 27534.13333 | DG15: =AVERAGE(E16:E114,B15) -> 27293.1 | DH15: =AVERAGE(E16:E214,B15) -> 27140.5 | DI15: =((MAX(C16:C23,B15)+MIN(D16:D23,B15))/2) -> 27240 | DJ15: =((MAX(C15:C40,B15)+MIN(D15:D40,B15))/2) -> 26655 | DK15: =(CB39+CA39)/2 -> 27492.5 | DL15: =(MAX(C39:C90)+MIN(D39:D90))/2 -> 27710 | DM15: 28243.64746 | DN15: 27763.23164 | DO15: 27282.81582 | DP15: 26321.98418 | DQ15: 25841.56836 | DR15: 25361.15254 | DS15: =IF(C15>C16,IF(D15<D16,"B","H"),IF(D15<D16,"L","I")) -> H | DT15: =IF(BM15>BN15,"L",IF(BM15<BN15,"S","N")) -> L | FI15: =IF($E16<>"",IF(($E16-CS16)/$E16>=FI$6,IF(($E16-CS16)/$E16<=FI$9,1,0),0),0) -> 1 | FJ15: =IF($E16<>"",IF(($E16-CT16)/$E16>=FJ$6,IF(($E16-CT16)/$E16<=FJ$9,1,0),0),0) -> 1 | FK15: =IF($E16<>"",IF(($E16-CU16)/$E16>=FK$6,IF(($E16-CU16)/$E16<=FK$9,1,0),0),0) -> 1 | FL15: =IF($E16<>"",IF(($E16-CV16)/$E16>=FL$6,IF(($E16-CV16)/$E16<=FL$9,1,0),0),0) -> 1 | FM15: =IF($E16<>"",IF(($E16-CW16)/$E16>=FM$6,IF(($E16-CW16)/$E16<=FM$9,1,0),0),0) -> 1 | FN15: =IF($E16<>"",IF(($E16-CX16)/$E16>=FN$6,IF(($E16-CX16)/$E16<=FN$9,1,0),0),0) -> 1 | FO15: =IF(BU15>=$FO$6,IF(BU15<=$FO$9,1,0),0) -> 1 | FP15: =IF($FP$6="H",IF(BV15="H",1,0),IF($FP$6="L",IF(BV15="L",1,0),IF($FP$6="I",IF(BV15="I",1,0),1))) -> 1 | FQ15: =IF(BU16>=$FQ$6,IF(BU16<=$FQ$9,1,0),0) -> 1 | FR15: =IF(BR16>=$FR$6,IF(BR16<=$FR$9,1,0),0) -> 1 | FS15: =IF(BS16>=$FS$6,IF(BS16<=$FS$9,1,0),0) -> 1 | FT15: =IF($FT$6="H",IF(BV16="H",1,0),IF($FT$6="L",IF(BV16="L",1,0),IF($FT$6="I",IF(BV16="I",1,0),1))) -> 1 | FU15: 1 | FV15: 1 | FW15: =IF(BU17>=$FW$6,IF(BU17<=$FW$9,1,0),0) -> 1 | FX15: =IF(BR17>=$FX$6,IF(BR17<=$FX$9,1,0),0) -> 1 | FY15: =IF(BS17>=$FY$6,IF(BS17<=$FY$9,1,0),0) -> 1 | FZ15: =IF(BU18>=$FZ$6,IF(BU18<=$FZ$9,1,0),0) -> 1 | GA15: =IF($GA$6="H",IF(BV17="H",1,0),IF($GA$6="L",IF(BV17="L",1,0),IF($GA$6="I",IF(BV17="I",1,0),1))) -> 1 | GB15: 1 | GC15: 1 | GD15: =IF(BR18>=$GD$6,IF(BR18<=$GD$9,1,0),0) -> 1 | GE15: =IF(BS18>=$GE$6,IF(BS18<=$GE$9,1,0),0) -> 1 | GF15: =IF($GF$6="H",IF(BV18="H",1,0),IF($GF$6="L",IF(BV18="L",1,0),IF($GF$6="I",IF(BV18="I",1,0),1))) -> 1 | GG15: 1 | GH15: 1 | GI15: =IF(BT15>=$GI$6,IF(BT15<=$GI$9,1,0),0) -> 1 | GJ15: =IF(RIGHT(B15,2)*1>=$GJ$6,IF(RIGHT(B15,2)*1<=$GJ$9,1,0),0) -> 1 | GK15: =IF(CJ16>=$GK$6,IF(CJ16<=$GK$9,1,0),0) -> 1 | GL15: =IF(CK16>=$GL$6,IF(CK16<=$GL$9,1,0),0) -> 1 | GM15: =IF(DA15>=$GM$6,IF(DA15<=$GM$9,1,0),0) -> 1 | GN15: =IF(AND($GN$6<>"L",$GN$6<>"S",$GN$6<>"N"),1,IF(DT15=$GN$6,1,0)) -> 1 | GO15: =IF(AND($GO$6<>"L",$GO$6<>"S",$GO$6<>"N"),1,IF(CG15=$GO$6,1,0)) -> 1 | GP15: =IF(E16<>"",IF(AND($GP$6="up",B15>=DD15,E16<BM16),1,IF(AND($GP$6="dw",B15<=DD15,E16>BM16),1,IF(AND($GP$6<>"dw",$GP$6<>"up"),1,0))),0) -> 1 | GQ15: =IF(E16<>"",IF(AND(GQ$6="up",B15>=DE15,E16<BN16),1,IF(AND(GQ$6="dw",B15<=DE15,E16>BN16),1,IF(AND(GQ$6<>"dw",GQ$6<>"up"),1,0))),0) -> 1 | GR15: =IF(E16<>"",IF(AND(GR$6="up",B15>=DF15,E16<BO16),1,IF(AND(GR$6="dw",B15<=DF15,E16>BO16),1,IF(AND(GR$6<>"dw",GR$6<>"up"),1,0))),0) -> 1 | GS15: =IF(E16<>"",IF(AND(GS$6="up",B15>=DG15,E16<BP16),1,IF(AND(GS$6="dw",B15<=DG15,E16>BP16),1,IF(AND(GS$6<>"dw",GS$6<>"up"),1,0))),0) -> 1 | GT15: =IF(E16<>"",IF(AND(GT$6="up",B15>=DH15,E16<BQ16),1,IF(AND(GT$6="dw",B15<=DH15,E16>BQ16),1,IF(AND(GT$6<>"dw",GT$6<>"up"),1,0))),0) -> 1 | GU15: =IF(AND(GU$6="up",$B15>=DI15,$E16<CB16),1,IF(AND(GU$6="dw",$B15<=DI15,$E16>CB16),1,IF(AND(GU$6<>"dw",GU$6<>"up"),1,0))) -> 1 | GV15: =IF(AND(GV$6="up",$B15>=DJ15,$E16<CA16),1,IF(AND(GV$6="dw",$B15<=DJ15,$E16>CA16),1,IF(AND(GV$6<>"dw",GV$6<>"up"),1,0))) -> 1 | GW15: =IF(AND(GW$6="up",$B15>=DK15,$E16<CC16),1,IF(AND(GW$6="dw",$B15<=DK15,$E16>CC16),1,IF(AND(GW$6<>"dw",GW$6<>"up"),1,0))) -> 1 | GX15: =IF(AND(GX$6="up",$B15>=DL15,$E16<CD16),1,IF(AND(GX$6="dw",$B15<=DL15,$E16>CD16),1,IF(AND(GX$6<>"dw",GX$6<>"up"),1,0))) -> 1 | GY15: =IF(AND(GY$6="up",$B15>=DM15,$E16<CS16),1,IF(AND(GY$6="dw",$B15<=DM15,$E16>CS16),1,IF(AND(GY$6<>"dw",GY$6<>"up"),1,0))) -> 1 | GZ15: =IF(AND(GZ$6="up",$B15>=DN15,$E16<CT16),1,IF(AND(GZ$6="dw",$B15<=DN15,$E16>CT16),1,IF(AND(GZ$6<>"dw",GZ$6<>"up"),1,0))) -> 1 | HA15: =IF(AND(HA$6="up",$B15>=DO15,$E16<CU16),1,IF(AND(HA$6="dw",$B15<=DO15,$E16>CU16),1,IF(AND(HA$6<>"dw",HA$6<>"up"),1,0))) -> 1 | HB15: =IF(AND(HB$6="up",$B15>=DP15,$E16<CV16),1,IF(AND(HB$6="dw",$B15<=DP15,$E16>CV16),1,IF(AND(HB$6<>"dw",HB$6<>"up"),1,0))) -> 1 | HC15: =IF(AND(HC$6="up",$B15>=DQ15,$E16<CW16),1,IF(AND(HC$6="dw",$B15<=DQ15,$E16>CW16),1,IF(AND(HC$6<>"dw",HC$6<>"up"),1,0))) -> 1 | HD15: =IF(AND(HD$6="up",$B15>=DR15,$E16<CX16),1,IF(AND(HD$6="dw",$B15<=DR15,$E16>CX16),1,IF(AND(HD$6<>"dw",HD$6<>"up"),1,0))) -> 1 | HE15: =IF(AND(F15>=HE$6,F15<=HE$9),1,0) -> 1 | HF15: =IF($E16<>"",IF(($E16-BM16)/$E16>=HF$6,IF(($E16-BM16)/$E16<=HF$9,1,0),0),0) -> 1 | HG15: =IF($E16<>"",IF(($E16-BN16)/$E16>=HG$6,IF(($E16-BN16)/$E16<=HG$9,1,0),0),0) -> 1 | HH15: =IF($E16<>"",IF(($E16-BO16)/$E16>=HH$6,IF(($E16-BO16)/$E16<=HH$9,1,0),0),0) -> 1 | HI15: =IF($E16<>"",IF(($E16-BP16)/$E16>=HI$6,IF(($E16-BP16)/$E16<=HI$9,1,0),0),0) -> 1 | HJ15: =IF($E16<>"",IF(($E16-BQ16)/$E16>=HJ$6,IF(($E16-BQ16)/$E16<=HJ$9,1,0),0),0) -> 1 | HK15: =IF(DB15>=$HK$6,IF(DB15<=$HK$9,1,0),0) -> 1 | HL15: =IF(DC15>=$HL$6,IF(DC15<=$HL$9,1,0),0) -> 1 | HM15: =IF(A15>=$HM$6,IF(A15<=$HM$9,1,0),0) -> 0 | HN15: =IF(BY15>=$HN$6,IF(BY15<=$HN$9,1,0),0) -> 1 | HO15: =IF(A15>=DATEVALUE("2016/7/19"),IF((J15-B15)>=$HO$6,IF((N15-B15)<=$HO$9,1,0),0),1) -> 1 | HP15: =IF((N15-B15)>=$HP$6,IF((N15-B15)<=$HP$9,1,0),0) -> 1 | HQ15: =IF((R15-B15)>=$HQ$6,IF((R15-B15)<=$HQ$9,1,0),0) -> 1 | HR15: =IF((V15-B15)>=$HR$6,IF((V15-B15)<=$HR$9,1,0),0) -> 1 | HS15: =IF((Z15-B15)>=$HS$6,IF((Z15-B15)<=$HS$9,1,0),0) -> 1 | HT15: =IF((AD15-B15)>=$HT$6,IF((AD15-B15)<=$HT$9,1,0),0) -> 1 | HU15: =IF((AH15-B15)>=$HU$6,IF((AH15-B15)<=$HU$9,1,0),0) -> 1 | HV15: =IF((AL15-B15)>=$HV$6,IF((AL15-B15)<=$HV$9,1,0),0) -> 1 | HW15: =IF(AP15>0,IF((AP15-B15)>=$HW$6,IF((AP15-B15)<=$HW$9,1,0),0),1) -> 1 | HX15: =IF(AP15>0,IF((AT15-B15)>=$HX$6,IF((AT15-B15)<=$HX$9,1,0),0),1) -> 1 | HY15: =IF(AP15>0,IF((AX15-B15)>=$HY$6,IF((AX15-B15)<=$HY$9,1,0),0),1) -> 1 | HZ15: =IF(AP15>0,IF((BB15-B15)>=HZ$6,IF((BB15-B15)<=HZ$9,1,0),0),1) -> 1 | IA15: =IF(AP15>0,IF((BF15-B15)>=IA$6,IF((BF15-B15)<=IA$9,1,0),0),1) -> 1 | IB15: =IF(SUM(FI15:IA15)=71,"OK","") ->  | ID15: =IF($IB15="OK",IE15/B15,"") ->  | IE15: =IF($IB15="OK",E15-B15,"") ->  | IF15: =IF(IB15="OK",IG15/B15,"") ->  | IG15: =IF(IB15="OK",B15-E15,"") ->  | IH15: 0 | II15: =IF(IH15>0,$IH$2,0) -> 0 | IJ15: 0 | IK15: =IF(IJ15>0,$IJ$2,0) -> 0 | IL15: 0 | IM15: =IF(IL15>0,$IL$2,0) -> 0 | IN15: 0 | IO15: =IF(IN15>0,$IN$2,0) -> 0 | IP15: 0 | IQ15: =IF(IP15>0,$IP$2,0) -> 0 | IR15: 0 | IS15: =IF(IR15>0,$IR$2,0) -> 0 | IT15: 0 | IU15: =IF(IT15>0,$IT$2,0) -> 0 | IV15: 0 | IW15: =IF(IV15>0,$IV$2,0) -> 0 | IX15: 0 | IY15: =IF(IX15>0,$IX$2,0) -> 0 | IZ15: 0 | JA15: =IF(IZ15>0,$IZ$2,0) -> 0 | JB15: 0 | JC15: =IF(JB15>0,$JB$2,0) -> 0 | JD15: 0 | JE15: =IF(JD15>0,$JD$2,0) -> 0 | JF15: 0 | JG15: =IF(JF15>0,$JF$2,0) -> 0 | JH15: 0 | JI15: =IF(JH15>0,$JH$2,0) -> 0 | JJ15: 0 | JK15: =IF(JJ15>0,$JJ$2,0) -> 0 | JL15: 0 | JM15: =IF(JL15>0,$JL$2,0) -> 0 | JN15: 0 | JO15: =IF(JN15>0,$JN$2,0) -> 0 | JP15: 0 | JQ15: =IF(JP15>0,$JP$2,0) -> 0 | JR15: 0 | JS15: =IF(JR15>0,$JR$2,0) -> 0 | JT15: 0 | JU15: =IF(JT15>0,$JT$2,0) -> 0 | JV15: 0 | JW15: =IF(JV15>0,$JV$2,0) -> 0 | JX15: 0 | JY15: =IF(JX15>0,$JX$2,0) -> 0 | JZ15: 0 | KA15: =IF(JZ15>0,$JZ$2,0) -> 0 | KB15: 0 | KC15: =IF(KB15>0,$KB$2,0) -> 0 | KD15: 0 | KE15: =IF(KD15>0,$KD$2,0) -> 0 | KF15: 0 | KG15: =IF(KF15>0,$KF$2,0) -> 0 | KH15: 0 | KI15: =IF(KH15>0,$KH$2,0) -> 0 | KJ15: 0 | KK15: =IF(KJ15>0,$KJ$2,0) -> 0 | KL15: 0 | KM15: =IF(KL15>0,$KL$2,0) -> 0 | KN15: 0 | KO15: =IF(KN15>0,$KN$2,0) -> 0 | KP15: 0 | KQ15: =IF(KP15>0,$KP$2,0) -> 0 | KR15: 0 | KS15: =IF(KR15>0,$KR$2,0) -> 0 | KT15: 0 | KU15: =IF(KT15>0,$KT$2,0) -> 0 | KV15: 0 | KW15: =IF(KV15>0,$KV$2,0) -> 0 | KX15: =SUM(IH15,IJ15,IL15,IN15,IP15,IR15,IT15,IV15,IX15,IZ15,JB15,JD15,JF15,JH15,JJ15,JL15,JN15) -> 0 | KY15: =SUM(IH15:JO15)-KX15 -> 0 | KZ15: =IF($IB15="OK",IF($KX$2>KY15,(Z15-B15-10)*($KX$2-KY15),0),0) -> 0 | LA15: =IF($IB15="OK",KX15+KZ15,"") ->  | LB15: =SUM(KV15,KT15,KR15,KP15,KN15,KL15,KJ15,KH15,KF15,KD15,KB15,JZ15,JX15,JV15,JT15,JR15,JP15) -> 0 | LC15: =SUM(JP15:KW15)-LB15 -> 0 | LD15: =IF($IB15="OK",IF($LB$2>LC15,(B15-Z15-10)*($LB$2-LC15),0),0) -> 0 | LE15: =IF($IB15="OK",LB15+LD15,"") ->  | LF15: =IF($IB15="OK",J15-G15,"") ->  | LG15: =IF($IB15="OK",N15-K15,"") ->  | LH15: =IF($IB15="OK",R15-O15,"") ->  | LI15: =IF($IB15="OK",V15-S15,"") ->  | LJ15: =IF($IB15="OK",Z15-W15,"") ->  | LK15: =IF($IB15="OK",AD15-AA15,"") ->  | LL15: =IF($IB15="OK",AH15-AE15,"") ->  | LM15: =IF($IB15="OK",AL15-AI15,"") ->  | LN15: =IF($IB15="OK",IF(AP15>0,AP15-AM15,""),"") ->  | LO15: =IF($IB15="OK",IF(AP15>0,AT15-AQ15,""),"") ->  | LP15: =IF($IB15="OK",IF(AP15>0,AX15-AU15,""),"") ->  | LQ15: =IF($IB15="OK",IF(AP15>0,BB15-AY15,""),"") ->  | LR15: =IF($IB15="OK",IF(AP15>0,BF15-BC15,""),"") ->  | LS15: =IF($IB15="OK",IF(AP15>0,BJ15-BG15,""),"") ->  | LT15: =IF($IB15="OK",R15-$K15,"") ->  | LU15: =IF($IB15="OK",V15-$K15,"") ->  | LV15: =IF($IB15="OK",Z15-$K15,"") ->  | LW15: =IF($IB15="OK",AD15-$K15,"") ->  | LX15: =IF($IB15="OK",AH15-$K15,"") ->  | LY15: =IF($IB15="OK",AL15-$K15,"") ->  | LZ15: =IF($IB15="OK",IF(AP15>0,AP15-$K15,""),"") ->  | MA15: =IF($IB15="OK",IF(AP15>0,AT15-$K15,""),"") ->  | MB15: =IF($IB15="OK",IF(AP15>0,AX15-$K15,""),"") ->  | MC15: =IF($IB15="OK",IF(AP15>0,BB15-$K15,""),"") ->  | MD15: =IF($IB15="OK",IF(AP15>0,BF15-$K15,""),"") ->  | ME15: =IF($IB15="OK",IF(AP15>0,AT15-$AQ15,""),"") ->  | MF15: =IF($IB15="OK",IF(AP15>0,AX15-$AQ15,""),"") ->  | MG15: =IF($IB15="OK",IF(AP15>0,BB15-$AQ15,""),"") ->  | MH15: =IF($IB15="OK",IF(AP15>0,BF15-$AQ15,""),"") ->  | MI15: =IF($IB15="OK",IF(AP15>0,BJ15-$AQ15,""),"") ->  | MJ15: =A15*1 -> 2022-11-01
A16: 2022-10-31 | B16: 27480 | C16: 27590 | D16: 27400 | E16: 27550 | F16: 29825 | G16: 27480 | H16: 27490 | I16: 27450 | J16: 27490 | K16: 27480 | L16: 27550 | M16: 27470 | N16: 27500 | O16: 27500 | P16: 27520 | Q16: 27430 | R16: 27450 | S16: 27440 | T16: 27500 | U16: 27430 | V16: 27480 | W16: 27490 | X16: 27490 | Y16: 27400 | Z16: 27430 | AA16: 27430 | AB16: 27570 | AC16: 27400 | AD16: 27530 | AE16: 27530 | AF16: 27560 | AG16: 27520 | AH16: 27540 | AI16: 27540 | AJ16: 27570 | AK16: 27520 | AL16: 27540 | AM16: 27530 | AN16: 27580 | AO16: 27520 | AP16: 27560 | AQ16: 27560 | AR16: 27590 | AS16: 27550 | AT16: 27560 | AU16: 27560 | AV16: 27570 | AW16: 27530 | AX16: 27540 | AY16: 27540 | AZ16: 27540 | BA16: 27510 | BB16: 27510 | BC16: 27520 | BD16: 27550 | BE16: 27510 | BF16: 27540 | BG16: 27540 | BH16: 27580 | BI16: 27530 | BJ16: 27550 | BK16: 27590 | BL16: 27510 | BM16: =AVERAGE($E16:OFFSET($E16,0,0,BM$4,1)) -> 27312 | BN16: =AVERAGE($E16:OFFSET($E16,0,0,BN$4,1)) -> 26802.4 | BO16: =AVERAGE($E16:OFFSET($E16,0,0,BO$4,1)) -> 27516.26667 | BP16: =AVERAGE($E16:OFFSET($E16,0,0,BP$4,1)) -> 27297 | BQ16: =AVERAGE($E16:OFFSET($E16,0,0,BQ$4,1)) -> 27144.9 | BR16: 70 | BS16: 190 | BT16: 229 | BU16: 470 | BV16: H | BW16: H | BX16: 月 | BY16: 2 | BZ16: L | CA16: 26600 | CB16: 27225 | CC16: 27780 | CD16: 27740 | CE16: 27030 | CF16: S | CG16: L | CH16: 540 | CJ16: =SUM(CH16:OFFSET(CH16,0,0,CJ$4,1))/(SUM(CH16:OFFSET(CH16,0,0,CJ$4,1))+SUM(CI16:OFFSET(CI16,0,0,CJ$4,1)))*100 -> 70.34482759 | CK16: =SUM(CH16:OFFSET(CH16,0,0,CK$4,1))/(SUM(CH16:OFFSET(CH16,0,0,CK$4,1))+SUM(CI16:OFFSET(CI16,0,0,CK$4,1)))*100 -> 59.57446809 | CL16: 27816.66667 | CM16: 27703.33333 | CN16: 27626.66667 | CO16: 27513.33333 | CP16: 27436.66667 | CQ16: 27323.33333 | CR16: 27246.66667 | CS16: =BN16+3*STDEVP($E16:OFFSET($E16,0,0,BN$4,1)) -> 28215.27656 | CT16: =BN16+2*STDEVP($E16:OFFSET($E16,0,0,BN$4,1)) -> 27744.3177 | CU16: =BN16+STDEVP($E16:OFFSET($E16,0,0,BN$4,1)) -> 27273.35885 | CV16: =BN16-STDEVP($E16:OFFSET($E16,0,0,BN$4,1)) -> 26331.44115 | CW16: =BN16-2*STDEVP($E16:OFFSET($E16,0,0,BN$4,1)) -> 25860.4823 | CX16: =BN16-3*STDEVP($E16:OFFSET($E16,0,0,BN$4,1)) -> 25389.52344 | CY16: S2 | DA16: S2 | DB16: 90 | DC16: 0 | DD16: 27298 | DE16: 26799.6 | DF16: 27515.33333 | DG16: 27296.3 | DH16: 27144.55 | DI16: 27225 | DJ16: 26600 | DK16: 27492.5 | DL16: 27710 | DM16: 28181.68377 | DN16: 27714.98918 | DO16: 27248.29459 | DP16: 26314.90541 | DQ16: 25848.21082 | DR16: 25381.51623 | DS16: H | DT16: L | FI16: 1 | FJ16: 1 | FK16: 1 | FL16: 1 | FM16: 1 | FN16: 1 | FO16: 1 | FP16: 1 | FQ16: 1 | FR16: 1 | FS16: 1 | FT16: 1 | FU16: 1 | FV16: 1 | FW16: 1 | FX16: 1 | FY16: 1 | FZ16: 1 | GA16: 1 | GB16: 1 | GC16: 1 | GD16: 1 | GE16: 1 | GF16: 1 | GG16: 1 | GH16: 1 | GI16: 1 | GJ16: 1 | GK16: 1 | GL16: 1 | GM16: 1 | GN16: 1 | GO16: 1 | GP16: 1 | GQ16: 1 | GR16: 1 | GS16: 1 | GT16: 1 | GU16: 1 | GV16: 1 | GW16: 1 | GX16: 1 | GY16: 1 | GZ16: 1 | HA16: 1 | HB16: 1 | HC16: 1 | HD16: 1 | HE16: 1 | HF16: 1 | HG16: 1 | HH16: 1 | HI16: 1 | HJ16: 1 | HK16: 1 | HL16: 1 | HM16: 0 | HN16: 1 | HO16: 1 | HP16: 1 | HQ16: 1 | HR16: 1 | HS16: 1 | HT16: 1 | HU16: 1 | HV16: 1 | HW16: 1 | HX16: 1 | HY16: 1 | HZ16: 1 | IA16: 1 | IH16: 0 | II16: 0 | IJ16: 0 | IK16: 0 | IL16: 0 | IM16: 0 | IN16: 0 | IO16: 0 | IP16: 0 | IQ16: 0 | IR16: 0 | IS16: 0 | IT16: 0 | IU16: 0 | IV16: 0 | IW16: 0 | IX16: 0 | IY16: 0 | IZ16: 0 | JA16: 0 | JB16: 0 | JC16: 0 | JD16: 0 | JE16: 0 | JF16: 0 | JG16: 0 | JH16: 0 | JI16: 0 | JJ16: 0 | JK16: 0 | JL16: 0 | JM16: 0 | JN16: 0 | JO16: 0 | JP16: 0 | JQ16: 0 | JR16: 0 | JS16: 0 | JT16: 0 | JU16: 0 | JV16: 0 | JW16: 0 | JX16: 0 | JY16: 0 | JZ16: 0 | KA16: 0 | KB16: 0 | KC16: 0 | KD16: 0 | KE16: 0 | KF16: 0 | KG16: 0 | KH16: 0 | KI16: 0 | KJ16: 0 | KK16: 0 | KL16: 0 | KM16: 0 | KN16: 0 | KO16: 0 | KP16: 0 | KQ16: 0 | KR16: 0 | KS16: 0 | KT16: 0 | KU16: 0 | KV16: 0 | KW16: 0 | KX16: 0 | KY16: 0 | KZ16: 0 | LB16: 0 | LC16: 0 | LD16: 0 | MJ16: 2022-10-31
A17: 2022-10-28 | B17: 27070 | C17: 27270 | D17: 26960 | E17: 27010 | F17: 31914 | G17: 27070 | H17: 27080 | I17: 26980 | J17: 27010 | K17: 27010 | L17: 27050 | M17: 26980 | N17: 26990 | O17: 26990 | P17: 27030 | Q17: 26960 | R17: 27020 | S17: 27020 | T17: 27090 | U17: 26990 | V17: 27080 | W17: 27080 | X17: 27180 | Y17: 27080 | Z17: 27160 | AA17: 27160 | AB17: 27260 | AC17: 27150 | AD17: 27240 | AE17: 27240 | AF17: 27250 | AG17: 27210 | AH17: 27240 | AI17: 27240 | AJ17: 27270 | AK17: 27190 | AL17: 27240 | AM17: 27240 | AN17: 27270 | AO17: 27200 | AP17: 27220 | AQ17: 27210 | AR17: 27240 | AS17: 27180 | AT17: 27200 | AU17: 27200 | AV17: 27220 | AW17: 27140 | AX17: 27160 | AY17: 27170 | AZ17: 27190 | BA17: 27150 | BB17: 27160 | BC17: 27170 | BD17: 27170 | BE17: 27120 | BF17: 27140 | BG17: 27140 | BH17: 27140 | BI17: 27070 | BJ17: 27010 | BK17: 27270 | BL17: 27070 | BM17: =AVERAGE($E17:OFFSET($E17,0,0,BM$4,1)) -> 27194 | BN17: =AVERAGE($E17:OFFSET($E17,0,0,BN$4,1)) -> 26781.6 | BO17: =AVERAGE($E17:OFFSET($E17,0,0,BO$4,1)) -> 27504.26667 | BP17: =AVERAGE($E17:OFFSET($E17,0,0,BP$4,1)) -> 27300.6 | BQ17: =AVERAGE($E17:OFFSET($E17,0,0,BQ$4,1)) -> 27153.5 | BR17: -60 | BS17: 310 | BT17: 227 | BU17: -230 | BV17: L | BW17: L | BX17: 金 | BY17: 6 | BZ17: N | CA17: 26600 | CB17: 27225 | CC17: 27935 | CD17: 27665 | CE17: 27120 | CF17: S | CG17: L | CI17: 290 | CJ17: =SUM(CH17:OFFSET(CH17,0,0,CJ$4,1))/(SUM(CH17:OFFSET(CH17,0,0,CJ$4,1))+SUM(CI17:OFFSET(CI17,0,0,CJ$4,1)))*100 -> 55.67010309 | CK17: =SUM(CH17:OFFSET(CH17,0,0,CK$4,1))/(SUM(CH17:OFFSET(CH17,0,0,CK$4,1))+SUM(CI17:OFFSET(CI17,0,0,CK$4,1)))*100 -> 57.77777778 | CL17: 27510 | CM17: 27390 | CN17: 27200 | CO17: 27080 | CP17: 26890 | CQ17: 26770 | CR17: 26580 | CS17: =BN17+3*STDEVP($E17:OFFSET($E17,0,0,BN$4,1)) -> 28126.87654 | CT17: =BN17+2*STDEVP($E17:OFFSET($E17,0,0,BN$4,1)) -> 27678.45102 | CU17: =BN17+STDEVP($E17:OFFSET($E17,0,0,BN$4,1)) -> 27230.02551 | CV17: =BN17-STDEVP($E17:OFFSET($E17,0,0,BN$4,1)) -> 26333.17449 | CW17: =BN17-2*STDEVP($E17:OFFSET($E17,0,0,BN$4,1)) -> 25884.74898 | CX17: =BN17-3*STDEVP($E17:OFFSET($E17,0,0,BN$4,1)) -> 25436.32346 | CZ17: B0 | DA17: B0 | DB17: 0 | DC17: -76.66666667 | DD17: 27206 | DE17: 26784 | DF17: 27505.06667 | DG17: 27301.2 | DH17: 27153.8 | DI17: 27225 | DJ17: 26600 | DK17: 27780 | DL17: 27740 | DM17: 28135.39987 | DN17: 27685.59991 | DO17: 27235.79996 | DP17: 26336.20004 | DQ17: 25886.40009 | DR17: 25436.60013 | DS17: L | DT17: L | FI17: 1 | FJ17: 1 | FK17: 1 | FL17: 1 | FM17: 1 | FN17: 1 | FO17: 1 | FP17: 1 | FQ17: 1 | FR17: 1 | FS17: 1 | FT17: 1 | FU17: 1 | FV17: 1 | FW17: 1 | FX17: 1 | FY17: 1 | FZ17: 1 | GA17: 1 | GB17: 1 | GC17: 1 | GD17: 1 | GE17: 1 | GF17: 1 | GG17: 1 | GH17: 1 | GI17: 1 | GJ17: 1 | GK17: 1 | GL17: 1 | GM17: 1 | GN17: 1 | GO17: 1 | GP17: 1 | GQ17: 1 | GR17: 1 | GS17: 1 | GT17: 1 | GU17: 1 | GV17: 1 | GW17: 1 | GX17: 1 | GY17: 1 | GZ17: 1 | HA17: 1 | HB17: 1 | HC17: 1 | HD17: 1 | HE17: 1 | HF17: 1 | HG17: 1 | HH17: 1 | HI17: 1 | HJ17: 1 | HK17: 1 | HL17: 1 | HM17: 0 | HN17: 1 | HO17: 1 | HP17: 1 | HQ17: 1 | HR17: 1 | HS17: 1 | HT17: 1 | HU17: 1 | HV17: 1 | HW17: 1 | HX17: 1 | HY17: 1 | HZ17: 1 | IA17: 1 | IH17: 0 | II17: 0 | IJ17: 0 | IK17: 0 | IL17: 0 | IM17: 0 | IN17: 0 | IO17: 0 | IP17: 0 | IQ17: 0 | IR17: 0 | IS17: 0 | IT17: 0 | IU17: 0 | IV17: 0 | IW17: 0 | IX17: 0 | IY17: 0 | IZ17: 0 | JA17: 0 | JB17: 0 | JC17: 0 | JD17: 0 | JE17: 0 | JF17: 0 | JG17: 0 | JH17: 0 | JI17: 0 | JJ17: 0 | JK17: 0 | JL17: 0 | JM17: 0 | JN17: 0 | JO17: 0 | JP17: 0 | JQ17: 0 | JR17: 0 | JS17: 0 | JT17: 0 | JU17: 0 | JV17: 0 | JW17: 0 | JX17: 0 | JY17: 0 | JZ17: 0 | KA17: 0 | KB17: 0 | KC17: 0 | KD17: 0 | KE17: 0 | KF17: 0 | KG17: 0 | KH17: 0 | KI17: 0 | KJ17: 0 | KK17: 0 | KL17: 0 | KM17: 0 | KN17: 0 | KO17: 0 | KP17: 0 | KQ17: 0 | KR17: 0 | KS17: 0 | KT17: 0 | KU17: 0 | KV17: 0 | KW17: 0 | KX17: 0 | KY17: 0 | KZ17: 0 | LB17: 0 | LC17: 0 | LD17: 0 | MJ17: 2022-10-28
A18: 2022-10-27 | B18: 27440 | C18: 27440 | D18: 27320 | E18: 27300 | F18: 26186 | G18: 27440 | H18: 27440 | I18: 27380 | J18: 27410 | K18: 27410 | L18: 27440 | M18: 27330 | N18: 27400 | O18: 27400 | P18: 27440 | Q18: 27380 | R18: 27420 | S18: 27410 | T18: 27410 | U18: 27340 | V18: 27350 | W18: 27350 | X18: 27420 | Y18: 27350 | Z18: 27400 | AA18: 27400 | AB18: 27430 | AC18: 27380 | AD18: 27420 | AE18: 27420 | AF18: 27440 | AG18: 27380 | AH18: 27390 | AI18: 27390 | AJ18: 27390 | AK18: 27340 | AL18: 27350 | AM18: 27350 | AN18: 27370 | AO18: 27330 | AP18: 27330 | AQ18: 27340 | AR18: 27400 | AS18: 27340 | AT18: 27380 | AU18: 27380 | AV18: 27390 | AW18: 27370 | AX18: 27390 | AY18: 27390 | AZ18: 27400 | BA18: 27360 | BB18: 27380 | BC18: 27380 | BD18: 27380 | BE18: 27340 | BF18: 27340 | BG18: 27330 | BH18: 27360 | BI18: 27320 | BJ18: 27300 | BK18: 27400 | BL18: 27320 | BM18: =AVERAGE($E18:OFFSET($E18,0,0,BM$4,1)) -> 27172 | BN18: =AVERAGE($E18:OFFSET($E18,0,0,BN$4,1)) -> 26786 | BO18: =AVERAGE($E18:OFFSET($E18,0,0,BO$4,1)) -> 27498.93333 | BP18: =AVERAGE($E18:OFFSET($E18,0,0,BP$4,1)) -> 27308.4 | BQ18: =AVERAGE($E18:OFFSET($E18,0,0,BQ$4,1)) -> 27164.6 | BR18: -140 | BS18: 120 | BT18: 242 | BU18: 0 | BV18: I | BW18: L | BX18: 木 | BY18: 5 | BZ18: L | CA18: 26650 | CB18: 27120 | CC18: 28050 | CD18: 27610 | CE18: 27450 | CF18: S | CG18: L | CI18: 140 | CJ18: =SUM(CH18:OFFSET(CH18,0,0,CJ$4,1))/(SUM(CH18:OFFSET(CH18,0,0,CJ$4,1))+SUM(CI18:OFFSET(CI18,0,0,CJ$4,1)))*100 -> 69.23076923 | CK18: =SUM(CH18:OFFSET(CH18,0,0,CK$4,1))/(SUM(CH18:OFFSET(CH18,0,0,CK$4,1))+SUM(CI18:OFFSET(CI18,0,0,CK$4,1)))*100 -> 56.83060109 | CL18: 27506.66667 | CM18: 27473.33333 | CN18: 27386.66667 | CO18: 27353.33333 | CP18: 27266.66667 | CQ18: 27233.33333 | CR18: 27146.66667 | CS18: =BN18+3*STDEVP($E18:OFFSET($E18,0,0,BN$4,1)) -> 28139.52872 | CT18: =BN18+2*STDEVP($E18:OFFSET($E18,0,0,BN$4,1)) -> 27688.35248 | CU18: =BN18+STDEVP($E18:OFFSET($E18,0,0,BN$4,1)) -> 27237.17624 | CV18: =BN18-STDEVP($E18:OFFSET($E18,0,0,BN$4,1)) -> 26334.82376 | CW18: =BN18-2*STDEVP($E18:OFFSET($E18,0,0,BN$4,1)) -> 25883.64752 | CX18: =BN18-3*STDEVP($E18:OFFSET($E18,0,0,BN$4,1)) -> 25432.47128 | CZ18: B3 | DA18: B3 | DB18: 0 | DC18: 76.66666667 | DD18: 27200 | DE18: 26791.6 | DF18: 27500.8 | DG18: 27309.8 | DH18: 27165.3 | DI18: 27120 | DJ18: 26650 | DK18: 27935 | DL18: 27665 | DM18: 28166.99999 | DN18: 27708.66666 | DO18: 27250.33333 | DP18: 26333.66667 | DQ18: 25875.33334 | DR18: 25417.00001 | DS18: L | DT18: L | FI18: 1 | FJ18: 1 | FK18: 1 | FL18: 1 | FM18: 1 | FN18: 1 | FO18: 1 | FP18: 1 | FQ18: 1 | FR18: 1 | FS18: 1 | FT18: 1 | FU18: 1 | FV18: 1 | FW18: 1 | FX18: 1 | FY18: 1 | FZ18: 1 | GA18: 1 | GB18: 1 | GC18: 1 | GD18: 1 | GE18: 1 | GF18: 1 | GG18: 1 | GH18: 1 | GI18: 1 | GJ18: 1 | GK18: 1 | GL18: 1 | GM18: 1 | GN18: 1 | GO18: 1 | GP18: 1 | GQ18: 1 | GR18: 1 | GS18: 1 | GT18: 1 | GU18: 1 | GV18: 1 | GW18: 1 | GX18: 1 | GY18: 1 | GZ18: 1 | HA18: 1 | HB18: 1 | HC18: 1 | HD18: 1 | HE18: 1 | HF18: 1 | HG18: 1 | HH18: 1 | HI18: 1 | HJ18: 1 | HK18: 1 | HL18: 1 | HM18: 0 | HN18: 1 | HO18: 1 | HP18: 1 | HQ18: 1 | HR18: 1 | HS18: 1 | HT18: 1 | HU18: 1 | HV18: 1 | HW18: 1 | HX18: 1 | HY18: 1 | HZ18: 1 | IA18: 1 | IH18: 0 | II18: 0 | IJ18: 0 | IK18: 0 | IL18: 0 | IM18: 0 | IN18: 0 | IO18: 0 | IP18: 0 | IQ18: 0 | IR18: 0 | IS18: 0 | IT18: 0 | IU18: 0 | IV18: 0 | IW18: 0 | IX18: 0 | IY18: 0 | IZ18: 0 | JA18: 0 | JB18: 0 | JC18: 0 | JD18: 0 | JE18: 0 | JF18: 0 | JG18: 0 | JH18: 0 | JI18: 0 | JJ18: 0 | JK18: 0 | JL18: 0 | JM18: 0 | JN18: 0 | JO18: 0 | JP18: 0 | JQ18: 0 | JR18: 0 | JS18: 0 | JT18: 0 | JU18: 0 | JV18: 0 | JW18: 0 | JX18: 0 | JY18: 0 | JZ18: 0 | KA18: 0 | KB18: 0 | KC18: 0 | KD18: 0 | KE18: 0 | KF18: 0 | KG18: 0 | KH18: 0 | KI18: 0 | KJ18: 0 | KK18: 0 | KL18: 0 | KM18: 0 | KN18: 0 | KO18: 0 | KP18: 0 | KQ18: 0 | KR18: 0 | KS18: 0 | KT18: 0 | KU18: 0 | KV18: 0 | KW18: 0 | KX18: 0 | KY18: 0 | KZ18: 0 | LB18: 0 | LC18: 0 | LD18: 0 | MJ18: 2022-10-27
A19: 2022-10-26 | B19: 27450 | C19: 27590 | D19: 27400 | E19: 27440 | F19: 24657 | G19: 27450 | H19: 27460 | I19: 27400 | J19: 27410 | K19: 27410 | L19: 27490 | M19: 27400 | N19: 27470 | O19: 27470 | P19: 27520 | Q19: 27470 | R19: 27490 | S19: 27490 | T19: 27520 | U19: 27470 | V19: 27490 | W19: 27480 | X19: 27510 | Y19: 27450 | Z19: 27500 | AA19: 27490 | AB19: 27560 | AC19: 27490 | AD19: 27530 | AE19: 27540 | AF19: 27580 | AG19: 27540 | AH19: 27570 | AI19: 27570 | AJ19: 27590 | AK19: 27540 | AL19: 27580 | AM19: 27590 | AN19: 27590 | AO19: 27550 | AP19: 27570 | AQ19: 27570 | AR19: 27570 | AS19: 27520 | AT19: 27540 | AU19: 27540 | AV19: 27550 | AW19: 27520 | AX19: 27520 | AY19: 27530 | AZ19: 27550 | BA19: 27520 | BB19: 27520 | BC19: 27520 | BD19: 27530 | BE19: 27470 | BF19: 27480 | BG19: 27480 | BH19: 27480 | BI19: 27410 | BJ19: 27440 | BK19: 27590 | BL19: 27410 | BM19: =AVERAGE($E19:OFFSET($E19,0,0,BM$4,1)) -> 27112 | BN19: =AVERAGE($E19:OFFSET($E19,0,0,BN$4,1)) -> 26792 | BO19: =AVERAGE($E19:OFFSET($E19,0,0,BO$4,1)) -> 27488.13333 | BP19: =AVERAGE($E19:OFFSET($E19,0,0,BP$4,1)) -> 27310 | BQ19: =AVERAGE($E19:OFFSET($E19,0,0,BQ$4,1)) -> 27172.45 | BR19: -10 | BS19: 190 | BT19: 250 | BU19: 190 | BV19: H | BW19: H | BX19: 水 | BY19: 4 | BZ19: L | CA19: 26650 | CB19: 27120 | CC19: 28050 | CD19: 27610 | CE19: 27350 | CF19: S | CG19: L | CH19: 180 | CJ19: =SUM(CH19:OFFSET(CH19,0,0,CJ$4,1))/(SUM(CH19:OFFSET(CH19,0,0,CJ$4,1))+SUM(CI19:OFFSET(CI19,0,0,CJ$4,1)))*100 -> 62.06896552 | CK19: =SUM(CH19:OFFSET(CH19,0,0,CK$4,1))/(SUM(CH19:OFFSET(CH19,0,0,CK$4,1))+SUM(CI19:OFFSET(CI19,0,0,CK$4,1)))*100 -> 74.20634921 | CL19: 27743.33333 | CM19: 27666.66667 | CN19: 27553.33333 | CO19: 27476.66667 | CP19: 27363.33333 | CQ19: 27286.66667 | CR19: 27173.33333 | CS19: =BN19+3*STDEVP($E19:OFFSET($E19,0,0,BN$4,1)) -> 28168.70912 | CT19: =BN19+2*STDEVP($E19:OFFSET($E19,0,0,BN$4,1)) -> 27709.80608 | CU19: =BN19+STDEVP($E19:OFFSET($E19,0,0,BN$4,1)) -> 27250.90304 | CV19: =BN19-STDEVP($E19:OFFSET($E19,0,0,BN$4,1)) -> 26333.09696 | CW19: =BN19-2*STDEVP($E19:OFFSET($E19,0,0,BN$4,1)) -> 25874.19392 | CX19: =BN19-3*STDEVP($E19:OFFSET($E19,0,0,BN$4,1)) -> 25415.29088 | CY19: S1 | DA19: S1 | DB19: 83.33333333 | DC19: 0 | DD19: 27114 | DE19: 26792.4 | DF19: 27488.26667 | DG19: 27310.1 | DH19: 27172.5 | DI19: 27050 | DJ19: 26650 | DK19: 28050 | DL19: 27610 | DM19: 28166.81509 | DN19: 27707.34339 | DO19: 27247.8717 | DP19: 26328.9283 | DQ19: 25869.45661 | DR19: 25409.98491 | DS19: H | DT19: L | FI19: 1 | FJ19: 1 | FK19: 1 | FL19: 1 | FM19: 1 | FN19: 1 | FO19: 1 | FP19: 1 | FQ19: 1 | FR19: 1 | FS19: 1 | FT19: 1 | FU19: 1 | FV19: 1 | FW19: 1 | FX19: 1 | FY19: 1 | FZ19: 1 | GA19: 1 | GB19: 1 | GC19: 1 | GD19: 1 | GE19: 1 | GF19: 1 | GG19: 1 | GH19: 1 | GI19: 1 | GJ19: 1 | GK19: 1 | GL19: 1 | GM19: 1 | GN19: 1 | GO19: 1 | GP19: 1 | GQ19: 1 | GR19: 1 | GS19: 1 | GT19: 1 | GU19: 1 | GV19: 1 | GW19: 1 | GX19: 1 | GY19: 1 | GZ19: 1 | HA19: 1 | HB19: 1 | HC19: 1 | HD19: 1 | HE19: 1 | HF19: 1 | HG19: 1 | HH19: 1 | HI19: 1 | HJ19: 1 | HK19: 1 | HL19: 1 | HM19: 0 | HN19: 1 | HO19: 1 | HP19: 1 | HQ19: 1 | HR19: 1 | HS19: 1 | HT19: 1 | HU19: 1 | HV19: 1 | HW19: 1 | HX19: 1 | HY19: 1 | HZ19: 1 | IA19: 1 | IH19: 0 | II19: 0 | IJ19: 0 | IK19: 0 | IL19: 0 | IM19: 0 | IN19: 0 | IO19: 0 | IP19: 0 | IQ19: 0 | IR19: 0 | IS19: 0 | IT19: 0 | IU19: 0 | IV19: 0 | IW19: 0 | IX19: 0 | IY19: 0 | IZ19: 0 | JA19: 0 | JB19: 0 | JC19: 0 | JD19: 0 | JE19: 0 | JF19: 0 | JG19: 0 | JH19: 0 | JI19: 0 | JJ19: 0 | JK19: 0 | JL19: 0 | JM19: 0 | JN19: 0 | JO19: 0 | JP19: 0 | JQ19: 0 | JR19: 0 | JS19: 0 | JT19: 0 | JU19: 0 | JV19: 0 | JW19: 0 | JX19: 0 | JY19: 0 | JZ19: 0 | KA19: 0 | KB19: 0 | KC19: 0 | KD19: 0 | KE19: 0 | KF19: 0 | KG19: 0 | KH19: 0 | KI19: 0 | KJ19: 0 | KK19: 0 | KL19: 0 | KM19: 0 | KN19: 0 | KO19: 0 | KP19: 0 | KQ19: 0 | KR19: 0 | KS19: 0 | KT19: 0 | KU19: 0 | KV19: 0 | KW19: 0 | KX19: 0 | KY19: 0 | KZ19: 0 | LB19: 0 | LC19: 0 | LD19: 0 | MJ19: 2022-10-26
A20: 2022-10-25 | B20: 27170 | C20: 27330 | D20: 27080 | E20: 27260 | F20: 42856 | G20: 27170 | H20: 27190 | I20: 27150 | J20: 27160 | K20: 27170 | L20: 27170 | M20: 27080 | N20: 27150 | O20: 27150 | P20: 27170 | Q20: 27110 | R20: 27170 | S20: 27170 | T20: 27220 | U20: 27160 | V20: 27220 | W20: 27220 | X20: 27240 | Y20: 27100 | Z20: 27200 | AA20: 27210 | AB20: 27240 | AC20: 27140 | AD20: 27220 | AE20: 27220 | AF20: 27220 | AG20: 27170 | AH20: 27190 | AI20: 27190 | AJ20: 27220 | AK20: 27160 | AL20: 27220 | AM20: 27220 | AN20: 27320 | AO20: 27220 | AP20: 27310 | AQ20: 27300 | AR20: 27330 | AS20: 27290 | AT20: 27300 | AU20: 27310 | AV20: 27310 | AW20: 27270 | AX20: 27300 | AY20: 27300 | AZ20: 27310 | BA20: 27260 | BB20: 27280 | BC20: 27270 | BD20: 27280 | BE20: 27240 | BF20: 27270 | BG20: 27270 | BH20: 27290 | BI20: 27220 | BJ20: 27260 | BK20: 27330 | BL20: 27220 | BM20: =AVERAGE($E20:OFFSET($E20,0,0,BM$4,1)) -> 27070 | BN20: =AVERAGE($E20:OFFSET($E20,0,0,BN$4,1)) -> 26788.4 | BO20: =AVERAGE($E20:OFFSET($E20,0,0,BO$4,1)) -> 27468.93333 | BP20: =AVERAGE($E20:OFFSET($E20,0,0,BP$4,1)) -> 27310.6 | BQ20: =AVERAGE($E20:OFFSET($E20,0,0,BQ$4,1)) -> 27179.4 | BR20: 90 | BS20: 250 | BT20: 251 | BU20: 210 | BV20: I | BW20: I | BX20: 火 | BY20: 3 | BZ20: L | CA20: 26670 | CB20: 26800 | CC20: 28050 | CD20: 27575 | CE20: 27680 | CF20: S | CG20: L | CH20: 300 | CJ20: =SUM(CH20:OFFSET(CH20,0,0,CJ$4,1))/(SUM(CH20:OFFSET(CH20,0,0,CJ$4,1))+SUM(CI20:OFFSET(CI20,0,0,CJ$4,1)))*100 -> 54.79452055 | CK20: =SUM(CH20:OFFSET(CH20,0,0,CK$4,1))/(SUM(CH20:OFFSET(CH20,0,0,CK$4,1))+SUM(CI20:OFFSET(CI20,0,0,CK$4,1)))*100 -> 67.33067729 | CL20: 27616.66667 | CM20: 27473.33333 | CN20: 27366.66667 | CO20: 27223.33333 | CP20: 27116.66667 | CQ20: 26973.33333 | CR20: 26866.66667 | CS20: =BN20+3*STDEVP($E20:OFFSET($E20,0,0,BN$4,1)) -> 28150.80117 | CT20: =BN20+2*STDEVP($E20:OFFSET($E20,0,0,BN$4,1)) -> 27696.66745 | CU20: =BN20+STDEVP($E20:OFFSET($E20,0,0,BN$4,1)) -> 27242.53372 | CV20: =BN20-STDEVP($E20:OFFSET($E20,0,0,BN$4,1)) -> 26334.26628 | CW20: =BN20-2*STDEVP($E20:OFFSET($E20,0,0,BN$4,1)) -> 25880.13255 | CX20: =BN20-3*STDEVP($E20:OFFSET($E20,0,0,BN$4,1)) -> 25425.99883 | CY20: S0 | DA20: S0 | DB20: 90 | DC20: 0 | DD20: 27052 | DE20: 26784.8 | DF20: 27467.73333 | DG20: 27309.7 | DH20: 27178.95 | DI20: 26800 | DJ20: 26670 | DK20: 28050 | DL20: 27610 | DM20: 28157.37478 | DN20: 27706.64985 | DO20: 27255.92493 | DP20: 26354.47507 | DQ20: 25903.75015 | DR20: 25453.02522 | DS20: H | DT20: L | FI20: 1 | FJ20: 1 | FK20: 1 | FL20: 1 | FM20: 1 | FN20: 1 | FO20: 1 | FP20: 1 | FQ20: 1 | FR20: 1 | FS20: 1 | FT20: 1 | FU20: 1 | FV20: 1 | FW20: 1 | FX20: 1 | FY20: 1 | FZ20: 1 | GA20: 1 | GB20: 1 | GC20: 1 | GD20: 1 | GE20: 1 | GF20: 1 | GG20: 1 | GH20: 1 | GI20: 1 | GJ20: 1 | GK20: 1 | GL20: 1 | GM20: 1 | GN20: 1 | GO20: 1 | GP20: 1 | GQ20: 1 | GR20: 1 | GS20: 1 | GT20: 1 | GU20: 1 | GV20: 1 | GW20: 1 | GX20: 1 | GY20: 1 | GZ20: 1 | HA20: 1 | HB20: 1 | HC20: 1 | HD20: 1 | HE20: 1 | HF20: 1 | HG20: 1 | HH20: 1 | HI20: 1 | HJ20: 1 | HK20: 1 | HL20: 1 | HM20: 0 | HN20: 1 | HO20: 1 | HP20: 1 | HQ20: 1 | HR20: 1 | HS20: 1 | HT20: 1 | HU20: 1 | HV20: 1 | HW20: 1 | HX20: 1 | HY20: 1 | HZ20: 1 | IA20: 1 | IH20: 0 | II20: 0 | IJ20: 0 | IK20: 0 | IL20: 0 | IM20: 0 | IN20: 0 | IO20: 0 | IP20: 0 | IQ20: 0 | IR20: 0 | IS20: 0 | IT20: 0 | IU20: 0 | IV20: 0 | IW20: 0 | IX20: 0 | IY20: 0 | IZ20: 0 | JA20: 0 | JB20: 0 | JC20: 0 | JD20: 0 | JE20: 0 | JF20: 0 | JG20: 0 | JH20: 0 | JI20: 0 | JJ20: 0 | JK20: 0 | JL20: 0 | JM20: 0 | JN20: 0 | JO20: 0 | JP20: 0 | JQ20: 0 | JR20: 0 | JS20: 0 | JT20: 0 | JU20: 0 | JV20: 0 | JW20: 0 | JX20: 0 | JY20: 0 | JZ20: 0 | KA20: 0 | KB20: 0 | KC20: 0 | KD20: 0 | KE20: 0 | KF20: 0 | KG20: 0 | KH20: 0 | KI20: 0 | KJ20: 0 | KK20: 0 | KL20: 0 | KM20: 0 | KN20: 0 | KO20: 0 | KP20: 0 | KQ20: 0 | KR20: 0 | KS20: 0 | KT20: 0 | KU20: 0 | KV20: 0 | KW20: 0 | KX20: 0 | KY20: 0 | KZ20: 0 | LB20: 0 | LC20: 0 | LD20: 0 | MJ20: 2022-10-25
A21: 2022-10-24 | B21: 27290 | C21: 27310 | D21: 26970 | E21: 26960 | F21: 39579 | G21: 27290 | H21: 27300 | I21: 27230 | J21: 27230 | K21: 27230 | L21: 27300 | M21: 27190 | N21: 27250 | O21: 27250 | P21: 27260 | Q21: 27220 | R21: 27230 | S21: 27240 | T21: 27310 | U21: 27240 | V21: 27260 | W21: 27270 | X21: 27270 | Y21: 27130 | Z21: 27140 | AA21: 27140 | AB21: 27280 | AC21: 27130 | AD21: 27200 | AE21: 27210 | AF21: 27210 | AG21: 27110 | AH21: 27150 | AI21: 27150 | AJ21: 27160 | AK21: 27100 | AL21: 27100 | AM21: 27100 | AN21: 27100 | AO21: 27030 | AP21: 27050 | AQ21: 27050 | AR21: 27060 | AS21: 27010 | AT21: 27050 | AU21: 27050 | AV21: 27060 | AW21: 27000 | AX21: 27030 | AY21: 27040 | AZ21: 27080 | BA21: 27030 | BB21: 27070 | BC21: 27070 | BD21: 27080 | BE21: 27010 | BF21: 27030 | BG21: 27020 | BH21: 27040 | BI21: 26970 | BJ21: 26960 | BK21: 27100 | BL21: 26970 | BM21: =AVERAGE($E21:OFFSET($E21,0,0,BM$4,1)) -> 27056 | BN21: =AVERAGE($E21:OFFSET($E21,0,0,BN$4,1)) -> 26805.2 | BO21: =AVERAGE($E21:OFFSET($E21,0,0,BO$4,1)) -> 27456.66667 | BP21: =AVERAGE($E21:OFFSET($E21,0,0,BP$4,1)) -> 27310.6 | BQ21: =AVERAGE($E21:OFFSET($E21,0,0,BQ$4,1)) -> 27187.8 | BR21: -330 | BS21: 340 | BT21: 262 | BU21: 390 | BV21: H | BW21: I | BX21: 月 | BY21: 2 | BZ21: L | CA21: 26705 | CB21: 26800 | CC21: 28050 | CD21: 27520 | CE21: 27650 | CF21: S | CG21: L | CH21: 60 | CJ21: =SUM(CH21:OFFSET(CH21,0,0,CJ$4,1))/(SUM(CH21:OFFSET(CH21,0,0,CJ$4,1))+SUM(CI21:OFFSET(CI21,0,0,CJ$4,1)))*100 -> 62.92134831 | CK21: =SUM(CH21:OFFSET(CH21,0,0,CK$4,1))/(SUM(CH21:OFFSET(CH21,0,0,CK$4,1))+SUM(CI21:OFFSET(CI21,0,0,CK$4,1)))*100 -> 61.77777778 | CL21: 27530 | CM21: 27420 | CN21: 27190 | CO21: 27080 | CP21: 26850 | CQ21: 26740 | CR21: 26510 | CS21: =BN21+3*STDEVP($E21:OFFSET($E21,0,0,BN$4,1)) -> 28240.3699 | CT21: =BN21+2*STDEVP($E21:OFFSET($E21,0,0,BN$4,1)) -> 27761.97993 | CU21: =BN21+STDEVP($E21:OFFSET($E21,0,0,BN$4,1)) -> 27283.58997 | CV21: =BN21-STDEVP($E21:OFFSET($E21,0,0,BN$4,1)) -> 26326.81003 | CW21: =BN21-2*STDEVP($E21:OFFSET($E21,0,0,BN$4,1)) -> 25848.42007 | CX21: =BN21-3*STDEVP($E21:OFFSET($E21,0,0,BN$4,1)) -> 25370.0301 | CY21: S3 | DA21: S3 | DB21: 216.6666667 | DC21: 0 | DD21: 27122 | DE21: 26818.4 | DF21: 27461.06667 | DG21: 27313.9 | DH21: 27189.45 | DI21: 26800 | DJ21: 26705 | DK21: 28050 | DL21: 27575 | DM21: 28293.66583 | DN21: 27806.71055 | DO21: 27319.75528 | DP21: 26345.84472 | DQ21: 25858.88945 | DR21: 25371.93417 | DS21: H | DT21: L | FI21: 1 | FJ21: 1 | FK21: 1 | FL21: 1 | FM21: 1 | FN21: 1 | FO21: 1 | FP21: 1 | FQ21: 1 | FR21: 1 | FS21: 1 | FT21: 1 | FU21: 1 | FV21: 1 | FW21: 1 | FX21: 1 | FY21: 1 | FZ21: 1 | GA21: 1 | GB21: 1 | GC21: 1 | GD21: 1 | GE21: 1 | GF21: 1 | GG21: 1 | GH21: 1 | GI21: 1 | GJ21: 1 | GK21: 1 | GL21: 1 | GM21: 1 | GN21: 1 | GO21: 1 | GP21: 1 | GQ21: 1 | GR21: 1 | GS21: 1 | GT21: 1 | GU21: 1 | GV21: 1 | GW21: 1 | GX21: 1 | GY21: 1 | GZ21: 1 | HA21: 1 | HB21: 1 | HC21: 1 | HD21: 1 | HE21: 1 | HF21: 1 | HG21: 1 | HH21: 1 | HI21: 1 | HJ21: 1 | HK21: 1 | HL21: 1 | HM21: 0 | HN21: 1 | HO21: 1 | HP21: 1 | HQ21: 1 | HR21: 1 | HS21: 1 | HT21: 1 | HU21: 1 | HV21: 1 | HW21: 1 | HX21: 1 | HY21: 1 | HZ21: 1 | IA21: 1 | IH21: 0 | II21: 0 | IJ21: 0 | IK21: 0 | IL21: 0 | IM21: 0 | IN21: 0 | IO21: 0 | IP21: 0 | IQ21: 0 | IR21: 0 | IS21: 0 | IT21: 0 | IU21: 0 | IV21: 0 | IW21: 0 | IX21: 0 | IY21: 0 | IZ21: 0 | JA21: 0 | JB21: 0 | JC21: 0 | JD21: 0 | JE21: 0 | JF21: 0 | JG21: 0 | JH21: 0 | JI21: 0 | JJ21: 0 | JK21: 0 | JL21: 0 | JM21: 0 | JN21: 0 | JO21: 0 | JP21: 0 | JQ21: 0 | JR21: 0 | JS21: 0 | JT21: 0 | JU21: 0 | JV21: 0 | JW21: 0 | JX21: 0 | JY21: 0 | JZ21: 0 | KA21: 0 | KB21: 0 | KC21: 0 | KD21: 0 | KE21: 0 | KF21: 0 | KG21: 0 | KH21: 0 | KI21: 0 | KJ21: 0 | KK21: 0 | KL21: 0 | KM21: 0 | KN21: 0 | KO21: 0 | KP21: 0 | KQ21: 0 | KR21: 0 | KS21: 0 | KT21: 0 | KU21: 0 | KV21: 0 | KW21: 0 | KX21: 0 | KY21: 0 | KZ21: 0 | LB21: 0 | LC21: 0 | LD21: 0 | MJ21: 2022-10-24
A22: 2022-10-21 | B22: 26940 | C22: 26980 | D22: 26870 | E22: 26900 | F22: 22814 | G22: 26940 | H22: 26950 | I22: 26900 | J22: 26930 | K22: 26940 | L22: 26950 | M22: 26870 | N22: 26900 | O22: 26900 | P22: 26930 | Q22: 26880 | R22: 26910 | S22: 26900 | T22: 26980 | U22: 26870 | V22: 26960 | W22: 26950 | X22: 26950 | Y22: 26870 | Z22: 26890 | AA22: 26890 | AB22: 26960 | AC22: 26880 | AD22: 26930 | AE22: 26930 | AF22: 26960 | AG22: 26920 | AH22: 26940 | AI22: 26950 | AJ22: 26960 | AK22: 26930 | AL22: 26940 | AM22: 26940 | AN22: 26980 | AO22: 26940 | AP22: 26970 | AQ22: 26970 | AR22: 26970 | AS22: 26910 | AT22: 26930 | AU22: 26920 | AV22: 26930 | AW22: 26900 | AX22: 26920 | AY22: 26920 | AZ22: 26930 | BA22: 26900 | BB22: 26910 | BC22: 26910 | BD22: 26920 | BE22: 26880 | BF22: 26900 | BG22: 26890 | BH22: 26900 | BI22: 26870 | BJ22: 26900 | BK22: 26980 | BL22: 26870 | BM22: =AVERAGE($E22:OFFSET($E22,0,0,BM$4,1)) -> 27010 | BN22: =AVERAGE($E22:OFFSET($E22,0,0,BN$4,1)) -> 26832.8 | BO22: =AVERAGE($E22:OFFSET($E22,0,0,BO$4,1)) -> 27446.26667 | BP22: =AVERAGE($E22:OFFSET($E22,0,0,BP$4,1)) -> 27315 | BQ22: =AVERAGE($E22:OFFSET($E22,0,0,BQ$4,1)) -> 27196.25 | BR22: -40 | BS22: 110 | BT22: 256 | BU22: -60 | BV22: I | BW22: I | BX22: 金 | BY22: 6 | BZ22: N | CA22: 27030 | CB22: 26800 | CC22: 28050 | CD22: 27520 | CE22: 28400 | CF22: S | CG22: S | CI22: 100 | CJ22: =SUM(CH22:OFFSET(CH22,0,0,CJ$4,1))/(SUM(CH22:OFFSET(CH22,0,0,CJ$4,1))+SUM(CI22:OFFSET(CI22,0,0,CJ$4,1)))*100 -> 43.47826087 | CK22: =SUM(CH22:OFFSET(CH22,0,0,CK$4,1))/(SUM(CH22:OFFSET(CH22,0,0,CK$4,1))+SUM(CI22:OFFSET(CI22,0,0,CK$4,1)))*100 -> 46.5034965 | CL22: 27073.33333 | CM22: 27026.66667 | CN22: 26963.33333 | CO22: 26916.66667 | CP22: 26853.33333 | CQ22: 26806.66667 | CR22: 26743.33333 | CS22: =BN22+3*STDEVP($E22:OFFSET($E22,0,0,BN$4,1)) -> 28349.75664 | CT22: =BN22+2*STDEVP($E22:OFFSET($E22,0,0,BN$4,1)) -> 27844.10442 | CU22: =BN22+STDEVP($E22:OFFSET($E22,0,0,BN$4,1)) -> 27338.45221 | CV22: =BN22-STDEVP($E22:OFFSET($E22,0,0,BN$4,1)) -> 26327.14779 | CW22: =BN22-2*STDEVP($E22:OFFSET($E22,0,0,BN$4,1)) -> 25821.49558 | CX22: =BN22-3*STDEVP($E22:OFFSET($E22,0,0,BN$4,1)) -> 25315.84336 | CZ22: B3 | DA22: B3 | DB22: 0 | DC22: 63.33333333 | DD22: 27018 | DE22: 26834.4 | DF22: 27446.8 | DG22: 27315.4 | DH22: 27196.45 | DI22: 26800 | DJ22: 27030 | DK22: 28050 | DL22: 27520 | DM22: 28410.57658 | DN22: 27904.65106 | DO22: 27398.72553 | DP22: 26386.87447 | DQ22: 25880.94894 | DR22: 25375.02342 | DS22: I | DT22: L | FI22: 1 | FJ22: 1 | FK22: 1 | FL22: 1 | FM22: 1 | FN22: 1 | FO22: 1 | FP22: 1 | FQ22: 1 | FR22: 1 | FS22: 1 | FT22: 1 | FU22: 1 | FV22: 1 | FW22: 1 | FX22: 1 | FY22: 1 | FZ22: 1 | GA22: 1 | GB22: 1 | GC22: 1 | GD22: 1 | GE22: 1 | GF22: 1 | GG22: 1 | GH22: 1 | GI22: 1 | GJ22: 1 | GK22: 1 | GL22: 1 | GM22: 1 | GN22: 1 | GO22: 1 | GP22: 1 | GQ22: 1 | GR22: 1 | GS22: 1 | GT22: 1 | GU22: 1 | GV22: 1 | GW22: 1 | GX22: 1 | GY22: 1 | GZ22: 1 | HA22: 1 | HB22: 1 | HC22: 1 | HD22: 1 | HE22: 1 | HF22: 1 | HG22: 1 | HH22: 1 | HI22: 1 | HJ22: 1 | HK22: 1 | HL22: 1 | HM22: 0 | HN22: 1 | HO22: 1 | HP22: 1 | HQ22: 1 | HR22: 1 | HS22: 1 | HT22: 1 | HU22: 1 | HV22: 1 | HW22: 1 | HX22: 1 | HY22: 1 | HZ22: 1 | IA22: 1 | IH22: 0 | II22: 0 | IJ22: 0 | IK22: 0 | IL22: 0 | IM22: 0 | IN22: 0 | IO22: 0 | IP22: 0 | IQ22: 0 | IR22: 0 | IS22: 0 | IT22: 0 | IU22: 0 | IV22: 0 | IW22: 0 | IX22: 0 | IY22: 0 | IZ22: 0 | JA22: 0 | JB22: 0 | JC22: 0 | JD22: 0 | JE22: 0 | JF22: 0 | JG22: 0 | JH22: 0 | JI22: 0 | JJ22: 0 | JK22: 0 | JL22: 0 | JM22: 0 | JN22: 0 | JO22: 0 | JP22: 0 | JQ22: 0 | JR22: 0 | JS22: 0 | JT22: 0 | JU22: 0 | JV22: 0 | JW22: 0 | JX22: 0 | JY22: 0 | JZ22: 0 | KA22: 0 | KB22: 0 | KC22: 0 | KD22: 0 | KE22: 0 | KF22: 0 | KG22: 0 | KH22: 0 | KI22: 0 | KJ22: 0 | KK22: 0 | KL22: 0 | KM22: 0 | KN22: 0 | KO22: 0 | KP22: 0 | KQ22: 0 | KR22: 0 | KS22: 0 | KT22: 0 | KU22: 0 | KV22: 0 | KW22: 0 | KX22: 0 | KY22: 0 | KZ22: 0 | LB22: 0 | LC22: 0 | LD22: 0 | MJ22: 2022-10-21
A23: 2022-10-20 | B23: 26940 | C23: 27090 | D23: 26860 | E23: 27000 | F23: 27858 | G23: 26940 | H23: 26960 | I23: 26930 | J23: 26960 | K23: 26960 | L23: 27020 | M23: 26950 | N23: 27020 | O23: 27020 | P23: 27020 | Q23: 26970 | R23: 26990 | S23: 27000 | T23: 27010 | U23: 26900 | V23: 26940 | W23: 26940 | X23: 26950 | Y23: 26890 | Z23: 26930 | AA23: 26920 | AB23: 26930 | AC23: 26870 | AD23: 26900 | AE23: 26910 | AF23: 26940 | AG23: 26890 | AH23: 26940 | AI23: 26940 | AJ23: 27020 | AK23: 26940 | AL23: 27000 | AM23: 27000 | AN23: 27000 | AO23: 26920 | AP23: 26920 | AQ23: 26920 | AR23: 26920 | AS23: 26860 | AT23: 26890 | AU23: 26890 | AV23: 27040 | AW23: 26870 | AX23: 26930 | AY23: 26940 | AZ23: 26980 | BA23: 26900 | BB23: 26980 | BC23: 26980 | BD23: 27090 | BE23: 26960 | BF23: 27040 | BG23: 27040 | BH23: 27050 | BI23: 26980 | BJ23: 27000 | BK23: 27090 | BL23: 26860 | BM23: =AVERAGE($E23:OFFSET($E23,0,0,BM$4,1)) -> 27040 | BN23: =AVERAGE($E23:OFFSET($E23,0,0,BN$4,1)) -> 26892.8 | BO23: =AVERAGE($E23:OFFSET($E23,0,0,BO$4,1)) -> 27432 | BP23: =AVERAGE($E23:OFFSET($E23,0,0,BP$4,1)) -> 27314.1 | BQ23: =AVERAGE($E23:OFFSET($E23,0,0,BQ$4,1)) -> 27205.3 | BR23: 60 | BS23: 230 | BT23: 275 | BU23: -290 | BV23: L | BW23: L | BX23: 木 | BY23: 5 | BZ23: N | CA23: 27030 | CB23: 26800 | CC23: 28037.5 | CD23: 27520 | CE23: 28260 | CF23: S | CG23: S | CI23: 230 | CJ23: =SUM(CH23:OFFSET(CH23,0,0,CJ$4,1))/(SUM(CH23:OFFSET(CH23,0,0,CJ$4,1))+SUM(CI23:OFFSET(CI23,0,0,CJ$4,1)))*100 -> 70.74468085 | CK23: =SUM(CH23:OFFSET(CH23,0,0,CK$4,1))/(SUM(CH23:OFFSET(CH23,0,0,CK$4,1))+SUM(CI23:OFFSET(CI23,0,0,CK$4,1)))*100 -> 45.08474576 | CL23: 27336.66667 | CM23: 27213.33333 | CN23: 27106.66667 | CO23: 26983.33333 | CP23: 26876.66667 | CQ23: 26753.33333 | CR23: 26646.66667 | CS23: =BN23+3*STDEVP($E23:OFFSET($E23,0,0,BN$4,1)) -> 28667.99955 | CT23: =BN23+2*STDEVP($E23:OFFSET($E23,0,0,BN$4,1)) -> 28076.26637 | CU23: =BN23+STDEVP($E23:OFFSET($E23,0,0,BN$4,1)) -> 27484.53318 | CV23: =BN23-STDEVP($E23:OFFSET($E23,0,0,BN$4,1)) -> 26301.06682 | CW23: =BN23-2*STDEVP($E23:OFFSET($E23,0,0,BN$4,1)) -> 25709.33363 | CX23: =BN23-3*STDEVP($E23:OFFSET($E23,0,0,BN$4,1)) -> 25117.60045 | CZ23: B0 | DA23: B0 | DB23: 0 | DC23: -20 | DD23: 27028 | DE23: 26890.4 | DF23: 27431.2 | DG23: 27313.5 | DH23: 27205 | DI23: 26800 | DJ23: 27030 | DK23: 28050 | DL23: 27520 | DM23: 28717.44535 | DN23: 28126.03023 | DO23: 27534.61512 | DP23: 26351.78488 | DQ23: 25760.36977 | DR23: 25168.95465 | DS23: L | DT23: L | FI23: 1 | FJ23: 1 | FK23: 1 | FL23: 1 | FM23: 1 | FN23: 1 | FO23: 1 | FP23: 1 | FQ23: 1 | FR23: 1 | FS23: 1 | FT23: 1 | FU23: 1 | FV23: 1 | FW23: 1 | FX23: 1 | FY23: 1 | FZ23: 1 | GA23: 1 | GB23: 1 | GC23: 1 | GD23: 1 | GE23: 1 | GF23: 1 | GG23: 1 | GH23: 1 | GI23: 1 | GJ23: 1 | GK23: 1 | GL23: 1 | GM23: 1 | GN23: 1 | GO23: 1 | GP23: 1 | GQ23: 1 | GR23: 1 | GS23: 1 | GT23: 1 | GU23: 1 | GV23: 1 | GW23: 1 | GX23: 1 | GY23: 1 | GZ23: 1 | HA23: 1 | HB23: 1 | HC23: 1 | HD23: 1 | HE23: 1 | HF23: 1 | HG23: 1 | HH23: 1 | HI23: 1 | HJ23: 1 | HK23: 1 | HL23: 1 | HM23: 0 | HN23: 1 | HO23: 1 | HP23: 1 | HQ23: 1 | HR23: 1 | HS23: 1 | HT23: 1 | HU23: 1 | HV23: 1 | HW23: 1 | HX23: 1 | HY23: 1 | HZ23: 1 | IA23: 1 | IH23: 0 | II23: 0 | IJ23: 0 | IK23: 0 | IL23: 0 | IM23: 0 | IN23: 0 | IO23: 0 | IP23: 0 | IQ23: 0 | IR23: 0 | IS23: 0 | IT23: 0 | IU23: 0 | IV23: 0 | IW23: 0 | IX23: 0 | IY23: 0 | IZ23: 0 | JA23: 0 | JB23: 0 | JC23: 0 | JD23: 0 | JE23: 0 | JF23: 0 | JG23: 0 | JH23: 0 | JI23: 0 | JJ23: 0 | JK23: 0 | JL23: 0 | JM23: 0 | JN23: 0 | JO23: 0 | JP23: 0 | JQ23: 0 | JR23: 0 | JS23: 0 | JT23: 0 | JU23: 0 | JV23: 0 | JW23: 0 | JX23: 0 | JY23: 0 | JZ23: 0 | KA23: 0 | KB23: 0 | KC23: 0 | KD23: 0 | KE23: 0 | KF23: 0 | KG23: 0 | KH23: 0 | KI23: 0 | KJ23: 0 | KK23: 0 | KL23: 0 | KM23: 0 | KN23: 0 | KO23: 0 | KP23: 0 | KQ23: 0 | KR23: 0 | KS23: 0 | KT23: 0 | KU23: 0 | KV23: 0 | KW23: 0 | KX23: 0 | KY23: 0 | KZ23: 0 | LB23: 0 | LC23: 0 | LD23: 0 | MJ23: 2022-10-20
A24: 2022-10-19 | B24: 27210 | C24: 27370 | D24: 27180 | E24: 27230 | F24: 28197 | G24: 27210 | H24: 27260 | I24: 27190 | J24: 27220 | K24: 27220 | L24: 27290 | M24: 27200 | N24: 27220 | O24: 27210 | P24: 27260 | Q24: 27180 | R24: 27260 | S24: 27260 | T24: 27340 | U24: 27260 | V24: 27320 | W24: 27320 | X24: 27340 | Y24: 27220 | Z24: 27250 | AA24: 27250 | AB24: 27370 | AC24: 27250 | AD24: 27340 | AE24: 27350 | AF24: 27350 | AG24: 27320 | AH24: 27340 | AI24: 27340 | AJ24: 27350 | AK24: 27280 | AL24: 27320 | AM24: 27320 | AN24: 27320 | AO24: 27270 | AP24: 27300 | AQ24: 27300 | AR24: 27330 | AS24: 27280 | AT24: 27280 | AU24: 27290 | AV24: 27310 | AW24: 27280 | AX24: 27290 | AY24: 27280 | AZ24: 27320 | BA24: 27280 | BB24: 27300 | BC24: 27300 | BD24: 27320 | BE24: 27260 | BF24: 27270 | BG24: 27260 | BH24: 27280 | BI24: 27250 | BJ24: 27230 | BK24: 27330 | BL24: 27250 | BM24: =AVERAGE($E24:OFFSET($E24,0,0,BM$4,1)) -> 26884 | BN24: =AVERAGE($E24:OFFSET($E24,0,0,BN$4,1)) -> 26943.2 | BO24: =AVERAGE($E24:OFFSET($E24,0,0,BO$4,1)) -> 27422.8 | BP24: =AVERAGE($E24:OFFSET($E24,0,0,BP$4,1)) -> 27310.2 | BQ24: =AVERAGE($E24:OFFSET($E24,0,0,BQ$4,1)) -> 27213.85 | BR24: 20 | BS24: 190 | BT24: 270 | BU24: 20 | BV24: I | BW24: I | BX24: 水 | BY24: 4 | BZ24: N | CA24: 27030 | CB24: 26815 | CC24: 27992.5 | CD24: 27520 | CE24: 28000 | CF24: S | CG24: S | CH24: 40 | CJ24: =SUM(CH24:OFFSET(CH24,0,0,CJ$4,1))/(SUM(CH24:OFFSET(CH24,0,0,CJ$4,1))+SUM(CI24:OFFSET(CI24,0,0,CJ$4,1)))*100 -> 73.07692308 | CK24: =SUM(CH24:OFFSET(CH24,0,0,CK$4,1))/(SUM(CH24:OFFSET(CH24,0,0,CK$4,1))+SUM(CI24:OFFSET(CI24,0,0,CK$4,1)))*100 -> 52.55972696 | CL24: 27530 | CM24: 27450 | CN24: 27340 | CO24: 27260 | CP24: 27150 | CQ24: 27070 | CR24: 26960 | CS24: =BN24+3*STDEVP($E24:OFFSET($E24,0,0,BN$4,1)) -> 28891.85591 | CT24: =BN24+2*STDEVP($E24:OFFSET($E24,0,0,BN$4,1)) -> 28242.30394 | CU24: =BN24+STDEVP($E24:OFFSET($E24,0,0,BN$4,1)) -> 27592.75197 | CV24: =BN24-STDEVP($E24:OFFSET($E24,0,0,BN$4,1)) -> 26293.64803 | CW24: =BN24-2*STDEVP($E24:OFFSET($E24,0,0,BN$4,1)) -> 25644.09606 | CX24: =BN24-3*STDEVP($E24:OFFSET($E24,0,0,BN$4,1)) -> 24994.54409 | CY24: S0 | DA24: S0 | DB24: 86.66666667 | DC24: 0 | DD24: 26880 | DE24: 26942.4 | DF24: 27422.53333 | DG24: 27310 | DH24: 27213.75 | DI24: 26815 | DJ24: 27030 | DK24: 28037.5 | DL24: 27520 | DM24: 28921.63142 | DN24: 28272.42095 | DO24: 27623.21047 | DP24: 26324.78953 | DQ24: 25675.57905 | DR24: 25026.36858 | DS24: H | DT24: S | FI24: 1 | FJ24: 1 | FK24: 1 | FL24: 1 | FM24: 1 | FN24: 1 | FO24: 1 | FP24: 1 | FQ24: 1 | FR24: 1 | FS24: 1 | FT24: 1 | FU24: 1 | FV24: 1 | FW24: 1 | FX24: 1 | FY24: 1 | FZ24: 1 | GA24: 1 | GB24: 1 | GC24: 1 | GD24: 1 | GE24: 1 | GF24: 1 | GG24: 1 | GH24: 1 | GI24: 1 | GJ24: 1 | GK24: 1 | GL24: 1 | GM24: 1 | GN24: 1 | GO24: 1 | GP24: 1 | GQ24: 1 | GR24: 1 | GS24: 1 | GT24: 1 | GU24: 1 | GV24: 1 | GW24: 1 | GX24: 1 | GY24: 1 | GZ24: 1 | HA24: 1 | HB24: 1 | HC24: 1 | HD24: 1 | HE24: 1 | HF24: 1 | HG24: 1 | HH24: 1 | HI24: 1 | HJ24: 1 | HK24: 1 | HL24: 1 | HM24: 0 | HN24: 1 | HO24: 1 | HP24: 1 | HQ24: 1 | HR24: 1 | HS24: 1 | HT24: 1 | HU24: 1 | HV24: 1 | HW24: 1 | HX24: 1 | HY24: 1 | HZ24: 1 | IA24: 1 | IH24: 0 | II24: 0 | IJ24: 0 | IK24: 0 | IL24: 0 | IM24: 0 | IN24: 0 | IO24: 0 | IP24: 0 | IQ24: 0 | IR24: 0 | IS24: 0 | IT24: 0 | IU24: 0 | IV24: 0 | IW24: 0 | IX24: 0 | IY24: 0 | IZ24: 0 | JA24: 0 | JB24: 0 | JC24: 0 | JD24: 0 | JE24: 0 | JF24: 0 | JG24: 0 | JH24: 0 | JI24: 0 | JJ24: 0 | JK24: 0 | JL24: 0 | JM24: 0 | JN24: 0 | JO24: 0 | JP24: 0 | JQ24: 0 | JR24: 0 | JS24: 0 | JT24: 0 | JU24: 0 | JV24: 0 | JW24: 0 | JX24: 0 | JY24: 0 | JZ24: 0 | KA24: 0 | KB24: 0 | KC24: 0 | KD24: 0 | KE24: 0 | KF24: 0 | KG24: 0 | KH24: 0 | KI24: 0 | KJ24: 0 | KK24: 0 | KL24: 0 | KM24: 0 | KN24: 0 | KO24: 0 | KP24: 0 | KQ24: 0 | KR24: 0 | KS24: 0 | KT24: 0 | KU24: 0 | KV24: 0 | KW24: 0 | KX24: 0 | KY24: 0 | KZ24: 0 | LB24: 0 | LC24: 0 | LD24: 0 | MJ24: 2022-10-19
A25: 2022-10-18 | B25: 27210 | C25: 27270 | D25: 26910 | E25: 27190 | F25: 34954 | G25: 27210 | H25: 27230 | I25: 27190 | J25: 27230 | K25: 27220 | L25: 27270 | M25: 27140 | N25: 27160 | O25: 27160 | P25: 27180 | Q25: 27110 | R25: 27140 | S25: 27140 | T25: 27140 | U25: 27020 | V25: 27040 | W25: 27040 | X25: 27050 | Y25: 26940 | Z25: 26960 | AA25: 26960 | AB25: 26980 | AC25: 26910 | AD25: 26970 | AE25: 26970 | AF25: 26980 | AG25: 26940 | AH25: 26980 | AI25: 26980 | AJ25: 27010 | AK25: 26960 | AL25: 27000 | AM25: 27000 | AN25: 27030 | AO25: 27000 | AP25: 27020 | AQ25: 27020 | AR25: 27150 | AS25: 27010 | AT25: 27120 | AU25: 27130 | AV25: 27210 | AW25: 27130 | AX25: 27190 | AY25: 27190 | AZ25: 27210 | BA25: 27170 | BB25: 27180 | BC25: 27170 | BD25: 27200 | BE25: 27160 | BF25: 27180 | BG25: 27180 | BH25: 27190 | BI25: 27150 | BJ25: 27190 | BK25: 27210 | BL25: 27000 | BM25: =AVERAGE($E25:OFFSET($E25,0,0,BM$4,1)) -> 26716 | BN25: =AVERAGE($E25:OFFSET($E25,0,0,BN$4,1)) -> 26974 | BO25: =AVERAGE($E25:OFFSET($E25,0,0,BO$4,1)) -> 27415.46667 | BP25: =AVERAGE($E25:OFFSET($E25,0,0,BP$4,1)) -> 27304.7 | BQ25: =AVERAGE($E25:OFFSET($E25,0,0,BQ$4,1)) -> 27219.9 | BR25: -20 | BS25: 360 | BT25: 287 | BU25: 480 | BV25: H | BW25: H | BX25: 火 | BY25: 3 | BZ25: N | CA25: 27030 | CB25: 26815 | CC25: 27992.5 | CD25: 27520 | CE25: 28030 | CF25: S | CG25: S | CH25: 460 | CJ25: =SUM(CH25:OFFSET(CH25,0,0,CJ$4,1))/(SUM(CH25:OFFSET(CH25,0,0,CJ$4,1))+SUM(CI25:OFFSET(CI25,0,0,CJ$4,1)))*100 -> 70.87912088 | CK25: =SUM(CH25:OFFSET(CH25,0,0,CK$4,1))/(SUM(CH25:OFFSET(CH25,0,0,CK$4,1))+SUM(CI25:OFFSET(CI25,0,0,CK$4,1)))*100 -> 54.5751634 | CL25: 27696.66667 | CM25: 27483.33333 | CN25: 27336.66667 | CO25: 27123.33333 | CP25: 26976.66667 | CQ25: 26763.33333 | CR25: 26616.66667 | CS25: =BN25+3*STDEVP($E25:OFFSET($E25,0,0,BN$4,1)) -> 29013.89411 | CT25: =BN25+2*STDEVP($E25:OFFSET($E25,0,0,BN$4,1)) -> 28333.92941 | CU25: =BN25+STDEVP($E25:OFFSET($E25,0,0,BN$4,1)) -> 27653.9647 | CV25: =BN25-STDEVP($E25:OFFSET($E25,0,0,BN$4,1)) -> 26294.0353 | CW25: =BN25-2*STDEVP($E25:OFFSET($E25,0,0,BN$4,1)) -> 25614.07059 | CX25: =BN25-3*STDEVP($E25:OFFSET($E25,0,0,BN$4,1)) -> 24934.10589 | CY25: S3 | DA25: S3 | DB25: 223.3333333 | DC25: 0 | DD25: 26720 | DE25: 26974.8 | DF25: 27415.73333 | DG25: 27304.9 | DH25: 27220 | DI25: 26815 | DJ25: 27030 | DK25: 27992.5 | DL25: 27520 | DM25: 29048.29024 | DN25: 28368.06016 | DO25: 27687.83008 | DP25: 26327.36992 | DQ25: 25647.13984 | DR25: 24966.90976 | DS25: H | DT25: S | FI25: 1 | FJ25: 1 | FK25: 1 | FL25: 1 | FM25: 1 | FN25: 1 | FO25: 1 | FP25: 1 | FQ25: 1 | FR25: 1 | FS25: 1 | FT25: 1 | FU25: 1 | FV25: 1 | FW25: 1 | FX25: 1 | FY25: 1 | FZ25: 1 | GA25: 1 | GB25: 1 | GC25: 1 | GD25: 1 | GE25: 1 | GF25: 1 | GG25: 1 | GH25: 1 | GI25: 1 | GJ25: 1 | GK25: 1 | GL25: 1 | GM25: 1 | GN25: 1 | GO25: 1 | GP25: 1 | GQ25: 1 | GR25: 1 | GS25: 1 | GT25: 1 | GU25: 1 | GV25: 1 | GW25: 1 | GX25: 1 | GY25: 1 | GZ25: 1 | HA25: 1 | HB25: 1 | HC25: 1 | HD25: 1 | HE25: 1 | HF25: 1 | HG25: 1 | HH25: 1 | HI25: 1 | HJ25: 1 | HK25: 1 | HL25: 1 | HM25: 0 | HN25: 1 | HO25: 1 | HP25: 1 | HQ25: 1 | HR25: 1 | HS25: 1 | HT25: 1 | HU25: 1 | HV25: 1 | HW25: 1 | HX25: 1 | HY25: 1 | HZ25: 1 | IA25: 1 | IH25: 0 | II25: 0 | IJ25: 0 | IK25: 0 | IL25: 0 | IM25: 0 | IN25: 0 | IO25: 0 | IP25: 0 | IQ25: 0 | IR25: 0 | IS25: 0 | IT25: 0 | IU25: 0 | IV25: 0 | IW25: 0 | IX25: 0 | IY25: 0 | IZ25: 0 | JA25: 0 | JB25: 0 | JC25: 0 | JD25: 0 | JE25: 0 | JF25: 0 | JG25: 0 | JH25: 0 | JI25: 0 | JJ25: 0 | JK25: 0 | JL25: 0 | JM25: 0 | JN25: 0 | JO25: 0 | JP25: 0 | JQ25: 0 | JR25: 0 | JS25: 0 | JT25: 0 | JU25: 0 | JV25: 0 | JW25: 0 | JX25: 0 | JY25: 0 | JZ25: 0 | KA25: 0 | KB25: 0 | KC25: 0 | KD25: 0 | KE25: 0 | KF25: 0 | KG25: 0 | KH25: 0 | KI25: 0 | KJ25: 0 | KK25: 0 | KL25: 0 | KM25: 0 | KN25: 0 | KO25: 0 | KP25: 0 | KQ25: 0 | KR25: 0 | KS25: 0 | KT25: 0 | KU25: 0 | KV25: 0 | KW25: 0 | KX25: 0 | KY25: 0 | KZ25: 0 | LB25: 0 | LC25: 0 | LD25: 0 | MJ25: 2022-10-18
A26: 2022-10-17 | B26: 26700 | C26: 26820 | D26: 26650 | E26: 26730 | F26: 36054 | G26: 26700 | H26: 26770 | I26: 26690 | J26: 26750 | K26: 26750 | L26: 26820 | M26: 26710 | N26: 26710 | O26: 26710 | P26: 26710 | Q26: 26650 | R26: 26670 | S26: 26670 | T26: 26750 | U26: 26650 | V26: 26690 | W26: 26700 | X26: 26770 | Y26: 26670 | Z26: 26750 | AA26: 26740 | AB26: 26770 | AC26: 26680 | AD26: 26680 | AE26: 26680 | AF26: 26710 | AG26: 26670 | AH26: 26700 | AI26: 26710 | AJ26: 26770 | AK26: 26710 | AL26: 26740 | AM26: 26740 | AN26: 26770 | AO26: 26730 | AP26: 26760 | AQ26: 26760 | AR26: 26770 | AS26: 26710 | AT26: 26720 | AU26: 26720 | AV26: 26730 | AW26: 26690 | AX26: 26690 | AY26: 26690 | AZ26: 26740 | BA26: 26680 | BB26: 26720 | BC26: 26710 | BD26: 26760 | BE26: 26700 | BF26: 26750 | BG26: 26750 | BH26: 26790 | BI26: 26730 | BJ26: 26730 | BK26: 26790 | BL26: 26680 | BM26: =AVERAGE($E26:OFFSET($E26,0,0,BM$4,1)) -> 26564 | BN26: =AVERAGE($E26:OFFSET($E26,0,0,BN$4,1)) -> 27007.6 | BO26: =AVERAGE($E26:OFFSET($E26,0,0,BO$4,1)) -> 27413.86667 | BP26: =AVERAGE($E26:OFFSET($E26,0,0,BP$4,1)) -> 27300.2 | BQ26: =AVERAGE($E26:OFFSET($E26,0,0,BQ$4,1)) -> 27226.45 | BR26: 30 | BS26: 170 | BT26: 315 | BU26: -350 | BV26: L | BW26: I | BX26: 月 | BY26: 2 | BZ26: N | CA26: 27030 | CB26: 26815 | CC26: 28135 | CD26: 27520 | CE26: 27460 | CF26: S | CG26: S | CI26: 320 | CJ26: =SUM(CH26:OFFSET(CH26,0,0,CJ$4,1))/(SUM(CH26:OFFSET(CH26,0,0,CJ$4,1))+SUM(CI26:OFFSET(CI26,0,0,CJ$4,1)))*100 -> 40.88669951 | CK26: =SUM(CH26:OFFSET(CH26,0,0,CK$4,1))/(SUM(CH26:OFFSET(CH26,0,0,CK$4,1))+SUM(CI26:OFFSET(CI26,0,0,CK$4,1)))*100 -> 57.62195122 | CL26: 26986.66667 | CM26: 26903.33333 | CN26: 26816.66667 | CO26: 26733.33333 | CP26: 26646.66667 | CQ26: 26563.33333 | CR26: 26476.66667 | CS26: =BN26+3*STDEVP($E26:OFFSET($E26,0,0,BN$4,1)) -> 29137.30894 | CT26: =BN26+2*STDEVP($E26:OFFSET($E26,0,0,BN$4,1)) -> 28427.40596 | CU26: =BN26+STDEVP($E26:OFFSET($E26,0,0,BN$4,1)) -> 27717.50298 | CV26: =BN26-STDEVP($E26:OFFSET($E26,0,0,BN$4,1)) -> 26297.69702 | CW26: =BN26-2*STDEVP($E26:OFFSET($E26,0,0,BN$4,1)) -> 25587.79404 | CX26: =BN26-3*STDEVP($E26:OFFSET($E26,0,0,BN$4,1)) -> 24877.89106 | CZ26: B2 | DA26: B2 | DB26: 0 | DC26: 176.6666667 | DD26: 26558 | DE26: 27006.4 | DF26: 27413.46667 | DG26: 27299.9 | DH26: 27226.3 | DI26: 26815 | DJ26: 27030 | DK26: 27992.5 | DL26: 27520 | DM26: 29167.98919 | DN26: 28457.59279 | DO26: 27747.1964 | DP26: 26326.4036 | DQ26: 25616.00721 | DR26: 24905.61081 | DS26: L | DT26: S | FI26: 1 | FJ26: 1 | FK26: 1 | FL26: 1 | FM26: 1 | FN26: 1 | FO26: 1 | FP26: 1 | FQ26: 1 | FR26: 1 | FS26: 1 | FT26: 1 | FU26: 1 | FV26: 1 | FW26: 1 | FX26: 1 | FY26: 1 | FZ26: 1 | GA26: 1 | GB26: 1 | GC26: 1 | GD26: 1 | GE26: 1 | GF26: 1 | GG26: 1 | GH26: 1 | GI26: 1 | GJ26: 1 | GK26: 1 | GL26: 1 | GM26: 1 | GN26: 1 | GO26: 1 | GP26: 1 | GQ26: 1 | GR26: 1 | GS26: 1 | GT26: 1 | GU26: 1 | GV26: 1 | GW26: 1 | GX26: 1 | GY26: 1 | GZ26: 1 | HA26: 1 | HB26: 1 | HC26: 1 | HD26: 1 | HE26: 1 | HF26: 1 | HG26: 1 | HH26: 1 | HI26: 1 | HJ26: 1 | HK26: 1 | HL26: 1 | HM26: 0 | HN26: 1 | HO26: 1 | HP26: 1 | HQ26: 1 | HR26: 1 | HS26: 1 | HT26: 1 | HU26: 1 | HV26: 1 | HW26: 1 | HX26: 1 | HY26: 1 | HZ26: 1 | IA26: 1 | IH26: 0 | II26: 0 | IJ26: 0 | IK26: 0 | IL26: 0 | IM26: 0 | IN26: 0 | IO26: 0 | IP26: 0 | IQ26: 0 | IR26: 0 | IS26: 0 | IT26: 0 | IU26: 0 | IV26: 0 | IW26: 0 | IX26: 0 | IY26: 0 | IZ26: 0 | JA26: 0 | JB26: 0 | JC26: 0 | JD26: 0 | JE26: 0 | JF26: 0 | JG26: 0 | JH26: 0 | JI26: 0 | JJ26: 0 | JK26: 0 | JL26: 0 | JM26: 0 | JN26: 0 | JO26: 0 | JP26: 0 | JQ26: 0 | JR26: 0 | JS26: 0 | JT26: 0 | JU26: 0 | JV26: 0 | JW26: 0 | JX26: 0 | JY26: 0 | JZ26: 0 | KA26: 0 | KB26: 0 | KC26: 0 | KD26: 0 | KE26: 0 | KF26: 0 | KG26: 0 | KH26: 0 | KI26: 0 | KJ26: 0 | KK26: 0 | KL26: 0 | KM26: 0 | KN26: 0 | KO26: 0 | KP26: 0 | KQ26: 0 | KR26: 0 | KS26: 0 | KT26: 0 | KU26: 0 | KV26: 0 | KW26: 0 | KX26: 0 | KY26: 0 | KZ26: 0 | LB26: 0 | LC26: 0 | LD26: 0 | MJ26: 2022-10-17
A27: 2022-10-14 | B27: 26820 | C27: 27180 | D27: 26720 | E27: 27050 | F27: 46079 | G27: 26820 | H27: 26900 | I27: 26820 | J27: 26830 | K27: 26830 | L27: 26870 | M27: 26720 | N27: 26820 | O27: 26820 | P27: 26940 | Q27: 26800 | R27: 26940 | S27: 26940 | T27: 26980 | U27: 26900 | V27: 26940 | W27: 26940 | X27: 26980 | Y27: 26910 | Z27: 26960 | AA27: 26960 | AB27: 27100 | AC27: 26960 | AD27: 27080 | AE27: 27090 | AF27: 27150 | AG27: 27060 | AH27: 27130 | AI27: 27130 | AJ27: 27160 | AK27: 27100 | AL27: 27130 | AM27: 27140 | AN27: 27150 | AO27: 27120 | AP27: 27140 | AQ27: 27140 | AR27: 27180 | AS27: 27130 | AT27: 27160 | AU27: 27160 | AV27: 27160 | AW27: 27130 | AX27: 27130 | AY27: 27130 | AZ27: 27150 | BA27: 27080 | BB27: 27090 | BC27: 27090 | BD27: 27120 | BE27: 27080 | BF27: 27110 | BG27: 27100 | BH27: 27160 | BI27: 27100 | BJ27: 27050 | BK27: 27180 | BL27: 27080 | BM27: =AVERAGE($E27:OFFSET($E27,0,0,BM$4,1)) -> 26638 | BN27: =AVERAGE($E27:OFFSET($E27,0,0,BN$4,1)) -> 27036.8 | BO27: =AVERAGE($E27:OFFSET($E27,0,0,BO$4,1)) -> 27414.4 | BP27: =AVERAGE($E27:OFFSET($E27,0,0,BP$4,1)) -> 27303.4 | BQ27: =AVERAGE($E27:OFFSET($E27,0,0,BQ$4,1)) -> 27232.3 | BR27: 230 | BS27: 460 | BT27: 345 | BU27: 600 | BV27: H | BW27: H | BX27: 金 | BY27: 6 | BZ27: N | CA27: 27030 | CB27: 26505 | CC27: 28255 | CD27: 27520 | CE27: 27600 | CF27: S | CG27: S | CH27: 830 | CJ27: =SUM(CH27:OFFSET(CH27,0,0,CJ$4,1))/(SUM(CH27:OFFSET(CH27,0,0,CJ$4,1))+SUM(CI27:OFFSET(CI27,0,0,CJ$4,1)))*100 -> 43.68421053 | CK27: =SUM(CH27:OFFSET(CH27,0,0,CK$4,1))/(SUM(CH27:OFFSET(CH27,0,0,CK$4,1))+SUM(CI27:OFFSET(CI27,0,0,CK$4,1)))*100 -> 66.35220126 | CL27: 27706.66667 | CM27: 27443.33333 | CN27: 27246.66667 | CO27: 26983.33333 | CP27: 26786.66667 | CQ27: 26523.33333 | CR27: 26326.66667 | CS27: =BN27+3*STDEVP($E27:OFFSET($E27,0,0,BN$4,1)) -> 29175.47338 | CT27: =BN27+2*STDEVP($E27:OFFSET($E27,0,0,BN$4,1)) -> 28462.58226 | CU27: =BN27+STDEVP($E27:OFFSET($E27,0,0,BN$4,1)) -> 27749.69113 | CV27: =BN27-STDEVP($E27:OFFSET($E27,0,0,BN$4,1)) -> 26323.90887 | CW27: =BN27-2*STDEVP($E27:OFFSET($E27,0,0,BN$4,1)) -> 25611.01774 | CX27: =BN27-3*STDEVP($E27:OFFSET($E27,0,0,BN$4,1)) -> 24898.12662 | CY27: S3 | DA27: S3 | DB27: 263.3333333 | DC27: 0 | DD27: 26592 | DE27: 27027.6 | DF27: 27411.33333 | DG27: 27301.1 | DH27: 27231.15 | DI27: 26505 | DJ27: 27030 | DK27: 28135 | DL27: 27520 | DM27: 29201.23323 | DN27: 28487.08882 | DO27: 27772.94441 | DP27: 26344.65559 | DQ27: 25630.51118 | DR27: 24916.36677 | DS27: H | DT27: S | FI27: 1 | FJ27: 1 | FK27: 1 | FL27: 1 | FM27: 1 | FN27: 1 | FO27: 1 | FP27: 1 | FQ27: 1 | FR27: 1 | FS27: 1 | FT27: 1 | FU27: 1 | FV27: 1 | FW27: 1 | FX27: 1 | FY27: 1 | FZ27: 1 | GA27: 1 | GB27: 1 | GC27: 1 | GD27: 1 | GE27: 1 | GF27: 1 | GG27: 1 | GH27: 1 | GI27: 1 | GJ27: 1 | GK27: 1 | GL27: 1 | GM27: 1 | GN27: 1 | GO27: 1 | GP27: 1 | GQ27: 1 | GR27: 1 | GS27: 1 | GT27: 1 | GU27: 1 | GV27: 1 | GW27: 1 | GX27: 1 | GY27: 1 | GZ27: 1 | HA27: 1 | HB27: 1 | HC27: 1 | HD27: 1 | HE27: 1 | HF27: 1 | HG27: 1 | HH27: 1 | HI27: 1 | HJ27: 1 | HK27: 1 | HL27: 1 | HM27: 0 | HN27: 1 | HO27: 1 | HP27: 1 | HQ27: 1 | HR27: 1 | HS27: 1 | HT27: 1 | HU27: 1 | HV27: 1 | HW27: 1 | HX27: 1 | HY27: 1 | HZ27: 1 | IA27: 1 | IH27: 0 | II27: 0 | IJ27: 0 | IK27: 0 | IL27: 0 | IM27: 0 | IN27: 0 | IO27: 0 | IP27: 0 | IQ27: 0 | IR27: 0 | IS27: 0 | IT27: 0 | IU27: 0 | IV27: 0 | IW27: 0 | IX27: 0 | IY27: 0 | IZ27: 0 | JA27: 0 | JB27: 0 | JC27: 0 | JD27: 0 | JE27: 0 | JF27: 0 | JG27: 0 | JH27: 0 | JI27: 0 | JJ27: 0 | JK27: 0 | JL27: 0 | JM27: 0 | JN27: 0 | JO27: 0 | JP27: 0 | JQ27: 0 | JR27: 0 | JS27: 0 | JT27: 0 | JU27: 0 | JV27: 0 | JW27: 0 | JX27: 0 | JY27: 0 | JZ27: 0 | KA27: 0 | KB27: 0 | KC27: 0 | KD27: 0 | KE27: 0 | KF27: 0 | KG27: 0 | KH27: 0 | KI27: 0 | KJ27: 0 | KK27: 0 | KL27: 0 | KM27: 0 | KN27: 0 | KO27: 0 | KP27: 0 | KQ27: 0 | KR27: 0 | KS27: 0 | KT27: 0 | KU27: 0 | KV27: 0 | KW27: 0 | KX27: 0 | KY27: 0 | KZ27: 0 | LB27: 0 | LC27: 0 | LD27: 0 | MJ27: 2022-10-14
A28: 2022-10-13 | B28: 26400 | C28: 26430 | D28: 26230 | E28: 26220 | F28: 19998 | G28: 26400 | H28: 26430 | I28: 26400 | J28: 26400 | K28: 26400 | L28: 26410 | M28: 26350 | N28: 26360 | O28: 26360 | P28: 26370 | Q28: 26330 | R28: 26340 | S28: 26340 | T28: 26360 | U28: 26300 | V28: 26350 | W28: 26350 | X28: 26360 | Y28: 26260 | Z28: 26300 | AA28: 26290 | AB28: 26320 | AC28: 26240 | AD28: 26290 | AE28: 26290 | AF28: 26300 | AG28: 26230 | AH28: 26250 | AI28: 26250 | AJ28: 26270 | AK28: 26250 | AL28: 26260 | AM28: 26260 | AN28: 26280 | AO28: 26250 | AP28: 26270 | AQ28: 26270 | AR28: 26280 | AS28: 26250 | AT28: 26250 | AU28: 26250 | AV28: 26280 | AW28: 26250 | AX28: 26270 | AY28: 26270 | AZ28: 26280 | BA28: 26260 | BB28: 26260 | BC28: 26270 | BD28: 26270 | BE28: 26250 | BF28: 26260 | BG28: 26270 | BH28: 26300 | BI28: 26240 | BJ28: 26220 | BK28: 26300 | BL28: 26240 | BM28: =AVERAGE($E28:OFFSET($E28,0,0,BM$4,1)) -> 26686 | BN28: =AVERAGE($E28:OFFSET($E28,0,0,BN$4,1)) -> 27058.8 | BO28: =AVERAGE($E28:OFFSET($E28,0,0,BO$4,1)) -> 27406.8 | BP28: =AVERAGE($E28:OFFSET($E28,0,0,BP$4,1)) -> 27300.6 | BQ28: =AVERAGE($E28:OFFSET($E28,0,0,BQ$4,1)) -> 27239.65 | BR28: -180 | BS28: 200 | BT28: 324 | BU28: 10 | BV28: I | BW28: L | BX28: 木 | BY28: 5 | BZ28: S | CA28: 27030 | CB28: 26505 | CC28: 28255 | CD28: 27520 | CE28: 27640 | CF28: S | CG28: S | CI28: 170 | CJ28: =SUM(CH28:OFFSET(CH28,0,0,CJ$4,1))/(SUM(CH28:OFFSET(CH28,0,0,CJ$4,1))+SUM(CI28:OFFSET(CI28,0,0,CJ$4,1)))*100 -> 16.40625 | CK28: =SUM(CH28:OFFSET(CH28,0,0,CK$4,1))/(SUM(CH28:OFFSET(CH28,0,0,CK$4,1))+SUM(CI28:OFFSET(CI28,0,0,CK$4,1)))*100 -> 47.76119403 | CL28: 26556.66667 | CM28: 26493.33333 | CN28: 26356.66667 | CO28: 26293.33333 | CP28: 26156.66667 | CQ28: 26093.33333 | CR28: 25956.66667 | CS28: =BN28+3*STDEVP($E28:OFFSET($E28,0,0,BN$4,1)) -> 29222.98461 | CT28: =BN28+2*STDEVP($E28:OFFSET($E28,0,0,BN$4,1)) -> 28501.58974 | CU28: =BN28+STDEVP($E28:OFFSET($E28,0,0,BN$4,1)) -> 27780.19487 | CV28: =BN28-STDEVP($E28:OFFSET($E28,0,0,BN$4,1)) -> 26337.40513 | CW28: =BN28-2*STDEVP($E28:OFFSET($E28,0,0,BN$4,1)) -> 25616.01026 | CX28: =BN28-3*STDEVP($E28:OFFSET($E28,0,0,BN$4,1)) -> 24894.61539 | CY28: S0 | DA28: S0 | DB28: 3.333333333 | DC28: 0 | DD28: 26722 | DE28: 27066 | DF28: 27409.2 | DG28: 27302.4 | DH28: 27240.55 | DI28: 26505 | DJ28: 27030 | DK28: 28255 | DL28: 27520 | DM28: 29257.13777 | DN28: 28543.29184 | DO28: 27829.44592 | DP28: 26401.75408 | DQ28: 25687.90816 | DR28: 24974.06223 | DS28: L | DT28: S | FI28: 1 | FJ28: 1 | FK28: 1 | FL28: 1 | FM28: 1 | FN28: 1 | FO28: 1 | FP28: 1 | FQ28: 1 | FR28: 1 | FS28: 1 | FT28: 1 | FU28: 1 | FV28: 1 | FW28: 1 | FX28: 1 | FY28: 1 | FZ28: 1 | GA28: 1 | GB28: 1 | GC28: 1 | GD28: 1 | GE28: 1 | GF28: 1 | GG28: 1 | GH28: 1 | GI28: 1 | GJ28: 1 | GK28: 1 | GL28: 1 | GM28: 1 | GN28: 1 | GO28: 1 | GP28: 1 | GQ28: 1 | GR28: 1 | GS28: 1 | GT28: 1 | GU28: 1 | GV28: 1 | GW28: 1 | GX28: 1 | GY28: 1 | GZ28: 1 | HA28: 1 | HB28: 1 | HC28: 1 | HD28: 1 | HE28: 1 | HF28: 1 | HG28: 1 | HH28: 1 | HI28: 1 | HJ28: 1 | HK28: 1 | HL28: 1 | HM28: 0 | HN28: 1 | HO28: 1 | HP28: 1 | HQ28: 1 | HR28: 1 | HS28: 1 | HT28: 1 | HU28: 1 | HV28: 1 | HW28: 1 | HX28: 1 | HY28: 1 | HZ28: 1 | IA28: 1 | IH28: 0 | II28: 0 | IJ28: 0 | IK28: 0 | IL28: 0 | IM28: 0 | IN28: 0 | IO28: 0 | IP28: 0 | IQ28: 0 | IR28: 0 | IS28: 0 | IT28: 0 | IU28: 0 | IV28: 0 | IW28: 0 | IX28: 0 | IY28: 0 | IZ28: 0 | JA28: 0 | JB28: 0 | JC28: 0 | JD28: 0 | JE28: 0 | JF28: 0 | JG28: 0 | JH28: 0 | JI28: 0 | JJ28: 0 | JK28: 0 | JL28: 0 | JM28: 0 | JN28: 0 | JO28: 0 | JP28: 0 | JQ28: 0 | JR28: 0 | JS28: 0 | JT28: 0 | JU28: 0 | JV28: 0 | JW28: 0 | JX28: 0 | JY28: 0 | JZ28: 0 | KA28: 0 | KB28: 0 | KC28: 0 | KD28: 0 | KE28: 0 | KF28: 0 | KG28: 0 | KH28: 0 | KI28: 0 | KJ28: 0 | KK28: 0 | KL28: 0 | KM28: 0 | KN28: 0 | KO28: 0 | KP28: 0 | KQ28: 0 | KR28: 0 | KS28: 0 | KT28: 0 | KU28: 0 | KV28: 0 | KW28: 0 | KX28: 0 | KY28: 0 | KZ28: 0 | LB28: 0 | LC28: 0 | LD28: 0 | MJ28: 2022-10-13
A29: 2022-10-12 | B29: 26350 | C29: 26500 | D29: 26300 | E29: 26390 | F29: 29119 | G29: 26350 | H29: 26380 | I29: 26340 | J29: 26350 | K29: 26350 | L29: 26420 | M29: 26300 | N29: 26320 | O29: 26330 | P29: 26400 | Q29: 26330 | R29: 26350 | S29: 26340 | T29: 26460 | U29: 26330 | V29: 26460 | W29: 26460 | X29: 26500 | Y29: 26410 | Z29: 26420 | AA29: 26420 | AB29: 26420 | AC29: 26330 | AD29: 26390 | AE29: 26390 | AF29: 26400 | AG29: 26330 | AH29: 26350 | AI29: 26350 | AJ29: 26410 | AK29: 26350 | AL29: 26410 | AM29: 26410 | AN29: 26420 | AO29: 26370 | AP29: 26390 | AQ29: 26390 | AR29: 26390 | AS29: 26330 | AT29: 26350 | AU29: 26350 | AV29: 26440 | AW29: 26340 | AX29: 26430 | AY29: 26430 | AZ29: 26430 | BA29: 26380 | BB29: 26410 | BC29: 26410 | BD29: 26410 | BE29: 26370 | BF29: 26380 | BG29: 26380 | BH29: 26420 | BI29: 26350 | BJ29: 26390 | BK29: 26440 | BL29: 26330 | BM29: =AVERAGE($E29:OFFSET($E29,0,0,BM$4,1)) -> 26858 | BN29: =AVERAGE($E29:OFFSET($E29,0,0,BN$4,1)) -> 27115.6 | BO29: =AVERAGE($E29:OFFSET($E29,0,0,BO$4,1)) -> 27405.46667 | BP29: =AVERAGE($E29:OFFSET($E29,0,0,BP$4,1)) -> 27302.1 | BQ29: =AVERAGE($E29:OFFSET($E29,0,0,BQ$4,1)) -> 27253.55 | BR29: 40 | BS29: 200 | BT29: 366 | BU29: -80 | BV29: L | BW29: I | BX29: 水 | BY29: 4 | BZ29: N | CA29: 27030 | CB29: 26505 | CC29: 28277.5 | CD29: 27520 | CE29: 27660 | CF29: S | CG29: S | CI29: 40 | CJ29: =SUM(CH29:OFFSET(CH29,0,0,CJ$4,1))/(SUM(CH29:OFFSET(CH29,0,0,CJ$4,1))+SUM(CI29:OFFSET(CI29,0,0,CJ$4,1)))*100 -> 29.6875 | CK29: =SUM(CH29:OFFSET(CH29,0,0,CK$4,1))/(SUM(CH29:OFFSET(CH29,0,0,CK$4,1))+SUM(CI29:OFFSET(CI29,0,0,CK$4,1)))*100 -> 58.02047782 | CL29: 26693.33333 | CM29: 26596.66667 | CN29: 26493.33333 | CO29: 26396.66667 | CP29: 26293.33333 | CQ29: 26196.66667 | CR29: 26093.33333 | CS29: =BN29+3*STDEVP($E29:OFFSET($E29,0,0,BN$4,1)) -> 29242.32842 | CT29: =BN29+2*STDEVP($E29:OFFSET($E29,0,0,BN$4,1)) -> 28533.41894 | CU29: =BN29+STDEVP($E29:OFFSET($E29,0,0,BN$4,1)) -> 27824.50947 | CV29: =BN29-STDEVP($E29:OFFSET($E29,0,0,BN$4,1)) -> 26406.69053 | CW29: =BN29-2*STDEVP($E29:OFFSET($E29,0,0,BN$4,1)) -> 25697.78106 | CX29: =BN29-3*STDEVP($E29:OFFSET($E29,0,0,BN$4,1)) -> 24988.87158 | CZ29: B3 | DA29: B3 | DB29: 0 | DC29: 63.33333333 | DD29: 26850 | DE29: 27114 | DF29: 27404.93333 | DG29: 27301.7 | DH29: 27253.35 | DI29: 26505 | DJ29: 27030 | DK29: 28255 | DL29: 27520 | DM29: 29298.16547 | DN29: 28587.57698 | DO29: 27876.98849 | DP29: 26455.81151 | DQ29: 25745.22302 | DR29: 25034.63453 | DS29: L | DT29: S | FI29: 1 | FJ29: 1 | FK29: 1 | FL29: 1 | FM29: 1 | FN29: 1 | FO29: 1 | FP29: 1 | FQ29: 1 | FR29: 1 | FS29: 1 | FT29: 1 | FU29: 1 | FV29: 1 | FW29: 1 | FX29: 1 | FY29: 1 | FZ29: 1 | GA29: 1 | GB29: 1 | GC29: 1 | GD29: 1 | GE29: 1 | GF29: 1 | GG29: 1 | GH29: 1 | GI29: 1 | GJ29: 1 | GK29: 1 | GL29: 1 | GM29: 1 | GN29: 1 | GO29: 1 | GP29: 1 | GQ29: 1 | GR29: 1 | GS29: 1 | GT29: 1 | GU29: 1 | GV29: 1 | GW29: 1 | GX29: 1 | GY29: 1 | GZ29: 1 | HA29: 1 | HB29: 1 | HC29: 1 | HD29: 1 | HE29: 1 | HF29: 1 | HG29: 1 | HH29: 1 | HI29: 1 | HJ29: 1 | HK29: 1 | HL29: 1 | HM29: 0 | HN29: 1 | HO29: 1 | HP29: 1 | HQ29: 1 | HR29: 1 | HS29: 1 | HT29: 1 | HU29: 1 | HV29: 1 | HW29: 1 | HX29: 1 | HY29: 1 | HZ29: 1 | IA29: 1 | IH29: 0 | II29: 0 | IJ29: 0 | IK29: 0 | IL29: 0 | IM29: 0 | IN29: 0 | IO29: 0 | IP29: 0 | IQ29: 0 | IR29: 0 | IS29: 0 | IT29: 0 | IU29: 0 | IV29: 0 | IW29: 0 | IX29: 0 | IY29: 0 | IZ29: 0 | JA29: 0 | JB29: 0 | JC29: 0 | JD29: 0 | JE29: 0 | JF29: 0 | JG29: 0 | JH29: 0 | JI29: 0 | JJ29: 0 | JK29: 0 | JL29: 0 | JM29: 0 | JN29: 0 | JO29: 0 | JP29: 0 | JQ29: 0 | JR29: 0 | JS29: 0 | JT29: 0 | JU29: 0 | JV29: 0 | JW29: 0 | JX29: 0 | JY29: 0 | JZ29: 0 | KA29: 0 | KB29: 0 | KC29: 0 | KD29: 0 | KE29: 0 | KF29: 0 | KG29: 0 | KH29: 0 | KI29: 0 | KJ29: 0 | KK29: 0 | KL29: 0 | KM29: 0 | KN29: 0 | KO29: 0 | KP29: 0 | KQ29: 0 | KR29: 0 | KS29: 0 | KT29: 0 | KU29: 0 | KV29: 0 | KW29: 0 | KX29: 0 | KY29: 0 | KZ29: 0 | LB29: 0 | LC29: 0 | LD29: 0 | MJ29: 2022-10-12
A30: 2022-10-11 | B30: 26700 | C30: 26720 | D30: 26360 | E30: 26430 | F30: 36527 | G30: 26700 | H30: 26720 | I30: 26670 | J30: 26670 | K30: 26670 | L30: 26670 | M30: 26540 | N30: 26550 | O30: 26550 | P30: 26590 | Q30: 26530 | R30: 26580 | S30: 26570 | T30: 26690 | U30: 26570 | V30: 26660 | W30: 26660 | X30: 26690 | Y30: 26640 | Z30: 26650 | AA30: 26650 | AB30: 26690 | AC30: 26480 | AD30: 26510 | AE30: 26510 | AF30: 26530 | AG30: 26430 | AH30: 26480 | AI30: 26470 | AJ30: 26490 | AK30: 26440 | AL30: 26450 | AM30: 26440 | AN30: 26480 | AO30: 26420 | AP30: 26470 | AQ30: 26460 | AR30: 26480 | AS30: 26380 | AT30: 26390 | AU30: 26390 | AV30: 26420 | AW30: 26370 | AX30: 26380 | AY30: 26380 | AZ30: 26400 | BA30: 26370 | BB30: 26390 | BC30: 26390 | BD30: 26400 | BE30: 26360 | BF30: 26380 | BG30: 26380 | BH30: 26440 | BI30: 26370 | BJ30: 26430 | BK30: 26480 | BL30: 26360 | BM30: =AVERAGE($E30:OFFSET($E30,0,0,BM$4,1)) -> 26962 | BN30: =AVERAGE($E30:OFFSET($E30,0,0,BN$4,1)) -> 27166.4 | BO30: =AVERAGE($E30:OFFSET($E30,0,0,BO$4,1)) -> 27401.6 | BP30: =AVERAGE($E30:OFFSET($E30,0,0,BP$4,1)) -> 27306.8 | BQ30: =AVERAGE($E30:OFFSET($E30,0,0,BQ$4,1)) -> 27263.95 | BR30: -270 | BS30: 360 | BT30: 362 | BU30: -400 | BV30: L | BW30: L | BX30: 火 | BY30: 3 | BZ30: N | CA30: 27030 | CB30: 26505 | CC30: 28282.5 | CD30: 27340 | CE30: 27630 | CF30: S | CG30: S | CI30: 670 | CJ30: =SUM(CH30:OFFSET(CH30,0,0,CJ$4,1))/(SUM(CH30:OFFSET(CH30,0,0,CJ$4,1))+SUM(CI30:OFFSET(CI30,0,0,CJ$4,1)))*100 -> 55.20833333 | CK30: =SUM(CH30:OFFSET(CH30,0,0,CK$4,1))/(SUM(CH30:OFFSET(CH30,0,0,CK$4,1))+SUM(CI30:OFFSET(CI30,0,0,CK$4,1)))*100 -> 51.67173252 | CL30: 27006.66667 | CM30: 26863.33333 | CN30: 26646.66667 | CO30: 26503.33333 | CP30: 26286.66667 | CQ30: 26143.33333 | CR30: 25926.66667 | CS30: =BN30+3*STDEVP($E30:OFFSET($E30,0,0,BN$4,1)) -> 29268.04301 | CT30: =BN30+2*STDEVP($E30:OFFSET($E30,0,0,BN$4,1)) -> 28567.49534 | CU30: =BN30+STDEVP($E30:OFFSET($E30,0,0,BN$4,1)) -> 27866.94767 | CV30: =BN30-STDEVP($E30:OFFSET($E30,0,0,BN$4,1)) -> 26465.85233 | CW30: =BN30-2*STDEVP($E30:OFFSET($E30,0,0,BN$4,1)) -> 25765.30466 | CX30: =BN30-3*STDEVP($E30:OFFSET($E30,0,0,BN$4,1)) -> 25064.75699 | CZ30: B1 | DA30: B1 | DB30: 0 | DC30: 36.66666667 | DD30: 27016 | DE30: 27177.2 | DF30: 27405.2 | DG30: 27309.5 | DH30: 27265.3 | DI30: 26505 | DJ30: 27030 | DK30: 28277.5 | DL30: 27520 | DM30: 29287.78888 | DN30: 28596.65925 | DO30: 27905.52963 | DP30: 26523.27037 | DQ30: 25832.14075 | DR30: 25141.01112 | DS30: L | DT30: S | FI30: 1 | FJ30: 1 | FK30: 1 | FL30: 1 | FM30: 1 | FN30: 1 | FO30: 1 | FP30: 1 | FQ30: 1 | FR30: 1 | FS30: 1 | FT30: 1 | FU30: 1 | FV30: 1 | FW30: 1 | FX30: 1 | FY30: 1 | FZ30: 1 | GA30: 1 | GB30: 1 | GC30: 1 | GD30: 1 | GE30: 1 | GF30: 1 | GG30: 1 | GH30: 1 | GI30: 1 | GJ30: 1 | GK30: 1 | GL30: 1 | GM30: 1 | GN30: 1 | GO30: 1 | GP30: 1 | GQ30: 1 | GR30: 1 | GS30: 1 | GT30: 1 | GU30: 1 | GV30: 1 | GW30: 1 | GX30: 1 | GY30: 1 | GZ30: 1 | HA30: 1 | HB30: 1 | HC30: 1 | HD30: 1 | HE30: 1 | HF30: 1 | HG30: 1 | HH30: 1 | HI30: 1 | HJ30: 1 | HK30: 1 | HL30: 1 | HM30: 0 | HN30: 1 | HO30: 1 | HP30: 1 | HQ30: 1 | HR30: 1 | HS30: 1 | HT30: 1 | HU30: 1 | HV30: 1 | HW30: 1 | HX30: 1 | HY30: 1 | HZ30: 1 | IA30: 1 | IH30: 0 | II30: 0 | IJ30: 0 | IK30: 0 | IL30: 0 | IM30: 0 | IN30: 0 | IO30: 0 | IP30: 0 | IQ30: 0 | IR30: 0 | IS30: 0 | IT30: 0 | IU30: 0 | IV30: 0 | IW30: 0 | IX30: 0 | IY30: 0 | IZ30: 0 | JA30: 0 | JB30: 0 | JC30: 0 | JD30: 0 | JE30: 0 | JF30: 0 | JG30: 0 | JH30: 0 | JI30: 0 | JJ30: 0 | JK30: 0 | JL30: 0 | JM30: 0 | JN30: 0 | JO30: 0 | JP30: =IF($IB30="OK",IF(MIN($M30,$Q30,$U30,$Y30)<($B30-JP$1),JP$2*JP$1,0),0) -> 0 | JQ30: 0 | JR30: 0 | JS30: 0 | JT30: 0 | JU30: 0 | JV30: 0 | JW30: 0 | JX30: 0 | JY30: 0 | JZ30: 0 | KA30: 0 | KB30: 0 | KC30: 0 | KD30: 0 | KE30: 0 | KF30: 0 | KG30: 0 | KH30: 0 | KI30: 0 | KJ30: 0 | KK30: 0 | KL30: 0 | KM30: 0 | KN30: 0 | KO30: 0 | KP30: 0 | KQ30: 0 | KR30: 0 | KS30: 0 | KT30: 0 | KU30: 0 | KV30: 0 | KW30: 0 | KX30: 0 | KY30: 0 | KZ30: 0 | LB30: 0 | LC30: 0 | LD30: 0 | MJ30: 2022-10-11
A31: 2022-10-07 | B31: 26960 | C31: 27190 | D31: 26910 | E31: 27100 | F31: 27180 | G31: 26960 | H31: 26980 | I31: 26920 | J31: 26920 | K31: 26920 | L31: 27010 | M31: 26910 | N31: 26960 | O31: 26960 | P31: 27030 | Q31: 26950 | R31: 27020 | S31: 27030 | T31: 27090 | U31: 27020 | V31: 27070 | W31: 27070 | X31: 27120 | Y31: 27030 | Z31: 27120 | AA31: 27120 | AB31: 27180 | AC31: 27100 | AD31: 27170 | AE31: 27180 | AF31: 27190 | AG31: 27130 | AH31: 27140 | AI31: 27130 | AJ31: 27150 | AK31: 27110 | AL31: 27130 | AM31: 27130 | AN31: 27140 | AO31: 27110 | AP31: 27110 | AQ31: 27110 | AR31: 27120 | AS31: 27080 | AT31: 27110 | AU31: 27110 | AV31: 27140 | AW31: 27110 | AX31: 27140 | AY31: 27130 | AZ31: 27130 | BA31: 27080 | BB31: 27090 | BC31: 27090 | BD31: 27120 | BE31: 27080 | BF31: 27110 | BG31: 27110 | BH31: 27130 | BI31: 27090 | BJ31: 27100 | BK31: 27140 | BL31: 27080 | BM31: =AVERAGE($E31:OFFSET($E31,0,0,BM$4,1)) -> 26922 | BN31: =AVERAGE($E31:OFFSET($E31,0,0,BN$4,1)) -> 27214.4 | BO31: =AVERAGE($E31:OFFSET($E31,0,0,BO$4,1)) -> 27398.93333 | BP31: =AVERAGE($E31:OFFSET($E31,0,0,BP$4,1)) -> 27308.8 | BQ31: =AVERAGE($E31:OFFSET($E31,0,0,BQ$4,1)) -> 27273.5 | BR31: 140 | BS31: 280 | BT31: 358 | BU31: -330 | BV31: L | BW31: I | BX31: 金 | BY31: 6 | BZ31: N | CA31: 27030 | CB31: 26505 | CC31: 28405 | CD31: 27340 | CE31: 28120 | CF31: S | CG31: S | CI31: 190 | CJ31: =SUM(CH31:OFFSET(CH31,0,0,CJ$4,1))/(SUM(CH31:OFFSET(CH31,0,0,CJ$4,1))+SUM(CI31:OFFSET(CI31,0,0,CJ$4,1)))*100 -> 87.07482993 | CK31: =SUM(CH31:OFFSET(CH31,0,0,CK$4,1))/(SUM(CH31:OFFSET(CH31,0,0,CK$4,1))+SUM(CI31:OFFSET(CI31,0,0,CK$4,1)))*100 -> 66.42335766 | CL31: 27503.33333 | CM31: 27346.66667 | CN31: 27223.33333 | CO31: 27066.66667 | CP31: 26943.33333 | CQ31: 26786.66667 | CR31: 26663.33333 | CS31: =BN31+3*STDEVP($E31:OFFSET($E31,0,0,BN$4,1)) -> 29282.80948 | CT31: =BN31+2*STDEVP($E31:OFFSET($E31,0,0,BN$4,1)) -> 28593.33965 | CU31: =BN31+STDEVP($E31:OFFSET($E31,0,0,BN$4,1)) -> 27903.86983 | CV31: =BN31-STDEVP($E31:OFFSET($E31,0,0,BN$4,1)) -> 26524.93017 | CW31: =BN31-2*STDEVP($E31:OFFSET($E31,0,0,BN$4,1)) -> 25835.46035 | CX31: =BN31-3*STDEVP($E31:OFFSET($E31,0,0,BN$4,1)) -> 25145.99052 | CZ31: B1 | DA31: B1 | DB31: 0 | DC31: 133.3333333 | DD31: 26894 | DE31: 27208.8 | DF31: 27397.06667 | DG31: 27307.4 | DH31: 27272.8 | DI31: 26505 | DJ31: 27030 | DK31: 28282.5 | DL31: 27340 | DM31: 29328.02972 | DN31: 28637.08648 | DO31: 27946.14324 | DP31: 26564.25676 | DQ31: 25873.31352 | DR31: 25182.37028 | DS31: L | DT31: S | FI31: 1 | FJ31: 1 | FK31: 1 | FL31: 1 | FM31: 1 | FN31: 1 | FO31: 1 | FP31: 1 | FQ31: 1 | FR31: 1 | FS31: 1 | FT31: 1 | FU31: 1 | FV31: 1 | FW31: 1 | FX31: 1 | FY31: 1 | FZ31: 1 | GA31: 1 | GB31: 1 | GC31: 1 | GD31: 1 | GE31: 1 | GF31: 1 | GG31: 1 | GH31: 1 | GI31: 1 | GJ31: 1 | GK31: 1 | GL31: 1 | GM31: 1 | GN31: 1 | GO31: 1 | GP31: 1 | GQ31: 1 | GR31: 1 | GS31: 1 | GT31: 1 | GU31: 1 | GV31: 1 | GW31: 1 | GX31: 1 | GY31: 1 | GZ31: 1 | HA31: 1 | HB31: 1 | HC31: 1 | HD31: 1 | HE31: 1 | HF31: 1 | HG31: 1 | HH31: 1 | HI31: 1 | HJ31: 1 | HK31: 1 | HL31: 1 | HM31: 0 | HN31: 1 | HO31: 1 | HP31: 1 | HQ31: 1 | HR31: 1 | HS31: 1 | HT31: 1 | HU31: 1 | HV31: 1 | HW31: 1 | HX31: 1 | HY31: 1 | HZ31: 1 | IA31: 1 | IH31: 0 | II31: 0 | IJ31: 0 | IK31: 0 | IL31: 0 | IM31: 0 | IN31: 0 | IO31: 0 | IP31: 0 | IQ31: 0 | IR31: 0 | IS31: 0 | IT31: 0 | IU31: 0 | IV31: 0 | IW31: 0 | IX31: 0 | IY31: 0 | IZ31: 0 | JA31: 0 | JB31: 0 | JC31: 0 | JD31: 0 | JE31: 0 | JF31: 0 | JG31: 0 | JH31: 0 | JI31: 0 | JJ31: 0 | JK31: 0 | JL31: 0 | JM31: 0 | JN31: 0 | JO31: 0 | JP31: 0 | JQ31: 0 | JR31: 0 | JS31: 0 | JT31: 0 | JU31: 0 | JV31: 0 | JW31: 0 | JX31: 0 | JY31: 0 | JZ31: 0 | KA31: 0 | KB31: 0 | KC31: 0 | KD31: 0 | KE31: 0 | KF31: 0 | KG31: 0 | KH31: 0 | KI31: 0 | KJ31: 0 | KK31: 0 | KL31: 0 | KM31: 0 | KN31: 0 | KO31: 0 | KP31: 0 | KQ31: 0 | KR31: 0 | KS31: 0 | KT31: 0 | KU31: 0 | KV31: 0 | KW31: 0 | KX31: 0 | KY31: 0 | KZ31: 0 | LB31: 0 | LC31: 0 | LD31: 0 | MJ31: 2022-10-07
A32: 2022-10-06 | B32: 27140 | C32: 27400 | D32: 27100 | E32: 27290 | F32: 28543 | G32: 27140 | H32: 27160 | I32: 27100 | J32: 27140 | K32: 27140 | L32: 27280 | M32: 27130 | N32: 27260 | O32: 27260 | P32: 27330 | Q32: 27260 | R32: 27310 | S32: 27310 | T32: 27370 | U32: 27260 | V32: 27300 | W32: 27300 | X32: 27320 | Y32: 27260 | Z32: 27290 | AA32: 27300 | AB32: 27380 | AC32: 27280 | AD32: 27330 | AE32: 27330 | AF32: 27370 | AG32: 27330 | AH32: 27360 | AI32: 27350 | AJ32: 27390 | AK32: 27350 | AL32: 27370 | AM32: 27370 | AN32: 27400 | AO32: 27370 | AP32: 27390 | AQ32: 27380 | AR32: 27390 | AS32: 27340 | AT32: 27360 | AU32: 27360 | AV32: 27380 | AW32: 27350 | AX32: 27370 | AY32: 27380 | AZ32: 27380 | BA32: 27360 | BB32: 27380 | BC32: 27380 | BD32: 27390 | BE32: 27350 | BF32: 27370 | BG32: 27370 | BH32: 27390 | BI32: 27310 | BJ32: 27290 | BK32: 27400 | BL32: 27310 | BM32: =AVERAGE($E32:OFFSET($E32,0,0,BM$4,1)) -> 26704 | BN32: =AVERAGE($E32:OFFSET($E32,0,0,BN$4,1)) -> 27255.2 | BO32: =AVERAGE($E32:OFFSET($E32,0,0,BO$4,1)) -> 27381.33333 | BP32: =AVERAGE($E32:OFFSET($E32,0,0,BP$4,1)) -> 27302.6 | BQ32: =AVERAGE($E32:OFFSET($E32,0,0,BQ$4,1)) -> 27281.25 | BR32: 150 | BS32: 300 | BT32: 361 | BU32: 60 | BV32: I | BW32: H | BX32: 木 | BY32: 5 | BZ32: N | CA32: 27030 | CB32: 26505 | CC32: 28405 | CD32: 27340 | CE32: 28200 | CF32: S | CG32: S | CH32: 210 | CJ32: =SUM(CH32:OFFSET(CH32,0,0,CJ$4,1))/(SUM(CH32:OFFSET(CH32,0,0,CJ$4,1))+SUM(CI32:OFFSET(CI32,0,0,CJ$4,1)))*100 -> 79.50310559 | CK32: =SUM(CH32:OFFSET(CH32,0,0,CK$4,1))/(SUM(CH32:OFFSET(CH32,0,0,CK$4,1))+SUM(CI32:OFFSET(CI32,0,0,CK$4,1)))*100 -> 53.84615385 | CL32: 27726.66667 | CM32: 27563.33333 | CN32: 27426.66667 | CO32: 27263.33333 | CP32: 27126.66667 | CQ32: 26963.33333 | CR32: 26826.66667 | CS32: =BN32+3*STDEVP($E32:OFFSET($E32,0,0,BN$4,1)) -> 29389.17859 | CT32: =BN32+2*STDEVP($E32:OFFSET($E32,0,0,BN$4,1)) -> 28677.8524 | CU32: =BN32+STDEVP($E32:OFFSET($E32,0,0,BN$4,1)) -> 27966.5262 | CV32: =BN32-STDEVP($E32:OFFSET($E32,0,0,BN$4,1)) -> 26543.8738 | CW32: =BN32-2*STDEVP($E32:OFFSET($E32,0,0,BN$4,1)) -> 25832.5476 | CX32: =BN32-3*STDEVP($E32:OFFSET($E32,0,0,BN$4,1)) -> 25121.22141 | CY32: S0 | DA32: S0 | DB32: 46.66666667 | DC32: 0 | DD32: 26674 | DE32: 27249.2 | DF32: 27379.33333 | DG32: 27301.1 | DH32: 27280.5 | DI32: 26400 | DJ32: 27030 | DK32: 28405 | DL32: 27340 | DM32: 29426.51973 | DN32: 28714.87982 | DO32: 28003.23991 | DP32: 26579.96009 | DQ32: 25868.32018 | DR32: 25156.68027 | DS32: H | DT32: S | FI32: 1 | FJ32: 1 | FK32: 1 | FL32: 1 | FM32: 1 | FN32: 1 | FO32: 1 | FP32: 1 | FQ32: 1 | FR32: 1 | FS32: 1 | FT32: 1 | FU32: 1 | FV32: 1 | FW32: 1 | FX32: 1 | FY32: 1 | FZ32: 1 | GA32: 1 | GB32: 1 | GC32: 1 | GD32: 1 | GE32: 1 | GF32: 1 | GG32: 1 | GH32: 1 | GI32: 1 | GJ32: 1 | GK32: 1 | GL32: 1 | GM32: 1 | GN32: 1 | GO32: 1 | GP32: 1 | GQ32: 1 | GR32: 1 | GS32: 1 | GT32: 1 | GU32: 1 | GV32: 1 | GW32: 1 | GX32: 1 | GY32: 1 | GZ32: 1 | HA32: 1 | HB32: 1 | HC32: 1 | HD32: 1 | HE32: 1 | HF32: 1 | HG32: 1 | HH32: 1 | HI32: 1 | HJ32: 1 | HK32: 1 | HL32: 1 | HM32: 0 | HN32: 1 | HO32: 1 | HP32: 1 | HQ32: 1 | HR32: 1 | HS32: 1 | HT32: 1 | HU32: 1 | HV32: 1 | HW32: 1 | HX32: 1 | HY32: 1 | HZ32: 1 | IA32: 1 | IH32: 0 | II32: 0 | IJ32: 0 | IK32: 0 | IL32: 0 | IM32: 0 | IN32: 0 | IO32: 0 | IP32: 0 | IQ32: 0 | IR32: 0 | IS32: 0 | IT32: 0 | IU32: 0 | IV32: 0 | IW32: 0 | IX32: 0 | IY32: 0 | IZ32: 0 | JA32: 0 | JB32: 0 | JC32: 0 | JD32: 0 | JE32: 0 | JF32: 0 | JG32: 0 | JH32: 0 | JI32: 0 | JJ32: 0 | JK32: 0 | JL32: 0 | JM32: 0 | JN32: 0 | JO32: 0 | JP32: 0 | JQ32: 0 | JR32: 0 | JS32: 0 | JT32: 0 | JU32: 0 | JV32: 0 | JW32: 0 | JX32: 0 | JY32: 0 | JZ32: 0 | KA32: 0 | KB32: 0 | KC32: 0 | KD32: 0 | KE32: 0 | KF32: 0 | KG32: 0 | KH32: 0 | KI32: 0 | KJ32: 0 | KK32: 0 | KL32: 0 | KM32: 0 | KN32: 0 | KO32: 0 | KP32: 0 | KQ32: 0 | KR32: 0 | KS32: 0 | KT32: 0 | KU32: 0 | KV32: 0 | KW32: 0 | KX32: 0 | KY32: 0 | KZ32: 0 | LB32: 0 | LC32: 0 | LD32: 0 | MJ32: 2022-10-06
A33: 2022-10-05 | B33: 27140 | C33: 27190 | D33: 27010 | E33: 27080 | F33: 30423 | G33: 27140 | H33: 27170 | I33: 27130 | J33: 27170 | K33: 27170 | L33: 27190 | M33: 27070 | N33: 27140 | O33: 27140 | P33: 27170 | Q33: 27120 | R33: 27120 | S33: 27110 | T33: 27130 | U33: 27040 | V33: 27080 | W33: 27080 | X33: 27150 | Y33: 27060 | Z33: 27120 | AA33: 27110 | AB33: 27110 | AC33: 27010 | AD33: 27040 | AE33: 27050 | AF33: 27080 | AG33: 27030 | AH33: 27070 | AI33: 27060 | AJ33: 27060 | AK33: 27010 | AL33: 27020 | AM33: 27020 | AN33: 27070 | AO33: 27020 | AP33: 27060 | AQ33: 27060 | AR33: 27100 | AS33: 27040 | AT33: 27090 | AU33: 27100 | AV33: 27110 | AW33: 27070 | AX33: 27090 | AY33: 27100 | AZ33: 27110 | BA33: 27080 | BB33: 27090 | BC33: 27090 | BD33: 27130 | BE33: 27090 | BF33: 27100 | BG33: 27110 | BH33: 27140 | BI33: 27100 | BJ33: 27080 | BK33: 27140 | BL33: 27020 | BM33: =AVERAGE($E33:OFFSET($E33,0,0,BM$4,1)) -> 26514 | BN33: =AVERAGE($E33:OFFSET($E33,0,0,BN$4,1)) -> 27291.6 | BO33: =AVERAGE($E33:OFFSET($E33,0,0,BO$4,1)) -> 27361.2 | BP33: =AVERAGE($E33:OFFSET($E33,0,0,BP$4,1)) -> 27293.6 | BQ33: =AVERAGE($E33:OFFSET($E33,0,0,BQ$4,1)) -> 27286.7 | BR33: -60 | BS33: 180 | BT33: 353 | BU33: 230 | BV33: H | BW33: H | BX33: 水 | BY33: 4 | BZ33: N | CA33: 27030 | CB33: 26400 | CC33: 28427.5 | CD33: 27340 | CE33: 27910 | CF33: S | CG33: S | CH33: 170 | CJ33: =SUM(CH33:OFFSET(CH33,0,0,CJ$4,1))/(SUM(CH33:OFFSET(CH33,0,0,CJ$4,1))+SUM(CI33:OFFSET(CI33,0,0,CJ$4,1)))*100 -> 81.86813187 | CK33: =SUM(CH33:OFFSET(CH33,0,0,CK$4,1))/(SUM(CH33:OFFSET(CH33,0,0,CK$4,1))+SUM(CI33:OFFSET(CI33,0,0,CK$4,1)))*100 -> 49.38650307 | CL33: 27356.66667 | CM33: 27273.33333 | CN33: 27176.66667 | CO33: 27093.33333 | CP33: 26996.66667 | CQ33: 26913.33333 | CR33: 26816.66667 | CS33: =BN33+3*STDEVP($E33:OFFSET($E33,0,0,BN$4,1)) -> 29496.78864 | CT33: =BN33+2*STDEVP($E33:OFFSET($E33,0,0,BN$4,1)) -> 28761.72576 | CU33: =BN33+STDEVP($E33:OFFSET($E33,0,0,BN$4,1)) -> 28026.66288 | CV33: =BN33-STDEVP($E33:OFFSET($E33,0,0,BN$4,1)) -> 26556.53712 | CW33: =BN33-2*STDEVP($E33:OFFSET($E33,0,0,BN$4,1)) -> 25821.47424 | CX33: =BN33-3*STDEVP($E33:OFFSET($E33,0,0,BN$4,1)) -> 25086.41136 | CY33: S1 | DA33: S1 | DB33: 83.33333333 | DC33: 0 | DD33: 26526 | DE33: 27294 | DF33: 27362 | DG33: 27294.2 | DH33: 27287 | DI33: 26375 | DJ33: 27030 | DK33: 28405 | DL33: 27340 | DM33: 29528.19738 | DN33: 28793.73158 | DO33: 28059.26579 | DP33: 26590.33421 | DQ33: 25855.86842 | DR33: 25121.40262 | DS33: H | DT33: S | FI33: 1 | FJ33: 1 | FK33: 1 | FL33: 1 | FM33: 1 | FN33: 1 | FO33: 1 | FP33: 1 | FQ33: 1 | FR33: 1 | FS33: 1 | FT33: 1 | FU33: 1 | FV33: 1 | FW33: 1 | FX33: 1 | FY33: 1 | FZ33: 1 | GA33: 1 | GB33: 1 | GC33: 1 | GD33: 1 | GE33: 1 | GF33: 1 | GG33: 1 | GH33: 1 | GI33: 1 | GJ33: 1 | GK33: 1 | GL33: 1 | GM33: 1 | GN33: 1 | GO33: 1 | GP33: 1 | GQ33: 1 | GR33: 1 | GS33: 1 | GT33: 1 | GU33: 1 | GV33: 1 | GW33: 1 | GX33: 1 | GY33: 1 | GZ33: 1 | HA33: 1 | HB33: 1 | HC33: 1 | HD33: 1 | HE33: 1 | HF33: 1 | HG33: 1 | HH33: 1 | HI33: 1 | HJ33: 1 | HK33: 1 | HL33: 1 | HM33: 0 | HN33: 1 | HO33: 1 | HP33: 1 | HQ33: 1 | HR33: 1 | HS33: 1 | HT33: 1 | HU33: 1 | HV33: 1 | HW33: 1 | HX33: 1 | HY33: 1 | HZ33: 1 | IA33: 1 | IH33: 0 | II33: 0 | IJ33: 0 | IK33: 0 | IL33: 0 | IM33: 0 | IN33: 0 | IO33: 0 | IP33: 0 | IQ33: 0 | IR33: 0 | IS33: 0 | IT33: 0 | IU33: 0 | IV33: 0 | IW33: 0 | IX33: 0 | IY33: 0 | IZ33: 0 | JA33: 0 | JB33: 0 | JC33: 0 | JD33: 0 | JE33: 0 | JF33: 0 | JG33: 0 | JH33: 0 | JI33: 0 | JJ33: 0 | JK33: 0 | JL33: 0 | JM33: 0 | JN33: 0 | JO33: 0 | JP33: 0 | JQ33: 0 | JR33: 0 | JS33: 0 | JT33: 0 | JU33: 0 | JV33: 0 | JW33: 0 | JX33: 0 | JY33: 0 | JZ33: 0 | KA33: 0 | KB33: 0 | KC33: 0 | KD33: 0 | KE33: 0 | KF33: 0 | KG33: 0 | KH33: 0 | KI33: 0 | KJ33: 0 | KK33: 0 | KL33: 0 | KM33: 0 | KN33: 0 | KO33: 0 | KP33: 0 | KQ33: 0 | KR33: 0 | KS33: 0 | KT33: 0 | KU33: 0 | KV33: 0 | KW33: 0 | KX33: 0 | KY33: 0 | KZ33: 0 | LB33: 0 | LC33: 0 | LD33: 0 | MJ33: 2022-10-05
A34: 2022-10-04 | B34: 26640 | C34: 26990 | D34: 26630 | E34: 26910 | F34: 37273 | G34: 26640 | H34: 26700 | I34: 26630 | J34: 26690 | K34: 26700 | L34: 26730 | M34: 26640 | N34: 26710 | O34: 26710 | P34: 26770 | Q34: 26710 | R34: 26760 | S34: 26760 | T34: 26840 | U34: 26740 | V34: 26840 | W34: 26850 | X34: 26910 | Y34: 26830 | Z34: 26880 | AA34: 26890 | AB34: 26930 | AC34: 26830 | AD34: 26830 | AE34: 26840 | AF34: 26850 | AG34: 26760 | AH34: 26830 | AI34: 26830 | AJ34: 26850 | AK34: 26810 | AL34: 26840 | AM34: 26840 | AN34: 26880 | AO34: 26840 | AP34: 26870 | AQ34: 26870 | AR34: 26950 | AS34: 26870 | AT34: 26930 | AU34: 26940 | AV34: 26970 | AW34: 26920 | AX34: 26960 | AY34: 26960 | AZ34: 26980 | BA34: 26940 | BB34: 26950 | BC34: 26950 | BD34: 26960 | BE34: 26930 | BF34: 26940 | BG34: 26940 | BH34: 26990 | BI34: 26930 | BJ34: 26910 | BK34: 26990 | BL34: 26840 | BM34: =AVERAGE($E34:OFFSET($E34,0,0,BM$4,1)) -> 26282 | BN34: =AVERAGE($E34:OFFSET($E34,0,0,BN$4,1)) -> 27324.8 | BO34: =AVERAGE($E34:OFFSET($E34,0,0,BO$4,1)) -> 27352.53333 | BP34: =AVERAGE($E34:OFFSET($E34,0,0,BP$4,1)) -> 27280.5 | BQ34: =AVERAGE($E34:OFFSET($E34,0,0,BQ$4,1)) -> 27295.05 | BR34: 270 | BS34: 360 | BT34: 364 | BU34: 410 | BV34: H | BW34: H | BX34: 火 | BY34: 3 | BZ34: N | CA34: 27200 | CB34: 26430 | CC34: 28552.5 | CD34: 27340 | CE34: 28610 | CF34: S | CG34: S | CH34: 680 | CJ34: =SUM(CH34:OFFSET(CH34,0,0,CJ$4,1))/(SUM(CH34:OFFSET(CH34,0,0,CJ$4,1))+SUM(CI34:OFFSET(CI34,0,0,CJ$4,1)))*100 -> 64.3902439 | CK34: =SUM(CH34:OFFSET(CH34,0,0,CK$4,1))/(SUM(CH34:OFFSET(CH34,0,0,CK$4,1))+SUM(CI34:OFFSET(CI34,0,0,CK$4,1)))*100 -> 42.10526316 | CL34: 27416.66667 | CM34: 27203.33333 | CN34: 27056.66667 | CO34: 26843.33333 | CP34: 26696.66667 | CQ34: 26483.33333 | CR34: 26336.66667 | CS34: =BN34+3*STDEVP($E34:OFFSET($E34,0,0,BN$4,1)) -> 29555.15617 | CT34: =BN34+2*STDEVP($E34:OFFSET($E34,0,0,BN$4,1)) -> 28811.70411 | CU34: =BN34+STDEVP($E34:OFFSET($E34,0,0,BN$4,1)) -> 28068.25206 | CV34: =BN34-STDEVP($E34:OFFSET($E34,0,0,BN$4,1)) -> 26581.34794 | CW34: =BN34-2*STDEVP($E34:OFFSET($E34,0,0,BN$4,1)) -> 25837.89589 | CX34: =BN34-3*STDEVP($E34:OFFSET($E34,0,0,BN$4,1)) -> 25094.44383 | CY34: S1 | DA34: S1 | DB34: 190 | DC34: 0 | DD34: 26228 | DE34: 27314 | DF34: 27348.93333 | DG34: 27277.8 | DH34: 27293.7 | DI34: 26430 | DJ34: 27200 | DK34: 28427.5 | DL34: 27340 | DM34: 29646.75652 | DN34: 28895.43768 | DO34: 28144.11884 | DP34: 26641.48116 | DQ34: 25890.16232 | DR34: 25138.84348 | DS34: H | DT34: S | FI34: 1 | FJ34: 1 | FK34: 1 | FL34: 1 | FM34: 1 | FN34: 1 | FO34: 1 | FP34: 1 | FQ34: 1 | FR34: 1 | FS34: 1 | FT34: 1 | FU34: 1 | FV34: 1 | FW34: 1 | FX34: 1 | FY34: 1 | FZ34: 1 | GA34: 1 | GB34: 1 | GC34: 1 | GD34: 1 | GE34: 1 | GF34: 1 | GG34: 1 | GH34: 1 | GI34: 1 | GJ34: 1 | GK34: 1 | GL34: 1 | GM34: 1 | GN34: 1 | GO34: 1 | GP34: 1 | GQ34: 1 | GR34: 1 | GS34: 1 | GT34: 1 | GU34: 1 | GV34: 1 | GW34: 1 | GX34: 1 | GY34: 1 | GZ34: 1 | HA34: 1 | HB34: 1 | HC34: 1 | HD34: 1 | HE34: 1 | HF34: 1 | HG34: 1 | HH34: 1 | HI34: 1 | HJ34: 1 | HK34: 1 | HL34: 1 | HM34: 0 | HN34: 1 | HO34: 1 | HP34: 1 | HQ34: 1 | HR34: 1 | HS34: 1 | HT34: 1 | HU34: 1 | HV34: 1 | HW34: 1 | HX34: 1 | HY34: 1 | HZ34: 1 | IA34: 1 | IH34: 0 | II34: 0 | IJ34: 0 | IK34: 0 | IL34: 0 | IM34: 0 | IN34: 0 | IO34: 0 | IP34: 0 | IQ34: 0 | IR34: 0 | IS34: 0 | IT34: 0 | IU34: 0 | IV34: 0 | IW34: 0 | IX34: 0 | IY34: 0 | IZ34: 0 | JA34: 0 | JB34: 0 | JC34: 0 | JD34: 0 | JE34: 0 | JF34: 0 | JG34: 0 | JH34: 0 | JI34: 0 | JJ34: 0 | JK34: 0 | JL34: 0 | JM34: 0 | JN34: 0 | JO34: 0 | JP34: 0 | JQ34: 0 | JR34: 0 | JS34: 0 | JT34: 0 | JU34: 0 | JV34: 0 | JW34: 0 | JX34: 0 | JY34: 0 | JZ34: 0 | KA34: 0 | KB34: 0 | KC34: 0 | KD34: 0 | KE34: 0 | KF34: 0 | KG34: 0 | KH34: 0 | KI34: 0 | KJ34: 0 | KK34: 0 | KL34: 0 | KM34: 0 | KN34: 0 | KO34: 0 | KP34: 0 | KQ34: 0 | KR34: 0 | KS34: 0 | KT34: 0 | KU34: 0 | KV34: 0 | KW34: 0 | KX34: 0 | KY34: 0 | KZ34: 0 | LB34: 0 | LC34: 0 | LD34: 0 | MJ34: 2022-10-04
A35: 2022-10-03 | B35: 25850 | C35: 26250 | D35: 25610 | E35: 26230 | F35: 41248 | G35: 25850 | H35: 25850 | I35: 25700 | J35: 25730 | K35: 25730 | L35: 25760 | M35: 25610 | N35: 25690 | O35: 25690 | P35: 25740 | Q35: 25640 | R35: 25680 | S35: 25680 | T35: 25680 | U35: 25610 | V35: 25640 | W35: 25640 | X35: 25960 | Y35: 25640 | Z35: 25950 | AA35: 25960 | AB35: 26140 | AC35: 25930 | AD35: 26100 | AE35: 26100 | AF35: 26130 | AG35: 26060 | AH35: 26090 | AI35: 26090 | AJ35: 26120 | AK35: 26050 | AL35: 26060 | AM35: 26050 | AN35: 26130 | AO35: 26050 | AP35: 26090 | AQ35: 26090 | AR35: 26100 | AS35: 26060 | AT35: 26090 | AU35: 26080 | AV35: 26110 | AW35: 26010 | AX35: 26040 | AY35: 26040 | AZ35: 26090 | BA35: 26040 | BB35: 26080 | BC35: 26080 | BD35: 26100 | BE35: 26040 | BF35: 26060 | BG35: 26060 | BH35: 26250 | BI35: 26050 | BJ35: 26230 | BK35: 26250 | BL35: 26010 | BM35: =AVERAGE($E35:OFFSET($E35,0,0,BM$4,1)) -> 26164 | BN35: =AVERAGE($E35:OFFSET($E35,0,0,BN$4,1)) -> 27392.8 | BO35: =AVERAGE($E35:OFFSET($E35,0,0,BO$4,1)) -> 27344.13333 | BP35: =AVERAGE($E35:OFFSET($E35,0,0,BP$4,1)) -> 27273.9 | BQ35: =AVERAGE($E35:OFFSET($E35,0,0,BQ$4,1)) -> 27304.95 | BR35: 380 | BS35: 640 | BT35: 341 | BU35: -160 | BV35: I | BW35: I | BX35: 月 | BY35: 2 | BZ35: N | CA35: 27200 | CB35: 26650 | CC35: 28517.5 | CD35: 27340 | CE35: 28510 | CF35: S | CG35: S | CH35: 220 | CJ35: =SUM(CH35:OFFSET(CH35,0,0,CJ$4,1))/(SUM(CH35:OFFSET(CH35,0,0,CJ$4,1))+SUM(CI35:OFFSET(CI35,0,0,CJ$4,1)))*100 -> 51.00671141 | CK35: =SUM(CH35:OFFSET(CH35,0,0,CK$4,1))/(SUM(CH35:OFFSET(CH35,0,0,CK$4,1))+SUM(CI35:OFFSET(CI35,0,0,CK$4,1)))*100 -> 30.28169014 | CL35: 27090 | CM35: 26670 | CN35: 26450 | CO35: 26030 | CP35: 25810 | CQ35: 25390 | CR35: 25170 | CS35: =BN35+3*STDEVP($E35:OFFSET($E35,0,0,BN$4,1)) -> 29730.65317 | CT35: =BN35+2*STDEVP($E35:OFFSET($E35,0,0,BN$4,1)) -> 28951.36878 | CU35: =BN35+STDEVP($E35:OFFSET($E35,0,0,BN$4,1)) -> 28172.08439 | CV35: =BN35-STDEVP($E35:OFFSET($E35,0,0,BN$4,1)) -> 26613.51561 | CW35: =BN35-2*STDEVP($E35:OFFSET($E35,0,0,BN$4,1)) -> 25834.23122 | CX35: =BN35-3*STDEVP($E35:OFFSET($E35,0,0,BN$4,1)) -> 25054.94683 | CZ35: B3 | DA35: B3 | DB35: 0 | DC35: 70 | DD35: 26088 | DE35: 27377.6 | DF35: 27339.06667 | DG35: 27270.1 | DH35: 27303.05 | DI35: 26685 | DJ35: 27200 | DK35: 28552.5 | DL35: 27340 | DM35: 29899.28552 | DN35: 29094.19035 | DO35: 28289.09517 | DP35: 26678.90483 | DQ35: 25873.80965 | DR35: 25068.71448 | DS35: L | DT35: S | FI35: 1 | FJ35: 1 | FK35: 1 | FL35: 1 | FM35: 1 | FN35: 1 | FO35: 1 | FP35: 1 | FQ35: 1 | FR35: 1 | FS35: 1 | FT35: 1 | FU35: 1 | FV35: 1 | FW35: 1 | FX35: 1 | FY35: 1 | FZ35: 1 | GA35: 1 | GB35: 1 | GC35: 1 | GD35: 1 | GE35: 1 | GF35: 1 | GG35: 1 | GH35: 1 | GI35: 1 | GJ35: 1 | GK35: 1 | GL35: 1 | GM35: 1 | GN35: 1 | GO35: 1 | GP35: 1 | GQ35: 1 | GR35: 1 | GS35: 1 | GT35: 1 | GU35: 1 | GV35: 1 | GW35: 1 | GX35: 1 | GY35: 1 | GZ35: 1 | HA35: 1 | HB35: 1 | HC35: 1 | HD35: 1 | HE35: 1 | HF35: 1 | HG35: 1 | HH35: 1 | HI35: 1 | HJ35: 1 | HK35: 1 | HL35: 1 | HM35: 0 | HN35: 1 | HO35: 1 | HP35: 1 | HQ35: 1 | HR35: 1 | HS35: 1 | HT35: 1 | HU35: 1 | HV35: 1 | HW35: 1 | HX35: 1 | HY35: 1 | HZ35: 1 | IA35: 1 | IH35: 0 | II35: 0 | IJ35: 0 | IK35: 0 | IL35: 0 | IM35: 0 | IN35: 0 | IO35: 0 | IP35: 0 | IQ35: 0 | IR35: 0 | IS35: 0 | IT35: 0 | IU35: 0 | IV35: 0 | IW35: 0 | IX35: 0 | IY35: 0 | IZ35: 0 | JA35: 0 | JB35: 0 | JC35: 0 | JD35: 0 | JE35: 0 | JF35: 0 | JG35: 0 | JH35: 0 | JI35: 0 | JJ35: 0 | JK35: 0 | JL35: 0 | JM35: 0 | JN35: 0 | JO35: 0 | JP35: 0 | JQ35: 0 | JR35: 0 | JS35: 0 | JT35: 0 | JU35: 0 | JV35: 0 | JW35: 0 | JX35: 0 | JY35: 0 | JZ35: 0 | KA35: 0 | KB35: 0 | KC35: 0 | KD35: 0 | KE35: 0 | KF35: 0 | KG35: 0 | KH35: 0 | KI35: 0 | KJ35: 0 | KK35: 0 | KL35: 0 | KM35: 0 | KN35: 0 | KO35: 0 | KP35: 0 | KQ35: 0 | KR35: 0 | KS35: 0 | KT35: 0 | KU35: 0 | KV35: 0 | KW35: 0 | KX35: 0 | KY35: 0 | KZ35: 0 | LB35: 0 | LC35: 0 | LD35: 0 | MJ35: 2022-10-03
A36: 2022-09-30 | B36: 26230 | C36: 26260 | D36: 25790 | E36: 26010 | F36: 38764 | G36: 26230 | H36: 26260 | I36: 26190 | J36: 26220 | K36: 26220 | L36: 26260 | M36: 26110 | N36: 26150 | O36: 26160 | P36: 26160 | Q36: 26080 | R36: 26120 | S36: 26120 | T36: 26120 | U36: 26000 | V36: 26080 | W36: 26080 | X36: 26100 | Y36: 26010 | Z36: 26010 | AA36: 26010 | AB36: 26080 | AC36: 25970 | AD36: 26010 | AE36: 26010 | AF36: 26060 | AG36: 25920 | AH36: 25960 | AI36: 25960 | AJ36: 25990 | AK36: 25940 | AL36: 25950 | AM36: 25950 | AN36: 25970 | AO36: 25920 | AP36: 25950 | AQ36: 25950 | AR36: 25970 | AS36: 25860 | AT36: 25870 | AU36: 25870 | AV36: 25880 | AW36: 25800 | AX36: 25810 | AY36: 25800 | AZ36: 25860 | BA36: 25790 | BB36: 25820 | BC36: 25810 | BD36: 25910 | BE36: 25800 | BF36: 25860 | BG36: 25860 | BH36: 26010 | BI36: 25840 | BJ36: 26010 | BK36: 26010 | BL36: 25790 | BM36: =AVERAGE($E36:OFFSET($E36,0,0,BM$4,1)) -> 26158 | BN36: =AVERAGE($E36:OFFSET($E36,0,0,BN$4,1)) -> 27484 | BO36: =AVERAGE($E36:OFFSET($E36,0,0,BO$4,1)) -> 27349.86667 | BP36: =AVERAGE($E36:OFFSET($E36,0,0,BP$4,1)) -> 27274.3 | BQ36: =AVERAGE($E36:OFFSET($E36,0,0,BQ$4,1)) -> 27316.4 | BR36: -220 | BS36: 470 | BT36: 293 | BU36: -110 | BV36: L | BW36: L | BX36: 金 | BY36: 6 | BZ36: N | CA36: 27235 | CB36: 26685 | CC36: 28332.5 | CD36: 27340 | CE36: 28320 | CF36: S | CG36: S | CI36: 330 | CJ36: =SUM(CH36:OFFSET(CH36,0,0,CJ$4,1))/(SUM(CH36:OFFSET(CH36,0,0,CJ$4,1))+SUM(CI36:OFFSET(CI36,0,0,CJ$4,1)))*100 -> 25.71428571 | CK36: =SUM(CH36:OFFSET(CH36,0,0,CK$4,1))/(SUM(CH36:OFFSET(CH36,0,0,CK$4,1))+SUM(CI36:OFFSET(CI36,0,0,CK$4,1)))*100 -> 21.69491525 | CL36: 26720 | CM36: 26490 | CN36: 26250 | CO36: 26020 | CP36: 25780 | CQ36: 25550 | CR36: 25310 | CS36: =BN36+3*STDEVP($E36:OFFSET($E36,0,0,BN$4,1)) -> 29797.7139 | CT36: =BN36+2*STDEVP($E36:OFFSET($E36,0,0,BN$4,1)) -> 29026.47593 | CU36: =BN36+STDEVP($E36:OFFSET($E36,0,0,BN$4,1)) -> 28255.23797 | CV36: =BN36-STDEVP($E36:OFFSET($E36,0,0,BN$4,1)) -> 26712.76203 | CW36: =BN36-2*STDEVP($E36:OFFSET($E36,0,0,BN$4,1)) -> 25941.52407 | CX36: =BN36-3*STDEVP($E36:OFFSET($E36,0,0,BN$4,1)) -> 25170.2861 | CZ36: B3 | DA36: B3 | DB36: 0 | DC36: 6.666666667 | DD36: 26202 | DE36: 27492.8 | DF36: 27352.8 | DG36: 27276.5 | DH36: 27317.5 | DI36: 26685 | DJ36: 27235 | DK36: 28517.5 | DL36: 27340 | DM36: 29842.78863 | DN36: 29087.32576 | DO36: 28331.86288 | DP36: 26820.93712 | DQ36: 26065.47424 | DR36: 25310.01137 | DS36: L | DT36: S | FI36: 1 | FJ36: 1 | FK36: 1 | FL36: 1 | FM36: 1 | FN36: 1 | FO36: 1 | FP36: 1 | FQ36: 1 | FR36: 1 | FS36: 1 | FT36: 1 | FU36: 1 | FV36: 1 | FW36: 1 | FX36: 1 | FY36: 1 | FZ36: 1 | GA36: 1 | GB36: 1 | GC36: 1 | GD36: 1 | GE36: 1 | GF36: 1 | GG36: 1 | GH36: 1 | GI36: 1 | GJ36: 1 | GK36: 1 | GL36: 1 | GM36: 1 | GN36: 1 | GO36: 1 | GP36: 1 | GQ36: 1 | GR36: 1 | GS36: 1 | GT36: 1 | GU36: 1 | GV36: 1 | GW36: 1 | GX36: 1 | GY36: 1 | GZ36: 1 | HA36: 1 | HB36: 1 | HC36: 1 | HD36: 1 | HE36: 1 | HF36: 1 | HG36: 1 | HH36: 1 | HI36: 1 | HJ36: 1 | HK36: 1 | HL36: 1 | HM36: 0 | HN36: 1 | HO36: 1 | HP36: 1 | HQ36: 1 | HR36: 1 | HS36: 1 | HT36: 1 | HU36: 1 | HV36: 1 | HW36: 1 | HX36: 1 | HY36: 1 | HZ36: 1 | IA36: 1 | IH36: 0 | II36: 0 | IJ36: 0 | IK36: 0 | IL36: 0 | IM36: 0 | IN36: 0 | IO36: 0 | IP36: 0 | IQ36: 0 | IR36: 0 | IS36: 0 | IT36: 0 | IU36: 0 | IV36: 0 | IW36: 0 | IX36: 0 | IY36: 0 | IZ36: 0 | JA36: 0 | JB36: 0 | JC36: 0 | JD36: 0 | JE36: 0 | JF36: 0 | JG36: 0 | JH36: 0 | JI36: 0 | JJ36: 0 | JK36: 0 | JL36: 0 | JM36: 0 | JN36: 0 | JO36: 0 | JP36: 0 | JQ36: 0 | JR36: 0 | JS36: 0 | JT36: 0 | JU36: 0 | JV36: 0 | JW36: 0 | JX36: 0 | JY36: 0 | JZ36: 0 | KA36: 0 | KB36: 0 | KC36: 0 | KD36: 0 | KE36: 0 | KF36: 0 | KG36: 0 | KH36: 0 | KI36: 0 | KJ36: 0 | KK36: 0 | KL36: 0 | KM36: 0 | KN36: 0 | KO36: 0 | KP36: 0 | KQ36: 0 | KR36: 0 | KS36: 0 | KT36: 0 | KU36: 0 | KV36: 0 | KW36: 0 | KX36: 0 | KY36: 0 | KZ36: 0 | LB36: 0 | LC36: 0 | LD36: 0 | MJ36: 2022-09-30
A37: 2022-09-29 | B37: 26420 | C37: 26490 | D37: 26240 | E37: 26340 | F37: 43941 | G37: 26420 | H37: 26490 | I37: 26410 | J37: 26430 | K37: 26430 | L37: 26490 | M37: 26340 | N37: 26340 | O37: 26350 | P37: 26460 | Q37: 26350 | R37: 26440 | S37: 26440 | T37: 26470 | U37: 26360 | V37: 26380 | W37: 26380 | X37: 26440 | Y37: 26360 | Z37: 26420 | AA37: 26420 | AB37: 26460 | AC37: 26350 | AD37: 26350 | AE37: 26360 | AF37: 26380 | AG37: 26240 | AH37: 26260 | AI37: 26260 | AJ37: 26290 | AK37: 26250 | AL37: 26260 | AM37: 26260 | AN37: 26300 | AO37: 26260 | AP37: 26300 | AQ37: 26300 | AR37: 26400 | AS37: 26290 | AT37: 26370 | AU37: 26380 | AV37: 26430 | AW37: 26330 | AX37: 26430 | AY37: 26420 | AZ37: 26460 | BA37: 26390 | BB37: 26450 | BC37: 26450 | BD37: 26480 | BE37: 26420 | BF37: 26440 | BG37: 26440 | BH37: 26470 | BI37: 26350 | BJ37: 26340 | BK37: 26480 | BL37: 26260 | BM37: =AVERAGE($E37:OFFSET($E37,0,0,BM$4,1)) -> 26362 | BN37: =AVERAGE($E37:OFFSET($E37,0,0,BN$4,1)) -> 27576.4 | BO37: =AVERAGE($E37:OFFSET($E37,0,0,BO$4,1)) -> 27360.93333 | BP37: =AVERAGE($E37:OFFSET($E37,0,0,BP$4,1)) -> 27278.1 | BQ37: =AVERAGE($E37:OFFSET($E37,0,0,BQ$4,1)) -> 27325.6 | BR37: -80 | BS37: 250 | BT37: 272 | BU37: 500 | BV37: H | BW37: H | BX37: 木 | BY37: 5 | BZ37: S | CA37: 27235 | CB37: 26705 | CC37: 28177.5 | CD37: 27340 | CE37: 28390 | CF37: S | CG37: S | CH37: 420 | CJ37: =SUM(CH37:OFFSET(CH37,0,0,CJ$4,1))/(SUM(CH37:OFFSET(CH37,0,0,CJ$4,1))+SUM(CI37:OFFSET(CI37,0,0,CJ$4,1)))*100 -> 29.03225806 | CK37: =SUM(CH37:OFFSET(CH37,0,0,CK$4,1))/(SUM(CH37:OFFSET(CH37,0,0,CK$4,1))+SUM(CI37:OFFSET(CI37,0,0,CK$4,1)))*100 -> 25.28301887 | CL37: 26723.33333 | CM37: 26606.66667 | CN37: 26473.33333 | CO37: 26356.66667 | CP37: 26223.33333 | CQ37: 26106.66667 | CR37: 25973.33333 | CS37: =BN37+3*STDEVP($E37:OFFSET($E37,0,0,BN$4,1)) -> 29754.90209 | CT37: =BN37+2*STDEVP($E37:OFFSET($E37,0,0,BN$4,1)) -> 29028.73473 | CU37: =BN37+STDEVP($E37:OFFSET($E37,0,0,BN$4,1)) -> 28302.56736 | CV37: =BN37-STDEVP($E37:OFFSET($E37,0,0,BN$4,1)) -> 26850.23264 | CW37: =BN37-2*STDEVP($E37:OFFSET($E37,0,0,BN$4,1)) -> 26124.06527 | CX37: =BN37-3*STDEVP($E37:OFFSET($E37,0,0,BN$4,1)) -> 25397.89791 | CY37: S1 | DA37: S1 | DB37: 166.6666667 | DC37: 0 | DD37: 26378 | DE37: 27579.6 | DF37: 27362 | DG37: 27278.9 | DH37: 27326 | DI37: 26705 | DJ37: 27235 | DK37: 28332.5 | DL37: 27340 | DM37: 29821.00643 | DN37: 29100.13762 | DO37: 28379.26881 | DP37: 26937.53119 | DQ37: 26216.66238 | DR37: 25495.79357 | DS37: H | DT37: S | FI37: 1 | FJ37: 1 | FK37: 1 | FL37: 1 | FM37: 1 | FN37: 1 | FO37: 1 | FP37: 1 | FQ37: 1 | FR37: 1 | FS37: 1 | FT37: 1 | FU37: 1 | FV37: 1 | FW37: 1 | FX37: 1 | FY37: 1 | FZ37: 1 | GA37: 1 | GB37: 1 | GC37: 1 | GD37: 1 | GE37: 1 | GF37: 1 | GG37: 1 | GH37: 1 | GI37: 1 | GJ37: 1 | GK37: 1 | GL37: 1 | GM37: 1 | GN37: 1 | GO37: 1 | GP37: 1 | GQ37: 1 | GR37: 1 | GS37: 1 | GT37: 1 | GU37: 1 | GV37: 1 | GW37: 1 | GX37: 1 | GY37: 1 | GZ37: 1 | HA37: 1 | HB37: 1 | HC37: 1 | HD37: 1 | HE37: 1 | HF37: 1 | HG37: 1 | HH37: 1 | HI37: 1 | HJ37: 1 | HK37: 1 | HL37: 1 | HM37: 0 | HN37: 1 | HO37: 1 | HP37: 1 | HQ37: 1 | HR37: 1 | HS37: 1 | HT37: 1 | HU37: 1 | HV37: 1 | HW37: 1 | HX37: 1 | HY37: 1 | HZ37: 1 | IA37: 1 | IH37: 0 | II37: 0 | IJ37: 0 | IK37: 0 | IL37: 0 | IM37: 0 | IN37: 0 | IO37: 0 | IP37: 0 | IQ37: 0 | IR37: 0 | IS37: 0 | IT37: 0 | IU37: 0 | IV37: 0 | IW37: 0 | IX37: 0 | IY37: 0 | IZ37: 0 | JA37: 0 | JB37: 0 | JC37: 0 | JD37: 0 | JE37: 0 | JF37: 0 | JG37: 0 | JH37: 0 | JI37: 0 | JJ37: 0 | JK37: 0 | JL37: 0 | JM37: 0 | JN37: 0 | JO37: 0 | JP37: 0 | JQ37: 0 | JR37: 0 | JS37: 0 | JT37: 0 | JU37: 0 | JV37: 0 | JW37: 0 | JX37: 0 | JY37: 0 | JZ37: 0 | KA37: 0 | KB37: 0 | KC37: 0 | KD37: 0 | KE37: 0 | KF37: 0 | KG37: 0 | KH37: 0 | KI37: 0 | KJ37: 0 | KK37: 0 | KL37: 0 | KM37: 0 | KN37: 0 | KO37: 0 | KP37: 0 | KQ37: 0 | KR37: 0 | KS37: 0 | KT37: 0 | KU37: 0 | KV37: 0 | KW37: 0 | KX37: 0 | KY37: 0 | KZ37: 0 | LB37: 0 | LC37: 0 | LD37: 0 | MJ37: 2022-09-29
A38: 2022-09-28 | B38: 26300 | C38: 26300 | D38: 25680 | E38: 25920 | F38: 55753 | G38: 26300 | H38: 26300 | I38: 26230 | J38: 26250 | K38: 26250 | L38: 26300 | M38: 26230 | N38: 26280 | O38: 26280 | P38: 26300 | Q38: 26210 | R38: 26210 | S38: 26220 | T38: 26220 | U38: 26130 | V38: 26140 | W38: 26150 | X38: 26190 | Y38: 26050 | Z38: 26060 | AA38: 26060 | AB38: 26080 | AC38: 25800 | AD38: 25890 | AE38: 25900 | AF38: 25900 | AG38: 25720 | AH38: 25770 | AI38: 25760 | AJ38: 25760 | AK38: 25680 | AL38: 25710 | AM38: 25720 | AN38: 25810 | AO38: 25720 | AP38: 25810 | AQ38: 25800 | AR38: 25830 | AS38: 25720 | AT38: 25810 | AU38: 25810 | AV38: 25820 | AW38: 25760 | AX38: 25810 | AY38: 25810 | AZ38: 25870 | BA38: 25800 | BB38: 25830 | BC38: 25820 | BD38: 25820 | BE38: 25750 | BF38: 25820 | BG38: 25820 | BH38: 25990 | BI38: 25790 | BJ38: 25920 | BK38: 25990 | BL38: 25720 | BM38: =AVERAGE($E38:OFFSET($E38,0,0,BM$4,1)) -> 26518 | BN38: =AVERAGE($E38:OFFSET($E38,0,0,BN$4,1)) -> 27658.4 | BO38: =AVERAGE($E38:OFFSET($E38,0,0,BO$4,1)) -> 27381.06667 | BP38: =AVERAGE($E38:OFFSET($E38,0,0,BP$4,1)) -> 27285.8 | BQ38: =AVERAGE($E38:OFFSET($E38,0,0,BQ$4,1)) -> 27334.25 | BR38: -380 | BS38: 620 | BT38: 261 | BU38: -20 | BV38: I | BW38: L | BX38: 水 | BY38: 4 | BZ38: N | CA38: 27255 | CB38: 26740 | CC38: 28115 | CD38: 27340 | CE38: 28710 | CF38: S | CG38: S | CI38: 400 | CJ38: =SUM(CH38:OFFSET(CH38,0,0,CJ$4,1))/(SUM(CH38:OFFSET(CH38,0,0,CJ$4,1))+SUM(CI38:OFFSET(CI38,0,0,CJ$4,1)))*100 -> 6.779661017 | CK38: =SUM(CH38:OFFSET(CH38,0,0,CK$4,1))/(SUM(CH38:OFFSET(CH38,0,0,CK$4,1))+SUM(CI38:OFFSET(CI38,0,0,CK$4,1)))*100 -> 8.389261745 | CL38: 26873.33333 | CM38: 26586.66667 | CN38: 26253.33333 | CO38: 25966.66667 | CP38: 25633.33333 | CQ38: 25346.66667 | CR38: 25013.33333 | CS38: =BN38+3*STDEVP($E38:OFFSET($E38,0,0,BN$4,1)) -> 29749.65057 | CT38: =BN38+2*STDEVP($E38:OFFSET($E38,0,0,BN$4,1)) -> 29052.56705 | CU38: =BN38+STDEVP($E38:OFFSET($E38,0,0,BN$4,1)) -> 28355.48352 | CV38: =BN38-STDEVP($E38:OFFSET($E38,0,0,BN$4,1)) -> 26961.31648 | CW38: =BN38-2*STDEVP($E38:OFFSET($E38,0,0,BN$4,1)) -> 26264.23295 | CX38: =BN38-3*STDEVP($E38:OFFSET($E38,0,0,BN$4,1)) -> 25567.14943 | CZ38: B3 | DA38: B3 | DB38: 0 | DC38: 43.33333333 | DD38: 26594 | DE38: 27673.6 | DF38: 27386.13333 | DG38: 27289.6 | DH38: 27336.15 | DI38: 26995 | DJ38: 27255 | DK38: 28177.5 | DL38: 27340 | DM38: 29756.85867 | DN38: 29094.57244 | DO38: 28432.28622 | DP38: 27107.71378 | DQ38: 26445.42756 | DR38: 25783.14133 | DS38: L | DT38: S | FI38: 1 | FJ38: 1 | FK38: 1 | FL38: 1 | FM38: 1 | FN38: 1 | FO38: 1 | FP38: 1 | FQ38: 1 | FR38: 1 | FS38: 1 | FT38: 1 | FU38: 1 | FV38: 1 | FW38: 1 | FX38: 1 | FY38: 1 | FZ38: 1 | GA38: 1 | GB38: 1 | GC38: 1 | GD38: 1 | GE38: 1 | GF38: 1 | GG38: 1 | GH38: 1 | GI38: 1 | GJ38: 1 | GK38: 1 | GL38: 1 | GM38: 1 | GN38: 1 | GO38: 1 | GP38: 1 | GQ38: 1 | GR38: 1 | GS38: 1 | GT38: 1 | GU38: 1 | GV38: 1 | GW38: 1 | GX38: 1 | GY38: 1 | GZ38: 1 | HA38: 1 | HB38: 1 | HC38: 1 | HD38: 1 | HE38: 1 | HF38: 1 | HG38: 1 | HH38: 1 | HI38: 1 | HJ38: 1 | HK38: 1 | HL38: 1 | HM38: 0 | HN38: 1 | HO38: 1 | HP38: 1 | HQ38: 1 | HR38: 1 | HS38: 1 | HT38: 1 | HU38: 1 | HV38: 1 | HW38: 1 | HX38: 1 | HY38: 1 | HZ38: 1 | IA38: 1 | IH38: 0 | II38: 0 | IJ38: 0 | IK38: 0 | IL38: 0 | IM38: 0 | IN38: 0 | IO38: 0 | IP38: 0 | IQ38: 0 | IR38: 0 | IS38: 0 | IT38: 0 | IU38: 0 | IV38: 0 | IW38: 0 | IX38: 0 | IY38: 0 | IZ38: 0 | JA38: 0 | JB38: 0 | JC38: 0 | JD38: 0 | JE38: 0 | JF38: 0 | JG38: 0 | JH38: 0 | JI38: 0 | JJ38: 0 | JK38: 0 | JL38: 0 | JM38: 0 | JN38: 0 | JO38: 0 | JP38: 0 | JQ38: 0 | JR38: 0 | JS38: 0 | JT38: 0 | JU38: 0 | JV38: 0 | JW38: 0 | JX38: 0 | JY38: 0 | JZ38: 0 | KA38: 0 | KB38: 0 | KC38: 0 | KD38: 0 | KE38: 0 | KF38: 0 | KG38: 0 | KH38: 0 | KI38: 0 | KJ38: 0 | KK38: 0 | KL38: 0 | KM38: 0 | KN38: 0 | KO38: 0 | KP38: 0 | KQ38: 0 | KR38: 0 | KS38: 0 | KT38: 0 | KU38: 0 | KV38: 0 | KW38: 0 | KX38: 0 | KY38: 0 | KZ38: 0 | LB38: 0 | LC38: 0 | LD38: 0 | MJ38: 2022-09-28
A39: 2022-09-27 | B39: 26330 | C39: 26450 | D39: 26290 | E39: 26320 | F39: 29641 | G39: 26330 | H39: 26380 | I39: 26310 | J39: 26350 | K39: 26350 | L39: 26430 | M39: 26320 | N39: 26420 | O39: 26420 | P39: 26430 | Q39: 26350 | R39: 26350 | S39: 26350 | T39: 26400 | U39: 26290 | V39: 26390 | W39: 26390 | X39: 26450 | Y39: 26370 | Z39: 26380 | AA39: 26390 | AB39: 26430 | AC39: 26350 | AD39: 26380 | AE39: 26390 | AF39: 26430 | AG39: 26360 | AH39: 26410 | AI39: 26410 | AJ39: 26410 | AK39: 26380 | AL39: 26390 | AM39: 26400 | AN39: 26400 | AO39: 26350 | AP39: 26370 | AQ39: 26360 | AR39: 26360 | AS39: 26340 | AT39: 26360 | AU39: 26360 | AV39: 26380 | AW39: 26340 | AX39: 26340 | AY39: 26340 | AZ39: 26340 | BA39: 26310 | BB39: 26330 | BC39: 26330 | BD39: 26350 | BE39: 26300 | BF39: 26320 | BG39: 26320 | BH39: 26370 | BI39: 26300 | BJ39: 26320 | BK39: 26400 | BL39: 26300 | BM39: =AVERAGE($E39:OFFSET($E39,0,0,BM$4,1)) -> 26824 | BN39: =AVERAGE($E39:OFFSET($E39,0,0,BN$4,1)) -> 27770 | BO39: =AVERAGE($E39:OFFSET($E39,0,0,BO$4,1)) -> 27412.8 | BP39: =AVERAGE($E39:OFFSET($E39,0,0,BP$4,1)) -> 27294.7 | BQ39: =AVERAGE($E39:OFFSET($E39,0,0,BQ$4,1)) -> 27343.4 | BR39: -10 | BS39: 160 | BT39: 218 | BU39: 130 | BV39: I | BW39: I | BX39: 火 | BY39: 3 | BZ39: S | CA39: 27665 | CB39: 27320 | CC39: 28115 | CD39: 27340 | CE39: 28930 | CF39: S | CG39: S | CH39: 120 | CJ39: =SUM(CH39:OFFSET(CH39,0,0,CJ$4,1))/(SUM(CH39:OFFSET(CH39,0,0,CJ$4,1))+SUM(CI39:OFFSET(CI39,0,0,CJ$4,1)))*100 -> 14.96598639 | CK39: =SUM(CH39:OFFSET(CH39,0,0,CK$4,1))/(SUM(CH39:OFFSET(CH39,0,0,CK$4,1))+SUM(CI39:OFFSET(CI39,0,0,CK$4,1)))*100 -> 14.33823529 | CL39: 26576.66667 | CM39: 26513.33333 | CN39: 26416.66667 | CO39: 26353.33333 | CP39: 26256.66667 | CQ39: 26193.33333 | CR39: 26096.66667 | CS39: =BN39+3*STDEVP($E39:OFFSET($E39,0,0,BN$4,1)) -> 29659.81904 | CT39: =BN39+2*STDEVP($E39:OFFSET($E39,0,0,BN$4,1)) -> 29029.87936 | CU39: =BN39+STDEVP($E39:OFFSET($E39,0,0,BN$4,1)) -> 28399.93968 | CV39: =BN39-STDEVP($E39:OFFSET($E39,0,0,BN$4,1)) -> 27140.06032 | CW39: =BN39-2*STDEVP($E39:OFFSET($E39,0,0,BN$4,1)) -> 26510.12064 | CX39: =BN39-3*STDEVP($E39:OFFSET($E39,0,0,BN$4,1)) -> 25880.18096 | CY39: S0 | DA39: S0 | DB39: 30 | DC39: 0 | DD39: 26826 | DE39: 27770.4 | DF39: 27412.93333 | DG39: 27294.8 | DH39: 27343.45 | DI39: 27320 | DJ39: 27665 | DK39: 28115 | DL39: 27340 | DM39: 29761.46401 | DN39: 29132.44267 | DO39: 28503.42134 | DP39: 27245.37866 | DQ39: 26616.35733 | DR39: 25987.33599 | DS39: I | DT39: S | FI39: 1 | FJ39: 1 | FK39: 1 | FL39: 1 | FM39: 1 | FN39: 1 | FO39: 1 | FP39: 1 | FQ39: 1 | FR39: 1 | FS39: 1 | FT39: 1 | FU39: 1 | FV39: 1 | FW39: 1 | FX39: 1 | FY39: 1 | FZ39: 1 | GA39: 1 | GB39: 1 | GC39: 1 | GD39: 1 | GE39: 1 | GF39: 1 | GG39: 1 | GH39: 1 | GI39: 1 | GJ39: 1 | GK39: 1 | GL39: 1 | GM39: 1 | GN39: 1 | GO39: 1 | GP39: 1 | GQ39: 1 | GR39: 1 | GS39: 1 | GT39: 1 | GU39: 1 | GV39: 1 | GW39: 1 | GX39: 1 | GY39: 1 | GZ39: 1 | HA39: 1 | HB39: 1 | HC39: 1 | HD39: 1 | HE39: 1 | HF39: 1 | HG39: 1 | HH39: 1 | HI39: 1 | HJ39: 1 | HK39: 1 | HL39: 1 | HM39: 0 | HN39: 1 | HO39: 1 | HP39: 1 | HQ39: 1 | HR39: 1 | HS39: 1 | HT39: 1 | HU39: 1 | HV39: 1 | HW39: 1 | HX39: 1 | HY39: 1 | HZ39: 1 | IA39: 1 | IH39: 0 | II39: 0 | IJ39: 0 | IK39: 0 | IL39: 0 | IM39: 0 | IN39: 0 | IO39: 0 | IP39: 0 | IQ39: 0 | IR39: 0 | IS39: 0 | IT39: 0 | IU39: 0 | IV39: 0 | IW39: 0 | IX39: 0 | IY39: 0 | IZ39: 0 | JA39: 0 | JB39: 0 | JC39: 0 | JD39: 0 | JE39: 0 | JF39: 0 | JG39: 0 | JH39: 0 | JI39: 0 | JJ39: 0 | JK39: 0 | JL39: 0 | JM39: 0 | JN39: 0 | JO39: 0 | JP39: 0 | JQ39: 0 | JR39: 0 | JS39: 0 | JT39: 0 | JU39: 0 | JV39: 0 | JW39: 0 | JX39: 0 | JY39: 0 | JZ39: 0 | KA39: 0 | KB39: 0 | KC39: 0 | KD39: 0 | KE39: 0 | KF39: 0 | KG39: 0 | KH39: 0 | KI39: 0 | KJ39: 0 | KK39: 0 | KL39: 0 | KM39: 0 | KN39: 0 | KO39: 0 | KP39: 0 | KQ39: 0 | KR39: 0 | KS39: 0 | KT39: 0 | KU39: 0 | KV39: 0 | KW39: 0 | KX39: 0 | KY39: 0 | KZ39: 0 | LB39: 0 | LC39: 0 | LD39: 0 | MJ39: 2022-09-27
A40: 2022-09-26 | B40: 26420 | C40: 26510 | D40: 26190 | E40: 26200 | F40: 41458 | G40: 26420 | H40: 26500 | I40: 26400 | J40: 26490 | K40: 26490 | L40: 26510 | M40: 26430 | N40: 26440 | O40: 26440 | P40: 26440 | Q40: 26350 | R40: 26390 | S40: 26380 | T40: 26400 | U40: 26310 | V40: 26320 | W40: 26320 | X40: 26360 | Y40: 26280 | Z40: 26300 | AA40: 26300 | AB40: 26370 | AC40: 26290 | AD40: 26320 | AE40: 26330 | AF40: 26380 | AG40: 26310 | AH40: 26380 | AI40: 26380 | AJ40: 26380 | AK40: 26290 | AL40: 26290 | AM40: 26290 | AN40: 26310 | AO40: 26270 | AP40: 26290 | AQ40: 26290 | AR40: 26310 | AS40: 26250 | AT40: 26280 | AU40: 26280 | AV40: 26290 | AW40: 26250 | AX40: 26250 | AY40: 26250 | AZ40: 26250 | BA40: 26200 | BB40: 26210 | BC40: 26200 | BD40: 26240 | BE40: 26190 | BF40: 26200 | BG40: 26200 | BH40: 26260 | BI40: 26200 | BJ40: 26200 | BK40: 26310 | BL40: 26190 | BM40: =AVERAGE($E40:OFFSET($E40,0,0,BM$4,1)) -> 27030 | BN40: =AVERAGE($E40:OFFSET($E40,0,0,BN$4,1)) -> 27874.4 | BO40: =AVERAGE($E40:OFFSET($E40,0,0,BO$4,1)) -> 27437.73333 | BP40: =AVERAGE($E40:OFFSET($E40,0,0,BP$4,1)) -> 27300.2 | BQ40: =AVERAGE($E40:OFFSET($E40,0,0,BQ$4,1)) -> 27352.7 | BR40: -220 | BS40: 320 | BT40: 222 | BU40: -610 | BV40: L | BW40: L | BX40: 月 | BY40: 2 | BZ40: S | CA40: 27665 | CB40: 27320 | CC40: 28105 | CD40: 27340 | CE40: 28940 | CF40: S | CG40: S | CI40: 830 | CJ40: =SUM(CH40:OFFSET(CH40,0,0,CJ$4,1))/(SUM(CH40:OFFSET(CH40,0,0,CJ$4,1))+SUM(CI40:OFFSET(CI40,0,0,CJ$4,1)))*100 -> 5.952380952 | CK40: =SUM(CH40:OFFSET(CH40,0,0,CK$4,1))/(SUM(CH40:OFFSET(CH40,0,0,CK$4,1))+SUM(CI40:OFFSET(CI40,0,0,CK$4,1)))*100 -> 18.53146853 | CL40: 26730 | CM40: 26620 | CN40: 26410 | CO40: 26300 | CP40: 26090 | CQ40: 25980 | CR40: 25770 | CS40: =BN40+3*STDEVP($E40:OFFSET($E40,0,0,BN$4,1)) -> 29663.48853 | CT40: =BN40+2*STDEVP($E40:OFFSET($E40,0,0,BN$4,1)) -> 29067.12569 | CU40: =BN40+STDEVP($E40:OFFSET($E40,0,0,BN$4,1)) -> 28470.76284 | CV40: =BN40-STDEVP($E40:OFFSET($E40,0,0,BN$4,1)) -> 27278.03716 | CW40: =BN40-2*STDEVP($E40:OFFSET($E40,0,0,BN$4,1)) -> 26681.67431 | CX40: =BN40-3*STDEVP($E40:OFFSET($E40,0,0,BN$4,1)) -> 26085.31147 | CZ40: B0 | DA40: B0 | DB40: 0 | DC40: -93.33333333 | DD40: 27074 | DE40: 27883.2 | DF40: 27440.66667 | DG40: 27302.4 | DH40: 27353.8 | DI40: 27435 | DJ40: 27665 | DK40: 28115 | DL40: 27340 | DM40: 29702.23742 | DN40: 29129.49161 | DO40: 28556.74581 | DP40: 27411.25419 | DQ40: 26838.50839 | DR40: 26265.76258 | DS40: L | DT40: S | FI40: 1 | FJ40: 1 | FK40: 1 | FL40: 1 | FM40: 1 | FN40: 1 | FO40: 1 | FP40: 1 | FQ40: 1 | FR40: 1 | FS40: 1 | FT40: 1 | FU40: 1 | FV40: 1 | FW40: 1 | FX40: 1 | FY40: 1 | FZ40: 1 | GA40: 1 | GB40: 1 | GC40: 1 | GD40: 1 | GE40: 1 | GF40: 1 | GG40: 1 | GH40: 1 | GI40: 1 | GJ40: 1 | GK40: 1 | GL40: 1 | GM40: 1 | GN40: 1 | GO40: 1 | GP40: 1 | GQ40: 1 | GR40: 1 | GS40: 1 | GT40: 1 | GU40: 1 | GV40: 1 | GW40: 1 | GX40: 1 | GY40: 1 | GZ40: 1 | HA40: 1 | HB40: 1 | HC40: 1 | HD40: 1 | HE40: 1 | HF40: 1 | HG40: 1 | HH40: 1 | HI40: 1 | HJ40: 1 | HK40: 1 | HL40: 1 | HM40: 0 | HN40: 1 | HO40: 1 | HP40: 1 | HQ40: 1 | HR40: 1 | HS40: 1 | HT40: 1 | HU40: 1 | HV40: 1 | HW40: 1 | HX40: 1 | HY40: 1 | HZ40: 1 | IA40: 1 | IH40: 0 | II40: 0 | IJ40: 0 | IK40: 0 | IL40: 0 | IM40: 0 | IN40: 0 | IO40: 0 | IP40: 0 | IQ40: 0 | IR40: 0 | IS40: 0 | IT40: 0 | IU40: 0 | IV40: 0 | IW40: 0 | IX40: 0 | IY40: 0 | IZ40: 0 | JA40: 0 | JB40: 0 | JC40: 0 | JD40: 0 | JE40: 0 | JF40: 0 | JG40: 0 | JH40: 0 | JI40: 0 | JJ40: 0 | JK40: 0 | JL40: 0 | JM40: 0 | JN40: 0 | JO40: 0 | JP40: 0 | JQ40: 0 | JR40: 0 | JS40: 0 | JT40: 0 | JU40: 0 | JV40: 0 | JW40: 0 | JX40: 0 | JY40: 0 | JZ40: 0 | KA40: 0 | KB40: 0 | KC40: 0 | KD40: 0 | KE40: 0 | KF40: 0 | KG40: 0 | KH40: 0 | KI40: 0 | KJ40: 0 | KK40: 0 | KL40: 0 | KM40: 0 | KN40: 0 | KO40: 0 | KP40: 0 | KQ40: 0 | KR40: 0 | KS40: 0 | KT40: 0 | KU40: 0 | KV40: 0 | KW40: 0 | KX40: 0 | KY40: 0 | KZ40: 0 | LB40: 0 | LC40: 0 | LD40: 0 | MJ40: 2022-09-26
A41: 2022-09-22 | B41: 26850 | C41: 27030 | D41: 26720 | E41: 27030 | F41: 52670 | G41: 26850 | H41: 26850 | I41: 26820 | J41: 26840 | K41: 26830 | L41: 26890 | M41: 26810 | N41: 26850 | O41: 26850 | P41: 26870 | Q41: 26790 | R41: 26820 | S41: 26830 | T41: 26870 | U41: 26770 | V41: 26850 | W41: 26850 | X41: 26880 | Y41: 26720 | Z41: 26750 | AA41: 26750 | AB41: 26790 | AC41: 26720 | AD41: 26790 | AE41: 26790 | AF41: 26850 | AG41: 26770 | AH41: 26810 | AI41: 26810 | AJ41: 26930 | AK41: 26800 | AL41: 26850 | AM41: 26850 | AN41: 26880 | AO41: 26820 | AP41: 26830 | AQ41: 26820 | AR41: 26880 | AS41: 26820 | AT41: 26870 | AU41: 26870 | AV41: 26980 | AW41: 26860 | AX41: 26940 | AY41: 26940 | AZ41: 26970 | BA41: 26920 | BB41: 26920 | BC41: 26920 | BD41: 26950 | BE41: 26920 | BF41: 26940 | BG41: 26930 | BH41: 27030 | BI41: 26930 | BJ41: 27030 | BK41: 27030 | BL41: 26820 | BM41: =AVERAGE($E41:OFFSET($E41,0,0,BM$4,1)) -> 27326 | BN41: =AVERAGE($E41:OFFSET($E41,0,0,BN$4,1)) -> 27984 | BO41: =AVERAGE($E41:OFFSET($E41,0,0,BO$4,1)) -> 27461.86667 | BP41: =AVERAGE($E41:OFFSET($E41,0,0,BP$4,1)) -> 27302.1 | BQ41: =AVERAGE($E41:OFFSET($E41,0,0,BQ$4,1)) -> 27359.05 | BR41: 180 | BS41: 310 | BT41: 228 | BU41: -270 | BV41: L | BW41: I | BX41: 木 | BY41: 5 | BZ41: N | CA41: 27975 | CB41: 27585 | CC41: 28105 | CD41: 27340 | CE41: 29190 | CF41: S | CG41: S | CI41: 90 | CJ41: =SUM(CH41:OFFSET(CH41,0,0,CJ$4,1))/(SUM(CH41:OFFSET(CH41,0,0,CJ$4,1))+SUM(CI41:OFFSET(CI41,0,0,CJ$4,1)))*100 -> 14.77272727 | CK41: =SUM(CH41:OFFSET(CH41,0,0,CK$4,1))/(SUM(CH41:OFFSET(CH41,0,0,CK$4,1))+SUM(CI41:OFFSET(CI41,0,0,CK$4,1)))*100 -> 25.72815534 | CL41: 27443.33333 | CM41: 27236.66667 | CN41: 27133.33333 | CO41: 26926.66667 | CP41: 26823.33333 | CQ41: 26616.66667 | CR41: 26513.33333 | CS41: =BN41+3*STDEVP($E41:OFFSET($E41,0,0,BN$4,1)) -> 29562.67286 | CT41: =BN41+2*STDEVP($E41:OFFSET($E41,0,0,BN$4,1)) -> 29036.44857 | CU41: =BN41+STDEVP($E41:OFFSET($E41,0,0,BN$4,1)) -> 28510.22429 | CV41: =BN41-STDEVP($E41:OFFSET($E41,0,0,BN$4,1)) -> 27457.77571 | CW41: =BN41-2*STDEVP($E41:OFFSET($E41,0,0,BN$4,1)) -> 26931.55143 | CX41: =BN41-3*STDEVP($E41:OFFSET($E41,0,0,BN$4,1)) -> 26405.32714 | CZ41: B1 | DA41: B1 | DB41: 0 | DC41: 53.33333333 | DD41: 27290 | DE41: 27976.8 | DF41: 27459.46667 | DG41: 27300.3 | DH41: 27358.15 | DI41: 27650 | DJ41: 27975 | DK41: 28105 | DL41: 27340 | DM41: 29691.21579 | DN41: 29150.94386 | DO41: 28610.67193 | DP41: 27530.12807 | DQ41: 26989.85614 | DR41: 26449.58421 | DS41: L | DT41: S | FI41: 1 | FJ41: 1 | FK41: 1 | FL41: 1 | FM41: 1 | FN41: 1 | FO41: 1 | FP41: 1 | FQ41: 1 | FR41: 1 | FS41: 1 | FT41: 1 | FU41: 1 | FV41: 1 | FW41: 1 | FX41: 1 | FY41: 1 | FZ41: 1 | GA41: 1 | GB41: 1 | GC41: 1 | GD41: 1 | GE41: 1 | GF41: 1 | GG41: 1 | GH41: 1 | GI41: 1 | GJ41: 1 | GK41: 1 | GL41: 1 | GM41: 1 | GN41: 1 | GO41: 1 | GP41: 1 | GQ41: 1 | GR41: 1 | GS41: 1 | GT41: 1 | GU41: 1 | GV41: 1 | GW41: 1 | GX41: 1 | GY41: 1 | GZ41: 1 | HA41: 1 | HB41: 1 | HC41: 1 | HD41: 1 | HE41: 1 | HF41: 1 | HG41: 1 | HH41: 1 | HI41: 1 | HJ41: 1 | HK41: 1 | HL41: 1 | HM41: 0 | HN41: 1 | HO41: 1 | HP41: 1 | HQ41: 1 | HR41: 1 | HS41: 1 | HT41: 1 | HU41: 1 | HV41: 1 | HW41: 1 | HX41: 1 | HY41: 1 | HZ41: 1 | IA41: 1 | IH41: 0 | II41: 0 | IJ41: 0 | IK41: 0 | IL41: 0 | IM41: 0 | IN41: 0 | IO41: 0 | IP41: 0 | IQ41: 0 | IR41: 0 | IS41: 0 | IT41: 0 | IU41: 0 | IV41: 0 | IW41: 0 | IX41: 0 | IY41: 0 | IZ41: 0 | JA41: 0 | JB41: 0 | JC41: 0 | JD41: 0 | JE41: 0 | JF41: 0 | JG41: 0 | JH41: 0 | JI41: 0 | JJ41: 0 | JK41: 0 | JL41: 0 | JM41: 0 | JN41: 0 | JO41: 0 | JP41: 0 | JQ41: 0 | JR41: 0 | JS41: 0 | JT41: 0 | JU41: 0 | JV41: 0 | JW41: 0 | JX41: 0 | JY41: 0 | JZ41: 0 | KA41: 0 | KB41: 0 | KC41: 0 | KD41: 0 | KE41: 0 | KF41: 0 | KG41: 0 | KH41: 0 | KI41: 0 | KJ41: 0 | KK41: 0 | KL41: 0 | KM41: 0 | KN41: 0 | KO41: 0 | KP41: 0 | KQ41: 0 | KR41: 0 | KS41: 0 | KT41: 0 | KU41: 0 | KV41: 0 | KW41: 0 | KX41: 0 | KY41: 0 | KZ41: 0 | LB41: 0 | LC41: 0 | LD41: 0 | MJ41: 2022-09-22
A42: 2022-09-21 | B42: 27250 | C42: 27250 | D42: 27030 | E42: 27120 | F42: 39021 | G42: 27250 | H42: 27250 | I42: 27220 | J42: 27220 | K42: 27220 | L42: 27240 | M42: 27160 | N42: 27220 | O42: 27210 | P42: 27230 | Q42: 27170 | R42: 27220 | S42: 27220 | T42: 27240 | U42: 27190 | V42: 27200 | W42: 27190 | X42: 27200 | Y42: 27080 | Z42: 27110 | AA42: 27110 | AB42: 27130 | AC42: 27060 | AD42: 27070 | AE42: 27080 | AF42: 27120 | AG42: 27070 | AH42: 27080 | AI42: 27070 | AJ42: 27110 | AK42: 27070 | AL42: 27100 | AM42: 27100 | AN42: 27100 | AO42: 27090 | AP42: 27100 | AQ42: 27090 | AR42: 27150 | AS42: 27080 | AT42: 27140 | AU42: 27140 | AV42: 27140 | AW42: 27100 | AX42: 27120 | AY42: 27120 | AZ42: 27130 | BA42: 27100 | BB42: 27110 | BC42: 27120 | BD42: 27140 | BE42: 27110 | BF42: 27140 | BG42: 27130 | BH42: 27150 | BI42: 27030 | BJ42: 27120 | BK42: 27150 | BL42: 27030 | BM42: =AVERAGE($E42:OFFSET($E42,0,0,BM$4,1)) -> 27450 | BN42: =AVERAGE($E42:OFFSET($E42,0,0,BN$4,1)) -> 28070.4 | BO42: =AVERAGE($E42:OFFSET($E42,0,0,BO$4,1)) -> 27473.6 | BP42: =AVERAGE($E42:OFFSET($E42,0,0,BP$4,1)) -> 27298.3 | BQ42: =AVERAGE($E42:OFFSET($E42,0,0,BQ$4,1)) -> 27365 | BR42: -130 | BS42: 220 | BT42: 232 | BU42: -200 | BV42: L | BW42: L | BX42: 水 | BY42: 4 | BZ42: N | CA42: 28130 | CB42: 27740 | CC42: 27925 | CD42: 27185 | CE42: 28850 | CF42: S | CG42: S | CI42: 330 | CJ42: =SUM(CH42:OFFSET(CH42,0,0,CJ$4,1))/(SUM(CH42:OFFSET(CH42,0,0,CJ$4,1))+SUM(CI42:OFFSET(CI42,0,0,CJ$4,1)))*100 -> 8.441558442 | CK42: =SUM(CH42:OFFSET(CH42,0,0,CK$4,1))/(SUM(CH42:OFFSET(CH42,0,0,CK$4,1))+SUM(CI42:OFFSET(CI42,0,0,CK$4,1)))*100 -> 43.30708661 | CL42: 27456.66667 | CM42: 27353.33333 | CN42: 27236.66667 | CO42: 27133.33333 | CP42: 27016.66667 | CQ42: 26913.33333 | CR42: 26796.66667 | CS42: =BN42+3*STDEVP($E42:OFFSET($E42,0,0,BN$4,1)) -> 29689.34366 | CT42: =BN42+2*STDEVP($E42:OFFSET($E42,0,0,BN$4,1)) -> 29149.69577 | CU42: =BN42+STDEVP($E42:OFFSET($E42,0,0,BN$4,1)) -> 28610.04789 | CV42: =BN42-STDEVP($E42:OFFSET($E42,0,0,BN$4,1)) -> 27530.75211 | CW42: =BN42-2*STDEVP($E42:OFFSET($E42,0,0,BN$4,1)) -> 26991.10423 | CX42: =BN42-3*STDEVP($E42:OFFSET($E42,0,0,BN$4,1)) -> 26451.45634 | CZ42: B2 | DA42: B2 | DB42: 0 | DC42: 26.66666667 | DD42: 27476 | DE42: 28075.6 | DF42: 27475.33333 | DG42: 27299.6 | DH42: 27365.65 | DI42: 27850 | DJ42: 28130 | DK42: 28105 | DL42: 27340 | DM42: 29732.66678 | DN42: 29201.64452 | DO42: 28670.62226 | DP42: 27608.57774 | DQ42: 27077.55548 | DR42: 26546.53322 | DS42: L | DT42: S | FI42: 1 | FJ42: 1 | FK42: 1 | FL42: 1 | FM42: 1 | FN42: 1 | FO42: 1 | FP42: 1 | FQ42: 1 | FR42: 1 | FS42: 1 | FT42: 1 | FU42: 1 | FV42: 1 | FW42: 1 | FX42: 1 | FY42: 1 | FZ42: 1 | GA42: 1 | GB42: 1 | GC42: 1 | GD42: 1 | GE42: 1 | GF42: 1 | GG42: 1 | GH42: 1 | GI42: 1 | GJ42: 1 | GK42: 1 | GL42: 1 | GM42: 1 | GN42: 1 | GO42: 1 | GP42: 1 | GQ42: 1 | GR42: 1 | GS42: 1 | GT42: 1 | GU42: 1 | GV42: 1 | GW42: 1 | GX42: 1 | GY42: 1 | GZ42: 1 | HA42: 1 | HB42: 1 | HC42: 1 | HD42: 1 | HE42: 1 | HF42: 1 | HG42: 1 | HH42: 1 | HI42: 1 | HJ42: 1 | HK42: 1 | HL42: 1 | HM42: 0 | HN42: 1 | HO42: 1 | HP42: 1 | HQ42: 1 | HR42: 1 | HS42: 1 | HT42: 1 | HU42: 1 | HV42: 1 | HW42: 1 | HX42: 1 | HY42: 1 | HZ42: 1 | IA42: 1 | IH42: 0 | II42: 0 | IJ42: 0 | IK42: 0 | IL42: 0 | IM42: 0 | IN42: 0 | IO42: 0 | IP42: 0 | IQ42: 0 | IR42: 0 | IS42: 0 | IT42: 0 | IU42: 0 | IV42: 0 | IW42: 0 | IX42: 0 | IY42: 0 | IZ42: 0 | JA42: 0 | JB42: 0 | JC42: 0 | JD42: 0 | JE42: 0 | JF42: 0 | JG42: 0 | JH42: 0 | JI42: 0 | JJ42: 0 | JK42: 0 | JL42: 0 | JM42: 0 | JN42: 0 | JO42: 0 | JP42: 0 | JQ42: 0 | JR42: 0 | JS42: 0 | JT42: 0 | JU42: 0 | JV42: 0 | JW42: 0 | JX42: 0 | JY42: 0 | JZ42: 0 | KA42: 0 | KB42: 0 | KC42: 0 | KD42: 0 | KE42: 0 | KF42: 0 | KG42: 0 | KH42: 0 | KI42: 0 | KJ42: 0 | KK42: 0 | KL42: 0 | KM42: 0 | KN42: 0 | KO42: 0 | KP42: 0 | KQ42: 0 | KR42: 0 | KS42: 0 | KT42: 0 | KU42: 0 | KV42: 0 | KW42: 0 | KX42: 0 | KY42: 0 | KZ42: 0 | LB42: 0 | LC42: 0 | LD42: 0 | MJ42: 2022-09-21
A43: 2022-09-20 | B43: 27550 | C43: 27690 | D43: 27400 | E43: 27450 | F43: 34447 | G43: 27550 | H43: 27620 | I43: 27540 | J43: 27600 | K43: 27600 | L43: 27680 | M43: 27570 | N43: 27660 | O43: 27670 | P43: 27690 | Q43: 27650 | R43: 27650 | S43: 27660 | T43: 27660 | U43: 27510 | V43: 27550 | W43: 27550 | X43: 27550 | Y43: 27430 | Z43: 27440 | AA43: 27440 | AB43: 27480 | AC43: 27400 | AD43: 27450 | AE43: 27460 | AF43: 27470 | AG43: 27430 | AH43: 27450 | AI43: 27450 | AJ43: 27450 | AK43: 27430 | AL43: 27450 | AM43: 27440 | AN43: 27440 | AO43: 27420 | AP43: 27420 | AQ43: 27430 | AR43: 27470 | AS43: 27420 | AT43: 27460 | AU43: 27470 | AV43: 27470 | AW43: 27450 | AX43: 27460 | AY43: 27460 | AZ43: 27470 | BA43: 27440 | BB43: 27450 | BC43: 27450 | BD43: 27460 | BE43: 27440 | BF43: 27460 | BG43: 27450 | BH43: 27480 | BI43: 27450 | BJ43: 27450 | BK43: 27480 | BL43: 27420 | BM43: =AVERAGE($E43:OFFSET($E43,0,0,BM$4,1)) -> 27706 | BN43: =AVERAGE($E43:OFFSET($E43,0,0,BN$4,1)) -> 28139.6 | BO43: =AVERAGE($E43:OFFSET($E43,0,0,BO$4,1)) -> 27482.53333 | BP43: =AVERAGE($E43:OFFSET($E43,0,0,BP$4,1)) -> 27292.5 | BQ43: =AVERAGE($E43:OFFSET($E43,0,0,BQ$4,1)) -> 27373.35 | BR43: -100 | BS43: 290 | BT43: 236 | BU43: 200 | BV43: H | BW43: H | BX43: 火 | BY43: 3 | BZ43: N | CA43: 28245 | CB43: 27855 | CC43: 27847.5 | CD43: 27170 | CE43: 28860 | CF43: I | CG43: S | CH43: 100 | CJ43: =SUM(CH43:OFFSET(CH43,0,0,CJ$4,1))/(SUM(CH43:OFFSET(CH43,0,0,CJ$4,1))+SUM(CI43:OFFSET(CI43,0,0,CJ$4,1)))*100 -> 20 | CK43: =SUM(CH43:OFFSET(CH43,0,0,CK$4,1))/(SUM(CH43:OFFSET(CH43,0,0,CK$4,1))+SUM(CI43:OFFSET(CI43,0,0,CK$4,1)))*100 -> 46.80851064 | CL43: 27916.66667 | CM43: 27803.33333 | CN43: 27626.66667 | CO43: 27513.33333 | CP43: 27336.66667 | CQ43: 27223.33333 | CR43: 27046.66667 | CS43: =BN43+3*STDEVP($E43:OFFSET($E43,0,0,BN$4,1)) -> 29711.70259 | CT43: =BN43+2*STDEVP($E43:OFFSET($E43,0,0,BN$4,1)) -> 29187.66839 | CU43: =BN43+STDEVP($E43:OFFSET($E43,0,0,BN$4,1)) -> 28663.6342 | CV43: =BN43-STDEVP($E43:OFFSET($E43,0,0,BN$4,1)) -> 27615.5658 | CW43: =BN43-2*STDEVP($E43:OFFSET($E43,0,0,BN$4,1)) -> 27091.53161 | CX43: =BN43-3*STDEVP($E43:OFFSET($E43,0,0,BN$4,1)) -> 26567.49741 | CY43: S3 | DA43: S3 | DB43: 3.333333333 | DC43: 0 | DD43: 27726 | DE43: 28143.6 | DF43: 27483.86667 | DG43: 27293.5 | DH43: 27373.85 | DI43: 27855 | DJ43: 28245 | DK43: 27925 | DL43: 27185 | DM43: 29753.34112 | DN43: 29234.22741 | DO43: 28715.11371 | DP43: 27676.88629 | DQ43: 27157.77259 | DR43: 26638.65888 | DS43: H | DT43: S | FI43: 1 | FJ43: 1 | FK43: 1 | FL43: 1 | FM43: 1 | FN43: 1 | FO43: 1 | FP43: 1 | FQ43: 1 | FR43: 1 | FS43: 1 | FT43: 1 | FU43: 1 | FV43: 1 | FW43: 1 | FX43: 1 | FY43: 1 | FZ43: 1 | GA43: 1 | GB43: 1 | GC43: 1 | GD43: 1 | GE43: 1 | GF43: 1 | GG43: 1 | GH43: 1 | GI43: 1 | GJ43: 1 | GK43: 1 | GL43: 1 | GM43: 1 | GN43: 1 | GO43: 1 | GP43: 1 | GQ43: 1 | GR43: 1 | GS43: 1 | GT43: 1 | GU43: 1 | GV43: 1 | GW43: 1 | GX43: 1 | GY43: 1 | GZ43: 1 | HA43: 1 | HB43: 1 | HC43: 1 | HD43: 1 | HE43: 1 | HF43: 1 | HG43: 1 | HH43: 1 | HI43: 1 | HJ43: 1 | HK43: 1 | HL43: 1 | HM43: 0 | HN43: 1 | HO43: 1 | HP43: 1 | HQ43: 1 | HR43: 1 | HS43: 1 | HT43: 1 | HU43: 1 | HV43: 1 | HW43: 1 | HX43: 1 | HY43: 1 | HZ43: 1 | IA43: 1 | IH43: 0 | II43: 0 | IJ43: 0 | IK43: 0 | IL43: 0 | IM43: 0 | IN43: 0 | IO43: 0 | IP43: 0 | IQ43: 0 | IR43: 0 | IS43: 0 | IT43: 0 | IU43: 0 | IV43: 0 | IW43: 0 | IX43: 0 | IY43: 0 | IZ43: 0 | JA43: 0 | JB43: 0 | JC43: 0 | JD43: 0 | JE43: 0 | JF43: 0 | JG43: 0 | JH43: 0 | JI43: 0 | JJ43: 0 | JK43: 0 | JL43: 0 | JM43: 0 | JN43: 0 | JO43: 0 | JP43: 0 | JQ43: 0 | JR43: 0 | JS43: 0 | JT43: 0 | JU43: 0 | JV43: 0 | JW43: 0 | JX43: 0 | JY43: 0 | JZ43: 0 | KA43: 0 | KB43: 0 | KC43: 0 | KD43: 0 | KE43: 0 | KF43: 0 | KG43: 0 | KH43: 0 | KI43: 0 | KJ43: 0 | KK43: 0 | KL43: 0 | KM43: 0 | KN43: 0 | KO43: 0 | KP43: 0 | KQ43: 0 | KR43: 0 | KS43: 0 | KT43: 0 | KU43: 0 | KV43: 0 | KW43: 0 | KX43: 0 | KY43: 0 | KZ43: 0 | LB43: 0 | LC43: 0 | LD43: 0 | MJ43: 2022-09-20
A44: 2022-09-16 | B44: 27370 | C44: 27420 | D44: 27290 | E44: 27350 | F44: 35515 | G44: 27370 | H44: 27400 | I44: 27330 | J44: 27390 | K44: 27390 | L44: 27420 | M44: 27360 | N44: 27360 | O44: 27360 | P44: 27410 | Q44: 27350 | R44: 27370 | S44: 27370 | T44: 27390 | U44: 27310 | V44: 27310 | W44: 27310 | X44: 27330 | Y44: 27290 | Z44: 27310 | AA44: 27300 | AB44: 27350 | AC44: 27300 | AD44: 27320 | AE44: 27320 | AF44: 27360 | AG44: 27320 | AH44: 27340 | AI44: 27330 | AJ44: 27370 | AK44: 27330 | AL44: 27360 | AM44: 27360 | AN44: 27360 | AO44: 27330 | AP44: 27350 | AQ44: 27350 | AR44: 27370 | AS44: 27320 | AT44: 27350 | AU44: 27350 | AV44: 27350 | AW44: 27320 | AX44: 27330 | AY44: 27330 | AZ44: 27370 | BA44: 27330 | BB44: 27360 | BC44: 27370 | BD44: 27380 | BE44: 27350 | BF44: 27370 | BG44: 27370 | BH44: 27370 | BI44: 27340 | BJ44: 27350 | BK44: 27380 | BL44: 27320 | BM44: =AVERAGE($E44:OFFSET($E44,0,0,BM$4,1)) -> 27868 | BN44: =AVERAGE($E44:OFFSET($E44,0,0,BN$4,1)) -> 28196 | BO44: =AVERAGE($E44:OFFSET($E44,0,0,BO$4,1)) -> 27482.66667 | BP44: =AVERAGE($E44:OFFSET($E44,0,0,BP$4,1)) -> 27289 | BQ44: =AVERAGE($E44:OFFSET($E44,0,0,BQ$4,1)) -> 27383.7 | BR44: -20 | BS44: 130 | BT44: 225 | BU44: -310 | BV44: L | BW44: L | BX44: 金 | BY44: 6 | BZ44: N | CA44: 28245 | CB44: 27855 | CC44: 27645 | CD44: 26995 | CE44: 28540 | CF44: I | CG44: S | CI44: 330 | CJ44: =SUM(CH44:OFFSET(CH44,0,0,CJ$4,1))/(SUM(CH44:OFFSET(CH44,0,0,CJ$4,1))+SUM(CI44:OFFSET(CI44,0,0,CJ$4,1)))*100 -> 28.47682119 | CK44: =SUM(CH44:OFFSET(CH44,0,0,CK$4,1))/(SUM(CH44:OFFSET(CH44,0,0,CK$4,1))+SUM(CI44:OFFSET(CI44,0,0,CK$4,1)))*100 -> 43.66812227 | CL44: 27546.66667 | CM44: 27483.33333 | CN44: 27416.66667 | CO44: 27353.33333 | CP44: 27286.66667 | CQ44: 27223.33333 | CR44: 27156.66667 | CS44: =BN44+3*STDEVP($E44:OFFSET($E44,0,0,BN$4,1)) -> 29763.96429 | CT44: =BN44+2*STDEVP($E44:OFFSET($E44,0,0,BN$4,1)) -> 29241.30952 | CU44: =BN44+STDEVP($E44:OFFSET($E44,0,0,BN$4,1)) -> 28718.65476 | CV44: =BN44-STDEVP($E44:OFFSET($E44,0,0,BN$4,1)) -> 27673.34524 | CW44: =BN44-2*STDEVP($E44:OFFSET($E44,0,0,BN$4,1)) -> 27150.69048 | CX44: =BN44-3*STDEVP($E44:OFFSET($E44,0,0,BN$4,1)) -> 26628.03571 | CZ44: B0 | DA44: B0 | DB44: 0 | DC44: -60 | DD44: 27872 | DE44: 28196.8 | DF44: 27482.93333 | DG44: 27289.2 | DH44: 27383.8 | DI44: 27855 | DJ44: 28245 | DK44: 27847.5 | DL44: 27170 | DM44: 29807.71887 | DN44: 29286.34591 | DO44: 28764.97296 | DP44: 27722.22704 | DQ44: 27200.85409 | DR44: 26679.48113 | DS44: L | DT44: S | FI44: 1 | FJ44: 1 | FK44: 1 | FL44: 1 | FM44: 1 | FN44: 1 | FO44: 1 | FP44: 1 | FQ44: 1 | FR44: 1 | FS44: 1 | FT44: 1 | FU44: 1 | FV44: 1 | FW44: 1 | FX44: 1 | FY44: 1 | FZ44: 1 | GA44: 1 | GB44: 1 | GC44: 1 | GD44: 1 | GE44: 1 | GF44: 1 | GG44: 1 | GH44: 1 | GI44: 1 | GJ44: 1 | GK44: 1 | GL44: 1 | GM44: 1 | GN44: 1 | GO44: 1 | GP44: 1 | GQ44: 1 | GR44: 1 | GS44: 1 | GT44: 1 | GU44: 1 | GV44: 1 | GW44: 1 | GX44: 1 | GY44: 1 | GZ44: 1 | HA44: 1 | HB44: 1 | HC44: 1 | HD44: 1 | HE44: 1 | HF44: 1 | HG44: 1 | HH44: 1 | HI44: 1 | HJ44: 1 | HK44: 1 | HL44: 1 | HM44: 0 | HN44: 1 | HO44: 1 | HP44: 1 | HQ44: 1 | HR44: 1 | HS44: 1 | HT44: 1 | HU44: 1 | HV44: 1 | HW44: 1 | HX44: 1 | HY44: 1 | HZ44: 1 | IA44: 1 | IH44: 0 | II44: 0 | IJ44: 0 | IK44: 0 | IL44: 0 | IM44: 0 | IN44: 0 | IO44: 0 | IP44: 0 | IQ44: 0 | IR44: 0 | IS44: 0 | IT44: 0 | IU44: 0 | IV44: 0 | IW44: 0 | IX44: 0 | IY44: 0 | IZ44: 0 | JA44: 0 | JB44: 0 | JC44: 0 | JD44: 0 | JE44: 0 | JF44: 0 | JG44: 0 | JH44: 0 | JI44: 0 | JJ44: 0 | JK44: 0 | JL44: 0 | JM44: 0 | JN44: 0 | JO44: 0 | JP44: 0 | JQ44: 0 | JR44: 0 | JS44: 0 | JT44: 0 | JU44: 0 | JV44: 0 | JW44: 0 | JX44: 0 | JY44: 0 | JZ44: 0 | KA44: 0 | KB44: 0 | KC44: 0 | KD44: 0 | KE44: 0 | KF44: 0 | KG44: 0 | KH44: 0 | KI44: 0 | KJ44: 0 | KK44: 0 | KL44: 0 | KM44: 0 | KN44: 0 | KO44: 0 | KP44: 0 | KQ44: 0 | KR44: 0 | KS44: 0 | KT44: 0 | KU44: 0 | KV44: 0 | KW44: 0 | KX44: 0 | KY44: 0 | KZ44: 0 | LB44: 0 | LC44: 0 | LD44: 0 | MJ44: 2022-09-16
A45: 2022-09-15 | B45: 27690 | C45: 27730 | D45: 27570 | E45: 27680 | F45: 31998 | G45: 27690 | H45: 27700 | I45: 27640 | J45: 27650 | K45: 27650 | L45: 27670 | M45: 27610 | N45: 27650 | O45: 27650 | P45: 27660 | Q45: 27590 | R45: 27600 | S45: 27600 | T45: 27660 | U45: 27580 | V45: 27650 | W45: 27650 | X45: 27650 | Y45: 27570 | Z45: 27610 | AA45: 27610 | AB45: 27670 | AC45: 27600 | AD45: 27670 | AE45: 27680 | AF45: 27720 | AG45: 27670 | AH45: 27720 | AI45: 27720 | AJ45: 27730 | AK45: 27690 | AL45: 27710 | AM45: 27710 | AN45: 27720 | AO45: 27690 | AP45: 27710 | AQ45: 27710 | AR45: 27710 | AS45: 27650 | AT45: 27650 | AU45: 27660 | AV45: 27670 | AW45: 27640 | AX45: 27650 | AY45: 27640 | AZ45: 27670 | BA45: 27640 | BB45: 27670 | BC45: 27660 | BD45: 27660 | BE45: 27640 | BF45: 27640 | BG45: 27640 | BH45: 27680 | BI45: 27630 | BJ45: 27680 | BK45: 27720 | BL45: 27630 | BM45: =AVERAGE($E45:OFFSET($E45,0,0,BM$4,1)) -> 27998 | BN45: =AVERAGE($E45:OFFSET($E45,0,0,BN$4,1)) -> 28243.6 | BO45: =AVERAGE($E45:OFFSET($E45,0,0,BO$4,1)) -> 27484.66667 | BP45: =AVERAGE($E45:OFFSET($E45,0,0,BP$4,1)) -> 27290.7 | BQ45: =AVERAGE($E45:OFFSET($E45,0,0,BQ$4,1)) -> 27393.8 | BR45: -10 | BS45: 160 | BT45: 236 | BU45: 40 | BV45: I | BW45: I | BX45: 木 | BY45: 5 | BZ45: N | CA45: 28245 | CB45: 27855 | CC45: 27505 | CD45: 26925 | CE45: 27790 | CF45: L | CG45: S | CH45: 30 | CJ45: =SUM(CH45:OFFSET(CH45,0,0,CJ$4,1))/(SUM(CH45:OFFSET(CH45,0,0,CJ$4,1))+SUM(CI45:OFFSET(CI45,0,0,CJ$4,1)))*100 -> 35.53719008 | CK45: =SUM(CH45:OFFSET(CH45,0,0,CK$4,1))/(SUM(CH45:OFFSET(CH45,0,0,CK$4,1))+SUM(CI45:OFFSET(CI45,0,0,CK$4,1)))*100 -> 50.50505051 | CL45: 27910 | CM45: 27820 | CN45: 27750 | CO45: 27660 | CP45: 27590 | CQ45: 27500 | CR45: 27430 | CS45: =BN45+3*STDEVP($E45:OFFSET($E45,0,0,BN$4,1)) -> 29734.59408 | CT45: =BN45+2*STDEVP($E45:OFFSET($E45,0,0,BN$4,1)) -> 29237.59606 | CU45: =BN45+STDEVP($E45:OFFSET($E45,0,0,BN$4,1)) -> 28740.59803 | CV45: =BN45-STDEVP($E45:OFFSET($E45,0,0,BN$4,1)) -> 27746.60197 | CW45: =BN45-2*STDEVP($E45:OFFSET($E45,0,0,BN$4,1)) -> 27249.60394 | CX45: =BN45-3*STDEVP($E45:OFFSET($E45,0,0,BN$4,1)) -> 26752.60592 | CY45: S0 | DA45: S0 | DB45: 26.66666667 | DC45: 0 | DD45: 28000 | DE45: 28244 | DF45: 27484.8 | DG45: 27290.8 | DH45: 27393.85 | DI45: 27855 | DJ45: 28245 | DK45: 27645 | DL45: 26995 | DM45: 29737.64425 | DN45: 29241.09617 | DO45: 28744.54808 | DP45: 27751.45192 | DQ45: 27254.90383 | DR45: 26758.35575 | DS45: I | DT45: S | FI45: 1 | FJ45: 1 | FK45: 1 | FL45: 1 | FM45: 1 | FN45: 1 | FO45: 1 | FP45: 1 | FQ45: 1 | FR45: 1 | FS45: 1 | FT45: 1 | FU45: 1 | FV45: 1 | FW45: 1 | FX45: 1 | FY45: 1 | FZ45: 1 | GA45: 1 | GB45: 1 | GC45: 1 | GD45: 1 | GE45: 1 | GF45: 1 | GG45: 1 | GH45: 1 | GI45: 1 | GJ45: 1 | GK45: 1 | GL45: 1 | GM45: 1 | GN45: 1 | GO45: 1 | GP45: 1 | GQ45: 1 | GR45: 1 | GS45: 1 | GT45: 1 | GU45: 1 | GV45: 1 | GW45: 1 | GX45: 1 | GY45: 1 | GZ45: 1 | HA45: 1 | HB45: 1 | HC45: 1 | HD45: 1 | HE45: 1 | HF45: 1 | HG45: 1 | HH45: 1 | HI45: 1 | HJ45: 1 | HK45: 1 | HL45: 1 | HM45: 0 | HN45: 1 | HO45: 1 | HP45: 1 | HQ45: 1 | HR45: 1 | HS45: 1 | HT45: 1 | HU45: 1 | HV45: 1 | HW45: 1 | HX45: 1 | HY45: 1 | HZ45: 1 | IA45: 1 | IH45: 0 | II45: 0 | IJ45: 0 | IK45: 0 | IL45: 0 | IM45: 0 | IN45: 0 | IO45: 0 | IP45: 0 | IQ45: 0 | IR45: 0 | IS45: 0 | IT45: 0 | IU45: 0 | IV45: 0 | IW45: 0 | IX45: 0 | IY45: 0 | IZ45: 0 | JA45: 0 | JB45: 0 | JC45: 0 | JD45: 0 | JE45: 0 | JF45: 0 | JG45: 0 | JH45: 0 | JI45: 0 | JJ45: 0 | JK45: 0 | JL45: 0 | JM45: 0 | JN45: 0 | JO45: 0 | JP45: 0 | JQ45: 0 | JR45: 0 | JS45: 0 | JT45: 0 | JU45: 0 | JV45: 0 | JW45: 0 | JX45: 0 | JY45: 0 | JZ45: 0 | KA45: 0 | KB45: 0 | KC45: 0 | KD45: 0 | KE45: 0 | KF45: 0 | KG45: 0 | KH45: 0 | KI45: 0 | KJ45: 0 | KK45: 0 | KL45: 0 | KM45: 0 | KN45: 0 | KO45: 0 | KP45: 0 | KQ45: 0 | KR45: 0 | KS45: 0 | KT45: 0 | KU45: 0 | KV45: 0 | KW45: 0 | KX45: 0 | KY45: 0 | KZ45: 0 | LB45: 0 | LC45: 0 | LD45: 0 | MJ45: 2022-09-15
A46: 2022-09-14 | B46: 27540 | C46: 27800 | D46: 27540 | E46: 27650 | F46: 67772 | G46: 27540 | H46: 27640 | I46: 27540 | J46: 27630 | K46: 27620 | L46: 27630 | M46: 27560 | N46: 27590 | O46: 27590 | P46: 27610 | Q46: 27570 | R46: 27600 | S46: 27600 | T46: 27670 | U46: 27580 | V46: 27660 | W46: 27650 | X46: 27790 | Y46: 27650 | Z46: 27790 | AA46: 27780 | AB46: 27800 | AC46: 27710 | AD46: 27730 | AE46: 27740 | AF46: 27790 | AG46: 27730 | AH46: 27770 | AI46: 27770 | AJ46: 27800 | AK46: 27760 | AL46: 27780 | AM46: 27780 | AN46: 27790 | AO46: 27750 | AP46: 27770 | AQ46: 27770 | AR46: 27770 | AS46: 27660 | AT46: 27670 | AU46: 27680 | AV46: 27680 | AW46: 27650 | AX46: 27670 | AY46: 27660 | AZ46: 27670 | BA46: 27570 | BB46: 27610 | BC46: 27620 | BD46: 27630 | BE46: 27580 | BF46: 27620 | BG46: 27620 | BH46: 27650 | BI46: 27600 | BJ46: 27650 | BK46: 27790 | BL46: 27570 | BM46: =AVERAGE($E46:OFFSET($E46,0,0,BM$4,1)) -> 28068 | BN46: =AVERAGE($E46:OFFSET($E46,0,0,BN$4,1)) -> 28248 | BO46: =AVERAGE($E46:OFFSET($E46,0,0,BO$4,1)) -> 27479.06667 | BP46: =AVERAGE($E46:OFFSET($E46,0,0,BP$4,1)) -> 27285.7 | BQ46: =AVERAGE($E46:OFFSET($E46,0,0,BQ$4,1)) -> 27404.35 | BR46: 110 | BS46: 260 | BT46: 244 | BU46: -860 | BV46: L | BW46: L | BX46: 水 | BY46: 4 | BZ46: S | CA46: 28245 | CB46: 27855 | CC46: 27487.5 | CD46: 26925 | CE46: 27960 | CF46: L | CG46: S | CI46: 750 | CJ46: =SUM(CH46:OFFSET(CH46,0,0,CJ$4,1))/(SUM(CH46:OFFSET(CH46,0,0,CJ$4,1))+SUM(CI46:OFFSET(CI46,0,0,CJ$4,1)))*100 -> 55.42857143 | CK46: =SUM(CH46:OFFSET(CH46,0,0,CK$4,1))/(SUM(CH46:OFFSET(CH46,0,0,CK$4,1))+SUM(CI46:OFFSET(CI46,0,0,CK$4,1)))*100 -> 50.50505051 | CL46: 28046.66667 | CM46: 27923.33333 | CN46: 27786.66667 | CO46: 27663.33333 | CP46: 27526.66667 | CQ46: 27403.33333 | CR46: 27266.66667 | CS46: =BN46+3*STDEVP($E46:OFFSET($E46,0,0,BN$4,1)) -> 29725.36522 | CT46: =BN46+2*STDEVP($E46:OFFSET($E46,0,0,BN$4,1)) -> 29232.91015 | CU46: =BN46+STDEVP($E46:OFFSET($E46,0,0,BN$4,1)) -> 28740.45507 | CV46: =BN46-STDEVP($E46:OFFSET($E46,0,0,BN$4,1)) -> 27755.54493 | CW46: =BN46-2*STDEVP($E46:OFFSET($E46,0,0,BN$4,1)) -> 27263.08985 | CX46: =BN46-3*STDEVP($E46:OFFSET($E46,0,0,BN$4,1)) -> 26770.63478 | CZ46: B0 | DA46: B0 | DB46: 0 | DC46: -643.3333333 | DD46: 28046 | DE46: 28243.6 | DF46: 27477.6 | DG46: 27284.6 | DH46: 27403.8 | DI46: 27855 | DJ46: 28245 | DK46: 27505 | DL46: 26925 | DM46: 29755.10778 | DN46: 29256.87186 | DO46: 28758.63593 | DP46: 27762.16407 | DQ46: 27263.92814 | DR46: 26765.69222 | DS46: L | DT46: S | FI46: 1 | FJ46: 1 | FK46: 1 | FL46: 1 | FM46: 1 | FN46: 1 | FO46: 1 | FP46: 1 | FQ46: 1 | FR46: 1 | FS46: 1 | FT46: 1 | FU46: 1 | FV46: 1 | FW46: 1 | FX46: 1 | FY46: 1 | FZ46: 1 | GA46: 1 | GB46: 1 | GC46: 1 | GD46: 1 | GE46: 1 | GF46: 1 | GG46: 1 | GH46: 1 | GI46: 1 | GJ46: 1 | GK46: 1 | GL46: 1 | GM46: 1 | GN46: 1 | GO46: 1 | GP46: 1 | GQ46: 1 | GR46: 1 | GS46: 1 | GT46: 1 | GU46: 1 | GV46: 1 | GW46: 1 | GX46: 1 | GY46: 1 | GZ46: 1 | HA46: 1 | HB46: 1 | HC46: 1 | HD46: 1 | HE46: 1 | HF46: 1 | HG46: 1 | HH46: 1 | HI46: 1 | HJ46: 1 | HK46: 1 | HL46: 1 | HM46: 0 | HN46: 1 | HO46: 1 | HP46: 1 | HQ46: 1 | HR46: 1 | HS46: 1 | HT46: 1 | HU46: 1 | HV46: 1 | HW46: 1 | HX46: 1 | HY46: 1 | HZ46: 1 | IA46: 1 | IH46: 0 | II46: 0 | IJ46: 0 | IK46: 0 | IL46: 0 | IM46: 0 | IN46: 0 | IO46: 0 | IP46: 0 | IQ46: 0 | IR46: 0 | IS46: 0 | IT46: 0 | IU46: 0 | IV46: 0 | IW46: 0 | IX46: 0 | IY46: 0 | IZ46: 0 | JA46: 0 | JB46: 0 | JC46: 0 | JD46: 0 | JE46: 0 | JF46: 0 | JG46: 0 | JH46: 0 | JI46: 0 | JJ46: 0 | JK46: 0 | JL46: 0 | JM46: 0 | JN46: 0 | JO46: 0 | JP46: 0 | JQ46: 0 | JR46: 0 | JS46: 0 | JT46: 0 | JU46: 0 | JV46: 0 | JW46: 0 | JX46: 0 | JY46: 0 | JZ46: 0 | KA46: 0 | KB46: 0 | KC46: 0 | KD46: 0 | KE46: 0 | KF46: 0 | KG46: 0 | KH46: 0 | KI46: 0 | KJ46: 0 | KK46: 0 | KL46: 0 | KM46: 0 | KN46: 0 | KO46: 0 | KP46: 0 | KQ46: 0 | KR46: 0 | KS46: 0 | KT46: 0 | KU46: 0 | KV46: 0 | KW46: 0 | KX46: 0 | KY46: 0 | KZ46: 0 | LB46: 0 | LC46: 0 | LD46: 0 | MJ46: 2022-09-14
A47: 2022-09-13 | B47: 28360 | C47: 28450 | D47: 28310 | E47: 28400 | F47: 28574 | G47: 28360 | H47: 28380 | I47: 28340 | J47: 28350 | K47: 28350 | L47: 28430 | M47: 28330 | N47: 28330 | O47: 28330 | P47: 28400 | Q47: 28310 | R47: 28380 | S47: 28390 | T47: 28450 | U47: 28370 | V47: 28400 | W47: 28400 | X47: 28440 | Y47: 28400 | Z47: 28410 | AA47: 28420 | AB47: 28420 | AC47: 28370 | AD47: 28380 | AE47: 28390 | AF47: 28390 | AG47: 28350 | AH47: 28360 | AI47: 28370 | AJ47: 28380 | AK47: 28360 | AL47: 28380 | AM47: 28380 | AN47: 28390 | AO47: 28360 | AP47: 28360 | AQ47: 28370 | AR47: 28380 | AS47: 28350 | AT47: 28370 | AU47: 28380 | AV47: 28380 | AW47: 28350 | AX47: 28370 | AY47: 28380 | AZ47: 28380 | BA47: 28370 | BB47: 28370 | BC47: 28370 | BD47: 28380 | BE47: 28350 | BF47: 28370 | BG47: 28360 | BH47: 28410 | BI47: 28360 | BJ47: 28400 | BK47: 28410 | BL47: 28350 | BM47: =AVERAGE($E47:OFFSET($E47,0,0,BM$4,1)) -> 28030 | BN47: =AVERAGE($E47:OFFSET($E47,0,0,BN$4,1)) -> 28260.4 | BO47: =AVERAGE($E47:OFFSET($E47,0,0,BO$4,1)) -> 27475.73333 | BP47: =AVERAGE($E47:OFFSET($E47,0,0,BP$4,1)) -> 27279.7 | BQ47: =AVERAGE($E47:OFFSET($E47,0,0,BQ$4,1)) -> 27415 | BR47: 40 | BS47: 140 | BT47: 243 | BU47: 100 | BV47: I | BW47: I | BX47: 火 | BY47: 3 | BZ47: S | CA47: 28245 | CB47: 27855 | CC47: 27455 | CD47: 26925 | CE47: 28240 | CF47: L | CG47: S | CH47: 140 | CJ47: =SUM(CH47:OFFSET(CH47,0,0,CJ$4,1))/(SUM(CH47:OFFSET(CH47,0,0,CJ$4,1))+SUM(CI47:OFFSET(CI47,0,0,CJ$4,1)))*100 -> 85.0877193 | CK47: =SUM(CH47:OFFSET(CH47,0,0,CK$4,1))/(SUM(CH47:OFFSET(CH47,0,0,CK$4,1))+SUM(CI47:OFFSET(CI47,0,0,CK$4,1)))*100 -> 58.13953488 | CL47: 28603.33333 | CM47: 28526.66667 | CN47: 28463.33333 | CO47: 28386.66667 | CP47: 28323.33333 | CQ47: 28246.66667 | CR47: 28183.33333 | CS47: =BN47+3*STDEVP($E47:OFFSET($E47,0,0,BN$4,1)) -> 29703.4338 | CT47: =BN47+2*STDEVP($E47:OFFSET($E47,0,0,BN$4,1)) -> 29222.42254 | CU47: =BN47+STDEVP($E47:OFFSET($E47,0,0,BN$4,1)) -> 28741.41127 | CV47: =BN47-STDEVP($E47:OFFSET($E47,0,0,BN$4,1)) -> 27779.38873 | CW47: =BN47-2*STDEVP($E47:OFFSET($E47,0,0,BN$4,1)) -> 27298.37746 | CX47: =BN47-3*STDEVP($E47:OFFSET($E47,0,0,BN$4,1)) -> 26817.3662 | CY47: S0 | DA47: S0 | DB47: 70 | DC47: 0 | DD47: 28022 | DE47: 28258.8 | DF47: 27475.2 | DG47: 27279.3 | DH47: 27414.8 | DI47: 27830 | DJ47: 28245 | DK47: 27487.5 | DL47: 26925 | DM47: 29695.83183 | DN47: 29215.22122 | DO47: 28734.61061 | DP47: 27773.38939 | DQ47: 27292.77878 | DR47: 26812.16817 | DS47: H | DT47: S | FI47: 1 | FJ47: 1 | FK47: 1 | FL47: 1 | FM47: 1 | FN47: 1 | FO47: 1 | FP47: 1 | FQ47: 1 | FR47: 1 | FS47: 1 | FT47: 1 | FU47: 1 | FV47: 1 | FW47: 1 | FX47: 1 | FY47: 1 | FZ47: 1 | GA47: 1 | GB47: 1 | GC47: 1 | GD47: 1 | GE47: 1 | GF47: 1 | GG47: 1 | GH47: 1 | GI47: 1 | GJ47: 1 | GK47: 1 | GL47: 1 | GM47: 1 | GN47: 1 | GO47: 1 | GP47: 1 | GQ47: 1 | GR47: 1 | GS47: 1 | GT47: 1 | GU47: 1 | GV47: 1 | GW47: 1 | GX47: 1 | GY47: 1 | GZ47: 1 | HA47: 1 | HB47: 1 | HC47: 1 | HD47: 1 | HE47: 1 | HF47: 1 | HG47: 1 | HH47: 1 | HI47: 1 | HJ47: 1 | HK47: 1 | HL47: 1 | HM47: 0 | HN47: 1 | HO47: 1 | HP47: 1 | HQ47: 1 | HR47: 1 | HS47: 1 | HT47: 1 | HU47: 1 | HV47: 1 | HW47: 1 | HX47: 1 | HY47: 1 | HZ47: 1 | IA47: 1 | IH47: 0 | II47: 0 | IJ47: 0 | IK47: 0 | IL47: 0 | IM47: 0 | IN47: 0 | IO47: 0 | IP47: 0 | IQ47: 0 | IR47: 0 | IS47: 0 | IT47: 0 | IU47: 0 | IV47: 0 | IW47: 0 | IX47: 0 | IY47: 0 | IZ47: 0 | JA47: 0 | JB47: 0 | JC47: 0 | JD47: 0 | JE47: 0 | JF47: 0 | JG47: 0 | JH47: 0 | JI47: 0 | JJ47: 0 | JK47: 0 | JL47: 0 | JM47: 0 | JN47: 0 | JO47: 0 | JP47: 0 | JQ47: 0 | JR47: 0 | JS47: 0 | JT47: 0 | JU47: 0 | JV47: 0 | JW47: 0 | JX47: 0 | JY47: 0 | JZ47: 0 | KA47: 0 | KB47: 0 | KC47: 0 | KD47: 0 | KE47: 0 | KF47: 0 | KG47: 0 | KH47: 0 | KI47: 0 | KJ47: 0 | KK47: 0 | KL47: 0 | KM47: 0 | KN47: 0 | KO47: 0 | KP47: 0 | KQ47: 0 | KR47: 0 | KS47: 0 | KT47: 0 | KU47: 0 | KV47: 0 | KW47: 0 | KX47: 0 | KY47: 0 | KZ47: 0 | LB47: 0 | LC47: 0 | LD47: 0 | MJ47: 2022-09-13
A48: 2022-09-12 | B48: 28250 | C48: 28400 | D48: 28210 | E48: 28260 | F48: 28184 | G48: 28250 | H48: 28310 | I48: 28250 | J48: 28290 | K48: 28290 | L48: 28340 | M48: 28240 | N48: 28310 | O48: 28320 | P48: 28350 | Q48: 28310 | R48: 28340 | S48: 28340 | T48: 28400 | U48: 28330 | V48: 28330 | W48: 28340 | X48: 28340 | Y48: 28210 | Z48: 28270 | AA48: 28280 | AB48: 28330 | AC48: 28280 | AD48: 28330 | AE48: 28330 | AF48: 28340 | AG48: 28290 | AH48: 28300 | AI48: 28310 | AJ48: 28310 | AK48: 28280 | AL48: 28310 | AM48: 28310 | AN48: 28310 | AO48: 28300 | AP48: 28310 | AQ48: 28310 | AR48: 28330 | AS48: 28290 | AT48: 28300 | AU48: 28300 | AV48: 28310 | AW48: 28270 | AX48: 28280 | AY48: 28270 | AZ48: 28300 | BA48: 28270 | BB48: 28300 | BC48: 28290 | BD48: 28300 | BE48: 28270 | BF48: 28280 | BG48: 28270 | BH48: 28310 | BI48: 28260 | BJ48: 28260 | BK48: 28330 | BL48: 28260 | BM48: =AVERAGE($E48:OFFSET($E48,0,0,BM$4,1)) -> 27870 | BN48: =AVERAGE($E48:OFFSET($E48,0,0,BN$4,1)) -> 28254 | BO48: =AVERAGE($E48:OFFSET($E48,0,0,BO$4,1)) -> 27454.53333 | BP48: =AVERAGE($E48:OFFSET($E48,0,0,BP$4,1)) -> 27263.2 | BQ48: =AVERAGE($E48:OFFSET($E48,0,0,BQ$4,1)) -> 27420.85 | BR48: 10 | BS48: 190 | BT48: 257 | BU48: 250 | BV48: H | BW48: H | BX48: 月 | BY48: 2 | BZ48: S | CA48: 28245 | CB48: 27830 | CC48: 27415 | CD48: 26925 | CE48: 28170 | CF48: L | CG48: S | CH48: 260 | CJ48: =SUM(CH48:OFFSET(CH48,0,0,CJ$4,1))/(SUM(CH48:OFFSET(CH48,0,0,CJ$4,1))+SUM(CI48:OFFSET(CI48,0,0,CJ$4,1)))*100 -> 79.80769231 | CK48: =SUM(CH48:OFFSET(CH48,0,0,CK$4,1))/(SUM(CH48:OFFSET(CH48,0,0,CK$4,1))+SUM(CI48:OFFSET(CI48,0,0,CK$4,1)))*100 -> 51.80722892 | CL48: 28560 | CM48: 28480 | CN48: 28370 | CO48: 28290 | CP48: 28180 | CQ48: 28100 | CR48: 27990 | CS48: =BN48+3*STDEVP($E48:OFFSET($E48,0,0,BN$4,1)) -> 29694.5249 | CT48: =BN48+2*STDEVP($E48:OFFSET($E48,0,0,BN$4,1)) -> 29214.34994 | CU48: =BN48+STDEVP($E48:OFFSET($E48,0,0,BN$4,1)) -> 28734.17497 | CV48: =BN48-STDEVP($E48:OFFSET($E48,0,0,BN$4,1)) -> 27773.82503 | CW48: =BN48-2*STDEVP($E48:OFFSET($E48,0,0,BN$4,1)) -> 27293.65006 | CX48: =BN48-3*STDEVP($E48:OFFSET($E48,0,0,BN$4,1)) -> 26813.4751 | CY48: S2 | DA48: S2 | DB48: 76.66666667 | DC48: 0 | DD48: 27868 | DE48: 28253.6 | DF48: 27454.4 | DG48: 27263.1 | DH48: 27420.8 | DI48: 27755 | DJ48: 28245 | DK48: 27455 | DL48: 26925 | DM48: 29690.92191 | DN48: 29210.74794 | DO48: 28730.57397 | DP48: 27770.22603 | DQ48: 27290.05206 | DR48: 26809.87809 | DS48: H | DT48: S | FI48: 1 | FJ48: 1 | FK48: 1 | FL48: 1 | FM48: 1 | FN48: 1 | FO48: 1 | FP48: 1 | FQ48: 1 | FR48: 1 | FS48: 1 | FT48: 1 | FU48: 1 | FV48: 1 | FW48: 1 | FX48: 1 | FY48: 1 | FZ48: 1 | GA48: 1 | GB48: 1 | GC48: 1 | GD48: 1 | GE48: 1 | GF48: 1 | GG48: 1 | GH48: 1 | GI48: 1 | GJ48: 1 | GK48: 1 | GL48: 1 | GM48: 1 | GN48: 1 | GO48: 1 | GP48: 1 | GQ48: 1 | GR48: 1 | GS48: 1 | GT48: 1 | GU48: 1 | GV48: 1 | GW48: 1 | GX48: 1 | GY48: 1 | GZ48: 1 | HA48: 1 | HB48: 1 | HC48: 1 | HD48: 1 | HE48: 1 | HF48: 1 | HG48: 1 | HH48: 1 | HI48: 1 | HJ48: 1 | HK48: 1 | HL48: 1 | HM48: 0 | HN48: 1 | HO48: 1 | HP48: 1 | HQ48: 1 | HR48: 1 | HS48: 1 | HT48: 1 | HU48: 1 | HV48: 1 | HW48: 1 | HX48: 1 | HY48: 1 | HZ48: 1 | IA48: 1 | IH48: 0 | II48: 0 | IJ48: 0 | IK48: 0 | IL48: 0 | IM48: 0 | IN48: 0 | IO48: 0 | IP48: 0 | IQ48: 0 | IR48: 0 | IS48: 0 | IT48: 0 | IU48: 0 | IV48: 0 | IW48: 0 | IX48: 0 | IY48: 0 | IZ48: 0 | JA48: 0 | JB48: 0 | JC48: 0 | JD48: 0 | JE48: 0 | JF48: 0 | JG48: 0 | JH48: 0 | JI48: 0 | JJ48: 0 | JK48: 0 | JL48: 0 | JM48: 0 | JN48: 0 | JO48: 0 | JP48: 0 | JQ48: 0 | JR48: 0 | JS48: 0 | JT48: 0 | JU48: 0 | JV48: 0 | JW48: 0 | JX48: 0 | JY48: 0 | JZ48: 0 | KA48: 0 | KB48: 0 | KC48: 0 | KD48: 0 | KE48: 0 | KF48: 0 | KG48: 0 | KH48: 0 | KI48: 0 | KJ48: 0 | KK48: 0 | KL48: 0 | KM48: 0 | KN48: 0 | KO48: 0 | KP48: 0 | KQ48: 0 | KR48: 0 | KS48: 0 | KT48: 0 | KU48: 0 | KV48: 0 | KW48: 0 | KX48: 0 | KY48: 0 | KZ48: 0 | LB48: 0 | LC48: 0 | LD48: 0 | MJ48: 2022-09-12
A49: 2022-09-09 | B49: 27960 | C49: 28060 | D49: 27860 | E49: 28000 | F49: 42688 | G49: 27960 | H49: 28030 | I49: 27950 | J49: 27990 | K49: 27990 | L49: 28050 | M49: 27960 | N49: 28000 | O49: 28000 | P49: 28010 | Q49: 27860 | R49: 27900 | S49: 27910 | T49: 28060 | U49: 27910 | V49: 28000 | W49: 28000 | X49: 28010 | Y49: 27940 | Z49: 27940 | AA49: 27940 | AB49: 27960 | AC49: 27880 | AD49: 27890 | AE49: 27890 | AF49: 28000 | AG49: 27880 | AH49: 27990 | AI49: 27990 | AJ49: 28020 | AK49: 27960 | AL49: 27980 | AM49: 27980 | AN49: 27980 | AO49: 27930 | AP49: 27940 | AQ49: 27940 | AR49: 27970 | AS49: 27930 | AT49: 27960 | AU49: 27960 | AV49: 27990 | AW49: 27940 | AX49: 27980 | AY49: 27970 | AZ49: 28020 | BA49: 27970 | BB49: 28000 | BC49: 28010 | BD49: 28030 | BE49: 28000 | BF49: 28020 | BG49: 28020 | BH49: 28030 | BI49: 28000 | BJ49: 28000 | BK49: 28030 | BL49: 27930 | BM49: =AVERAGE($E49:OFFSET($E49,0,0,BM$4,1)) -> 27746 | BN49: =AVERAGE($E49:OFFSET($E49,0,0,BN$4,1)) -> 28250.4 | BO49: =AVERAGE($E49:OFFSET($E49,0,0,BO$4,1)) -> 27432.53333 | BP49: =AVERAGE($E49:OFFSET($E49,0,0,BP$4,1)) -> 27251.4 | BQ49: =AVERAGE($E49:OFFSET($E49,0,0,BQ$4,1)) -> 27428 | BR49: 40 | BS49: 200 | BT49: 257 | BU49: -70 | BV49: I | BW49: I | BX49: 金 | BY49: 6 | BZ49: S | CA49: 28245 | CB49: 27740 | CC49: 27335 | CD49: 26925 | CE49: 27950 | CF49: L | CG49: S | CI49: 30 | CJ49: =SUM(CH49:OFFSET(CH49,0,0,CJ$4,1))/(SUM(CH49:OFFSET(CH49,0,0,CJ$4,1))+SUM(CI49:OFFSET(CI49,0,0,CJ$4,1)))*100 -> 71.25 | CK49: =SUM(CH49:OFFSET(CH49,0,0,CK$4,1))/(SUM(CH49:OFFSET(CH49,0,0,CK$4,1))+SUM(CI49:OFFSET(CI49,0,0,CK$4,1)))*100 -> 52.66272189 | CL49: 28286.66667 | CM49: 28173.33333 | CN49: 28086.66667 | CO49: 27973.33333 | CP49: 27886.66667 | CQ49: 27773.33333 | CR49: 27686.66667 | CS49: =BN49+3*STDEVP($E49:OFFSET($E49,0,0,BN$4,1)) -> 29691.76136 | CT49: =BN49+2*STDEVP($E49:OFFSET($E49,0,0,BN$4,1)) -> 29211.30757 | CU49: =BN49+STDEVP($E49:OFFSET($E49,0,0,BN$4,1)) -> 28730.85379 | CV49: =BN49-STDEVP($E49:OFFSET($E49,0,0,BN$4,1)) -> 27769.94621 | CW49: =BN49-2*STDEVP($E49:OFFSET($E49,0,0,BN$4,1)) -> 27289.49243 | CX49: =BN49-3*STDEVP($E49:OFFSET($E49,0,0,BN$4,1)) -> 26809.03864 | CY49: S0 | DA49: S0 | DB49: 23.33333333 | DC49: 0 | DD49: 27738 | DE49: 28248.8 | DF49: 27432 | DG49: 27251 | DH49: 27427.8 | DI49: 27740 | DJ49: 28245 | DK49: 27415 | DL49: 26925 | DM49: 29692.4523 | DN49: 29211.10153 | DO49: 28729.75077 | DP49: 27767.04923 | DQ49: 27285.69847 | DR49: 26804.3477 | DS49: I | DT49: S | FI49: 1 | FJ49: 1 | FK49: 1 | FL49: 1 | FM49: 1 | FN49: 1 | FO49: 1 | FP49: 1 | FQ49: 1 | FR49: 1 | FS49: 1 | FT49: 1 | FU49: 1 | FV49: 1 | FW49: 1 | FX49: 1 | FY49: 1 | FZ49: 1 | GA49: 1 | GB49: 1 | GC49: 1 | GD49: 1 | GE49: 1 | GF49: 1 | GG49: 1 | GH49: 1 | GI49: 1 | GJ49: 1 | GK49: 1 | GL49: 1 | GM49: 1 | GN49: 1 | GO49: 1 | GP49: 1 | GQ49: 1 | GR49: 1 | GS49: 1 | GT49: 1 | GU49: 1 | GV49: 1 | GW49: 1 | GX49: 1 | GY49: 1 | GZ49: 1 | HA49: 1 | HB49: 1 | HC49: 1 | HD49: 1 | HE49: 1 | HF49: 1 | HG49: 1 | HH49: 1 | HI49: 1 | HJ49: 1 | HK49: 1 | HL49: 1 | HM49: 0 | HN49: 1 | HO49: 1 | HP49: 1 | HQ49: 1 | HR49: 1 | HS49: 1 | HT49: 1 | HU49: 1 | HV49: 1 | HW49: 1 | HX49: 1 | HY49: 1 | HZ49: 1 | IA49: 1 | IH49: 0 | II49: 0 | IJ49: 0 | IK49: 0 | IL49: 0 | IM49: 0 | IN49: 0 | IO49: 0 | IP49: 0 | IQ49: 0 | IR49: 0 | IS49: 0 | IT49: 0 | IU49: 0 | IV49: 0 | IW49: 0 | IX49: 0 | IY49: 0 | IZ49: 0 | JA49: 0 | JB49: 0 | JC49: 0 | JD49: 0 | JE49: 0 | JF49: 0 | JG49: 0 | JH49: 0 | JI49: 0 | JJ49: 0 | JK49: 0 | JL49: 0 | JM49: 0 | JN49: 0 | JO49: 0 | JP49: 0 | JQ49: 0 | JR49: 0 | JS49: 0 | JT49: 0 | JU49: 0 | JV49: 0 | JW49: 0 | JX49: 0 | JY49: 0 | JZ49: 0 | KA49: 0 | KB49: 0 | KC49: 0 | KD49: 0 | KE49: 0 | KF49: 0 | KG49: 0 | KH49: 0 | KI49: 0 | KJ49: 0 | KK49: 0 | KL49: 0 | KM49: 0 | KN49: 0 | KO49: 0 | KP49: 0 | KQ49: 0 | KR49: 0 | KS49: 0 | KT49: 0 | KU49: 0 | KV49: 0 | KW49: 0 | KX49: 0 | KY49: 0 | KZ49: 0 | LB49: 0 | LC49: 0 | LD49: 0 | MJ49: 2022-09-09
A50: 2022-09-08 | B50: 27700 | C50: 28080 | D50: 27700 | E50: 28030 | F50: 11682 | G50: 27700 | H50: 27750 | I50: 27700 | J50: 27740 | K50: 27740 | L50: 27800 | M50: 27730 | N50: 27780 | O50: 27780 | P50: 27910 | Q50: 27780 | R50: 27860 | S50: 27870 | T50: 27900 | U50: 27860 | V50: 27880 | W50: 27890 | X50: 27970 | Y50: 27870 | Z50: 27960 | AA50: 27960 | AB50: 27990 | AC50: 27960 | AD50: 27980 | AE50: 27980 | AF50: 28010 | AG50: 27980 | AH50: 27990 | AI50: 27980 | AJ50: 28000 | AK50: 27950 | AL50: 27960 | AM50: 27970 | AN50: 27990 | AO50: 27960 | AP50: 27970 | AQ50: 27970 | AR50: 27990 | AS50: 27970 | AT50: 27990 | AU50: 27990 | AV50: 28000 | AW50: 27990 | AX50: 27990 | AY50: 28000 | AZ50: 28030 | BA50: 28000 | BB50: 28000 | BC50: 28010 | BD50: 28070 | BE50: 28010 | BF50: 28060 | BG50: 28060 | BH50: 28080 | BI50: 28020 | BJ50: 28030 | BK50: 28080 | BL50: 27960 | BM50: =AVERAGE($E50:OFFSET($E50,0,0,BM$4,1)) -> 27678 | BN50: =AVERAGE($E50:OFFSET($E50,0,0,BN$4,1)) -> 28248.4 | BO50: =AVERAGE($E50:OFFSET($E50,0,0,BO$4,1)) -> 27414.93333 | BP50: =AVERAGE($E50:OFFSET($E50,0,0,BP$4,1)) -> 27243.3 | BQ50: =AVERAGE($E50:OFFSET($E50,0,0,BQ$4,1)) -> 27436.85 | BR50: 330 | BS50: 380 | BT50: 256 | BU50: 240 | BV50: H | BW50: H | BX50: 木 | BY50: 5 | BZ50: S | CA50: 28245 | CB50: 27740 | CC50: 27335 | CD50: 26925 | CE50: 27710 | CF50: L | CG50: S | CH50: 570 | CJ50: =SUM(CH50:OFFSET(CH50,0,0,CJ$4,1))/(SUM(CH50:OFFSET(CH50,0,0,CJ$4,1))+SUM(CI50:OFFSET(CI50,0,0,CJ$4,1)))*100 -> 75 | CK50: =SUM(CH50:OFFSET(CH50,0,0,CK$4,1))/(SUM(CH50:OFFSET(CH50,0,0,CK$4,1))+SUM(CI50:OFFSET(CI50,0,0,CK$4,1)))*100 -> 37.71186441 | CL50: 28553.33333 | CM50: 28316.66667 | CN50: 28173.33333 | CO50: 27936.66667 | CP50: 27793.33333 | CQ50: 27556.66667 | CR50: 27413.33333 | CS50: =BN50+3*STDEVP($E50:OFFSET($E50,0,0,BN$4,1)) -> 29693.18405 | CT50: =BN50+2*STDEVP($E50:OFFSET($E50,0,0,BN$4,1)) -> 29211.58937 | CU50: =BN50+STDEVP($E50:OFFSET($E50,0,0,BN$4,1)) -> 28729.99468 | CV50: =BN50-STDEVP($E50:OFFSET($E50,0,0,BN$4,1)) -> 27766.80532 | CW50: =BN50-2*STDEVP($E50:OFFSET($E50,0,0,BN$4,1)) -> 27285.21063 | CX50: =BN50-3*STDEVP($E50:OFFSET($E50,0,0,BN$4,1)) -> 26803.61595 | CY50: S1 | DA50: S1 | DB50: 73.33333333 | DC50: 0 | DD50: 27612 | DE50: 28235.2 | DF50: 27410.53333 | DG50: 27240 | DH50: 27435.2 | DI50: 27740 | DJ50: 28245 | DK50: 27335 | DL50: 26925 | DM50: 29711.04185 | DN50: 29219.2279 | DO50: 28727.41395 | DP50: 27743.78605 | DQ50: 27251.9721 | DR50: 26760.15815 | DS50: H | DT50: S | FI50: 1 | FJ50: 1 | FK50: 1 | FL50: 1 | FM50: 1 | FN50: 1 | FO50: 1 | FP50: 1 | FQ50: 1 | FR50: 1 | FS50: 1 | FT50: 1 | FU50: 1 | FV50: 1 | FW50: 1 | FX50: 1 | FY50: 1 | FZ50: 1 | GA50: 1 | GB50: 1 | GC50: 1 | GD50: 1 | GE50: 1 | GF50: 1 | GG50: 1 | GH50: 1 | GI50: 1 | GJ50: 1 | GK50: 1 | GL50: 1 | GM50: 1 | GN50: 1 | GO50: 1 | GP50: 1 | GQ50: 1 | GR50: 1 | GS50: 1 | GT50: 1 | GU50: 1 | GV50: 1 | GW50: 1 | GX50: 1 | GY50: 1 | GZ50: 1 | HA50: 1 | HB50: 1 | HC50: 1 | HD50: 1 | HE50: 1 | HF50: 1 | HG50: 1 | HH50: 1 | HI50: 1 | HJ50: 1 | HK50: 1 | HL50: 1 | HM50: 0 | HN50: 1 | HO50: 1 | HP50: 1 | HQ50: 1 | HR50: 1 | HS50: 1 | HT50: 1 | HU50: 1 | HV50: 1 | HW50: 1 | HX50: 1 | HY50: 1 | HZ50: 1 | IA50: 1 | IH50: 0 | II50: 0 | IJ50: 0 | IK50: 0 | IL50: 0 | IM50: 0 | IN50: 0 | IO50: 0 | IP50: 0 | IQ50: 0 | IR50: 0 | IS50: 0 | IT50: 0 | IU50: 0 | IV50: 0 | IW50: 0 | IX50: 0 | IY50: 0 | IZ50: 0 | JA50: 0 | JB50: 0 | JC50: 0 | JD50: 0 | JE50: 0 | JF50: 0 | JG50: 0 | JH50: 0 | JI50: 0 | JJ50: 0 | JK50: 0 | JL50: 0 | JM50: 0 | JN50: 0 | JO50: 0 | JP50: 0 | JQ50: 0 | JR50: 0 | JS50: 0 | JT50: 0 | JU50: 0 | JV50: 0 | JW50: 0 | JX50: 0 | JY50: 0 | JZ50: 0 | KA50: 0 | KB50: 0 | KC50: 0 | KD50: 0 | KE50: 0 | KF50: 0 | KG50: 0 | KH50: 0 | KI50: 0 | KJ50: 0 | KK50: 0 | KL50: 0 | KM50: 0 | KN50: 0 | KO50: 0 | KP50: 0 | KQ50: 0 | KR50: 0 | KS50: 0 | KT50: 0 | KU50: 0 | KV50: 0 | KW50: 0 | KX50: 0 | KY50: 0 | KZ50: 0 | LB50: 0 | LC50: 0 | LD50: 0 | MJ50: 2022-09-08
A51: 2022-09-07 | B51: 27600 | C51: 27610 | D51: 27260 | E51: 27460 | F51: 28481 | G51: 27600 | H51: 27610 | I51: 27530 | J51: 27530 | K51: 27530 | L51: 27550 | M51: 27430 | N51: 27510 | O51: 27510 | P51: 27510 | Q51: 27350 | R51: 27370 | S51: 27370 | T51: 27390 | U51: 27280 | V51: 27350 | W51: 27350 | X51: 27360 | Y51: 27290 | Z51: 27290 | AA51: 27300 | AB51: 27330 | AC51: 27260 | AD51: 27320 | AE51: 27320 | AF51: 27370 | AG51: 27300 | AH51: 27360 | AI51: 27360 | AJ51: 27380 | AK51: 27330 | AL51: 27330 | AM51: 27340 | AN51: 27340 | AO51: 27310 | AP51: 27330 | AQ51: 27330 | AR51: 27340 | AS51: 27290 | AT51: 27340 | AU51: 27340 | AV51: 27350 | AW51: 27310 | AX51: 27350 | AY51: 27340 | AZ51: 27380 | BA51: 27340 | BB51: 27380 | BC51: 27380 | BD51: 27430 | BE51: 27370 | BF51: 27390 | BG51: 27400 | BH51: 27470 | BI51: 27400 | BJ51: 27460 | BK51: 27470 | BL51: 27290 | BM51: =AVERAGE($E51:OFFSET($E51,0,0,BM$4,1)) -> 27598 | BN51: =AVERAGE($E51:OFFSET($E51,0,0,BN$4,1)) -> 28235.6 | BO51: =AVERAGE($E51:OFFSET($E51,0,0,BO$4,1)) -> 27397.73333 | BP51: =AVERAGE($E51:OFFSET($E51,0,0,BP$4,1)) -> 27231.8 | BQ51: =AVERAGE($E51:OFFSET($E51,0,0,BQ$4,1)) -> 27445.35 | BR51: -140 | BS51: 350 | BT51: 236 | BU51: 0 | BV51: I | BW51: L | BX51: 水 | BY51: 4 | BZ51: S | CA51: 28245 | CB51: 28025 | CC51: 27335 | CD51: 26925 | CE51: 27670 | CF51: L | CG51: S | CI51: 140 | CJ51: =SUM(CH51:OFFSET(CH51,0,0,CJ$4,1))/(SUM(CH51:OFFSET(CH51,0,0,CJ$4,1))+SUM(CI51:OFFSET(CI51,0,0,CJ$4,1)))*100 -> 4.166666667 | CK51: =SUM(CH51:OFFSET(CH51,0,0,CK$4,1))/(SUM(CH51:OFFSET(CH51,0,0,CK$4,1))+SUM(CI51:OFFSET(CI51,0,0,CK$4,1)))*100 -> 22.22222222 | CL51: 27976.66667 | CM51: 27793.33333 | CN51: 27626.66667 | CO51: 27443.33333 | CP51: 27276.66667 | CQ51: 27093.33333 | CR51: 26926.66667 | CS51: =BN51+3*STDEVP($E51:OFFSET($E51,0,0,BN$4,1)) -> 29709.74713 | CT51: =BN51+2*STDEVP($E51:OFFSET($E51,0,0,BN$4,1)) -> 29218.36475 | CU51: =BN51+STDEVP($E51:OFFSET($E51,0,0,BN$4,1)) -> 28726.98238 | CV51: =BN51-STDEVP($E51:OFFSET($E51,0,0,BN$4,1)) -> 27744.21762 | CW51: =BN51-2*STDEVP($E51:OFFSET($E51,0,0,BN$4,1)) -> 27252.83525 | CX51: =BN51-3*STDEVP($E51:OFFSET($E51,0,0,BN$4,1)) -> 26761.45287 | CZ51: B3 | DA51: B3 | DB51: 0 | DC51: 103.3333333 | DD51: 27626 | DE51: 28241.2 | DF51: 27399.6 | DG51: 27233.2 | DH51: 27446.05 | DI51: 28145 | DJ51: 28245 | DK51: 27335 | DL51: 26925 | DM51: 29693.72516 | DN51: 29210.48344 | DO51: 28727.24172 | DP51: 27760.75828 | DQ51: 27277.51656 | DR51: 26794.27484 | DS51: L | DT51: S | FI51: 1 | FJ51: 1 | FK51: 1 | FL51: 1 | FM51: 1 | FN51: 1 | FO51: 1 | FP51: 1 | FQ51: 1 | FR51: 1 | FS51: 1 | FT51: 1 | FU51: 1 | FV51: 1 | FW51: 1 | FX51: 1 | FY51: 1 | FZ51: 1 | GA51: 1 | GB51: 1 | GC51: 1 | GD51: 1 | GE51: 1 | GF51: 1 | GG51: 1 | GH51: 1 | GI51: 1 | GJ51: 1 | GK51: 1 | GL51: 1 | GM51: 1 | GN51: 1 | GO51: 1 | GP51: 1 | GQ51: 1 | GR51: 1 | GS51: 1 | GT51: 1 | GU51: 1 | GV51: 1 | GW51: 1 | GX51: 1 | GY51: 1 | GZ51: 1 | HA51: 1 | HB51: 1 | HC51: 1 | HD51: 1 | HE51: 1 | HF51: 1 | HG51: 1 | HH51: 1 | HI51: 1 | HJ51: 1 | HK51: 1 | HL51: 1 | HM51: 0 | HN51: 1 | HO51: 1 | HP51: 1 | HQ51: 1 | HR51: 1 | HS51: 1 | HT51: 1 | HU51: 1 | HV51: 1 | HW51: 1 | HX51: 1 | HY51: 1 | HZ51: 1 | IA51: 1 | IH51: 0 | II51: 0 | IJ51: 0 | IK51: 0 | IL51: 0 | IM51: 0 | IN51: 0 | IO51: 0 | IP51: 0 | IQ51: 0 | IR51: 0 | IS51: 0 | IT51: 0 | IU51: 0 | IV51: 0 | IW51: 0 | IX51: 0 | IY51: 0 | IZ51: 0 | JA51: 0 | JB51: 0 | JC51: 0 | JD51: 0 | JE51: 0 | JF51: 0 | JG51: 0 | JH51: 0 | JI51: 0 | JJ51: 0 | JK51: 0 | JL51: 0 | JM51: 0 | JN51: 0 | JO51: 0 | JP51: 0 | JQ51: 0 | JR51: 0 | JS51: 0 | JT51: 0 | JU51: 0 | JV51: 0 | JW51: 0 | JX51: 0 | JY51: 0 | JZ51: 0 | KA51: 0 | KB51: 0 | KC51: 0 | KD51: 0 | KE51: 0 | KF51: 0 | KG51: 0 | KH51: 0 | KI51: 0 | KJ51: 0 | KK51: 0 | KL51: 0 | KM51: 0 | KN51: 0 | KO51: 0 | KP51: 0 | KQ51: 0 | KR51: 0 | KS51: 0 | KT51: 0 | KU51: 0 | KV51: 0 | KW51: 0 | KX51: 0 | KY51: 0 | KZ51: 0 | LB51: 0 | LC51: 0 | LD51: 0 | MJ51: 2022-09-07
A52: 2022-09-06 | B52: 27730 | C52: 27810 | D52: 27550 | E52: 27600 | F52: 29647 | G52: 27730 | H52: 27730 | I52: 27650 | J52: 27670 | K52: 27670 | L52: 27670 | M52: 27550 | N52: 27620 | O52: 27620 | P52: 27720 | Q52: 27600 | R52: 27720 | S52: 27730 | T52: 27810 | U52: 27730 | V52: 27790 | W52: 27790 | X52: 27810 | Y52: 27730 | Z52: 27740 | AA52: 27750 | AB52: 27770 | AC52: 27620 | AD52: 27620 | AE52: 27630 | AF52: 27650 | AG52: 27590 | AH52: 27620 | AI52: 27620 | AJ52: 27640 | AK52: 27610 | AL52: 27630 | AM52: 27620 | AN52: 27630 | AO52: 27590 | AP52: 27610 | AQ52: 27610 | AR52: 27640 | AS52: 27590 | AT52: 27610 | AU52: 27610 | AV52: 27650 | AW52: 27610 | AX52: 27650 | AY52: 27640 | AZ52: 27650 | BA52: 27620 | BB52: 27640 | BC52: 27630 | BD52: 27640 | BE52: 27610 | BF52: 27630 | BG52: 27630 | BH52: 27640 | BI52: 27600 | BJ52: 27600 | BK52: 27650 | BL52: 27590 | BM52: =AVERAGE($E52:OFFSET($E52,0,0,BM$4,1)) -> 27730 | BN52: =AVERAGE($E52:OFFSET($E52,0,0,BN$4,1)) -> 28244 | BO52: =AVERAGE($E52:OFFSET($E52,0,0,BO$4,1)) -> 27392.26667 | BP52: =AVERAGE($E52:OFFSET($E52,0,0,BP$4,1)) -> 27220.4 | BQ52: =AVERAGE($E52:OFFSET($E52,0,0,BQ$4,1)) -> 27456.05 | BR52: -130 | BS52: 260 | BT52: 225 | BU52: 90 | BV52: H | BW52: I | BX52: 火 | BY52: 3 | BZ52: S | CA52: 28365 | CB52: 28145 | CC52: 27300 | CD52: 26925 | CE52: 28000 | CF52: L | CG52: S | CI52: 40 | CJ52: =SUM(CH52:OFFSET(CH52,0,0,CJ$4,1))/(SUM(CH52:OFFSET(CH52,0,0,CJ$4,1))+SUM(CI52:OFFSET(CI52,0,0,CJ$4,1)))*100 -> 4.545454545 | CK52: =SUM(CH52:OFFSET(CH52,0,0,CK$4,1))/(SUM(CH52:OFFSET(CH52,0,0,CK$4,1))+SUM(CI52:OFFSET(CI52,0,0,CK$4,1)))*100 -> 31.44329897 | CL52: 28016.66667 | CM52: 27913.33333 | CN52: 27756.66667 | CO52: 27653.33333 | CP52: 27496.66667 | CQ52: 27393.33333 | CR52: 27236.66667 | CS52: =BN52+3*STDEVP($E52:OFFSET($E52,0,0,BN$4,1)) -> 29683.12473 | CT52: =BN52+2*STDEVP($E52:OFFSET($E52,0,0,BN$4,1)) -> 29203.41649 | CU52: =BN52+STDEVP($E52:OFFSET($E52,0,0,BN$4,1)) -> 28723.70824 | CV52: =BN52-STDEVP($E52:OFFSET($E52,0,0,BN$4,1)) -> 27764.29176 | CW52: =BN52-2*STDEVP($E52:OFFSET($E52,0,0,BN$4,1)) -> 27284.58351 | CX52: =BN52-3*STDEVP($E52:OFFSET($E52,0,0,BN$4,1)) -> 26804.87527 | CY52: S1 | DA52: S1 | DB52: 16.66666667 | DC52: 0 | DD52: 27756 | DE52: 28249.2 | DF52: 27394 | DG52: 27221.7 | DH52: 27456.7 | DI52: 28145 | DJ52: 28365 | DK52: 27335 | DL52: 26925 | DM52: 29680.08529 | DN52: 29206.72353 | DO52: 28733.36176 | DP52: 27786.63824 | DQ52: 27313.27647 | DR52: 26839.91471 | DS52: H | DT52: S | FI52: 1 | FJ52: 1 | FK52: 1 | FL52: 1 | FM52: 1 | FN52: 1 | FO52: 1 | FP52: 1 | FQ52: 1 | FR52: 1 | FS52: 1 | FT52: 1 | FU52: 1 | FV52: 1 | FW52: 1 | FX52: 1 | FY52: 1 | FZ52: 1 | GA52: 1 | GB52: 1 | GC52: 1 | GD52: 1 | GE52: 1 | GF52: 1 | GG52: 1 | GH52: 1 | GI52: 1 | GJ52: 1 | GK52: 1 | GL52: 1 | GM52: 1 | GN52: 1 | GO52: 1 | GP52: 1 | GQ52: 1 | GR52: 1 | GS52: 1 | GT52: 1 | GU52: 1 | GV52: 1 | GW52: 1 | GX52: 1 | GY52: 1 | GZ52: 1 | HA52: 1 | HB52: 1 | HC52: 1 | HD52: 1 | HE52: 1 | HF52: 1 | HG52: 1 | HH52: 1 | HI52: 1 | HJ52: 1 | HK52: 1 | HL52: 1 | HM52: 0 | HN52: 1 | HO52: 1 | HP52: 1 | HQ52: 1 | HR52: 1 | HS52: 1 | HT52: 1 | HU52: 1 | HV52: 1 | HW52: 1 | HX52: 1 | HY52: 1 | HZ52: 1 | IA52: 1 | IH52: 0 | II52: 0 | IJ52: 0 | IK52: 0 | IL52: 0 | IM52: 0 | IN52: 0 | IO52: 0 | IP52: 0 | IQ52: 0 | IR52: 0 | IS52: 0 | IT52: 0 | IU52: 0 | IV52: 0 | IW52: 0 | IX52: 0 | IY52: 0 | IZ52: 0 | JA52: 0 | JB52: 0 | JC52: 0 | JD52: 0 | JE52: 0 | JF52: 0 | JG52: 0 | JH52: 0 | JI52: 0 | JJ52: 0 | JK52: 0 | JL52: 0 | JM52: 0 | JN52: 0 | JO52: 0 | JP52: 0 | JQ52: 0 | JR52: 0 | JS52: 0 | JT52: 0 | JU52: 0 | JV52: 0 | JW52: 0 | JX52: 0 | JY52: 0 | JZ52: 0 | KA52: 0 | KB52: 0 | KC52: 0 | KD52: 0 | KE52: 0 | KF52: 0 | KG52: 0 | KH52: 0 | KI52: 0 | KJ52: 0 | KK52: 0 | KL52: 0 | KM52: 0 | KN52: 0 | KO52: 0 | KP52: 0 | KQ52: 0 | KR52: 0 | KS52: 0 | KT52: 0 | KU52: 0 | KV52: 0 | KW52: 0 | KX52: 0 | KY52: 0 | KZ52: 0 | LB52: 0 | LC52: 0 | LD52: 0 | MJ52: 2022-09-06
A53: 2022-09-05 | B53: 27500 | C53: 27680 | D53: 27500 | E53: 27640 | F53: 32982 | G53: 27500 | H53: 27590 | I53: 27500 | J53: 27580 | K53: 27570 | L53: 27650 | M53: 27550 | N53: 27640 | O53: 27630 | P53: 27640 | Q53: 27550 | R53: 27590 | S53: 27590 | T53: 27600 | U53: 27510 | V53: 27570 | W53: 27570 | X53: 27620 | Y53: 27570 | Z53: 27580 | AA53: 27590 | AB53: 27620 | AC53: 27550 | AD53: 27570 | AE53: 27570 | AF53: 27610 | AG53: 27560 | AH53: 27600 | AI53: 27610 | AJ53: 27620 | AK53: 27580 | AL53: 27610 | AM53: 27620 | AN53: 27620 | AO53: 27600 | AP53: 27610 | AQ53: 27600 | AR53: 27640 | AS53: 27600 | AT53: 27630 | AU53: 27630 | AV53: 27640 | AW53: 27610 | AX53: 27630 | AY53: 27630 | AZ53: 27680 | BA53: 27630 | BB53: 27640 | BC53: 27640 | BD53: 27660 | BE53: 27620 | BF53: 27640 | BG53: 27640 | BH53: 27650 | BI53: 27610 | BJ53: 27640 | BK53: 27680 | BL53: 27600 | BM53: =AVERAGE($E53:OFFSET($E53,0,0,BM$4,1)) -> 27850 | BN53: =AVERAGE($E53:OFFSET($E53,0,0,BN$4,1)) -> 28260 | BO53: =AVERAGE($E53:OFFSET($E53,0,0,BO$4,1)) -> 27381.2 | BP53: =AVERAGE($E53:OFFSET($E53,0,0,BP$4,1)) -> 27212.6 | BQ53: =AVERAGE($E53:OFFSET($E53,0,0,BQ$4,1)) -> 27464.55 | BR53: 140 | BS53: 180 | BT53: 217 | BU53: -160 | BV53: L | BW53: I | BX53: 月 | BY53: 2 | BZ53: S | CA53: 28365 | CB53: 28145 | CC53: 27152.5 | CD53: 26925 | CE53: 27750 | CF53: L | CG53: S | CI53: 20 | CJ53: =SUM(CH53:OFFSET(CH53,0,0,CJ$4,1))/(SUM(CH53:OFFSET(CH53,0,0,CJ$4,1))+SUM(CI53:OFFSET(CI53,0,0,CJ$4,1)))*100 -> 35.16483516 | CK53: =SUM(CH53:OFFSET(CH53,0,0,CK$4,1))/(SUM(CH53:OFFSET(CH53,0,0,CK$4,1))+SUM(CI53:OFFSET(CI53,0,0,CK$4,1)))*100 -> 30.96446701 | CL53: 27893.33333 | CM53: 27786.66667 | CN53: 27713.33333 | CO53: 27606.66667 | CP53: 27533.33333 | CQ53: 27426.66667 | CR53: 27353.33333 | CS53: =BN53+3*STDEVP($E53:OFFSET($E53,0,0,BN$4,1)) -> 29653.16331 | CT53: =BN53+2*STDEVP($E53:OFFSET($E53,0,0,BN$4,1)) -> 29188.77554 | CU53: =BN53+STDEVP($E53:OFFSET($E53,0,0,BN$4,1)) -> 28724.38777 | CV53: =BN53-STDEVP($E53:OFFSET($E53,0,0,BN$4,1)) -> 27795.61223 | CW53: =BN53-2*STDEVP($E53:OFFSET($E53,0,0,BN$4,1)) -> 27331.22446 | CX53: =BN53-3*STDEVP($E53:OFFSET($E53,0,0,BN$4,1)) -> 26866.83669 | CZ53: B2 | DA53: B2 | DB53: 0 | DC53: 53.33333333 | DD53: 27822 | DE53: 28254.4 | DF53: 27379.33333 | DG53: 27211.2 | DH53: 27463.85 | DI53: 28145 | DJ53: 28365 | DK53: 27300 | DL53: 26925 | DM53: 29682.20597 | DN53: 29209.60398 | DO53: 28737.00199 | DP53: 27791.79801 | DQ53: 27319.19602 | DR53: 26846.59403 | DS53: L | DT53: S | FI53: 1 | FJ53: 1 | FK53: 1 | FL53: 1 | FM53: 1 | FN53: 1 | FO53: 1 | FP53: 1 | FQ53: 1 | FR53: 1 | FS53: 1 | FT53: 1 | FU53: 1 | FV53: 1 | FW53: 1 | FX53: 1 | FY53: 1 | FZ53: 1 | GA53: 1 | GB53: 1 | GC53: 1 | GD53: 1 | GE53: 1 | GF53: 1 | GG53: 1 | GH53: 1 | GI53: 1 | GJ53: 1 | GK53: 1 | GL53: 1 | GM53: 1 | GN53: 1 | GO53: 1 | GP53: 1 | GQ53: 1 | GR53: 1 | GS53: 1 | GT53: 1 | GU53: 1 | GV53: 1 | GW53: 1 | GX53: 1 | GY53: 1 | GZ53: 1 | HA53: 1 | HB53: 1 | HC53: 1 | HD53: 1 | HE53: 1 | HF53: 1 | HG53: 1 | HH53: 1 | HI53: 1 | HJ53: 1 | HK53: 1 | HL53: 1 | HM53: 0 | HN53: 1 | HO53: 1 | HP53: 1 | HQ53: 1 | HR53: 1 | HS53: 1 | HT53: 1 | HU53: 1 | HV53: 1 | HW53: 1 | HX53: 1 | HY53: 1 | HZ53: 1 | IA53: 1 | IH53: 0 | II53: 0 | IJ53: 0 | IK53: 0 | IL53: 0 | IM53: 0 | IN53: 0 | IO53: 0 | IP53: 0 | IQ53: 0 | IR53: 0 | IS53: 0 | IT53: 0 | IU53: 0 | IV53: 0 | IW53: 0 | IX53: 0 | IY53: 0 | IZ53: 0 | JA53: 0 | JB53: 0 | JC53: 0 | JD53: 0 | JE53: 0 | JF53: 0 | JG53: 0 | JH53: 0 | JI53: 0 | JJ53: 0 | JK53: 0 | JL53: 0 | JM53: 0 | JN53: 0 | JO53: 0 | JP53: 0 | JQ53: 0 | JR53: 0 | JS53: 0 | JT53: 0 | JU53: 0 | JV53: 0 | JW53: 0 | JX53: 0 | JY53: 0 | JZ53: 0 | KA53: 0 | KB53: 0 | KC53: 0 | KD53: 0 | KE53: 0 | KF53: 0 | KG53: 0 | KH53: 0 | KI53: 0 | KJ53: 0 | KK53: 0 | KL53: 0 | KM53: 0 | KN53: 0 | KO53: 0 | KP53: 0 | KQ53: 0 | KR53: 0 | KS53: 0 | KT53: 0 | KU53: 0 | KV53: 0 | KW53: 0 | KX53: 0 | KY53: 0 | KZ53: 0 | LB53: 0 | LC53: 0 | LD53: 0 | MJ53: 2022-09-05
A54: 2022-09-02 | B54: 27810 | C54: 27820 | D54: 27580 | E54: 27660 | F54: 31962 | G54: 27810 | H54: 27820 | I54: 27750 | J54: 27760 | K54: 27750 | L54: 27760 | M54: 27640 | N54: 27670 | O54: 27660 | P54: 27660 | Q54: 27590 | R54: 27630 | S54: 27640 | T54: 27660 | U54: 27580 | V54: 27610 | W54: 27610 | X54: 27650 | Y54: 27590 | Z54: 27640 | AA54: 27650 | AB54: 27680 | AC54: 27620 | AD54: 27640 | AE54: 27640 | AF54: 27640 | AG54: 27580 | AH54: 27590 | AI54: 27580 | AJ54: 27610 | AK54: 27580 | AL54: 27610 | AM54: 27600 | AN54: 27640 | AO54: 27590 | AP54: 27610 | AQ54: 27620 | AR54: 27660 | AS54: 27610 | AT54: 27660 | AU54: 27660 | AV54: 27680 | AW54: 27640 | AX54: 27680 | AY54: 27680 | AZ54: 27680 | BA54: 27630 | BB54: 27660 | BC54: 27660 | BD54: 27670 | BE54: 27620 | BF54: 27630 | BG54: 27630 | BH54: 27660 | BI54: 27610 | BJ54: 27660 | BK54: 27680 | BL54: 27590 | BM54: =AVERAGE($E54:OFFSET($E54,0,0,BM$4,1)) -> 27904 | BN54: =AVERAGE($E54:OFFSET($E54,0,0,BN$4,1)) -> 28264.4 | BO54: =AVERAGE($E54:OFFSET($E54,0,0,BO$4,1)) -> 27364.26667 | BP54: =AVERAGE($E54:OFFSET($E54,0,0,BP$4,1)) -> 27206.6 | BQ54: =AVERAGE($E54:OFFSET($E54,0,0,BQ$4,1)) -> 27471.9 | BR54: -150 | BS54: 240 | BT54: 228 | BU54: 180 | BV54: I | BW54: I | BX54: 金 | BY54: 6 | BZ54: S | CA54: 28370 | CB54: 28185 | CC54: 27097.5 | CD54: 26925 | CE54: 27810 | CF54: L | CG54: S | CH54: 30 | CJ54: =SUM(CH54:OFFSET(CH54,0,0,CJ$4,1))/(SUM(CH54:OFFSET(CH54,0,0,CJ$4,1))+SUM(CI54:OFFSET(CI54,0,0,CJ$4,1)))*100 -> 20.12578616 | CK54: =SUM(CH54:OFFSET(CH54,0,0,CK$4,1))/(SUM(CH54:OFFSET(CH54,0,0,CK$4,1))+SUM(CI54:OFFSET(CI54,0,0,CK$4,1)))*100 -> 26.8722467 | CL54: 28033.33333 | CM54: 27926.66667 | CN54: 27793.33333 | CO54: 27686.66667 | CP54: 27553.33333 | CQ54: 27446.66667 | CR54: 27313.33333 | CS54: =BN54+3*STDEVP($E54:OFFSET($E54,0,0,BN$4,1)) -> 29641.34653 | CT54: =BN54+2*STDEVP($E54:OFFSET($E54,0,0,BN$4,1)) -> 29182.36436 | CU54: =BN54+STDEVP($E54:OFFSET($E54,0,0,BN$4,1)) -> 28723.38218 | CV54: =BN54-STDEVP($E54:OFFSET($E54,0,0,BN$4,1)) -> 27805.41782 | CW54: =BN54-2*STDEVP($E54:OFFSET($E54,0,0,BN$4,1)) -> 27346.43564 | CX54: =BN54-3*STDEVP($E54:OFFSET($E54,0,0,BN$4,1)) -> 26887.45347 | CY54: S1 | DA54: S1 | DB54: 36.66666667 | DC54: 0 | DD54: 27934 | DE54: 28270.4 | DF54: 27366.26667 | DG54: 27208.1 | DH54: 27472.65 | DI54: 28185 | DJ54: 28370 | DK54: 27152.5 | DL54: 26925 | DM54: 29626.30655 | DN54: 29174.3377 | DO54: 28722.36885 | DP54: 27818.43115 | DQ54: 27366.4623 | DR54: 26914.49345 | DS54: I | DT54: S | FI54: 1 | FJ54: 1 | FK54: 1 | FL54: 1 | FM54: 1 | FN54: 1 | FO54: 1 | FP54: 1 | FQ54: 1 | FR54: 1 | FS54: 1 | FT54: 1 | FU54: 1 | FV54: 1 | FW54: 1 | FX54: 1 | FY54: 1 | FZ54: 1 | GA54: 1 | GB54: 1 | GC54: 1 | GD54: 1 | GE54: 1 | GF54: 1 | GG54: 1 | GH54: 1 | GI54: 1 | GJ54: 1 | GK54: 1 | GL54: 1 | GM54: 1 | GN54: 1 | GO54: 1 | GP54: 1 | GQ54: 1 | GR54: 1 | GS54: 1 | GT54: 1 | GU54: 1 | GV54: 1 | GW54: 1 | GX54: 1 | GY54: 1 | GZ54: 1 | HA54: 1 | HB54: 1 | HC54: 1 | HD54: 1 | HE54: 1 | HF54: 1 | HG54: 1 | HH54: 1 | HI54: 1 | HJ54: 1 | HK54: 1 | HL54: 1 | HM54: 0 | HN54: 1 | HO54: 1 | HP54: 1 | HQ54: 1 | HR54: 1 | HS54: 1 | HT54: 1 | HU54: 1 | HV54: 1 | HW54: 1 | HX54: 1 | HY54: 1 | HZ54: 1 | IA54: 1 | IH54: 0 | II54: 0 | IJ54: 0 | IK54: 0 | IL54: 0 | IM54: 0 | IN54: 0 | IO54: 0 | IP54: 0 | IQ54: 0 | IR54: 0 | IS54: 0 | IT54: 0 | IU54: 0 | IV54: 0 | IW54: 0 | IX54: 0 | IY54: 0 | IZ54: 0 | JA54: 0 | JB54: 0 | JC54: 0 | JD54: 0 | JE54: 0 | JF54: 0 | JG54: 0 | JH54: 0 | JI54: 0 | JJ54: 0 | JK54: 0 | JL54: 0 | JM54: 0 | JN54: 0 | JO54: 0 | JP54: 0 | JQ54: 0 | JR54: 0 | JS54: 0 | JT54: 0 | JU54: 0 | JV54: 0 | JW54: 0 | JX54: 0 | JY54: 0 | JZ54: 0 | KA54: 0 | KB54: 0 | KC54: 0 | KD54: 0 | KE54: 0 | KF54: 0 | KG54: 0 | KH54: 0 | KI54: 0 | KJ54: 0 | KK54: 0 | KL54: 0 | KM54: 0 | KN54: 0 | KO54: 0 | KP54: 0 | KQ54: 0 | KR54: 0 | KS54: 0 | KT54: 0 | KU54: 0 | KV54: 0 | KW54: 0 | KX54: 0 | KY54: 0 | KZ54: 0 | LB54: 0 | LC54: 0 | LD54: 0 | MJ54: 2022-09-02
A55: 2022-09-01 | B55: 27750 | C55: 27820 | D55: 27580 | E55: 27630 | F55: 44237 | G55: 27750 | H55: 27780 | I55: 27750 | J55: 27780 | K55: 27780 | L55: 27820 | M55: 27760 | N55: 27770 | O55: 27770 | P55: 27780 | Q55: 27720 | R55: 27750 | S55: 27750 | T55: 27750 | U55: 27620 | V55: 27650 | W55: 27660 | X55: 27680 | Y55: 27630 | Z55: 27650 | AA55: 27640 | AB55: 27680 | AC55: 27600 | AD55: 27620 | AE55: 27630 | AF55: 27680 | AG55: 27620 | AH55: 27660 | AI55: 27660 | AJ55: 27680 | AK55: 27640 | AL55: 27670 | AM55: 27680 | AN55: 27680 | AO55: 27660 | AP55: 27670 | AQ55: 27670 | AR55: 27680 | AS55: 27610 | AT55: 27610 | AU55: 27620 | AV55: 27630 | AW55: 27580 | AX55: 27590 | AY55: 27600 | AZ55: 27660 | BA55: 27590 | BB55: 27660 | BC55: 27650 | BD55: 27660 | BE55: 27620 | BF55: 27650 | BG55: 27650 | BH55: 27670 | BI55: 27640 | BJ55: 27630 | BK55: 27680 | BL55: 27580 | BM55: =AVERAGE($E55:OFFSET($E55,0,0,BM$4,1)) -> 28094 | BN55: =AVERAGE($E55:OFFSET($E55,0,0,BN$4,1)) -> 28270.4 | BO55: =AVERAGE($E55:OFFSET($E55,0,0,BO$4,1)) -> 27353.6 | BP55: =AVERAGE($E55:OFFSET($E55,0,0,BP$4,1)) -> 27199 | BQ55: =AVERAGE($E55:OFFSET($E55,0,0,BQ$4,1)) -> 27480.1 | BR55: -120 | BS55: 240 | BT55: 229 | BU55: -370 | BV55: L | BW55: L | BX55: 木 | BY55: 5 | BZ55: S | CA55: 28360 | CB55: 28205 | CC55: 26995 | CD55: 26925 | CE55: 27760 | CF55: L | CG55: S | CI55: 490 | CJ55: =SUM(CH55:OFFSET(CH55,0,0,CJ$4,1))/(SUM(CH55:OFFSET(CH55,0,0,CJ$4,1))+SUM(CI55:OFFSET(CI55,0,0,CJ$4,1)))*100 -> 23.4939759 | CK55: =SUM(CH55:OFFSET(CH55,0,0,CK$4,1))/(SUM(CH55:OFFSET(CH55,0,0,CK$4,1))+SUM(CI55:OFFSET(CI55,0,0,CK$4,1)))*100 -> 23.57723577 | CL55: 28013.33333 | CM55: 27916.66667 | CN55: 27773.33333 | CO55: 27676.66667 | CP55: 27533.33333 | CQ55: 27436.66667 | CR55: 27293.33333 | CS55: =BN55+3*STDEVP($E55:OFFSET($E55,0,0,BN$4,1)) -> 29626.30655 | CT55: =BN55+2*STDEVP($E55:OFFSET($E55,0,0,BN$4,1)) -> 29174.3377 | CU55: =BN55+STDEVP($E55:OFFSET($E55,0,0,BN$4,1)) -> 28722.36885 | CV55: =BN55-STDEVP($E55:OFFSET($E55,0,0,BN$4,1)) -> 27818.43115 | CW55: =BN55-2*STDEVP($E55:OFFSET($E55,0,0,BN$4,1)) -> 27366.4623 | CX55: =BN55-3*STDEVP($E55:OFFSET($E55,0,0,BN$4,1)) -> 26914.49345 | CZ55: B1 | DA55: B1 | DB55: 0 | DC55: 46.66666667 | DD55: 28118 | DE55: 28275.2 | DF55: 27355.2 | DG55: 27200.2 | DH55: 27480.7 | DI55: 28290 | DJ55: 28360 | DK55: 27097.5 | DL55: 26925 | DM55: 29612.80927 | DN55: 29167.07285 | DO55: 28721.33642 | DP55: 27829.86358 | DQ55: 27384.12715 | DR55: 26938.39073 | DS55: L | DT55: S | FI55: 1 | FJ55: 1 | FK55: 1 | FL55: 1 | FM55: 1 | FN55: 1 | FO55: 1 | FP55: 1 | FQ55: 1 | FR55: 1 | FS55: 1 | FT55: 1 | FU55: 1 | FV55: 1 | FW55: 1 | FX55: 1 | FY55: 1 | FZ55: 1 | GA55: 1 | GB55: 1 | GC55: 1 | GD55: 1 | GE55: 1 | GF55: 1 | GG55: 1 | GH55: 1 | GI55: 1 | GJ55: 1 | GK55: 1 | GL55: 1 | GM55: 1 | GN55: 1 | GO55: 1 | GP55: 1 | GQ55: 1 | GR55: 1 | GS55: 1 | GT55: 1 | GU55: 1 | GV55: 1 | GW55: 1 | GX55: 1 | GY55: 1 | GZ55: 1 | HA55: 1 | HB55: 1 | HC55: 1 | HD55: 1 | HE55: 1 | HF55: 1 | HG55: 1 | HH55: 1 | HI55: 1 | HJ55: 1 | HK55: 1 | HL55: 1 | HM55: 0 | HN55: 1 | HO55: 1 | HP55: 1 | HQ55: 1 | HR55: 1 | HS55: 1 | HT55: 1 | HU55: 1 | HV55: 1 | HW55: 1 | HX55: 1 | HY55: 1 | HZ55: 1 | IA55: 1 | IH55: 0 | II55: 0 | IJ55: 0 | IK55: 0 | IL55: 0 | IM55: 0 | IN55: 0 | IO55: 0 | IP55: 0 | IQ55: 0 | IR55: 0 | IS55: 0 | IT55: 0 | IU55: 0 | IV55: 0 | IW55: 0 | IX55: 0 | IY55: 0 | IZ55: 0 | JA55: 0 | JB55: 0 | JC55: 0 | JD55: 0 | JE55: 0 | JF55: 0 | JG55: 0 | JH55: 0 | JI55: 0 | JJ55: 0 | JK55: 0 | JL55: 0 | JM55: 0 | JN55: 0 | JO55: 0 | JP55: 0 | JQ55: 0 | JR55: 0 | JS55: 0 | JT55: 0 | JU55: 0 | JV55: 0 | JW55: 0 | JX55: 0 | JY55: 0 | JZ55: 0 | KA55: 0 | KB55: 0 | KC55: 0 | KD55: 0 | KE55: 0 | KF55: 0 | KG55: 0 | KH55: 0 | KI55: 0 | KJ55: 0 | KK55: 0 | KL55: 0 | KM55: 0 | KN55: 0 | KO55: 0 | KP55: 0 | KQ55: 0 | KR55: 0 | KS55: 0 | KT55: 0 | KU55: 0 | KV55: 0 | KW55: 0 | KX55: 0 | KY55: 0 | KZ55: 0 | LB55: 0 | LC55: 0 | LD55: 0 | MJ55: 2022-09-01
A56: 2022-08-31 | B56: 27890 | C56: 28120 | D56: 27870 | E56: 28120 | F56: 37448 | G56: 27890 | H56: 27920 | I56: 27870 | J56: 27890 | K56: 27890 | L56: 28000 | M56: 27870 | N56: 27950 | O56: 27950 | P56: 27980 | Q56: 27910 | R56: 27970 | S56: 27970 | T56: 28070 | U56: 27940 | V56: 28030 | W56: 28030 | X56: 28050 | Y56: 28010 | Z56: 28020 | AA56: 28020 | AB56: 28100 | AC56: 27970 | AD56: 27970 | AE56: 27980 | AF56: 28040 | AG56: 27980 | AH56: 28030 | AI56: 28040 | AJ56: 28060 | AK56: 28020 | AL56: 28030 | AM56: 28030 | AN56: 28090 | AO56: 28010 | AP56: 28080 | AQ56: 28090 | AR56: 28100 | AS56: 28070 | AT56: 28080 | AU56: 28080 | AV56: 28080 | AW56: 28040 | AX56: 28040 | AY56: 28040 | AZ56: 28090 | BA56: 28040 | BB56: 28060 | BC56: 28050 | BD56: 28090 | BE56: 28040 | BF56: 28050 | BG56: 28050 | BH56: 28120 | BI56: 28040 | BJ56: 28120 | BK56: 28120 | BL56: 28010 | BM56: =AVERAGE($E56:OFFSET($E56,0,0,BM$4,1)) -> 28270 | BN56: =AVERAGE($E56:OFFSET($E56,0,0,BN$4,1)) -> 28275.6 | BO56: =AVERAGE($E56:OFFSET($E56,0,0,BO$4,1)) -> 27340.26667 | BP56: =AVERAGE($E56:OFFSET($E56,0,0,BP$4,1)) -> 27197 | BQ56: =AVERAGE($E56:OFFSET($E56,0,0,BQ$4,1)) -> 27489.4 | BR56: 230 | BS56: 250 | BT56: 221 | BU56: -310 | BV56: L | BW56: I | BX56: 水 | BY56: 4 | BZ56: N | CA56: 28360 | CB56: 28450 | CC56: 26905 | CD56: 26925 | CE56: 27650 | CF56: L | CG56: L | CI56: 80 | CJ56: =SUM(CH56:OFFSET(CH56,0,0,CJ$4,1))/(SUM(CH56:OFFSET(CH56,0,0,CJ$4,1))+SUM(CI56:OFFSET(CI56,0,0,CJ$4,1)))*100 -> 42.64705882 | CK56: =SUM(CH56:OFFSET(CH56,0,0,CK$4,1))/(SUM(CH56:OFFSET(CH56,0,0,CK$4,1))+SUM(CI56:OFFSET(CI56,0,0,CK$4,1)))*100 -> 29.29292929 | CL56: 28453.33333 | CM56: 28286.66667 | CN56: 28203.33333 | CO56: 28036.66667 | CP56: 27953.33333 | CQ56: 27786.66667 | CR56: 27703.33333 | CS56: =BN56+3*STDEVP($E56:OFFSET($E56,0,0,BN$4,1)) -> 29611.40753 | CT56: =BN56+2*STDEVP($E56:OFFSET($E56,0,0,BN$4,1)) -> 29166.13835 | CU56: =BN56+STDEVP($E56:OFFSET($E56,0,0,BN$4,1)) -> 28720.86918 | CV56: =BN56-STDEVP($E56:OFFSET($E56,0,0,BN$4,1)) -> 27830.33082 | CW56: =BN56-2*STDEVP($E56:OFFSET($E56,0,0,BN$4,1)) -> 27385.06165 | CX56: =BN56-3*STDEVP($E56:OFFSET($E56,0,0,BN$4,1)) -> 26939.79247 | CZ56: B2 | DA56: B2 | DB56: 0 | DC56: 50 | DD56: 28224 | DE56: 28266.4 | DF56: 27337.2 | DG56: 27194.7 | DH56: 27488.25 | DI56: 28450 | DJ56: 28360 | DK56: 26995 | DL56: 26925 | DM56: 29608.99502 | DN56: 29158.26334 | DO56: 28707.53167 | DP56: 27806.06833 | DQ56: 27355.33666 | DR56: 26904.60498 | DS56: L | DT56: S | FI56: 1 | FJ56: 1 | FK56: 1 | FL56: 1 | FM56: 1 | FN56: 1 | FO56: 1 | FP56: 1 | FQ56: 1 | FR56: 1 | FS56: 1 | FT56: 1 | FU56: 1 | FV56: 1 | FW56: 1 | FX56: 1 | FY56: 1 | FZ56: 1 | GA56: 1 | GB56: 1 | GC56: 1 | GD56: 1 | GE56: 1 | GF56: 1 | GG56: 1 | GH56: 1 | GI56: 1 | GJ56: 1 | GK56: 1 | GL56: 1 | GM56: 1 | GN56: 1 | GO56: 1 | GP56: 1 | GQ56: 1 | GR56: 1 | GS56: 1 | GT56: 1 | GU56: 1 | GV56: 1 | GW56: 1 | GX56: 1 | GY56: 1 | GZ56: 1 | HA56: 1 | HB56: 1 | HC56: 1 | HD56: 1 | HE56: 1 | HF56: 1 | HG56: 1 | HH56: 1 | HI56: 1 | HJ56: 1 | HK56: 1 | HL56: 1 | HM56: 0 | HN56: 1 | HO56: 1 | HP56: 1 | HQ56: 1 | HR56: 1 | HS56: 1 | HT56: 1 | HU56: 1 | HV56: 1 | HW56: 1 | HX56: 1 | HY56: 1 | HZ56: 1 | IA56: 1 | IH56: 0 | II56: 0 | IJ56: 0 | IK56: 0 | IL56: 0 | IM56: 0 | IN56: 0 | IO56: 0 | IP56: 0 | IQ56: 0 | IR56: 0 | IS56: 0 | IT56: 0 | IU56: 0 | IV56: 0 | IW56: 0 | IX56: 0 | IY56: 0 | IZ56: 0 | JA56: 0 | JB56: 0 | JC56: 0 | JD56: 0 | JE56: 0 | JF56: 0 | JG56: 0 | JH56: 0 | JI56: 0 | JJ56: 0 | JK56: 0 | JL56: 0 | JM56: 0 | JN56: 0 | JO56: 0 | JP56: 0 | JQ56: 0 | JR56: 0 | JS56: 0 | JT56: 0 | JU56: 0 | JV56: 0 | JW56: 0 | JX56: 0 | JY56: 0 | JZ56: 0 | KA56: 0 | KB56: 0 | KC56: 0 | KD56: 0 | KE56: 0 | KF56: 0 | KG56: 0 | KH56: 0 | KI56: 0 | KJ56: 0 | KK56: 0 | KL56: 0 | KM56: 0 | KN56: 0 | KO56: 0 | KP56: 0 | KQ56: 0 | KR56: 0 | KS56: 0 | KT56: 0 | KU56: 0 | KV56: 0 | KW56: 0 | KX56: 0 | KY56: 0 | KZ56: 0 | LB56: 0 | LC56: 0 | LD56: 0 | MJ56: 2022-08-31
A57: 2022-08-30 | B57: 28050 | C57: 28220 | D57: 27940 | E57: 28200 | F57: 36721 | G57: 28050 | H57: 28100 | I57: 28050 | J57: 28070 | K57: 28070 | L57: 28110 | M57: 28040 | N57: 28050 | O57: 28050 | P57: 28070 | Q57: 27990 | R57: 27990 | S57: 27980 | T57: 28070 | U57: 27940 | V57: 28040 | W57: 28040 | X57: 28180 | Y57: 28040 | Z57: 28160 | AA57: 28150 | AB57: 28160 | AC57: 28090 | AD57: 28130 | AE57: 28130 | AF57: 28170 | AG57: 28090 | AH57: 28150 | AI57: 28160 | AJ57: 28160 | AK57: 28150 | AL57: 28160 | AM57: 28150 | AN57: 28160 | AO57: 28130 | AP57: 28150 | AQ57: 28160 | AR57: 28200 | AS57: 28150 | AT57: 28190 | AU57: 28190 | AV57: 28210 | AW57: 28180 | AX57: 28210 | AY57: 28200 | AZ57: 28220 | BA57: 28200 | BB57: 28200 | BC57: 28210 | BD57: 28210 | BE57: 28180 | BF57: 28190 | BG57: 28190 | BH57: 28220 | BI57: 28180 | BJ57: 28200 | BK57: 28220 | BL57: 28130 | BM57: =AVERAGE($E57:OFFSET($E57,0,0,BM$4,1)) -> 28310 | BN57: =AVERAGE($E57:OFFSET($E57,0,0,BN$4,1)) -> 28256.8 | BO57: =AVERAGE($E57:OFFSET($E57,0,0,BO$4,1)) -> 27318.4 | BP57: =AVERAGE($E57:OFFSET($E57,0,0,BP$4,1)) -> 27193.8 | BQ57: =AVERAGE($E57:OFFSET($E57,0,0,BQ$4,1)) -> 27496.9 | BR57: 150 | BS57: 280 | BT57: 226 | BU57: 140 | BV57: H | BW57: H | BX57: 火 | BY57: 3 | BZ57: N | CA57: 28360 | CB57: 28450 | CC57: 26895 | CD57: 26925 | CE57: 27700 | CF57: L | CG57: L | CH57: 290 | CJ57: =SUM(CH57:OFFSET(CH57,0,0,CJ$4,1))/(SUM(CH57:OFFSET(CH57,0,0,CJ$4,1))+SUM(CI57:OFFSET(CI57,0,0,CJ$4,1)))*100 -> 42.96296296 | CK57: =SUM(CH57:OFFSET(CH57,0,0,CK$4,1))/(SUM(CH57:OFFSET(CH57,0,0,CK$4,1))+SUM(CI57:OFFSET(CI57,0,0,CK$4,1)))*100 -> 26.97674419 | CL57: 28580 | CM57: 28400 | CN57: 28300 | CO57: 28120 | CP57: 28020 | CQ57: 27840 | CR57: 27740 | CS57: =BN57+3*STDEVP($E57:OFFSET($E57,0,0,BN$4,1)) -> 29640.04974 | CT57: =BN57+2*STDEVP($E57:OFFSET($E57,0,0,BN$4,1)) -> 29178.96649 | CU57: =BN57+STDEVP($E57:OFFSET($E57,0,0,BN$4,1)) -> 28717.88325 | CV57: =BN57-STDEVP($E57:OFFSET($E57,0,0,BN$4,1)) -> 27795.71675 | CW57: =BN57-2*STDEVP($E57:OFFSET($E57,0,0,BN$4,1)) -> 27334.63351 | CX57: =BN57-3*STDEVP($E57:OFFSET($E57,0,0,BN$4,1)) -> 26873.55026 | CY57: S1 | DA57: S1 | DB57: 63.33333333 | DC57: 0 | DD57: 28280 | DE57: 28250.8 | DF57: 27316.4 | DG57: 27192.3 | DH57: 27496.15 | DI57: 28450 | DJ57: 28360 | DK57: 26905 | DL57: 26925 | DM57: 29625.06879 | DN57: 29162.31253 | DO57: 28699.55626 | DP57: 27774.04374 | DQ57: 27311.28747 | DR57: 26848.53121 | DS57: H | DT57: L | FI57: 1 | FJ57: 1 | FK57: 1 | FL57: 1 | FM57: 1 | FN57: 1 | FO57: 1 | FP57: 1 | FQ57: 1 | FR57: 1 | FS57: 1 | FT57: 1 | FU57: 1 | FV57: 1 | FW57: 1 | FX57: 1 | FY57: 1 | FZ57: 1 | GA57: 1 | GB57: 1 | GC57: 1 | GD57: 1 | GE57: 1 | GF57: 1 | GG57: 1 | GH57: 1 | GI57: 1 | GJ57: 1 | GK57: 1 | GL57: 1 | GM57: 1 | GN57: 1 | GO57: 1 | GP57: 1 | GQ57: 1 | GR57: 1 | GS57: 1 | GT57: 1 | GU57: 1 | GV57: 1 | GW57: 1 | GX57: 1 | GY57: 1 | GZ57: 1 | HA57: 1 | HB57: 1 | HC57: 1 | HD57: 1 | HE57: 1 | HF57: 1 | HG57: 1 | HH57: 1 | HI57: 1 | HJ57: 1 | HK57: 1 | HL57: 1 | HM57: 0 | HN57: 1 | HO57: 1 | HP57: 1 | HQ57: 1 | HR57: 1 | HS57: 1 | HT57: 1 | HU57: 1 | HV57: 1 | HW57: 1 | HX57: 1 | HY57: 1 | HZ57: 1 | IA57: 1 | IH57: 0 | II57: 0 | IJ57: 0 | IK57: 0 | IL57: 0 | IM57: 0 | IN57: 0 | IO57: 0 | IP57: 0 | IQ57: 0 | IR57: 0 | IS57: 0 | IT57: 0 | IU57: 0 | IV57: 0 | IW57: 0 | IX57: 0 | IY57: 0 | IZ57: 0 | JA57: 0 | JB57: 0 | JC57: 0 | JD57: 0 | JE57: 0 | JF57: 0 | JG57: 0 | JH57: 0 | JI57: 0 | JJ57: 0 | JK57: 0 | JL57: 0 | JM57: 0 | JN57: 0 | JO57: 0 | JP57: 0 | JQ57: 0 | JR57: 0 | JS57: 0 | JT57: 0 | JU57: 0 | JV57: 0 | JW57: 0 | JX57: 0 | JY57: 0 | JZ57: 0 | KA57: 0 | KB57: 0 | KC57: 0 | KD57: 0 | KE57: 0 | KF57: 0 | KG57: 0 | KH57: 0 | KI57: 0 | KJ57: 0 | KK57: 0 | KL57: 0 | KM57: 0 | KN57: 0 | KO57: 0 | KP57: 0 | KQ57: 0 | KR57: 0 | KS57: 0 | KT57: 0 | KU57: 0 | KV57: 0 | KW57: 0 | KX57: 0 | KY57: 0 | KZ57: 0 | LB57: 0 | LC57: 0 | LD57: 0 | MJ57: 2022-08-30
A58: 2022-08-29 | B58: 27870 | C58: 27950 | D58: 27760 | E58: 27910 | F58: 49520 | G58: 27870 | H58: 27920 | I58: 27840 | J58: 27910 | K58: 27910 | L58: 27930 | M58: 27860 | N58: 27930 | O58: 27930 | P58: 27950 | Q58: 27860 | R58: 27920 | S58: 27920 | T58: 27940 | U58: 27780 | V58: 27780 | W58: 27780 | X58: 27840 | Y58: 27760 | Z58: 27790 | AA58: 27790 | AB58: 27820 | AC58: 27780 | AD58: 27810 | AE58: 27820 | AF58: 27840 | AG58: 27790 | AH58: 27820 | AI58: 27820 | AJ58: 27850 | AK58: 27790 | AL58: 27820 | AM58: 27820 | AN58: 27840 | AO58: 27800 | AP58: 27830 | AQ58: 27830 | AR58: 27840 | AS58: 27810 | AT58: 27830 | AU58: 27830 | AV58: 27870 | AW58: 27820 | AX58: 27830 | AY58: 27840 | AZ58: 27870 | BA58: 27840 | BB58: 27860 | BC58: 27860 | BD58: 27910 | BE58: 27860 | BF58: 27890 | BG58: 27890 | BH58: 27920 | BI58: 27840 | BJ58: 27910 | BK58: 27920 | BL58: 27800 | BM58: =AVERAGE($E58:OFFSET($E58,0,0,BM$4,1)) -> 28348 | BN58: =AVERAGE($E58:OFFSET($E58,0,0,BN$4,1)) -> 28236.8 | BO58: =AVERAGE($E58:OFFSET($E58,0,0,BO$4,1)) -> 27294.26667 | BP58: =AVERAGE($E58:OFFSET($E58,0,0,BP$4,1)) -> 27189.7 | BQ58: =AVERAGE($E58:OFFSET($E58,0,0,BQ$4,1)) -> 27505 | BR58: 40 | BS58: 190 | BT58: 216 | BU58: -740 | BV58: L | BW58: L | BX58: 月 | BY58: 2 | BZ58: N | CA58: 28360 | CB58: 28495 | CC58: 26895 | CD58: 26925 | CE58: 27890 | CF58: L | CG58: L | CI58: 700 | CJ58: =SUM(CH58:OFFSET(CH58,0,0,CJ$4,1))/(SUM(CH58:OFFSET(CH58,0,0,CJ$4,1))+SUM(CI58:OFFSET(CI58,0,0,CJ$4,1)))*100 -> 21.01449275 | CK58: =SUM(CH58:OFFSET(CH58,0,0,CK$4,1))/(SUM(CH58:OFFSET(CH58,0,0,CK$4,1))+SUM(CI58:OFFSET(CI58,0,0,CK$4,1)))*100 -> 28.63636364 | CL58: 28176.66667 | CM58: 28063.33333 | CN58: 27986.66667 | CO58: 27873.33333 | CP58: 27796.66667 | CQ58: 27683.33333 | CR58: 27606.66667 | CS58: =BN58+3*STDEVP($E58:OFFSET($E58,0,0,BN$4,1)) -> 29658.14719 | CT58: =BN58+2*STDEVP($E58:OFFSET($E58,0,0,BN$4,1)) -> 29184.36479 | CU58: =BN58+STDEVP($E58:OFFSET($E58,0,0,BN$4,1)) -> 28710.5824 | CV58: =BN58-STDEVP($E58:OFFSET($E58,0,0,BN$4,1)) -> 27763.0176 | CW58: =BN58-2*STDEVP($E58:OFFSET($E58,0,0,BN$4,1)) -> 27289.23521 | CX58: =BN58-3*STDEVP($E58:OFFSET($E58,0,0,BN$4,1)) -> 26815.45281 | CZ58: B0 | DA58: B0 | DB58: 0 | DC58: -483.3333333 | DD58: 28340 | DE58: 28235.2 | DF58: 27293.73333 | DG58: 27189.3 | DH58: 27504.8 | DI58: 28550 | DJ58: 28360 | DK58: 26895 | DL58: 26925 | DM58: 29660.84829 | DN58: 29185.89886 | DO58: 28710.94943 | DP58: 27761.05057 | DQ58: 27286.10114 | DR58: 26811.15171 | DS58: L | DT58: L | FI58: 1 | FJ58: 1 | FK58: 1 | FL58: 1 | FM58: 1 | FN58: 1 | FO58: 1 | FP58: 1 | FQ58: 1 | FR58: 1 | FS58: 1 | FT58: 1 | FU58: 1 | FV58: 1 | FW58: 1 | FX58: 1 | FY58: 1 | FZ58: 1 | GA58: 1 | GB58: 1 | GC58: 1 | GD58: 1 | GE58: 1 | GF58: 1 | GG58: 1 | GH58: 1 | GI58: 1 | GJ58: 1 | GK58: 1 | GL58: 1 | GM58: 1 | GN58: 1 | GO58: 1 | GP58: 1 | GQ58: 1 | GR58: 1 | GS58: 1 | GT58: 1 | GU58: 1 | GV58: 1 | GW58: 1 | GX58: 1 | GY58: 1 | GZ58: 1 | HA58: 1 | HB58: 1 | HC58: 1 | HD58: 1 | HE58: 1 | HF58: 1 | HG58: 1 | HH58: 1 | HI58: 1 | HJ58: 1 | HK58: 1 | HL58: 1 | HM58: 0 | HN58: 1 | HO58: 1 | HP58: 1 | HQ58: 1 | HR58: 1 | HS58: 1 | HT58: 1 | HU58: 1 | HV58: 1 | HW58: 1 | HX58: 1 | HY58: 1 | HZ58: 1 | IA58: 1 | IH58: 0 | II58: 0 | IJ58: 0 | IK58: 0 | IL58: 0 | IM58: 0 | IN58: 0 | IO58: 0 | IP58: 0 | IQ58: 0 | IR58: 0 | IS58: 0 | IT58: 0 | IU58: 0 | IV58: 0 | IW58: 0 | IX58: 0 | IY58: 0 | IZ58: 0 | JA58: 0 | JB58: 0 | JC58: 0 | JD58: 0 | JE58: 0 | JF58: 0 | JG58: 0 | JH58: 0 | JI58: 0 | JJ58: 0 | JK58: 0 | JL58: 0 | JM58: 0 | JN58: 0 | JO58: 0 | JP58: 0 | JQ58: 0 | JR58: 0 | JS58: 0 | JT58: 0 | JU58: 0 | JV58: 0 | JW58: 0 | JX58: 0 | JY58: 0 | JZ58: 0 | KA58: 0 | KB58: 0 | KC58: 0 | KD58: 0 | KE58: 0 | KF58: 0 | KG58: 0 | KH58: 0 | KI58: 0 | KJ58: 0 | KK58: 0 | KL58: 0 | KM58: 0 | KN58: 0 | KO58: 0 | KP58: 0 | KQ58: 0 | KR58: 0 | KS58: 0 | KT58: 0 | KU58: 0 | KV58: 0 | KW58: 0 | KX58: 0 | KY58: 0 | KZ58: 0 | LB58: 0 | LC58: 0 | LD58: 0 | MJ58: 2022-08-29
A59: 2022-08-26 | B59: 28660 | C59: 28790 | D59: 28600 | E59: 28610 | F59: 24507 | G59: 28660 | H59: 28690 | I59: 28640 | J59: 28670 | K59: 28660 | L59: 28740 | M59: 28640 | N59: 28680 | O59: 28670 | P59: 28730 | Q59: 28660 | R59: 28730 | S59: 28730 | T59: 28780 | U59: 28720 | V59: 28760 | W59: 28770 | X59: 28790 | Y59: 28710 | Z59: 28730 | AA59: 28720 | AB59: 28770 | AC59: 28710 | AD59: 28750 | AE59: 28750 | AF59: 28770 | AG59: 28720 | AH59: 28730 | AI59: 28740 | AJ59: 28740 | AK59: 28720 | AL59: 28720 | AM59: 28720 | AN59: 28730 | AO59: 28700 | AP59: 28720 | AQ59: 28710 | AR59: 28720 | AS59: 28670 | AT59: 28670 | AU59: 28670 | AV59: 28680 | AW59: 28650 | AX59: 28650 | AY59: 28650 | AZ59: 28670 | BA59: 28620 | BB59: 28630 | BC59: 28630 | BD59: 28640 | BE59: 28610 | BF59: 28630 | BG59: 28630 | BH59: 28640 | BI59: 28610 | BJ59: 28610 | BK59: 28730 | BL59: 28610 | BM59: =AVERAGE($E59:OFFSET($E59,0,0,BM$4,1)) -> 28508 | BN59: =AVERAGE($E59:OFFSET($E59,0,0,BN$4,1)) -> 28236 | BO59: =AVERAGE($E59:OFFSET($E59,0,0,BO$4,1)) -> 27265.73333 | BP59: =AVERAGE($E59:OFFSET($E59,0,0,BP$4,1)) -> 27187.2 | BQ59: =AVERAGE($E59:OFFSET($E59,0,0,BQ$4,1)) -> 27512.95 | BR59: -50 | BS59: 190 | BT59: 223 | BU59: 150 | BV59: H | BW59: H | BX59: 金 | BY59: 6 | BZ59: N | CA59: 28360 | CB59: 28745 | CC59: 26830 | CD59: 26925 | CE59: 27780 | CF59: L | CG59: L | CH59: 100 | CJ59: =SUM(CH59:OFFSET(CH59,0,0,CJ$4,1))/(SUM(CH59:OFFSET(CH59,0,0,CJ$4,1))+SUM(CI59:OFFSET(CI59,0,0,CJ$4,1)))*100 -> 32.22222222 | CK59: =SUM(CH59:OFFSET(CH59,0,0,CK$4,1))/(SUM(CH59:OFFSET(CH59,0,0,CK$4,1))+SUM(CI59:OFFSET(CI59,0,0,CK$4,1)))*100 -> 41.7218543 | CL59: 28923.33333 | CM59: 28856.66667 | CN59: 28733.33333 | CO59: 28666.66667 | CP59: 28543.33333 | CQ59: 28476.66667 | CR59: 28353.33333 | CS59: =BN59+3*STDEVP($E59:OFFSET($E59,0,0,BN$4,1)) -> 29659.05025 | CT59: =BN59+2*STDEVP($E59:OFFSET($E59,0,0,BN$4,1)) -> 29184.70016 | CU59: =BN59+STDEVP($E59:OFFSET($E59,0,0,BN$4,1)) -> 28710.35008 | CV59: =BN59-STDEVP($E59:OFFSET($E59,0,0,BN$4,1)) -> 27761.64992 | CW59: =BN59-2*STDEVP($E59:OFFSET($E59,0,0,BN$4,1)) -> 27287.29984 | CX59: =BN59-3*STDEVP($E59:OFFSET($E59,0,0,BN$4,1)) -> 26812.94975 | CY59: S2 | DA59: S2 | DB59: 23.33333333 | DC59: 0 | DD59: 28518 | DE59: 28238 | DF59: 27266.4 | DG59: 27187.7 | DH59: 27513.2 | DI59: 28745 | DJ59: 28360 | DK59: 26895 | DL59: 26925 | DM59: 29630.87563 | DN59: 29154.85042 | DO59: 28678.82521 | DP59: 27726.77479 | DQ59: 27250.74958 | DR59: 26774.72437 | DS59: H | DT59: L | FI59: 1 | FJ59: 1 | FK59: 1 | FL59: 1 | FM59: 1 | FN59: 1 | FO59: 1 | FP59: 1 | FQ59: 1 | FR59: 1 | FS59: 1 | FT59: 1 | FU59: 1 | FV59: 1 | FW59: 1 | FX59: 1 | FY59: 1 | FZ59: 1 | GA59: 1 | GB59: 1 | GC59: 1 | GD59: 1 | GE59: 1 | GF59: 1 | GG59: 1 | GH59: 1 | GI59: 1 | GJ59: 1 | GK59: 1 | GL59: 1 | GM59: 1 | GN59: 1 | GO59: 1 | GP59: 1 | GQ59: 1 | GR59: 1 | GS59: 1 | GT59: 1 | GU59: 1 | GV59: 1 | GW59: 1 | GX59: 1 | GY59: 1 | GZ59: 1 | HA59: 1 | HB59: 1 | HC59: 1 | HD59: 1 | HE59: 1 | HF59: 1 | HG59: 1 | HH59: 1 | HI59: 1 | HJ59: 1 | HK59: 1 | HL59: 1 | HM59: 0 | HN59: 1 | HO59: 1 | HP59: 1 | HQ59: 1 | HR59: 1 | HS59: 1 | HT59: 1 | HU59: 1 | HV59: 1 | HW59: 1 | HX59: 1 | HY59: 1 | HZ59: 1 | IA59: 1 | IH59: 0 | II59: 0 | IJ59: 0 | IK59: 0 | IL59: 0 | IM59: 0 | IN59: 0 | IO59: 0 | IP59: 0 | IQ59: 0 | IR59: 0 | IS59: 0 | IT59: 0 | IU59: 0 | IV59: 0 | IW59: 0 | IX59: 0 | IY59: 0 | IZ59: 0 | JA59: 0 | JB59: 0 | JC59: 0 | JD59: 0 | JE59: 0 | JF59: 0 | JG59: 0 | JH59: 0 | JI59: 0 | JJ59: 0 | JK59: 0 | JL59: 0 | JM59: 0 | JN59: 0 | JO59: 0 | JP59: 0 | JQ59: 0 | JR59: 0 | JS59: 0 | JT59: 0 | JU59: 0 | JV59: 0 | JW59: 0 | JX59: 0 | JY59: 0 | JZ59: 0 | KA59: 0 | KB59: 0 | KC59: 0 | KD59: 0 | KE59: 0 | KF59: 0 | KG59: 0 | KH59: 0 | KI59: 0 | KJ59: 0 | KK59: 0 | KL59: 0 | KM59: 0 | KN59: 0 | KO59: 0 | KP59: 0 | KQ59: 0 | KR59: 0 | KS59: 0 | KT59: 0 | KU59: 0 | KV59: 0 | KW59: 0 | KX59: 0 | KY59: 0 | KZ59: 0 | LB59: 0 | LC59: 0 | LD59: 0 | MJ59: 2022-08-26
A60: 2022-08-25 | B60: 28440 | C60: 28520 | D60: 28340 | E60: 28510 | F60: 24939 | G60: 28440 | H60: 28440 | I60: 28390 | J60: 28390 | K60: 28400 | L60: 28430 | M60: 28360 | N60: 28400 | O60: 28390 | P60: 28400 | Q60: 28340 | R60: 28360 | S60: 28360 | T60: 28460 | U60: 28350 | V60: 28450 | W60: 28460 | X60: 28470 | Y60: 28410 | Z60: 28430 | AA60: 28430 | AB60: 28480 | AC60: 28430 | AD60: 28460 | AE60: 28470 | AF60: 28470 | AG60: 28420 | AH60: 28450 | AI60: 28450 | AJ60: 28460 | AK60: 28450 | AL60: 28450 | AM60: 28460 | AN60: 28470 | AO60: 28450 | AP60: 28460 | AQ60: 28460 | AR60: 28470 | AS60: 28430 | AT60: 28450 | AU60: 28450 | AV60: 28480 | AW60: 28450 | AX60: 28480 | AY60: 28480 | AZ60: 28500 | BA60: 28470 | BB60: 28480 | BC60: 28490 | BD60: 28520 | BE60: 28490 | BF60: 28510 | BG60: 28510 | BH60: 28520 | BI60: 28480 | BJ60: 28510 | BK60: 28520 | BL60: 28430 | BM60: =AVERAGE($E60:OFFSET($E60,0,0,BM$4,1)) -> 28572 | BN60: =AVERAGE($E60:OFFSET($E60,0,0,BN$4,1)) -> 28202.8 | BO60: =AVERAGE($E60:OFFSET($E60,0,0,BO$4,1)) -> 27234.26667 | BP60: =AVERAGE($E60:OFFSET($E60,0,0,BP$4,1)) -> 27179 | BQ60: =AVERAGE($E60:OFFSET($E60,0,0,BQ$4,1)) -> 27517.65 | BR60: 70 | BS60: 180 | BT60: 247 | BU60: 120 | BV60: I | BW60: H | BX60: 木 | BY60: 5 | BZ60: N | CA60: 28290 | CB60: 28745 | CC60: 26737.5 | CD60: 26925 | CE60: 27680 | CF60: L | CG60: L | CH60: 190 | CJ60: =SUM(CH60:OFFSET(CH60,0,0,CJ$4,1))/(SUM(CH60:OFFSET(CH60,0,0,CJ$4,1))+SUM(CI60:OFFSET(CI60,0,0,CJ$4,1)))*100 -> 23.45679012 | CK60: =SUM(CH60:OFFSET(CH60,0,0,CK$4,1))/(SUM(CH60:OFFSET(CH60,0,0,CK$4,1))+SUM(CI60:OFFSET(CI60,0,0,CK$4,1)))*100 -> 49.13294798 | CL60: 28753.33333 | CM60: 28636.66667 | CN60: 28573.33333 | CO60: 28456.66667 | CP60: 28393.33333 | CQ60: 28276.66667 | CR60: 28213.33333 | CS60: =BN60+3*STDEVP($E60:OFFSET($E60,0,0,BN$4,1)) -> 29630.96436 | CT60: =BN60+2*STDEVP($E60:OFFSET($E60,0,0,BN$4,1)) -> 29154.90957 | CU60: =BN60+STDEVP($E60:OFFSET($E60,0,0,BN$4,1)) -> 28678.85479 | CV60: =BN60-STDEVP($E60:OFFSET($E60,0,0,BN$4,1)) -> 27726.74521 | CW60: =BN60-2*STDEVP($E60:OFFSET($E60,0,0,BN$4,1)) -> 27250.69043 | CX60: =BN60-3*STDEVP($E60:OFFSET($E60,0,0,BN$4,1)) -> 26774.63564 | CY60: S0 | DA60: S0 | DB60: 80 | DC60: 0 | DD60: 28558 | DE60: 28200 | DF60: 27233.33333 | DG60: 27178.3 | DH60: 27517.3 | DI60: 28745 | DJ60: 28290 | DK60: 26830 | DL60: 26925 | DM60: 29592.92849 | DN60: 29118.48566 | DO60: 28644.04283 | DP60: 27695.15717 | DQ60: 27220.71434 | DR60: 26746.27151 | DS60: H | DT60: L | FI60: 1 | FJ60: 1 | FK60: 1 | FL60: 1 | FM60: 1 | FN60: 1 | FO60: 1 | FP60: 1 | FQ60: 1 | FR60: 1 | FS60: 1 | FT60: 1 | FU60: 1 | FV60: 1 | FW60: 1 | FX60: 1 | FY60: 1 | FZ60: 1 | GA60: 1 | GB60: 1 | GC60: 1 | GD60: 1 | GE60: 1 | GF60: 1 | GG60: 1 | GH60: 1 | GI60: 1 | GJ60: 1 | GK60: 1 | GL60: 1 | GM60: 1 | GN60: 1 | GO60: 1 | GP60: 1 | GQ60: 1 | GR60: 1 | GS60: 1 | GT60: 1 | GU60: 1 | GV60: 1 | GW60: 1 | GX60: 1 | GY60: 1 | GZ60: 1 | HA60: 1 | HB60: 1 | HC60: 1 | HD60: 1 | HE60: 1 | HF60: 1 | HG60: 1 | HH60: 1 | HI60: 1 | HJ60: 1 | HK60: 1 | HL60: 1 | HM60: 0 | HN60: 1 | HO60: 1 | HP60: 1 | HQ60: 1 | HR60: 1 | HS60: 1 | HT60: 1 | HU60: 1 | HV60: 1 | HW60: 1 | HX60: 1 | HY60: 1 | HZ60: 1 | IA60: 1 | IH60: 0 | II60: 0 | IJ60: 0 | IK60: 0 | IL60: 0 | IM60: 0 | IN60: 0 | IO60: 0 | IP60: 0 | IQ60: 0 | IR60: 0 | IS60: 0 | IT60: 0 | IU60: 0 | IV60: 0 | IW60: 0 | IX60: 0 | IY60: 0 | IZ60: 0 | JA60: 0 | JB60: 0 | JC60: 0 | JD60: 0 | JE60: 0 | JF60: 0 | JG60: 0 | JH60: 0 | JI60: 0 | JJ60: 0 | JK60: 0 | JL60: 0 | JM60: 0 | JN60: 0 | JO60: 0 | JP60: 0 | JQ60: 0 | JR60: 0 | JS60: 0 | JT60: 0 | JU60: 0 | JV60: 0 | JW60: 0 | JX60: 0 | JY60: 0 | JZ60: 0 | KA60: 0 | KB60: 0 | KC60: 0 | KD60: 0 | KE60: 0 | KF60: 0 | KG60: 0 | KH60: 0 | KI60: 0 | KJ60: 0 | KK60: 0 | KL60: 0 | KM60: 0 | KN60: 0 | KO60: 0 | KP60: 0 | KQ60: 0 | KR60: 0 | KS60: 0 | KT60: 0 | KU60: 0 | KV60: 0 | KW60: 0 | KX60: 0 | KY60: 0 | KZ60: 0 | LB60: 0 | LC60: 0 | LD60: 0 | MJ60: 2022-08-25
A61: 2022-08-24 | B61: 28490 | C61: 28500 | D61: 28260 | E61: 28320 | F61: 27817 | G61: 28490 | H61: 28500 | I61: 28430 | J61: 28460 | K61: 28470 | L61: 28490 | M61: 28430 | N61: 28460 | O61: 28470 | P61: 28500 | Q61: 28450 | R61: 28470 | S61: 28480 | T61: 28500 | U61: 28400 | V61: 28410 | W61: 28410 | X61: 28430 | Y61: 28380 | Z61: 28390 | AA61: 28380 | AB61: 28390 | AC61: 28260 | AD61: 28320 | AE61: 28320 | AF61: 28340 | AG61: 28300 | AH61: 28340 | AI61: 28340 | AJ61: 28340 | AK61: 28290 | AL61: 28300 | AM61: 28300 | AN61: 28320 | AO61: 28290 | AP61: 28300 | AQ61: 28300 | AR61: 28320 | AS61: 28290 | AT61: 28290 | AU61: 28290 | AV61: 28310 | AW61: 28280 | AX61: 28300 | AY61: 28300 | AZ61: 28340 | BA61: 28290 | BB61: 28320 | BC61: 28320 | BD61: 28330 | BE61: 28300 | BF61: 28320 | BG61: 28320 | BH61: 28340 | BI61: 28310 | BJ61: 28320 | BK61: 28340 | BL61: 28280 | BM61: =AVERAGE($E61:OFFSET($E61,0,0,BM$4,1)) -> 28658 | BN61: =AVERAGE($E61:OFFSET($E61,0,0,BN$4,1)) -> 28169.6 | BO61: =AVERAGE($E61:OFFSET($E61,0,0,BO$4,1)) -> 27204.4 | BP61: =AVERAGE($E61:OFFSET($E61,0,0,BP$4,1)) -> 27173.9 | BQ61: =AVERAGE($E61:OFFSET($E61,0,0,BQ$4,1)) -> 27519 | BR61: -170 | BS61: 240 | BT61: 249 | BU61: 100 | BV61: I | BW61: L | BX61: 水 | BY61: 4 | BZ61: N | CA61: 27995 | CB61: 28670 | CC61: 26425 | CD61: 26925 | CE61: 26930 | CF61: L | CG61: L | CI61: 70 | CJ61: =SUM(CH61:OFFSET(CH61,0,0,CJ$4,1))/(SUM(CH61:OFFSET(CH61,0,0,CJ$4,1))+SUM(CI61:OFFSET(CI61,0,0,CJ$4,1)))*100 -> 0 | CK61: =SUM(CH61:OFFSET(CH61,0,0,CK$4,1))/(SUM(CH61:OFFSET(CH61,0,0,CK$4,1))+SUM(CI61:OFFSET(CI61,0,0,CK$4,1)))*100 -> 61.5720524 | CL61: 28700 | CM61: 28600 | CN61: 28460 | CO61: 28360 | CP61: 28220 | CQ61: 28120 | CR61: 27980 | CS61: =BN61+3*STDEVP($E61:OFFSET($E61,0,0,BN$4,1)) -> 29616.7194 | CT61: =BN61+2*STDEVP($E61:OFFSET($E61,0,0,BN$4,1)) -> 29134.34627 | CU61: =BN61+STDEVP($E61:OFFSET($E61,0,0,BN$4,1)) -> 28651.97313 | CV61: =BN61-STDEVP($E61:OFFSET($E61,0,0,BN$4,1)) -> 27687.22687 | CW61: =BN61-2*STDEVP($E61:OFFSET($E61,0,0,BN$4,1)) -> 27204.85373 | CX61: =BN61-3*STDEVP($E61:OFFSET($E61,0,0,BN$4,1)) -> 26722.4806 | CY61: S0 | DA61: S0 | DB61: 46.66666667 | DC61: 0 | DD61: 28692 | DE61: 28176.4 | DF61: 27206.66667 | DG61: 27175.6 | DH61: 27519.85 | DI61: 28670 | DJ61: 27995 | DK61: 26737.5 | DL61: 26925 | DM61: 29570.89786 | DN61: 29085.26524 | DO61: 28599.63262 | DP61: 27628.36738 | DQ61: 27142.73476 | DR61: 26657.10214 | DS61: L | DT61: L | FI61: 1 | FJ61: 1 | FK61: 1 | FL61: 1 | FM61: 1 | FN61: 1 | FO61: 1 | FP61: 1 | FQ61: 1 | FR61: 1 | FS61: 1 | FT61: 1 | FU61: 1 | FV61: 1 | FW61: 1 | FX61: 1 | FY61: 1 | FZ61: 1 | GA61: 1 | GB61: 1 | GC61: 1 | GD61: 1 | GE61: 1 | GF61: 1 | GG61: 1 | GH61: 1 | GI61: 1 | GJ61: 1 | GK61: 1 | GL61: 1 | GM61: 1 | GN61: 1 | GO61: 1 | GP61: 1 | GQ61: 1 | GR61: 1 | GS61: 1 | GT61: 1 | GU61: 1 | GV61: 1 | GW61: 1 | GX61: 1 | GY61: 1 | GZ61: 1 | HA61: 1 | HB61: 1 | HC61: 1 | HD61: 1 | HE61: 1 | HF61: 1 | HG61: 1 | HH61: 1 | HI61: 1 | HJ61: 1 | HK61: 1 | HL61: 1 | HM61: 0 | HN61: 1 | HO61: 1 | HP61: 1 | HQ61: 1 | HR61: 1 | HS61: 1 | HT61: 1 | HU61: 1 | HV61: 1 | HW61: 1 | HX61: 1 | HY61: 1 | HZ61: 1 | IA61: 1 | IH61: 0 | II61: 0 | IJ61: 0 | IK61: 0 | IL61: 0 | IM61: 0 | IN61: 0 | IO61: 0 | IP61: 0 | IQ61: 0 | IR61: 0 | IS61: 0 | IT61: 0 | IU61: 0 | IV61: 0 | IW61: 0 | IX61: 0 | IY61: 0 | IZ61: 0 | JA61: 0 | JB61: 0 | JC61: 0 | JD61: 0 | JE61: 0 | JF61: 0 | JG61: 0 | JH61: 0 | JI61: 0 | JJ61: 0 | JK61: 0 | JL61: 0 | JM61: 0 | JN61: 0 | JO61: 0 | JP61: 0 | JQ61: 0 | JR61: 0 | JS61: 0 | JT61: 0 | JU61: 0 | JV61: 0 | JW61: 0 | JX61: 0 | JY61: 0 | JZ61: 0 | KA61: 0 | KB61: 0 | KC61: 0 | KD61: 0 | KE61: 0 | KF61: 0 | KG61: 0 | KH61: 0 | KI61: 0 | KJ61: 0 | KK61: 0 | KL61: 0 | KM61: 0 | KN61: 0 | KO61: 0 | KP61: 0 | KQ61: 0 | KR61: 0 | KS61: 0 | KT61: 0 | KU61: 0 | KV61: 0 | KW61: 0 | KX61: 0 | KY61: 0 | KZ61: 0 | LB61: 0 | LC61: 0 | LD61: 0 | MJ61: 2022-08-24
A62: 2022-08-23 | B62: 28470 | C62: 28560 | D62: 28380 | E62: 28390 | F62: 31547 | G62: 28470 | H62: 28560 | I62: 28470 | J62: 28550 | K62: 28560 | L62: 28560 | M62: 28480 | N62: 28480 | O62: 28490 | P62: 28500 | Q62: 28450 | R62: 28490 | S62: 28490 | T62: 28490 | U62: 28380 | V62: 28390 | W62: 28390 | X62: 28460 | Y62: 28380 | Z62: 28450 | AA62: 28450 | AB62: 28450 | AC62: 28380 | AD62: 28380 | AE62: 28390 | AF62: 28440 | AG62: 28390 | AH62: 28440 | AI62: 28440 | AJ62: 28510 | AK62: 28430 | AL62: 28480 | AM62: 28480 | AN62: 28500 | AO62: 28480 | AP62: 28480 | AQ62: 28480 | AR62: 28490 | AS62: 28450 | AT62: 28450 | AU62: 28450 | AV62: 28460 | AW62: 28430 | AX62: 28440 | AY62: 28440 | AZ62: 28440 | BA62: 28420 | BB62: 28430 | BC62: 28440 | BD62: 28450 | BE62: 28410 | BF62: 28430 | BG62: 28430 | BH62: 28450 | BI62: 28410 | BJ62: 28390 | BK62: 28500 | BL62: 28410 | BM62: =AVERAGE($E62:OFFSET($E62,0,0,BM$4,1)) -> 28832 | BN62: =AVERAGE($E62:OFFSET($E62,0,0,BN$4,1)) -> 28114 | BO62: =AVERAGE($E62:OFFSET($E62,0,0,BO$4,1)) -> 27178.66667 | BP62: =AVERAGE($E62:OFFSET($E62,0,0,BP$4,1)) -> 27169.9 | BQ62: =AVERAGE($E62:OFFSET($E62,0,0,BQ$4,1)) -> 27521.2 | BR62: -80 | BS62: 180 | BT62: 250 | BU62: -240 | BV62: L | BW62: L | BX62: 火 | BY62: 3 | BZ62: N | CA62: 27885 | CB62: 28470 | CC62: 26620 | CD62: 26925 | CE62: 26760 | CF62: L | CG62: L | CI62: 320 | CJ62: =SUM(CH62:OFFSET(CH62,0,0,CJ$4,1))/(SUM(CH62:OFFSET(CH62,0,0,CJ$4,1))+SUM(CI62:OFFSET(CI62,0,0,CJ$4,1)))*100 -> 29.8245614 | CK62: =SUM(CH62:OFFSET(CH62,0,0,CK$4,1))/(SUM(CH62:OFFSET(CH62,0,0,CK$4,1))+SUM(CI62:OFFSET(CI62,0,0,CK$4,1)))*100 -> 58.9958159 | CL62: 28686.66667 | CM62: 28623.33333 | CN62: 28506.66667 | CO62: 28443.33333 | CP62: 28326.66667 | CQ62: 28263.33333 | CR62: 28146.66667 | CS62: =BN62+3*STDEVP($E62:OFFSET($E62,0,0,BN$4,1)) -> 29729.97277 | CT62: =BN62+2*STDEVP($E62:OFFSET($E62,0,0,BN$4,1)) -> 29191.31518 | CU62: =BN62+STDEVP($E62:OFFSET($E62,0,0,BN$4,1)) -> 28652.65759 | CV62: =BN62-STDEVP($E62:OFFSET($E62,0,0,BN$4,1)) -> 27575.34241 | CW62: =BN62-2*STDEVP($E62:OFFSET($E62,0,0,BN$4,1)) -> 27036.68482 | CX62: =BN62-3*STDEVP($E62:OFFSET($E62,0,0,BN$4,1)) -> 26498.02723 | CZ62: B2 | DA62: B2 | DB62: 0 | DC62: 66.66666667 | DD62: 28848 | DE62: 28117.2 | DF62: 27179.73333 | DG62: 27170.7 | DH62: 27521.6 | DI62: 28470 | DJ62: 27885 | DK62: 26425 | DL62: 26925 | DM62: 29670.36635 | DN62: 29129.84424 | DO62: 28589.32212 | DP62: 27508.27788 | DQ62: 26967.75576 | DR62: 26427.23365 | DS62: L | DT62: L | FI62: 1 | FJ62: 1 | FK62: 1 | FL62: 1 | FM62: 1 | FN62: 1 | FO62: 1 | FP62: 1 | FQ62: 1 | FR62: 1 | FS62: 1 | FT62: 1 | FU62: 1 | FV62: 1 | FW62: 1 | FX62: 1 | FY62: 1 | FZ62: 1 | GA62: 1 | GB62: 1 | GC62: 1 | GD62: 1 | GE62: 1 | GF62: 1 | GG62: 1 | GH62: 1 | GI62: 1 | GJ62: 1 | GK62: 1 | GL62: 1 | GM62: 1 | GN62: 1 | GO62: 1 | GP62: 1 | GQ62: 1 | GR62: 1 | GS62: 1 | GT62: 1 | GU62: 1 | GV62: 1 | GW62: 1 | GX62: 1 | GY62: 1 | GZ62: 1 | HA62: 1 | HB62: 1 | HC62: 1 | HD62: 1 | HE62: 1 | HF62: 1 | HG62: 1 | HH62: 1 | HI62: 1 | HJ62: 1 | HK62: 1 | HL62: 1 | HM62: 0 | HN62: 1 | HO62: 1 | HP62: 1 | HQ62: 1 | HR62: 1 | HS62: 1 | HT62: 1 | HU62: 1 | HV62: 1 | HW62: 1 | HX62: 1 | HY62: 1 | HZ62: 1 | IA62: 1 | IH62: 0 | II62: 0 | IJ62: 0 | IK62: 0 | IL62: 0 | IM62: 0 | IN62: 0 | IO62: 0 | IP62: 0 | IQ62: 0 | IR62: 0 | IS62: 0 | IT62: 0 | IU62: 0 | IV62: 0 | IW62: 0 | IX62: 0 | IY62: 0 | IZ62: 0 | JA62: 0 | JB62: 0 | JC62: 0 | JD62: 0 | JE62: 0 | JF62: 0 | JG62: 0 | JH62: 0 | JI62: 0 | JJ62: 0 | JK62: 0 | JL62: 0 | JM62: 0 | JN62: 0 | JO62: 0 | JP62: 0 | JQ62: 0 | JR62: 0 | JS62: 0 | JT62: 0 | JU62: 0 | JV62: 0 | JW62: 0 | JX62: 0 | JY62: 0 | JZ62: 0 | KA62: 0 | KB62: 0 | KC62: 0 | KD62: 0 | KE62: 0 | KF62: 0 | KG62: 0 | KH62: 0 | KI62: 0 | KJ62: 0 | KK62: 0 | KL62: 0 | KM62: 0 | KN62: 0 | KO62: 0 | KP62: 0 | KQ62: 0 | KR62: 0 | KS62: 0 | KT62: 0 | KU62: 0 | KV62: 0 | KW62: 0 | KX62: 0 | KY62: 0 | KZ62: 0 | LB62: 0 | LC62: 0 | LD62: 0 | MJ62: 2022-08-23
